Workbook

Sheet Accueil
A1: REFERENTIEL DE COUTS Données 2012 Classification V11f
A2: Secteur ex DG
A4: Ce référentiel fournit des données de coûts complets par GHM, hors coûts de structure
A5: (lesquels sont isolés dans une colonne spécifique).
A7: ATTENTION : les coûts complets ne sont pas directement comparables aux tarifs, compte tenu des
A8: différences de périmètre existant entre ces deux concepts.
A9: En particulier, les coûts complets incluent les activités financées via les suppléments journaliers
A10: (exemple : suppléments de réanimation) ou en sus du tarif (exemple : molécules onéreuses).
A12: ACCES

Sheet accueil synthèse (hidden)
A1: PRODUCTION DE FICHES SYNTHETIQUES DE PRESENTATION DES COUTS
A4: Sélection par CMD | E4: Sélection par sous CMD | I4: Sélection par racine | M4: Sélection par GHM

Sheet synthèse CMD (hidden)
A1: Fiche de synthèse CMD | J1: =CONCATENATE(B4,B5,B6,B7) -> TOTALTOTAL | K1: 01
K2: 02
A3: Identification de la catégorie majeure de diagnostics (CMD) | K3: 03
A4: CMD | B4: TOTAL | K4: 04
A5: sous CMD | B5: TOTAL | K5: 05
A6: racine | K6: 06
A7: GHM | K7: 07
A8: libellé | B8: =IF($B$4<>"",VLOOKUP($J$1,'Coûts 12 décomposés gds postes'!$A:$BC,6,FALSE),"") -> TOTAL | K8: 08
C9: 2012 | D9: 2011 | E9: Evolution | H9: Part des postes détaillés dans le sous poste | K9: 09
A10: Coût moyen du séjour | C10: =IF($B$4<>"",VLOOKUP($J$1,'Coûts 12 décomposés gds postes'!$A:$BC,9,FALSE),"") -> 2126.92617 | D10: =IF($B$4<>"",VLOOKUP($J$1,'Coûts 11 décomposés gds postes'!$A:$W,13,FALSE),"") -> 2114.735513 | E10: =IF($B$4<>"",VLOOKUP($J$1,Evolutions!$A:$T,6,FALSE),"") -> 0.005764624957 | K10: 10
K11: 11
A12: Nombre de séjours ENC | C12: =IF($B$4<>"",VLOOKUP($J$1,'Coûts 12 décomposés gds postes'!$A:$BC,8,FALSE),"") -> 3375954 | D12: =IF($B$4<>"",VLOOKUP($J$1,'Coûts 11 décomposés gds postes'!$A:$W,8,FALSE),"") -> 3850340 | E12: =IF($B$4<>"",IF(D12<>"",IF(C12<>"",C12/D12-1,""),""),"") -> -0.1232062623 | G12: Coût moyen 2012 | K12: 12
K13: 13
K14: 14
F15: Médico technique: anesthésie | G15: =IF($B$4<>"",VLOOKUP($J$1,'Coûts 12 décomposés gds postes'!$A:$BC,15,FALSE),"") -> 76.46682297 | H15: =IF(C10<>"",IF(B27<>0,(G15+G16+G17+G18+G19+G20+G21+G22)/B27,""),"") -> 0.8198332128 | K15: 15
F16: Médico technique: bloc | G16: =IF($B$4<>"",VLOOKUP($J$1,'Coûts 12 décomposés gds postes'!$A:$BC,16,FALSE),"") -> 87.2175423 | K16: 16
F17: Médico technique: laboratoire | G17: =IF($B$4<>"",VLOOKUP($J$1,'Coûts 12 décomposés gds postes'!$A:$BC,22,FALSE)+VLOOKUP($J$1,'Coûts 12 décomposés gds postes'!$A:$BC,23,FALSE)+VLOOKUP($J$1,'Coûts 12 décomposés gds postes'!$A:$BC,24,FALSE),"") -> 52.6140648 | K17: 17
F18: Médico technique: Imagerie | G18: =IF($B$4<>"",VLOOKUP($J$1,'Coûts 12 décomposés gds postes'!$A:$BC,20,FALSE),"") -> 40.35304621 | K18: 18
F19: Médico technique: Exploration fonctionnelle | G19: =IF($B$4<>"",VLOOKUP($J$1,'Coûts 12 décomposés gds postes'!$A:$BC,19,FALSE),"") -> 21.62072752 | K19: 19
F20: Médico technique: Radiothérapie | G20: =IF($B$4<>"",VLOOKUP($J$1,'Coûts 12 décomposés gds postes'!$A:$BC,28,FALSE),"") -> 14.50621741 | K20: 20
F21: Médico technique: SMUR terrestre | G21: =IF($B$4<>"",VLOOKUP($J$1,'Coûts 12 décomposés gds postes'!$A:$BC,29,FALSE),"") -> 15.99000924 | K21: 21
B22: Coût moyen 2012 | C22: Poids dans le coût du GHM | D22: Evolution 2012/2011 | F22: Médico technique: Urgences | G22: =IF($B$4<>"",VLOOKUP($J$1,'Coûts 12 décomposés gds postes'!$A:$BC,30,FALSE),"") -> 19.85804684 | K22: 22
A23: Activités cliniques MCO (avec hébergement, hors Réa, SI, SC) | B23: =IF($B$4<>"",VLOOKUP($J$1,'Coûts 12 décomposés gds postes'!$A:$BC,10,FALSE),"") -> 634.2306207 | C23: =IF($C$10<>"",B23/$C$10,"") -> 0.2981911782 | D23: =IF($B$4<>"",VLOOKUP($J$1,Evolutions!$A:$T,7,FALSE),"") -> 0.003235595354 | K23: 23
A24: Activité de réanimation | B24: =IF($B$4<>"",VLOOKUP($J$1,'Coûts 12 décomposés gds postes'!$A:$BC,13,FALSE),"") -> 79.76699511 | C24: =IF($C$10<>"",B24/$C$10,"") -> 0.03750341512 | D24: =IF($B$4<>"",VLOOKUP($J$1,Evolutions!$A:$T,10,FALSE),"") -> -0.00991508709 | F24: Logistique Médicale: Pharmacie | G24: =IF($B$4<>"",VLOOKUP($J$1,'Coûts 12 décomposés gds postes'!$A:$BC,41,FALSE),"") -> 33.54277995 | H24: =IF(C10<>"",IF(C10<>0,(G24+G25+G26)/B28,""),"") -> 0.8356562475 | K24: 25
A25: Activité de soins intensifs | B25: =IF($B$4<>"",VLOOKUP($J$1,'Coûts 12 décomposés gds postes'!$A:$BC,12,FALSE),"") -> 41.36055515 | C25: 0.01944616401 | D25: =IF($B$4<>"",VLOOKUP($J$1,Evolutions!$A:$T,9,FALSE),"") -> 0.01642301828 | F25: Logistique Médicale: Stérilisation | G25: =IF($B$4<>"",VLOOKUP($J$1,'Coûts 12 décomposés gds postes'!$A:$BC,42,FALSE),"") -> 14.82927796 | K25: 26
A26: Activité de surveillance continue | B26: =IF($B$4<>"",VLOOKUP($J$1,'Coûts 12 décomposés gds postes'!$A:$BC,11,FALSE),"") -> 35.0866613 | C26: 0.01649641713 | D26: =IF($B$4<>"",VLOOKUP($J$1,Evolutions!$A:$T,8,FALSE),"") -> 0.07701698814 | F26: Logistique Médicale: Hygiène et Vigilance | G26: =IF($B$4<>"",VLOOKUP($J$1,'Coûts 12 décomposés gds postes'!$A:$BC,44,FALSE),"") -> 5.864365024 | K26: 27
A27: Activités Médico-techniques | B27: =IF($B$4<>"",VLOOKUP($J$1,'Coûts 12 décomposés gds postes'!$A:$BC,32,FALSE),"") -> 400.8455283 | C27: 0.1884623613 | D27: =IF($B$4<>"",VLOOKUP($J$1,Evolutions!$A:$T,11,FALSE),"") -> 0.0006241761107 | K27: 28
A28: Logistique Médicale | B28: =IF($B$4<>"",VLOOKUP($J$1,'Coûts 12 décomposés gds postes'!$A:$BC,45,FALSE),"") -> 64.90279119 | C28: 0.03051483032 | D28: =IF($B$4<>"",VLOOKUP($J$1,Evolutions!$A:$T,13,FALSE),"") -> -0.02360535307 | F28: Logistique générale: Blanchisserie | G28: =IF($B$4<>"",VLOOKUP($J$1,'Coûts 12 décomposés gds postes'!$A:$BC,33,FALSE),"") -> 23.59471751 | H28: =IF(C10<>"",IF(B29<>0,(G28+G29+G30+G31+G32+G33)/B29,""),"") -> 0.8110067896 | K28: TOTAL
A29: Logistique générale | B29: =IF($B$4<>"",VLOOKUP($J$1,'Coûts 12 décomposés gds postes'!$A:$BC,40,FALSE),"") -> 414.0387518 | C29: 0.1946653145 | D29: =IF($B$4<>"",VLOOKUP($J$1,Evolutions!$A:$T,12,FALSE),"") -> -0.004672650568 | F29: Logistique générale: Restauration | G29: =IF($B$4<>"",VLOOKUP($J$1,'Coûts 12 décomposés gds postes'!$A:$BC,34,FALSE),"") -> 49.62343973
A30: Charges directes | B30: =IF($B$4<>"",VLOOKUP($J$1,'Coûts 12 décomposés gds postes'!$A:$BC,52,FALSE),"") -> 456.6942668 | C30: 0.2147203195 | D30: =IF($B$4<>"",VLOOKUP($J$1,Evolutions!$A:$T,14,FALSE),"") -> 0.02474830558 | F30: Logistique générale: Services administratifs à caractère général | G30: =IF($B$4<>"",VLOOKUP($J$1,'Coûts 12 décomposés gds postes'!$A:$BC,35,FALSE),"") -> 94.29398304
F31: Logistique générale: Services administratifs liés au personnel | G31: =IF($B$4<>"",VLOOKUP($J$1,'Coûts 12 décomposés gds postes'!$A:$BC,36,FALSE),"") -> 50.40429189
F32: Logistique générale: Entretien maintenance | G32: =IF($B$4<>"",VLOOKUP($J$1,'Coûts 12 décomposés gds postes'!$A:$BC,38,FALSE),"") -> 43.89088749
F33: Logistique générale: Services hôteliers | G33: =IF($B$4<>"",VLOOKUP($J$1,'Coûts 12 décomposés gds postes'!$A:$BC,39,FALSE),"") -> 73.98091922
F35: Charges directes: Autres consommables | G35: =IF($B$4<>"",VLOOKUP($J$1,'Coûts 12 décomposés gds postes'!$A:$BC,46,FALSE),"") -> 128.8208202 | H35: =IF(C10<>"",IF(B30<>0,(G35+G36+G37)/B30,""),"") -> 0.6546209713
F36: Charges directes: Spécialités pharmaceutiques facturables en sus | G36: =IF($B$4<>"",VLOOKUP($J$1,'Coûts 12 décomposés gds postes'!$A:$BC,50,FALSE),"") -> 123.6729689
A37: Données de coûts: ENCC ex DG 2012 | F37: Charges directes: DMI facturables en sus | G37: =IF($B$4<>"",VLOOKUP($J$1,'Coûts 12 décomposés gds postes'!$A:$BC,48,FALSE),"") -> 46.46785542

Sheet synthèse CMD (2) (hidden)
A1: fiche de synthèse CMD | J1: =CONCATENATE(B4,B5,B6,B7) -> 01TOTAL | K1: Affections du système nerveux | L1: 01
K2: Affections de l'oeil | L2: 02
A3: identification de la catégorie majeure de diagnostics | K3: Affections des oreilles, du nez, de la gorge, de la bouche et des dents | L3: 03
A4: CMD | B4: =IF(B8<>"",VLOOKUP(B8,K:L,2,FALSE),"") -> 01 | K4: Affections de l'appareil respiratoire | L4: 04
A5: sous CMD | B5: TOTAL | K5: Affections de l'appareil circulatoire | L5: 05
A6: racine | K6: Affections du tube digestif | L6: 06
A7: GHM | K7: Affections du système hépatobiliaire et du pancréas | L7: 07
A8: Libellé | B8: Affections du système nerveux | K8: Affections et traumatismes de l'appareil musculosquelettique et du tissu conjonctif | L8: 08
K9: Affections de la peau, des tissus souscutanés et des seins | L9: 09
C10: 2012 | D10: 2011 | E10: Evolution | K10: Affections endocriniennes, métaboliques et nutritionnelles | L10: 10
A11: Coût moyen du séjour | C11: =IF($B$4<>"",VLOOKUP($J$1,'Coûts 12 décomposés gds postes'!$A:$BC,9,FALSE),"") -> 3123.493314 | D11: =IF($B$4<>"",VLOOKUP($J$1,'Coûts 11 décomposés gds postes'!$A:$W,13,FALSE),"") -> 3150.494338 | E11: =IF($B$4<>"",VLOOKUP($J$1,Evolutions!$A:$T,6,FALSE),"") -> -0.008570408618 | K11: Affections du rein et des voies urinaires | L11: 11
H12: Part des postes détaillés dans le sous poste | K12: Affections de l'appareil génital masculin | L12: 12
A13: Nombre de séjours ENC | C13: =IF($B$4<>"",VLOOKUP($J$1,'Coûts 12 décomposés gds postes'!$A:$BC,8,FALSE),"") -> 199401 | D13: =IF($B$4<>"",VLOOKUP($J$1,'Coûts 11 décomposés gds postes'!$A:$W,8,FALSE),"") -> 226053 | E13: =IF($B$4<>"",IF(D13<>"",IF(C13<>"",C13/D13-1,""),""),"") -> -0.1179015541 | K13: Affections de l'appareil génital féminin | L13: 13
K14: Grossesses pathologiques, accouchements et affections du post-partum | L14: 14
G15: Coût moyen 2012 | K15: Nouveau-nés, prématurés et affections de la période périnatale | L15: 15
F16: Médico technique: anesthésie | G16: =IF($B$4<>"",VLOOKUP($J$1,'Coûts 12 décomposés gds postes'!$A:$BC,15,FALSE),"") -> 56.79770031 | H16: =IF(C11<>"",IF(B28<>0,(G16+G17+G18+G19+G20+G21+G22+G23)/B28,""),"") -> 0.8928005456 | K16: Affections du sang et des organes hématopoïétiques | L16: 16
F17: Médico technique: bloc | G17: =IF($B$4<>"",VLOOKUP($J$1,'Coûts 12 décomposés gds postes'!$A:$BC,16,FALSE),"") -> 72.37983745 | K17: Affections myéloprolifératives et tumeurs de siège imprécis ou diffus | L17: 17
F18: Médico technique: laboratoire | G18: =IF($B$4<>"",VLOOKUP($J$1,'Coûts 12 décomposés gds postes'!$A:$BC,22,FALSE)+VLOOKUP($J$1,'Coûts 12 décomposés gds postes'!$A:$BC,23,FALSE)+VLOOKUP($J$1,'Coûts 12 décomposés gds postes'!$A:$BC,24,FALSE),"") -> 77.71232758 | K18: Maladies infectieuses et parasitaires | L18: 18
F19: Médico technique: Imagerie | G19: =IF($B$4<>"",VLOOKUP($J$1,'Coûts 12 décomposés gds postes'!$A:$BC,20,FALSE),"") -> 104.7108238 | K19: Maladies et troubles mentaux | L19: 19
F20: Médico technique: Exploration fonctionnelle | G20: =IF($B$4<>"",VLOOKUP($J$1,'Coûts 12 décomposés gds postes'!$A:$BC,19,FALSE),"") -> 48.48457978 | K20: Troubles mentaux organiques liés à l'absorption de drogues ou induits par celles-ci | L20: 20
F21: Médico technique: Radiothérapie | G21: =IF($B$4<>"",VLOOKUP($J$1,'Coûts 12 décomposés gds postes'!$A:$BC,28,FALSE),"") -> 1.571666933 | K21: Traumatismes, allergies et empoisonnements | L21: 21
F22: Médico technique: SMUR terrestre | G22: =IF($B$4<>"",VLOOKUP($J$1,'Coûts 12 décomposés gds postes'!$A:$BC,29,FALSE),"") -> 44.49826869 | K22: Brûlures | L22: 22
B23: Coût moyen 2012 | C23: Poids dans le coût du GHM | D23: Evolution 2012/2011 | F23: Médico technique: Urgences | G23: =IF($B$4<>"",VLOOKUP($J$1,'Coûts 12 décomposés gds postes'!$A:$BC,30,FALSE),"") -> 43.95298396 | K23: Facteurs influant sur l'état de santé et autres motifs de recours aux services de santé | L23: 23
A24: Activités cliniques MCO (avec hébergement, hors Réa, SI, SC) | B24: =IF($B$4<>"",VLOOKUP($J$1,'Coûts 12 décomposés gds postes'!$A:$BC,10,FALSE),"") -> 1015.720108 | C24: =IF($C$11<>"",B24/$C$11,"") -> 0.3251872201 | D24: =IF($B$4<>"",VLOOKUP($J$1,Evolutions!$A:$T,7,FALSE),"") -> 0.006433119188 | K24: Maladies dues à une infection par le VIH | L24: 25
A25: Activité de réanimation | B25: =IF($B$4<>"",VLOOKUP($J$1,'Coûts 12 décomposés gds postes'!$A:$BC,13,FALSE),"") -> 230.4479913 | C25: =IF($C$11<>"",B25/$C$11,"") -> 0.07377892895 | D25: =IF($B$4<>"",VLOOKUP($J$1,Evolutions!$A:$T,10,FALSE),"") -> -0.01186432676 | F25: Logistique Médicale: Pharmacie | G25: =IF($B$4<>"",VLOOKUP($J$1,'Coûts 12 décomposés gds postes'!$A:$BC,41,FALSE),"") -> 43.43466106 | H25: =IF(C11<>"",IF(C11<>0,(G25+G26+G27)/B29,""),"") -> 0.8095011536 | K25: Traumatismes multiples graves | L25: 26
A26: Activité de soins intensifs | B26: =IF($B$4<>"",VLOOKUP($J$1,'Coûts 12 décomposés gds postes'!$A:$BC,12,FALSE),"") -> 75.24536092 | C26: 0.0240901303 | D26: =IF($B$4<>"",VLOOKUP($J$1,Evolutions!$A:$T,9,FALSE),"") -> -0.1006571162 | F26: Logistique Médicale: Stérilisation | G26: =IF($B$4<>"",VLOOKUP($J$1,'Coûts 12 décomposés gds postes'!$A:$BC,42,FALSE),"") -> 11.67441906 | K26: Transplantations d'organes | L26: 27
A27: Activité de surveillance continue | B27: =IF($B$4<>"",VLOOKUP($J$1,'Coûts 12 décomposés gds postes'!$A:$BC,11,FALSE),"") -> 67.33476677 | C27: 0.0215575191 | D27: =IF($B$4<>"",VLOOKUP($J$1,Evolutions!$A:$T,8,FALSE),"") -> 0.07304679788 | F27: Logistique Médicale: Hygiène et Vigilance | G27: =IF($B$4<>"",VLOOKUP($J$1,'Coûts 12 décomposés gds postes'!$A:$BC,44,FALSE),"") -> 7.776263349 | K27: Séances | L27: 28
A28: Activités Médico-techniques | B28: =IF($B$4<>"",VLOOKUP($J$1,'Coûts 12 décomposés gds postes'!$A:$BC,32,FALSE),"") -> 504.1531288 | C28: 0.1614068218 | D28: =IF($B$4<>"",VLOOKUP($J$1,Evolutions!$A:$T,11,FALSE),"") -> -0.03487367869 | K28: TOTAL | L28: TOTAL
A29: Logistique Médicale | B29: =IF($B$4<>"",VLOOKUP($J$1,'Coûts 12 décomposés gds postes'!$A:$BC,45,FALSE),"") -> 77.68406901 | C29: 0.02487089332 | D29: =IF($B$4<>"",VLOOKUP($J$1,Evolutions!$A:$T,13,FALSE),"") -> -0.06803673636 | F29: Logistique générale: Blanchisserie | G29: =IF($B$4<>"",VLOOKUP($J$1,'Coûts 12 décomposés gds postes'!$A:$BC,33,FALSE),"") -> 38.99911209 | H29: =IF(C11<>"",IF(B30<>0,(G29+G30+G31+G32+G33+G34)/B30,""),"") -> 0.8258992564
A30: Logistique générale | B30: =IF($B$4<>"",VLOOKUP($J$1,'Coûts 12 décomposés gds postes'!$A:$BC,40,FALSE),"") -> 662.3181402 | C30: 0.2120440397 | D30: =IF($B$4<>"",VLOOKUP($J$1,Evolutions!$A:$T,12,FALSE),"") -> -0.02262059927 | F30: Logistique générale: Restauration | G30: =IF($B$4<>"",VLOOKUP($J$1,'Coûts 12 décomposés gds postes'!$A:$BC,34,FALSE),"") -> 87.70934977
A31: Charges directes | B31: =IF($B$4<>"",VLOOKUP($J$1,'Coûts 12 décomposés gds postes'!$A:$BC,52,FALSE),"") -> 490.5897491 | C31: 0.1570644467 | D31: =IF($B$4<>"",VLOOKUP($J$1,Evolutions!$A:$T,14,FALSE),"") -> 0.02577737533 | F31: Logistique générale: Services administratifs à caractère général | G31: =IF($B$4<>"",VLOOKUP($J$1,'Coûts 12 décomposés gds postes'!$A:$BC,35,FALSE),"") -> 147.5241143
F32: Logistique générale: Services administratifs liés au personnel | G32: =IF($B$4<>"",VLOOKUP($J$1,'Coûts 12 décomposés gds postes'!$A:$BC,36,FALSE),"") -> 83.43280381
F33: Logistique générale: Entretien maintenance | G33: =IF($B$4<>"",VLOOKUP($J$1,'Coûts 12 décomposés gds postes'!$A:$BC,38,FALSE),"") -> 70.20339951
F34: Logistique générale: Services hôteliers | G34: =IF($B$4<>"",VLOOKUP($J$1,'Coûts 12 décomposés gds postes'!$A:$BC,39,FALSE),"") -> 119.1392801
F36: Charges directes: Autres consommables | G36: =IF($B$4<>"",VLOOKUP($J$1,'Coûts 12 décomposés gds postes'!$A:$BC,46,FALSE),"") -> 171.0995599 | H36: =IF(C11<>"",IF(B31<>0,(G36+G37+G38)/B31,""),"") -> 0.6331527225
F37: Charges directes: Spécialités pharmaceutiques facturables en sus | G37: =IF($B$4<>"",VLOOKUP($J$1,'Coûts 12 décomposés gds postes'!$A:$BC,50,FALSE),"") -> 66.36774496
A38: Données de coûts: ENCC ex DG 2012 | F38: Charges directes: DMI facturables en sus | G38: =IF($B$4<>"",VLOOKUP($J$1,'Coûts 12 décomposés gds postes'!$A:$BC,48,FALSE),"") -> 73.15093043

Sheet synthèse sous CMD (hidden)
A1: Fiche de synthèse sous CMD | J1: =CONCATENATE(B4,B5,B6,B7) -> 0101CTOTAL
K2: 01C
A3: Identification de la sous catégorie majeure de diagnostics (sous CMD) | K3: 01K
A4: CMD | B4: =LEFT(B5,2) -> 01 | K4: 01M
A5: sous CMD | B5: 01C | K5: 02C
A6: racine | B6: TOTAL | K6: 02M
A7: GHMV11 | K7: 03C
A8: Libellé | B8: =IF(B4<>"",VLOOKUP(J1,'Coûts 12 décomposés gds postes'!A:X,6,FALSE),"") -> Affections du système nerveux - Groupes chirurgicaux | K8: 03K
K9: 03M
C10: 2012 | D10: 2011 | E10: Evolution | H10: Part des postes détaillés dans le sous poste | K10: 04C
A11: Coût moyen du séjour | C11: =IF($B$4<>"",VLOOKUP($J$1,'Coûts 12 décomposés gds postes'!$A:$BC,9,FALSE),"") -> 6141.868115 | D11: =IF($B$4<>"",VLOOKUP($J$1,'Coûts 11 décomposés gds postes'!$A:$W,13,FALSE),"") -> 6099.609485 | E11: =IF($B$4<>"",VLOOKUP($J$1,Evolutions!$A:$T,6,FALSE),"") -> 0.006928087788 | K11: 04K
K12: 04M
A13: Nombre de séjours ENC | C13: =IF($B$4<>"",VLOOKUP($J$1,'Coûts 12 décomposés gds postes'!$A:$BC,8,FALSE),"") -> 27625 | D13: =IF($B$4<>"",VLOOKUP($J$1,'Coûts 11 décomposés gds postes'!$A:$W,8,FALSE),"") -> 32683 | E13: =IF($B$4<>"",IF(D13<>"",IF(C13<>"",C13/D13-1,""),""),"") -> -0.154759355 | G13: Coût moyen 2012 | K13: 05C
K14: 05K
K15: 05M
F16: Médico technique: anesthésie | G16: =IF($B$4<>"",VLOOKUP($J$1,'Coûts 12 décomposés gds postes'!$A:$BC,15,FALSE),"") -> 427.8143229 | H16: =IF(C11<>"",IF(B28<>0,(G16+G17+G18+G19+G20+G21+G22+G23)/B28,""),"") -> 0.9248761007 | K16: 06C
F17: Médico technique: bloc | G17: =IF($B$4<>"",VLOOKUP($J$1,'Coûts 12 décomposés gds postes'!$A:$BC,16,FALSE),"") -> 569.9882515 | K17: 06K
F18: Médico technique: laboratoire | G18: =IF($B$4<>"",VLOOKUP($J$1,'Coûts 12 décomposés gds postes'!$A:$BC,22,FALSE)+VLOOKUP($J$1,'Coûts 12 décomposés gds postes'!$A:$BC,23,FALSE)+VLOOKUP($J$1,'Coûts 12 décomposés gds postes'!$A:$BC,24,FALSE),"") -> 93.66987996 | K18: 06M
F19: Médico technique: Imagerie | G19: =IF($B$4<>"",VLOOKUP($J$1,'Coûts 12 décomposés gds postes'!$A:$BC,20,FALSE),"") -> 120.0117831 | K19: 07C
F20: Médico technique: Exploration fonctionnelle | G20: =IF($B$4<>"",VLOOKUP($J$1,'Coûts 12 décomposés gds postes'!$A:$BC,19,FALSE),"") -> 31.06500684 | K20: 07K
F21: Médico technique: Radiothérapie | G21: =IF($B$4<>"",VLOOKUP($J$1,'Coûts 12 décomposés gds postes'!$A:$BC,28,FALSE),"") -> 0.8126219178 | K21: 07M
F22: Médico technique: SMUR terrestre | G22: =IF($B$4<>"",VLOOKUP($J$1,'Coûts 12 décomposés gds postes'!$A:$BC,29,FALSE),"") -> 17.51059026 | K22: 08C
B23: Coût moyen 2012 | C23: Poids dans le coût du GHM | D23: Evolution 2012/2011 | F23: Médico technique: Urgences | G23: =IF($B$4<>"",VLOOKUP($J$1,'Coûts 12 décomposés gds postes'!$A:$BC,30,FALSE),"") -> 10.2467789 | K23: 08K
A24: Activités cliniques MCO (avec hébergement, hors Réa, SI, SC) | B24: =IF($B$4<>"",VLOOKUP($J$1,'Coûts 12 décomposés gds postes'!$A:$BC,10,FALSE),"") -> 1085.321232 | C24: =IF($C$11<>"",B24/$C$11,"") -> 0.1767086515 | D24: =IF($B$4<>"",VLOOKUP($J$1,Evolutions!$A:$T,7,FALSE),"") -> 0.004600822812 | K24: 08M
A25: Activité de réanimation | B25: =IF($B$4<>"",VLOOKUP($J$1,'Coûts 12 décomposés gds postes'!$A:$BC,13,FALSE),"") -> 883.2542423 | C25: =IF($C$11<>"",B25/$C$11,"") -> 0.1438087282 | D25: =IF($B$4<>"",VLOOKUP($J$1,Evolutions!$A:$T,10,FALSE),"") -> 0.02942546581 | F25: Logistique Médicale: Pharmacie | G25: =IF($B$4<>"",VLOOKUP($J$1,'Coûts 12 décomposés gds postes'!$A:$BC,41,FALSE),"") -> 94.82377521 | H25: =IF(C11<>"",IF(C11<>0,(G25+G26+G27)/B29,""),"") -> 0.8381557642 | K25: 09C
A26: Activité de soins intensifs | B26: =IF($B$4<>"",VLOOKUP($J$1,'Coûts 12 décomposés gds postes'!$A:$BC,12,FALSE),"") -> 74.62950075 | C26: 0.01215094485 | D26: =IF($B$4<>"",VLOOKUP($J$1,Evolutions!$A:$T,9,FALSE),"") -> 0.1063600748 | F26: Logistique Médicale: Stérilisation | G26: =IF($B$4<>"",VLOOKUP($J$1,'Coûts 12 décomposés gds postes'!$A:$BC,42,FALSE),"") -> 72.43481958 | K26: 09K
A27: Activité de surveillance continue | B27: =IF($B$4<>"",VLOOKUP($J$1,'Coûts 12 décomposés gds postes'!$A:$BC,11,FALSE),"") -> 172.6599238 | C27: 0.0281119556 | D27: =IF($B$4<>"",VLOOKUP($J$1,Evolutions!$A:$T,8,FALSE),"") -> 0.06387287342 | F27: Logistique Médicale: Hygiène et Vigilance | G27: =IF($B$4<>"",VLOOKUP($J$1,'Coûts 12 décomposés gds postes'!$A:$BC,44,FALSE),"") -> 16.84344413 | K27: 09M
A28: Activités Médico-techniques | B28: =IF($B$4<>"",VLOOKUP($J$1,'Coûts 12 décomposés gds postes'!$A:$BC,32,FALSE),"") -> 1374.367047 | C28: 0.2237701985 | D28: =IF($B$4<>"",VLOOKUP($J$1,Evolutions!$A:$T,11,FALSE),"") -> -0.02448880654 | K28: 09Z
A29: Logistique Médicale | B29: =IF($B$4<>"",VLOOKUP($J$1,'Coûts 12 décomposés gds postes'!$A:$BC,45,FALSE),"") -> 219.6513426 | C29: 0.03576295331 | D29: =IF($B$4<>"",VLOOKUP($J$1,Evolutions!$A:$T,13,FALSE),"") -> -0.03848331318 | F29: Logistique générale: Blanchisserie | G29: =IF($B$4<>"",VLOOKUP($J$1,'Coûts 12 décomposés gds postes'!$A:$BC,33,FALSE),"") -> 48.49438863 | H29: =IF(C11<>"",IF(B30<>0,(G29+G30+G31+G32+G33+G34)/B30,""),"") -> 0.824069208 | K29: 10C
A30: Logistique générale | B30: =IF($B$4<>"",VLOOKUP($J$1,'Coûts 12 décomposés gds postes'!$A:$BC,40,FALSE),"") -> 912.3299079 | C30: 0.1485427383 | D30: =IF($B$4<>"",VLOOKUP($J$1,Evolutions!$A:$T,12,FALSE),"") -> -0.03839788392 | F30: Logistique générale: Restauration | G30: =IF($B$4<>"",VLOOKUP($J$1,'Coûts 12 décomposés gds postes'!$A:$BC,34,FALSE),"") -> 97.6527613 | K30: 10M
A31: Charges directes | B31: =IF($B$4<>"",VLOOKUP($J$1,'Coûts 12 décomposés gds postes'!$A:$BC,52,FALSE),"") -> 1419.654919 | C31: 0.2311438299 | D31: =IF($B$4<>"",VLOOKUP($J$1,Evolutions!$A:$T,14,FALSE),"") -> 0.05516691492 | F31: Logistique générale: Services administratifs à caractère général | G31: =IF($B$4<>"",VLOOKUP($J$1,'Coûts 12 décomposés gds postes'!$A:$BC,35,FALSE),"") -> 204.457119 | K31: 11C
F32: Logistique générale: Services administratifs liés au personnel | G32: =IF($B$4<>"",VLOOKUP($J$1,'Coûts 12 décomposés gds postes'!$A:$BC,36,FALSE),"") -> 127.2160705 | K32: 11K
F33: Logistique générale: Entretien maintenance | G33: =IF($B$4<>"",VLOOKUP($J$1,'Coûts 12 décomposés gds postes'!$A:$BC,38,FALSE),"") -> 97.32212833 | K33: 11M
F34: Logistique générale: Services hôteliers | G34: =IF($B$4<>"",VLOOKUP($J$1,'Coûts 12 décomposés gds postes'!$A:$BC,39,FALSE),"") -> 176.680517 | K34: 12C
K35: 12K
F36: Charges directes: Autres consommables | G36: =IF($B$4<>"",VLOOKUP($J$1,'Coûts 12 décomposés gds postes'!$A:$BC,46,FALSE),"") -> 536.2726887 | H36: =IF(C11<>"",IF(B31<>0,(G36+G37+G38)/B31,""),"") -> 0.7283760135 | K36: 12M
F37: Charges directes: Spécialités pharmaceutiques facturables en sus | G37: =IF($B$4<>"",VLOOKUP($J$1,'Coûts 12 décomposés gds postes'!$A:$BC,50,FALSE),"") -> 55.76307147 | K37: 13C
A38: Données de coûts: ENCC ex DG 2012 | F38: Charges directes: DMI facturables en sus | G38: =IF($B$4<>"",VLOOKUP($J$1,'Coûts 12 décomposés gds postes'!$A:$BC,48,FALSE),"") -> 442.00683 | K38: 13K
K39: 13M
K40: 14C
K41: 14M
K42: 14Z
K43: 15C
K44: 15M
K45: 15Z
K46: 16C
K47: 16M
K48: 17C
K49: 17K
K50: 17M
K51: 18C
K52: 18M
K53: 19C
K54: 19M
K55: 20Z
K56: 21C
K57: 21K
K58: 21M
K59: 22C
K60: 22K
K61: 22M
K62: 22Z
K63: 23C
K64: 23K
K65: 23M
K66: 23Z
K67: 25C
K68: 25M
K69: 25Z
K70: 26C
K71: 26M
K72: 27C
K73: 27Z
K74: 28Z

Sheet synthèse sous CMD (2) (hidden)
A1: Fiche de synthèse sous CMD | J1: =CONCATENATE(B4,B5,B6,B7) -> 0101CTOTAL | K1: Affections du système nerveux - Groupes chirurgicaux | L1: 01C
K2: Affections du système nerveux - Avec acte classant non opératoire | L2: 01K
A3: Identification de la sous catégorie majeure de diagnostics (sous CMD) | K3: Affections du système nerveux - Groupes 'médicaux' | L3: 01M
A4: CMD | B4: =LEFT(B5,2) -> 01 | K4: Affections de l'oeil - Groupes chirurgicaux | L4: 02C
A5: sous CMD | B5: =IF(B8<>"",VLOOKUP(B8,K:L,2,FALSE),"") -> 01C | K5: Affections de l'oeil - Groupes 'médicaux' | L5: 02M
A6: racine | B6: TOTAL | K6: Affections des oreilles, du nez, de la gorge, de la bouche et des dents - Groupes chirurgicaux | L6: 03C
A7: GHMV11 | K7: Affections des oreilles, du nez, de la gorge, de la bouche et des dents - Avec acte classant non opératoire | L7: 03K
A8: Libellé | B8: Affections du système nerveux - Groupes chirurgicaux | K8: Affections des oreilles, du nez, de la gorge, de la bouche et des dents - Groupes 'médicaux' | L8: 03M
C9: 2012 | D9: 2011 | E9: Evolution | H9: Part des postes détaillés dans le sous poste | K9: Affections de l'appareil respiratoire - Groupes chirurgicaux | L9: 04C
A10: coût moyen du séjour | C10: =IF($B$4<>"",VLOOKUP($J$1,'Coûts 12 décomposés gds postes'!$A:$BC,9,FALSE),"") -> 6141.868115 | D10: =IF($B$4<>"",VLOOKUP($J$1,'Coûts 11 décomposés gds postes'!$A:$W,13,FALSE),"") -> 6099.609485 | E10: =IF($B$4<>"",VLOOKUP($J$1,Evolutions!$A:$T,6,FALSE),"") -> 0.006928087788 | G10: Coût moyen | K10: Affections de l'appareil respiratoire - Avec acte classant non opératoire | L10: 04K
K11: Affections de l'appareil respiratoire - Groupes 'médicaux' | L11: 04M
A12: nombre de séjours ENC | C12: =IF($B$4<>"",VLOOKUP($J$1,'Coûts 12 décomposés gds postes'!$A:$BC,8,FALSE),"") -> 27625 | D12: =IF($B$4<>"",VLOOKUP($J$1,'Coûts 11 décomposés gds postes'!$A:$W,8,FALSE),"") -> 32683 | E12: =IF($B$4<>"",IF(D12<>"",IF(C12<>"",C12/D12-1,""),""),"") -> -0.154759355 | K12: Affections de l'appareil circulatoire - Groupes chirurgicaux | L12: 05C
K13: Affections de l'appareil circulatoire - Avec acte classant non opératoire | L13: 05K
K14: Affections de l'appareil circulatoire - Groupes 'médicaux' | L14: 05M
F15: Médico technique: anesthésie | G15: =IF($B$4<>"",VLOOKUP($J$1,'Coûts 12 décomposés gds postes'!$A:$BC,15,FALSE),"") -> 427.8143229 | H15: =IF(C10<>"",IF(B27<>0,(G15+G16+G17+G18+G19+G20+G21+G22)/B27,""),"") -> 0.9248761007 | K15: Affections du tube digestif - Groupes chirurgicaux | L15: 06C
F16: Médico technique: bloc | G16: =IF($B$4<>"",VLOOKUP($J$1,'Coûts 12 décomposés gds postes'!$A:$BC,16,FALSE),"") -> 569.9882515 | K16: Affections du tube digestif - Avec acte classant non opératoire | L16: 06K
F17: Médico technique: laboratoire | G17: =IF($B$4<>"",VLOOKUP($J$1,'Coûts 12 décomposés gds postes'!$A:$BC,22,FALSE)+VLOOKUP($J$1,'Coûts 12 décomposés gds postes'!$A:$BC,23,FALSE)+VLOOKUP($J$1,'Coûts 12 décomposés gds postes'!$A:$BC,24,FALSE),"") -> 93.66987996 | K17: Affections du tube digestif - Groupes 'médicaux' | L17: 06M
F18: Médico technique: Imagerie | G18: =IF($B$4<>"",VLOOKUP($J$1,'Coûts 12 décomposés gds postes'!$A:$BC,20,FALSE),"") -> 120.0117831 | K18: Affections du système hépatobiliaire et du pancréas - Groupes chirurgicaux | L18: 07C
F19: Médico technique: Exploration fonctionnelle | G19: =IF($B$4<>"",VLOOKUP($J$1,'Coûts 12 décomposés gds postes'!$A:$BC,19,FALSE),"") -> 31.06500684 | K19: Affections du système hépatobiliaire et du pancréas - Avec acte classant non opératoire | L19: 07K
F20: Médico technique: Radiothérapie | G20: =IF($B$4<>"",VLOOKUP($J$1,'Coûts 12 décomposés gds postes'!$A:$BC,28,FALSE),"") -> 0.8126219178 | K20: Affections du système hépatobiliaire et du pancréas - Groupes 'médicaux' | L20: 07M
F21: Médico technique: SMUR terrestre | G21: =IF($B$4<>"",VLOOKUP($J$1,'Coûts 12 décomposés gds postes'!$A:$BC,29,FALSE),"") -> 17.51059026 | K21: Affections et traumatismes de l'appareil musculosquelettique et du tissu conjonctif - Groupes chirurgicaux | L21: 08C
B22: Coût moyen 2012 | C22: Poids dans le coût du GHM | D22: Evolution 2012/2011 | F22: Médico technique: Urgences | G22: =IF($B$4<>"",VLOOKUP($J$1,'Coûts 12 décomposés gds postes'!$A:$BC,30,FALSE),"") -> 10.2467789 | K22: Affections et traumatismes de l'appareil musculosquelettique et du tissu conjonctif - Avec acte classant non opératoire | L22: 08K
A23: Activités cliniques MCO (avec hébergement, hors Réa, SI, SC) | B23: =IF($B$4<>"",VLOOKUP($J$1,'Coûts 12 décomposés gds postes'!$A:$BC,10,FALSE),"") -> 1085.321232 | C23: =IF($C$10<>"",B23/$C$10,"") -> 0.1767086515 | D23: =IF($B$4<>"",VLOOKUP($J$1,Evolutions!$A:$T,7,FALSE),"") -> 0.004600822812 | K23: Affections et traumatismes de l'appareil musculosquelettique et du tissu conjonctif - Groupes 'médicaux' | L23: 08M
A24: Activité de réanimation | B24: =IF($B$4<>"",VLOOKUP($J$1,'Coûts 12 décomposés gds postes'!$A:$BC,13,FALSE),"") -> 883.2542423 | C24: =IF($C$10<>"",B24/$C$10,"") -> 0.1438087282 | D24: =IF($B$4<>"",VLOOKUP($J$1,Evolutions!$A:$T,10,FALSE),"") -> 0.02942546581 | F24: Logistique Médicale: Pharmacie | G24: =IF($B$4<>"",VLOOKUP($J$1,'Coûts 12 décomposés gds postes'!$A:$BC,41,FALSE),"") -> 94.82377521 | H24: =IF(C10<>"",IF(C10<>0,(G24+G25+G26)/B28,""),"") -> 0.8381557642 | K24: Affections de la peau, des tissus souscutanés et des seins - Groupes chirurgicaux | L24: 09C
A25: Activité de soins intensifs | B25: =IF($B$4<>"",VLOOKUP($J$1,'Coûts 12 décomposés gds postes'!$A:$BC,12,FALSE),"") -> 74.62950075 | C25: 0.01215094485 | D25: =IF($B$4<>"",VLOOKUP($J$1,Evolutions!$A:$T,9,FALSE),"") -> 0.1063600748 | F25: Logistique Médicale: Stérilisation | G25: =IF($B$4<>"",VLOOKUP($J$1,'Coûts 12 décomposés gds postes'!$A:$BC,42,FALSE),"") -> 72.43481958 | K25: Affections de la peau, des tissus souscutanés et des seins - Avec acte classant non opératoire | L25: 09K
A26: Activité de surveillance continue | B26: =IF($B$4<>"",VLOOKUP($J$1,'Coûts 12 décomposés gds postes'!$A:$BC,11,FALSE),"") -> 172.6599238 | C26: 0.0281119556 | D26: =IF($B$4<>"",VLOOKUP($J$1,Evolutions!$A:$T,8,FALSE),"") -> 0.06387287342 | F26: Logistique Médicale: Hygiène et Vigilance | G26: =IF($B$4<>"",VLOOKUP($J$1,'Coûts 12 décomposés gds postes'!$A:$BC,44,FALSE),"") -> 16.84344413 | K26: Affections de la peau, des tissus souscutanés et des seins - Groupes 'médicaux' | L26: 09M
A27: Activités Médico-techniques | B27: =IF($B$4<>"",VLOOKUP($J$1,'Coûts 12 décomposés gds postes'!$A:$BC,32,FALSE),"") -> 1374.367047 | C27: 0.2237701985 | D27: =IF($B$4<>"",VLOOKUP($J$1,Evolutions!$A:$T,11,FALSE),"") -> -0.02448880654 | K27: Affections de la peau, des tissus souscutanés et des seins - Groupes indifférenciés | L27: 09Z
A28: Logistique Médicale | B28: =IF($B$4<>"",VLOOKUP($J$1,'Coûts 12 décomposés gds postes'!$A:$BC,45,FALSE),"") -> 219.6513426 | C28: 0.03576295331 | D28: =IF($B$4<>"",VLOOKUP($J$1,Evolutions!$A:$T,13,FALSE),"") -> -0.03848331318 | F28: Logistique générale: Blanchisserie | G28: =IF($B$4<>"",VLOOKUP($J$1,'Coûts 12 décomposés gds postes'!$A:$BC,33,FALSE),"") -> 48.49438863 | H28: =IF(C10<>"",IF(B29<>0,(G28+G29+G30+G31+G32+G33)/B29,""),"") -> 0.824069208 | K28: Affections endocriniennes, métaboliques et nutritionnelles - Groupes chirurgicaux | L28: 10C
A29: Logistique générale | B29: =IF($B$4<>"",VLOOKUP($J$1,'Coûts 12 décomposés gds postes'!$A:$BC,40,FALSE),"") -> 912.3299079 | C29: 0.1485427383 | D29: =IF($B$4<>"",VLOOKUP($J$1,Evolutions!$A:$T,12,FALSE),"") -> -0.03839788392 | F29: Logistique générale: Restauration | G29: =IF($B$4<>"",VLOOKUP($J$1,'Coûts 12 décomposés gds postes'!$A:$BC,34,FALSE),"") -> 97.6527613 | K29: Affections endocriniennes, métaboliques et nutritionnelles - Groupes 'médicaux' | L29: 10M
A30: Charges directes | B30: =IF($B$4<>"",VLOOKUP($J$1,'Coûts 12 décomposés gds postes'!$A:$BC,52,FALSE),"") -> 1419.654919 | C30: 0.2311438299 | D30: =IF($B$4<>"",VLOOKUP($J$1,Evolutions!$A:$T,14,FALSE),"") -> 0.05516691492 | F30: Logistique générale: Services administratifs à caractère général | G30: =IF($B$4<>"",VLOOKUP($J$1,'Coûts 12 décomposés gds postes'!$A:$BC,35,FALSE),"") -> 204.457119 | K30: Affections du rein et des voies urinaires - Groupes chirurgicaux | L30: 11C
F31: Logistique générale: Services administratifs liés au personnel | G31: =IF($B$4<>"",VLOOKUP($J$1,'Coûts 12 décomposés gds postes'!$A:$BC,36,FALSE),"") -> 127.2160705 | K31: Affections du rein et des voies urinaires - Avec acte classant non opératoire | L31: 11K
F32: Logistique générale: Entretien maintenance | G32: =IF($B$4<>"",VLOOKUP($J$1,'Coûts 12 décomposés gds postes'!$A:$BC,38,FALSE),"") -> 97.32212833 | K32: Affections du rein et des voies urinaires - Groupes 'médicaux' | L32: 11M
F33: Logistique générale: Services hôteliers | G33: =IF($B$4<>"",VLOOKUP($J$1,'Coûts 12 décomposés gds postes'!$A:$BC,39,FALSE),"") -> 176.680517 | K33: Affections de l'appareil génital masculin - Groupes chirurgicaux | L33: 12C
K34: Affections de l'appareil génital masculin - Avec acte classant non opératoire | L34: 12K
F35: Charges directes: Autres consommables | G35: =IF($B$4<>"",VLOOKUP($J$1,'Coûts 12 décomposés gds postes'!$A:$BC,46,FALSE),"") -> 536.2726887 | H35: =IF(C10<>"",IF(B30<>0,(G35+G36+G37)/B30,""),"") -> 0.7283760135 | K35: Affections de l'appareil génital masculin - Groupes 'médicaux' | L35: 12M
F36: Charges directes: Spécialités pharmaceutiques facturables en sus | G36: =IF($B$4<>"",VLOOKUP($J$1,'Coûts 12 décomposés gds postes'!$A:$BC,50,FALSE),"") -> 55.76307147 | K36: Affections de l'appareil génital féminin - Groupes chirurgicaux | L36: 13C
A37: Données de coûts: ENCC ex DG 2012 | F37: Charges directes: DMI facturables en sus | G37: =IF($B$4<>"",VLOOKUP($J$1,'Coûts 12 décomposés gds postes'!$A:$BC,48,FALSE),"") -> 442.00683 | K37: Affections de l'appareil génital féminin - Avec acte classant non opératoire | L37: 13K
K38: Affections de l'appareil génital féminin - Groupes 'médicaux' | L38: 13M
K39: Grossesses pathologiques, accouchements et affections du post-partum - Groupes chirurgicaux | L39: 14C
K40: Grossesses pathologiques, accouchements et affections du post-partum - Groupes 'médicaux' | L40: 14M
K41: Grossesses pathologiques, accouchements et affections du post-partum - Groupes indifférenciés | L41: 14Z
K42: Nouveau-nés, prématurés et affections de la période périnatale - Groupes chirurgicaux | L42: 15C
K43: Nouveau-nés, prématurés et affections de la période périnatale - Groupes 'médicaux' | L43: 15M
K44: Nouveau-nés, prématurés et affections de la période périnatale - Groupes indifférenciés | L44: 15Z
K45: Affections du sang et des organes hématopoïétiques - Groupes chirurgicaux | L45: 16C
K46: Affections du sang et des organes hématopoïétiques - Groupes 'médicaux' | L46: 16M
K47: Affections myéloprolifératives et tumeurs de siège imprécis ou diffus - Groupes chirurgicaux | L47: 17C
K48: Affections myéloprolifératives et tumeurs de siège imprécis ou diffus - Avec acte classant non opératoire | L48: 17K
K49: Affections myéloprolifératives et tumeurs de siège imprécis ou diffus - Groupes 'médicaux' | L49: 17M
K50: Maladies infectieuses et parasitaires - Groupes chirurgicaux | L50: 18C
K51: Maladies infectieuses et parasitaires - Groupes 'médicaux' | L51: 18M
K52: Maladies et troubles mentaux - Groupes chirurgicaux | L52: 19C
K53: Maladies et troubles mentaux - Groupes 'médicaux' | L53: 19M
K54: Troubles mentaux organiques liés à l'absorption de drogues ou induits par celles-ci - Groupes indifférenciés | L54: 20Z
K55: Traumatismes, allergies et empoisonnements - Groupes chirurgicaux | L55: 21C
K56: Traumatismes, allergies et empoisonnements - Avec acte classant non opératoire | L56: 21K
K57: Traumatismes, allergies et empoisonnements - Groupes 'médicaux' | L57: 21M
K58: Brûlures - Groupes chirurgicaux | L58: 22C
K59: Brûlures - Avec acte classant non opératoire | L59: 22K
K60: Brûlures - Groupes 'médicaux' | L60: 22M
K61: Brûlures - Groupes indifférenciés | L61: 22Z
K62: Facteurs influant sur l'état de santé et autres motifs de recours aux services de santé - Groupes chirurgicaux | L62: 23C
K63: Facteurs influant sur l'état de santé et autres motifs de recours aux services de santé - Avec acte classant non opératoire | L63: 23K
K64: Facteurs influant sur l'état de santé et autres motifs de recours aux services de santé - Groupes 'médicaux' | L64: 23M
K65: Facteurs influant sur l'état de santé et autres motifs de recours aux services de santé - Groupes indifférenciés | L65: 23Z
K66: Maladies dues à une infection par le VIH - Groupes chirurgicaux | L66: 25C
K67: Maladies dues à une infection par le VIH - Groupes 'médicaux' | L67: 25M
K68: Maladies dues à une infection par le VIH - Groupes indifférenciés | L68: 25Z
K69: Traumatismes multiples graves - Groupes chirurgicaux | L69: 26C
K70: Traumatismes multiples graves - Groupes 'médicaux' | L70: 26M
K71: Transplantations d'organes - Groupes chirurgicaux | L71: 27C
K72: Transplantations d'organes - Groupes indifférenciés | L72: 27Z
K73: Séances - Groupes indifférenciés | L73: 28Z

Sheet synthèse racine (hidden)
A1: Fiche de synthèse Racine | J1: =CONCATENATE(B4,B5,LEFT(B6,5),B7) -> 0707K07K06TOTAL | L1: 01C03
L2: 01C04
A3: Identification de la racine | L3: 01C05
A4: CMD | B4: =LEFT(B5,2) -> 07 | L4: 01C06
A5: Sous CMD | B5: =LEFT(B6,3) -> 07K | L5: 01C08
A6: Racine | B6: 07K06 | L6: 01C09
A7: GHMV11 | B7: TOTAL | L7: 01C10
A8: Libellé | B8: =IF(B4<>"",VLOOKUP(J1,'Coûts 12 décomposés gds postes'!A:X,6,FALSE),"") -> Actes thérapeutiques par voie vasculaire pour des affections malignes du système hépatobiliaire | L8: 01C11
C9: 2012 | D9: 2011 | E9: Evolution | H9: Part des postes détaillés dans le sous poste | L9: 01C12
A10: Coût moyen du séjour | C10: =IF($B$4<>"",VLOOKUP($J$1,'Coûts 12 décomposés gds postes'!$A:$BC,9,FALSE),"") -> 2875.291142 | D10: =IF($B$4<>"",VLOOKUP($J$1,'Coûts 11 décomposés gds postes'!$A:$W,13,FALSE),"") -> 3078.432705 | E10: =IF($B$4<>"",VLOOKUP($J$1,Evolutions!$A:$T,6,FALSE),"") -> -0.0659886323 | G10: Coût moyen 2012 | L10: 01C14
L11: 01C15
A12: Nombre de séjours ENC | C12: =IF($B$4<>"",VLOOKUP($J$1,'Coûts 12 décomposés gds postes'!$A:$BC,8,FALSE),"") -> 568 | D12: =IF($B$4<>"",VLOOKUP($J$1,'Coûts 11 décomposés gds postes'!$A:$W,8,FALSE),"") -> 624 | E12: =IF($B$4<>"",IF(D12<>"",IF(C12<>"",C12/D12-1,""),""),"") -> -0.08974358974 | L12: 01K02
L13: 01K03
L14: 01K04
F15: Médico technique: anesthésie | G15: =IF($B$4<>"",VLOOKUP($J$1,'Coûts 12 décomposés gds postes'!$A:$BC,15,FALSE),"") -> 60.47881734 | H15: =IF(C10<>"",IF(B27<>0,(G15+G16+G17+G18+G19+G20+G21+G22)/B27,""),"") -> 0.6212383585 | L15: 01K05
F16: Médico technique: bloc | G16: =IF($B$4<>"",VLOOKUP($J$1,'Coûts 12 décomposés gds postes'!$A:$BC,16,FALSE),"") -> 5.820490817 | L16: 01K06
F17: Médico technique: laboratoire | G17: =IF($B$4<>"",VLOOKUP($J$1,'Coûts 12 décomposés gds postes'!$A:$BC,22,FALSE)+VLOOKUP($J$1,'Coûts 12 décomposés gds postes'!$A:$BC,23,FALSE)+VLOOKUP($J$1,'Coûts 12 décomposés gds postes'!$A:$BC,24,FALSE),"") -> 70.71364773 | L17: 01K07
F18: Médico technique: Imagerie | G18: =IF($B$4<>"",VLOOKUP($J$1,'Coûts 12 décomposés gds postes'!$A:$BC,20,FALSE),"") -> 435.0490816 | L18: 01M04
F19: Médico technique: Exploration fonctionnelle | G19: =IF($B$4<>"",VLOOKUP($J$1,'Coûts 12 décomposés gds postes'!$A:$BC,19,FALSE),"") -> 22.60102981 | L19: 01M05
F20: Médico technique: Radiothérapie | G20: =IF($B$4<>"",VLOOKUP($J$1,'Coûts 12 décomposés gds postes'!$A:$BC,28,FALSE),"") -> 0.1304342379 | L20: 01M07
F21: Médico technique: SMUR terrestre | G21: =IF($B$4<>"",VLOOKUP($J$1,'Coûts 12 décomposés gds postes'!$A:$BC,29,FALSE),"") -> 0 | L21: 01M08
B22: Coût moyen 2012 | C22: Poids dans le coût du GHM | D22: Evolution 2012/2011 | F22: Médico technique: Urgences | G22: =IF($B$4<>"",VLOOKUP($J$1,'Coûts 12 décomposés gds postes'!$A:$BC,30,FALSE),"") -> 0.2227253878 | L22: 01M09
A23: Activités cliniques MCO (avec hébergement, hors Réa, SI, SC) | B23: =IF($B$4<>"",VLOOKUP($J$1,'Coûts 12 décomposés gds postes'!$A:$BC,10,FALSE),"") -> 679.1212717 | C23: =IF($C$10<>"",B23/$C$10,"") -> 0.2361921761 | D23: =IF($B$4<>"",VLOOKUP($J$1,Evolutions!$A:$T,7,FALSE),"") -> -0.005976031097 | L23: 01M10
A24: Activité de réanimation | B24: =IF($B$4<>"",VLOOKUP($J$1,'Coûts 12 décomposés gds postes'!$A:$BC,13,FALSE),"") -> 2.73896452 | C24: =IF($C$10<>"",B24/$C$10,"") -> 0.000952586846 | D24: =IF($B$4<>"",VLOOKUP($J$1,Evolutions!$A:$T,10,FALSE),"") -> -0.7766298396 | F24: Logistique Médicale: Pharmacie | G24: =IF($B$4<>"",VLOOKUP($J$1,'Coûts 12 décomposés gds postes'!$A:$BC,41,FALSE),"") -> 49.9061498 | H24: =IF(C10<>"",IF(C10<>0,(G24+G25+G26)/B28,""),"") -> 0.7654327167 | L24: 01M11
A25: Activité de soins intensifs | B25: =IF($B$4<>"",VLOOKUP($J$1,'Coûts 12 décomposés gds postes'!$A:$BC,12,FALSE),"") -> 6.654938378 | C25: 0.002314526791 | D25: =IF($B$4<>"",VLOOKUP($J$1,Evolutions!$A:$T,9,FALSE),"") -> 1.607383961 | F25: Logistique Médicale: Stérilisation | G25: =IF($B$4<>"",VLOOKUP($J$1,'Coûts 12 décomposés gds postes'!$A:$BC,42,FALSE),"") -> 3.64750814 | L25: 01M12
A26: Activité de surveillance continue | B26: =IF($B$4<>"",VLOOKUP($J$1,'Coûts 12 décomposés gds postes'!$A:$BC,11,FALSE),"") -> 17.77881498 | C26: 0.006183309482 | D26: =IF($B$4<>"",VLOOKUP($J$1,Evolutions!$A:$T,8,FALSE),"") -> -0.4088217375 | F26: Logistique Médicale: Hygiène et Vigilance | G26: =IF($B$4<>"",VLOOKUP($J$1,'Coûts 12 décomposés gds postes'!$A:$BC,44,FALSE),"") -> 11.02874674 | L26: 01M13
A27: Activités Médico-techniques | B27: =IF($B$4<>"",VLOOKUP($J$1,'Coûts 12 décomposés gds postes'!$A:$BC,32,FALSE),"") -> 957.7905466 | C27: 0.3331108049 | D27: =IF($B$4<>"",VLOOKUP($J$1,Evolutions!$A:$T,11,FALSE),"") -> 0.001231950716 | L27: 01M15
A28: Logistique Médicale | B28: =IF($B$4<>"",VLOOKUP($J$1,'Coûts 12 décomposés gds postes'!$A:$BC,45,FALSE),"") -> 84.37371865 | C28: 0.02934440879 | D28: =IF($B$4<>"",VLOOKUP($J$1,Evolutions!$A:$T,13,FALSE),"") -> -0.1908650317 | F28: Logistique générale: Blanchisserie | G28: =IF($B$4<>"",VLOOKUP($J$1,'Coûts 12 décomposés gds postes'!$A:$BC,33,FALSE),"") -> 20.90043127 | H28: =IF(C10<>"",IF(B29<>0,(G28+G29+G30+G31+G32+G33)/B29,""),"") -> 0.8033461396 | L28: 01M16
A29: Logistique générale | B29: =IF($B$4<>"",VLOOKUP($J$1,'Coûts 12 décomposés gds postes'!$A:$BC,40,FALSE),"") -> 459.7114943 | C29: 0.1598834593 | D29: =IF($B$4<>"",VLOOKUP($J$1,Evolutions!$A:$T,12,FALSE),"") -> -0.03221566637 | F29: Logistique générale: Restauration | G29: =IF($B$4<>"",VLOOKUP($J$1,'Coûts 12 décomposés gds postes'!$A:$BC,34,FALSE),"") -> 62.46563251 | L29: 01M17
A30: Charges directes | B30: =IF($B$4<>"",VLOOKUP($J$1,'Coûts 12 décomposés gds postes'!$A:$BC,52,FALSE),"") -> 667.1213925 | C30: 0.2320187277 | D30: =IF($B$4<>"",VLOOKUP($J$1,Evolutions!$A:$T,14,FALSE),"") -> -0.180881127 | F30: Logistique générale: Services administratifs à caractère général | G30: =IF($B$4<>"",VLOOKUP($J$1,'Coûts 12 décomposés gds postes'!$A:$BC,35,FALSE),"") -> 100.6694974 | L30: 01M18
F31: Logistique générale: Services administratifs liés au personnel | G31: =IF($B$4<>"",VLOOKUP($J$1,'Coûts 12 décomposés gds postes'!$A:$BC,36,FALSE),"") -> 55.79177817 | L31: 01M19
F32: Logistique générale: Entretien maintenance | G32: =IF($B$4<>"",VLOOKUP($J$1,'Coûts 12 décomposés gds postes'!$A:$BC,38,FALSE),"") -> 44.20328924 | L32: 01M20
F33: Logistique générale: Services hôteliers | G33: =IF($B$4<>"",VLOOKUP($J$1,'Coûts 12 décomposés gds postes'!$A:$BC,39,FALSE),"") -> 85.27682563 | L33: 01M21
L34: 01M22
F35: Charges directes: Autres consommables | G35: =IF($B$4<>"",VLOOKUP($J$1,'Coûts 12 décomposés gds postes'!$A:$BC,46,FALSE),"") -> 436.5266158 | H35: =IF(C10<>"",IF(B30<>0,(G35+G36+G37)/B30,""),"") -> 0.6889993141 | L35: 01M23
F36: Charges directes: Spécialités pharmaceutiques facturables en sus | G36: =IF($B$4<>"",VLOOKUP($J$1,'Coûts 12 décomposés gds postes'!$A:$BC,50,FALSE),"") -> 7.648313535 | L36: 01M24
A37: Données de coûts: ENCC ex DG 2012 | F37: Charges directes: DMI facturables en sus | G37: =IF($B$4<>"",VLOOKUP($J$1,'Coûts 12 décomposés gds postes'!$A:$BC,48,FALSE),"") -> 15.47125253 | L37: 01M25
L38: 01M26
L39: 01M27
L40: 01M28
L41: 01M29
L42: 01M30
L43: 01M31
L44: 01M32
L45: 01M33
L46: 01M34
L47: 01M35
L48: 01M36
L49: 01M37
L50: 01M38
L51: 01M39
L52: 02C02
L53: 02C03
L54: 02C05
L55: 02C06
L56: 02C07
L57: 02C08
L58: 02C09
L59: 02C10
L60: 02C11
L61: 02C12
L62: 02C13
L63: 02M02
L64: 02M03
L65: 02M04
L66: 02M05
L67: 02M07
L68: 02M08
L69: 02M09
L70: 02M10
L71: 03C05
L72: 03C06
L73: 03C07
L74: 03C09
L75: 03C10
L76: 03C11
L77: 03C12
L78: 03C13
L79: 03C14
L80: 03C15
L81: 03C16
L82: 03C17
L83: 03C18
L84: 03C19
L85: 03C20
L86: 03C21
L87: 03C24
L88: 03C25
L89: 03C26
L90: 03C27
L91: 03C28
L92: 03C29
L93: 03C30
L94: 03K02
L95: 03K03
L96: 03K04
L97: 03M02
L98: 03M03
L99: 03M04
L100: 03M05
L101: 03M06
L102: 03M07
L103: 03M08
L104: 03M09
L105: 03M10
L106: 03M11
L107: 03M12
L108: 03M13
L109: 03M14
L110: 03M15
L111: 04C02
L112: 04C03
L113: 04C04
L114: 04K02
L115: 04M02
L116: 04M03
L117: 04M04
L118: 04M05
L119: 04M06
L120: 04M07
L121: 04M08
L122: 04M09
L123: 04M10
L124: 04M11
L125: 04M12
L126: 04M13
L127: 04M14
L128: 04M15
L129: 04M16
L130: 04M17
L131: 04M18
L132: 04M19
L133: 04M20
L134: 04M21
L135: 04M22
L136: 04M23
L137: 04M24
L138: 04M25
L139: 04M26
L140: 04M27
L141: 05C02
L142: 05C03
L143: 05C04
L144: 05C05
L145: 05C06
L146: 05C07
L147: 05C08
L148: 05C09
L149: 05C10
L150: 05C11
L151: 05C12
L152: 05C13
L153: 05C14
L154: 05C15
L155: 05C17
L156: 05C18
L157: 05C19
L158: 05C20
L159: 05C21
L160: 05C22
L161: 05K05
L162: 05K06
L163: 05K10
L164: 05K12
L165: 05K14
L166: 05K15
L167: 05K17
L168: 05K19
L169: 05K20
L170: 05K21
L171: 05K22
L172: 05K23
L173: 05K24
L174: 05K25
L175: 05K26
L176: 05M04
L177: 05M05
L178: 05M06
L179: 05M07
L180: 05M08
L181: 05M09
L182: 05M10
L183: 05M11
L184: 05M12
L185: 05M13
L186: 05M14
L187: 05M15
L188: 05M16
L189: 05M17
L190: 05M18
L191: 05M19
L192: 05M20
L193: 05M21
L194: 05M22
L195: 05M23
L196: 06C03
L197: 06C04
L198: 06C05
L199: 06C07
L200: 06C08
... 461 more rows

Sheet synthèse racine (2) (hidden)
A1: Fiche de synthèse Racine | J1: =CONCATENATE(B4,B5,B6,B7) -> 0101C01C03TOTAL | K1: Craniotomies pour traumatisme, âge supérieur à 17 ans | L1: 01C03
K2: Craniotomies en dehors de tout traumatisme, âge supérieur à 17 ans | L2: 01C04
A3: identification de la racine | K3: Interventions sur le rachis et la moelle pour des affections neurologiques | L3: 01C05
A4: CMD | B4: =LEFT(B5,2) -> 01 | K4: Interventions sur le système vasculaire précérébral | L4: 01C06
A5: sous CMD | B5: =LEFT(B6,3) -> 01C | K5: Interventions sur les nerfs crâniens ou périphériques et autres interventions sur le système nerveux | L5: 01C08
A6: racine | B6: =IF(B8<>"",VLOOKUP(B8,K:L,2,FALSE),"") -> 01C03 | K6: Pose d'un stimulateur cérébral | L6: 01C09
A7: GHMV11 | B7: TOTAL | K7: Pose d'un stimulateur médullaire | L7: 01C10
A8: libellé | B8: Craniotomies pour traumatisme, âge supérieur à 17 ans | K8: Craniotomies pour tumeurs, âge inférieur à 18 ans | L8: 01C11
C9: 2012 | D9: 2011 | E9: Evolution | K9: Craniotomies pour affections non tumorales, âge inférieur à 18 ans | L9: 01C12
A10: Coût moyen du séjour | C10: =IF($B$4<>"",VLOOKUP($J$1,'Coûts 12 décomposés gds postes'!$A:$BC,9,FALSE),"") -> 14748.9742 | D10: =IF($B$4<>"",VLOOKUP($J$1,'Coûts 11 décomposés gds postes'!$A:$W,13,FALSE),"") -> 14437.23939 | E10: =IF($B$4<>"",VLOOKUP($J$1,Evolutions!$A:$T,6,FALSE),"") -> 0.0215924113 | G10: Coût moyen 2012 | H10: Part des postes détaillés dans le sous poste | K10: Libérations de nerfs superficiels à l'exception du médian au canal carpien | L10: 01C14
K11: Libérations du médian au canal carpien | L11: 01C15
A12: Nombre de séjours ENC | C12: =IF($B$4<>"",VLOOKUP($J$1,'Coûts 12 décomposés gds postes'!$A:$BC,8,FALSE),"") -> 1683 | D12: =IF($B$4<>"",VLOOKUP($J$1,'Coûts 11 décomposés gds postes'!$A:$W,8,FALSE),"") -> 2102 | E12: =IF($B$4<>"",IF(D12<>"",IF(C12<>"",C12/D12-1,""),""),"") -> -0.1993339676 | K12: Autres embolisations intracrâniennes et médullaires | L12: 01K02
K13: Autres actes thérapeutiques par voie vasculaire du système nerveux | L13: 01K03
K14: Injections de toxine botulique, en ambulatoire | L14: 01K04
F15: Médico technique: anesthésie | G15: =IF($B$4<>"",VLOOKUP($J$1,'Coûts 12 décomposés gds postes'!$A:$BC,15,FALSE),"") -> 461.2683797 | H15: =IF(C10<>"",IF(B27<>0,(G15+G16+G17+G18+G19+G20+G21+G22)/B27,""),"") -> 0.8836077495 | K15: Séjours pour douleurs chroniques rebelles comprenant un bloc ou une infiltration, en ambulatoire | L15: 01K05
F16: Médico technique: bloc | G16: =IF($B$4<>"",VLOOKUP($J$1,'Coûts 12 décomposés gds postes'!$A:$BC,16,FALSE),"") -> 535.368215 | K16: Affections du système nerveux sans acte opératoire avec anesthésie, en ambulatoire | L16: 01K06
F17: Médico technique: laboratoire | G17: =IF($B$4<>"",VLOOKUP($J$1,'Coûts 12 décomposés gds postes'!$A:$BC,22,FALSE)+VLOOKUP($J$1,'Coûts 12 décomposés gds postes'!$A:$BC,23,FALSE)+VLOOKUP($J$1,'Coûts 12 décomposés gds postes'!$A:$BC,24,FALSE),"") -> 328.8123982 | K17: Embolisations intracrâniennes et médullaires pour hémorragie | L17: 01K07
F18: Médico technique: Imagerie | G18: =IF($B$4<>"",VLOOKUP($J$1,'Coûts 12 décomposés gds postes'!$A:$BC,20,FALSE),"") -> 331.7512636 | K18: Méningites virales | L18: 01M04
F19: Médico technique: Exploration fonctionnelle | G19: =IF($B$4<>"",VLOOKUP($J$1,'Coûts 12 décomposés gds postes'!$A:$BC,19,FALSE),"") -> 68.90817092 | K19: Infections du système nerveux à l'exception des méningites virales | L19: 01M05
F20: Médico technique: Radiothérapie | G20: =IF($B$4<>"",VLOOKUP($J$1,'Coûts 12 décomposés gds postes'!$A:$BC,28,FALSE),"") -> 1.204945684 | K20: Maladies dégénératives du système nerveux, âge supérieur à 79 ans | L20: 01M07
F21: Médico technique: SMUR terrestre | G21: =IF($B$4<>"",VLOOKUP($J$1,'Coûts 12 décomposés gds postes'!$A:$BC,29,FALSE),"") -> 92.44579736 | K21: Maladies dégénératives du système nerveux, âge inférieur à 80 ans | L21: 01M08
B22: Coût moyen 2012 | C22: Poids dans le coût du GHM | D22: Evolution 2012/2011 | F22: Médico technique: Urgences | G22: =IF($B$4<>"",VLOOKUP($J$1,'Coûts 12 décomposés gds postes'!$A:$BC,30,FALSE),"") -> 45.66345357 | K22: Affections et lésions du rachis et de la moelle | L22: 01M09
A23: activités cliniques MCO (avec hébergement, hors Réa, SI, SC) | B23: =IF($B$4<>"",VLOOKUP($J$1,'Coûts 12 décomposés gds postes'!$A:$BC,10,FALSE),"") -> 2021.771052 | C23: =IF($C$10<>"",B23/$C$10,"") -> 0.1370787571 | D23: =IF($B$4<>"",VLOOKUP($J$1,Evolutions!$A:$T,7,FALSE),"") -> 0.005225351659 | K23: Autres affections cérébrovasculaires | L23: 01M10
A24: Activité de réanimation | B24: =IF($B$4<>"",VLOOKUP($J$1,'Coûts 12 décomposés gds postes'!$A:$BC,13,FALSE),"") -> 4590.474894 | C24: =IF($C$10<>"",B24/$C$10,"") -> 0.3112402823 | D24: =IF($B$4<>"",VLOOKUP($J$1,Evolutions!$A:$T,10,FALSE),"") -> 0.006058580969 | F24: Logistique Médicale: Pharmacie | G24: =IF($B$4<>"",VLOOKUP($J$1,'Coûts 12 décomposés gds postes'!$A:$BC,41,FALSE),"") -> 220.1344523 | H24: =IF(C10<>"",IF(C10<>0,(G24+G25+G26)/B28,""),"") -> 0.7909900458 | K24: Affections des nerfs crâniens et rachidiens | L24: 01M11
A25: Activité de soins intensifs | B25: =IF($B$4<>"",VLOOKUP($J$1,'Coûts 12 décomposés gds postes'!$A:$BC,12,FALSE),"") -> 188.7040027 | C25: =IF($C$10<>"",B25/$C$10,"") -> 0.0127943815 | D25: =IF($B$4<>"",VLOOKUP($J$1,Evolutions!$A:$T,9,FALSE),"") -> 0.3014254587 | F25: Logistique Médicale: Stérilisation | G25: =IF($B$4<>"",VLOOKUP($J$1,'Coûts 12 décomposés gds postes'!$A:$BC,42,FALSE),"") -> 90.4734275 | K25: Autres affections du système nerveux | L25: 01M12
A26: Activité de surveillance continue | B26: =IF($B$4<>"",VLOOKUP($J$1,'Coûts 12 décomposés gds postes'!$A:$BC,11,FALSE),"") -> 622.5863635 | C26: 0.04221218066 | D26: =IF($B$4<>"",VLOOKUP($J$1,Evolutions!$A:$T,8,FALSE),"") -> 0.07068102389 | F26: Logistique Médicale: Hygiène et Vigilance | G26: =IF($B$4<>"",VLOOKUP($J$1,'Coûts 12 décomposés gds postes'!$A:$BC,44,FALSE),"") -> 41.39912056 | K26: Troubles de la conscience et comas d'origine non traumatique | L26: 01M13
A27: Activités Médico-techniques | B27: =IF($B$4<>"",VLOOKUP($J$1,'Coûts 12 décomposés gds postes'!$A:$BC,32,FALSE),"") -> 2111.14335 | C27: 0.1431383173 | D27: =IF($B$4<>"",VLOOKUP($J$1,Evolutions!$A:$T,11,FALSE),"") -> -0.003849180123 | K27: Accidents ischémiques transitoires et occlusions des artères précérébrales, âge supérieur à 79 ans | L27: 01M15
A28: Logistique Médicale | B28: =IF($B$4<>"",VLOOKUP($J$1,'Coûts 12 décomposés gds postes'!$A:$BC,45,FALSE),"") -> 445.0207713 | C28: 0.03017299815 | D28: =IF($B$4<>"",VLOOKUP($J$1,Evolutions!$A:$T,13,FALSE),"") -> 0.06683384547 | F28: Logistique générale: Blanchisserie | G28: =IF($B$4<>"",VLOOKUP($J$1,'Coûts 12 décomposés gds postes'!$A:$BC,33,FALSE),"") -> 124.0905573 | H28: =IF(C10<>"",IF(B29<>0,(G28+G29+G30+G31+G32+G33)/B29,""),"") -> 0.8313492912 | K28: Accidents ischémiques transitoires et occlusions des artères précérébrales, âge inférieur à 80 ans | L28: 01M16
A29: Logistique générale | B29: =IF($B$4<>"",VLOOKUP($J$1,'Coûts 12 décomposés gds postes'!$A:$BC,40,FALSE),"") -> 2214.29629 | C29: 0.1501322234 | D29: =IF($B$4<>"",VLOOKUP($J$1,Evolutions!$A:$T,12,FALSE),"") -> -0.006606978815 | F29: Logistique générale: Restauration | G29: =IF($B$4<>"",VLOOKUP($J$1,'Coûts 12 décomposés gds postes'!$A:$BC,34,FALSE),"") -> 212.3244259 | K29: Sclérose en plaques et ataxie cérébelleuse | L29: 01M17
A30: Charges directes | B30: =IF($B$4<>"",VLOOKUP($J$1,'Coûts 12 décomposés gds postes'!$A:$BC,52,FALSE),"") -> 2554.977479 | C30: 0.1732308596 | D30: =IF($B$4<>"",VLOOKUP($J$1,Evolutions!$A:$T,14,FALSE),"") -> 0.07750531184 | F30: Logistique générale: Services administratifs à caractère général | G30: =IF($B$4<>"",VLOOKUP($J$1,'Coûts 12 décomposés gds postes'!$A:$BC,35,FALSE),"") -> 491.3981311 | K30: Lésions traumatiques intracrâniennes sévères | L30: 01M18
F31: Logistique générale: Services administratifs liés au personnel | G31: =IF($B$4<>"",VLOOKUP($J$1,'Coûts 12 décomposés gds postes'!$A:$BC,36,FALSE),"") -> 329.4322363 | K31: Autres lésions traumatiques intracrâniennes, sauf commotions | L31: 01M19
F32: Logistique générale: Entretien maintenance | G32: =IF($B$4<>"",VLOOKUP($J$1,'Coûts 12 décomposés gds postes'!$A:$BC,38,FALSE),"") -> 241.9697562 | K32: Commotions cérébrales | L32: 01M20
F33: Logistique générale: Services hôteliers | G33: =IF($B$4<>"",VLOOKUP($J$1,'Coûts 12 décomposés gds postes'!$A:$BC,39,FALSE),"") -> 441.6385443 | K33: Douleurs chroniques rebelles | L33: 01M21
K34: Migraines et céphalées | L34: 01M22
F35: Charges directes: Autres consommables | G35: =IF($B$4<>"",VLOOKUP($J$1,'Coûts 12 décomposés gds postes'!$A:$BC,46,FALSE),"") -> 1131.816609 | H35: =IF(C10<>"",IF(B30<>0,(G35+G36+G37)/B30,""),"") -> 0.5887240483 | K35: Convulsions hyperthermiques | L35: 01M23
F36: Charges directes: Spécialités pharmaceutiques facturables en sus | G36: =IF($B$4<>"",VLOOKUP($J$1,'Coûts 12 décomposés gds postes'!$A:$BC,50,FALSE),"") -> 234.0553649 | K36: Epilepsie, âge inférieur à 18 ans | L36: 01M24
A37: Données de coûts: ENCC ex DG 2012 | F37: Charges directes: DMI facturables en sus | G37: =IF($B$4<>"",VLOOKUP($J$1,'Coûts 12 décomposés gds postes'!$A:$BC,48,FALSE),"") -> 138.3047108 | K37: Epilepsie, âge supérieur à 17 ans | L37: 01M25
K38: Tumeurs malignes du système nerveux | L38: 01M26
K39: Autres tumeurs du système nerveux | L39: 01M27
K40: Hydrocéphalies | L40: 01M28
K41: Anévrysmes cérébraux | L41: 01M29
K42: Accidents vasculaires intracérébraux non transitoires | L42: 01M30
K43: Autres accidents vasculaires cérébraux non transitoires | L43: 01M31
K44: Explorations et surveillance pour affections du système nerveux | L44: 01M32
K45: Troubles du sommeil | L45: 01M33
K46: Anomalies de la démarche d'origine neurologique | L46: 01M34
K47: Symptômes et autres recours aux soins de la CMD 01 | L47: 01M35
K48: Accidents vasculaires cérébraux non transitoires avec décès : séjours de moins de 2 jours | L48: 01M36
K49: Autres affections de la CMD 01 avec décès : séjours de moins de 2 jours | L49: 01M37
K50: Autres affections neurologiques concernant majoritairement la petite enfance | L50: 01M38
K51: Troubles de la régulation thermique du nouveau-né et du nourrisson | L51: 01M39
K52: Interventions sur la rétine | L52: 02C02
K53: Interventions sur l'orbite | L53: 02C03
K54: Interventions sur le cristallin avec ou sans vitrectomie | L54: 02C05
K55: Interventions primaires sur l'iris | L55: 02C06
K56: Autres interventions extraoculaires, âge inférieur à 18 ans | L56: 02C07
K57: Autres interventions extraoculaires, âge supérieur à 17 ans | L57: 02C08
K58: Allogreffes de cornée | L58: 02C09
K59: Autres interventions intraoculaires pour affections sévères | L59: 02C10
K60: Autres interventions intraoculaires en dehors des affections sévères | L60: 02C11
K61: Interventions sur le cristallin avec trabéculectomie | L61: 02C12
K62: Interventions sur les muscles oculomoteurs, âge inférieur à 18 ans | L62: 02C13
K63: Hyphéma | L63: 02M02
K64: Infections oculaires aiguës sévères | L64: 02M03
K65: Affections oculaires d'origine neurologique | L65: 02M04
K66: Autres affections oculaires, âge inférieur à 18 ans | L66: 02M05
K67: Autres affections oculaires d'origine diabétique, âge supérieur à 17 ans | L67: 02M07
K68: Autres affections oculaires d'origine non diabétique, âge supérieur à 17 ans | L68: 02M08
K69: Explorations et surveillance pour affections de l'oeil | L69: 02M09
K70: Symptômes et autres recours aux soins de la CMD 02 | L70: 02M10
K71: Réparations de fissures labiale et palatine | L71: 03C05
K72: Interventions sur les sinus et l'apophyse mastoïde, âge inférieur à 18 ans | L72: 03C06
K73: Interventions sur les sinus et l'apophyse mastoïde, âge supérieur à 17 ans | L73: 03C07
K74: Rhinoplasties | L74: 03C09
K75: Amygdalectomies et/ou adénoïdectomies isolées, âge inférieur à 18 ans | L75: 03C10
K76: Amygdalectomies et/ou adénoïdectomies isolées, âge supérieur à 17 ans | L76: 03C11
K77: Interventions sur les amygdales et les végétations adénoïdes autres que les amygdalectomies et/ou les adénoïdectomies isolées, âge inférieur à 18 ans | L77: 03C12
K78: Interventions sur les amygdales et les végétations adénoïdes autres que les amygdalectomies et/ou les adénoïdectomies isolées, âge supérieur à 17 ans | L78: 03C13
K79: Drains transtympaniques, âge inférieur à 18 ans | L79: 03C14
K80: Drains transtympaniques, âge supérieur à 17 ans | L80: 03C15
K81: Autres interventions chirurgicales portant sur les oreilles, le nez, la gorge ou le cou | L81: 03C16
K82: Interventions sur la bouche | L82: 03C17
K83: Pose d'implants cochléaires | L83: 03C18
K84: Ostéotomies de la face | L84: 03C19
K85: Interventions de reconstruction de l'oreille moyenne | L85: 03C20
K86: Interventions pour oreilles décollées | L86: 03C21
K87: Interventions sur les glandes salivaires | L87: 03C24
K88: Interventions majeures sur la tête et le cou | L88: 03C25
K89: Autres interventions sur la tête et le cou | L89: 03C26
K90: Interventions sur les amygdales, en ambulatoire | L90: 03C27
K91: Interventions sur les végétations adénoïdes, en ambulatoire | L91: 03C28
K92: Autres interventions sur l'oreille, le nez ou la gorge pour tumeurs malignes | L92: 03C29
K93: Interventions sur l'oreille externe | L93: 03C30
K94: Affections de la bouche et des dents avec certaines extractions, réparations et prothèses dentaires | L94: 03K02
K95: Séjours comprenant une endoscopie oto-rhino-laryngologique, en ambulatoire | L95: 03K03
K96: Séjours comprenant certains actes non opératoires de la CMD 03, en ambulatoire | L96: 03K04
K97: Traumatismes et déformations du nez | L97: 03M02
K98: Otites moyennes et autres infections des voies aériennes supérieures, âge inférieur à 18 ans | L98: 03M03
K99: Otites moyennes et autres infections des voies aériennes supérieures, âge supérieur à 17 ans | L99: 03M04
K100: Troubles de l'équilibre | L100: 03M05
K101: Epistaxis | L101: 03M06
K102: Tumeurs malignes des oreilles, du nez, de la gorge ou de la bouche | L102: 03M07
K103: Autres diagnostics portant sur les oreilles, le nez, la gorge ou la bouche, âge inférieur à 18 ans | L103: 03M08
K104: Autres diagnostics portant sur les oreilles, le nez, la gorge ou la bouche, âge supérieur à 17 ans | L104: 03M09
K105: Affections de la bouche et des dents sans certaines extractions, réparations ou prothèses dentaires, âge inférieur à 18 ans | L105: 03M10
K106: Affections de la bouche et des dents sans certaines extractions, réparations ou prothèses dentaires, âge supérieur à 17 ans | L106: 03M11
K107: Infections aigües sévères des voies aériennes supérieures, âge inférieur à 18 ans | L107: 03M12
K108: Infections aigües sévères des voies aériennes supérieures, âge supérieur à 17 ans | L108: 03M13
K109: Explorations et surveillance pour affections ORL | L109: 03M14
K110: Symptômes et autres recours aux soins de la CMD 03 | L110: 03M15
K111: Interventions majeures sur le thorax | L111: 04C02
K112: Autres interventions chirurgicales sur le système respiratoire | L112: 04C03
K113: Interventions sous thoracoscopie | L113: 04C04
K114: Séjours comprenant une endoscopie bronchique, en ambulatoire | L114: 04K02
K115: Bronchites et asthme, âge inférieur à 18 ans | L115: 04M02
K116: Bronchites et asthme, âge supérieur à 17 ans | L116: 04M03
K117: Pneumonies et pleurésies banales, âge inférieur à 18 ans | L117: 04M04
K118: Pneumonies et pleurésies banales, âge supérieur à 17 ans | L118: 04M05
K119: Infections et inflammations respiratoires, âge inférieur à 18 ans | L119: 04M06
K120: Infections et inflammations respiratoires, âge supérieur à 17 ans | L120: 04M07
K121: Bronchopneumopathies chroniques | L121: 04M08
K122: Tumeurs de l'appareil respiratoire | L122: 04M09
K123: Embolies pulmonaires | L123: 04M10
K124: Signes et symptômes respiratoires | L124: 04M11
K125: Pneumothorax | L125: 04M12
K126: Oedème pulmonaire et détresse respiratoire | L126: 04M13
K127: Maladies pulmonaires interstitielles | L127: 04M14
K128: Autres diagnostics portant sur le système respiratoire | L128: 04M15
K129: Traumatismes thoraciques | L129: 04M16
K130: Epanchements pleuraux | L130: 04M17
K131: Bronchiolites | L131: 04M18
K132: Tuberculoses | L132: 04M19
K133: Bronchopneumopathies chroniques surinfectées | L133: 04M20
K134: Suivis de greffe pulmonaire | L134: 04M21
K135: Explorations et surveillance pour affections de l'appareil respiratoire | L135: 04M22
K136: Autres symptômes et recours aux soins de la CMD 04 | L136: 04M23
K137: Affections de la CMD 04 avec décès : séjours de moins de 2 jours | L137: 04M24
K138: Grippes | L138: 04M25
K139: Fibroses kystiques avec manifestations pulmonaires | L139: 04M26
K140: Autres affections respiratoires concernant majoritairement la petite enfance | L140: 04M27
K141: Chirurgie de remplacement valvulaire avec circulation extracorporelle et avec cathétérisme cardiaque ou coronarographie | L141: 05C02
K142: Chirurgie de remplacement valvulaire avec circulation extracorporelle, sans cathétérisme cardiaque, ni coronarographie | L142: 05C03
K143: Pontages aortocoronariens avec cathétérisme cardiaque ou coronarographie | L143: 05C04
K144: Pontages aortocoronariens sans cathétérisme cardiaque, ni coronarographie | L144: 05C05
K145: Autres interventions cardiothoraciques, âge supérieur à 1 an, ou vasculaires quel que soit l'âge, avec circulation extracorporelle | L145: 05C06
K146: Autres interventions cardiothoraciques, âge inférieur à 2 ans, avec circulation extracorporelle | L146: 05C07
K147: Autres interventions cardiothoraciques, âge supérieur à 1 an, ou vasculaires quel que soit l'âge, sans circulation extracorporelle | L147: 05C08
K148: Autres interventions cardiothoraciques, âge inférieur à 2 ans, sans circulation extracorporelle | L148: 05C09
K149: Chirurgie majeure de revascularisation | L149: 05C10
K150: Autres interventions de chirurgie vasculaire | L150: 05C11
K151: Amputations du membre inférieur, sauf des orteils, pour troubles circulatoires | L151: 05C12
K152: Amputations pour troubles circulatoires portant sur le membre supérieur ou les orteils | L152: 05C13
K153: Poses d'un stimulateur cardiaque permanent avec infarctus aigu du myocarde ou insuffisance cardiaque congestive ou état de choc | L153: 05C14
K154: Poses d'un stimulateur cardiaque permanent sans infarctus aigu du myocarde, ni insuffisance cardiaque congestive, ni état de choc | L154: 05C15
K155: Ligatures de veines et éveinages | L155: 05C17
K156: Autres interventions sur le système circulatoire | L156: 05C18
K157: Poses d'un défibrillateur cardiaque | L157: 05C19
K158: Remplacements ou ablations chirurgicale d'électrodes ou repositionnements de boîtier de stimulation cardiaque permanente | L158: 05C20
K159: Créations et réfections de fistules artérioveineuses pour affections de la CMD 05 | L159: 05C21
K160: Remplacements de stimulateurs cardiaques permanents | L160: 05C22
K161: Endoprothèses vasculaires avec infarctus du myocarde | L161: 05K05
K162: Endoprothèses vasculaires sans infarctus du myocarde | L162: 05K06
K163: Actes diagnostiques par voie vasculaire | L163: 05K10
K164: Actes thérapeutiques par voie vasculaire sauf endoprothèses, âge inférieur à 18 ans | L164: 05K12
K165: Mise en place de certains accès vasculaires pour des affections de la CMD 05, séjours de moins de 2 jours | L165: 05K14
K166: Surveillances de greffes de coeur avec acte diagnostique par voie vasculaire | L166: 05K15
K167: Affections cardiovasculaires sans acte opératoire de la CMD 05, avec anesthésie, en ambulatoire | L167: 05K17
K168: Traitements majeurs de troubles du rythme par voie vasculaire | L168: 05K19
K169: Autres traitements de troubles du rythme par voie vasculaire | L169: 05K20
K170: Poses de bioprothèses de valves cardiaques par voie vasculaire | L170: 05K21
K171: Actes thérapeutiques par voie vasculaire sur les orifices du coeur, âge supérieur à 17 ans | L171: 05K22
K172: Ablations, repositionnements et poses de sondes cardiaques supplémentaires par voie vasculaire, âge supérieur à 17 ans | L172: 05K23
K173: Dilatations coronaires et autres actes thérapeutiques sur le coeur par voie vasculaire, âge supérieur à 17 ans | L173: 05K24
K174: Actes thérapeutiques sur les artères par voie vasculaire, âge supérieur à 17 ans | L174: 05K25
K175: Actes thérapeutiques sur les accès vasculaires ou les veines par voie vasculaire, âge supérieur à 17 ans | L175: 05K26
K176: Infarctus aigu du myocarde | L176: 05M04
K177: Syncopes et lipothymies | L177: 05M05
K178: Angine de poitrine | L178: 05M06
K179: Thrombophlébites veineuses profondes | L179: 05M07
K180: Arythmies et troubles de la conduction cardiaque | L180: 05M08
K181: Insuffisances cardiaques et états de choc circulatoire | L181: 05M09
K182: Cardiopathies congénitales et valvulopathies, âge inférieur à 18 ans | L182: 05M10
K183: Cardiopathies congénitales et valvulopathies, âge supérieur à 17 ans | L183: 05M11
K184: Troubles vasculaires périphériques | L184: 05M12
K185: Douleurs thoraciques | L185: 05M13
K186: Arrêt cardiaque | L186: 05M14
K187: Hypertension artérielle | L187: 05M15
K188: Athérosclérose coronarienne | L188: 05M16
K189: Autres affections de l'appareil circulatoire | L189: 05M17
K190: Endocardites aiguës et subaiguës | L190: 05M18
K191: Surveillances de greffes de coeur sans acte diagnostique par voie vasculaire | L191: 05M19
K192: Explorations et surveillance pour affections de l'appareil circulatoire | L192: 05M20
K193: Infarctus aigu du myocarde avec décès : séjours de moins de 2 jours | L193: 05M21
K194: Autres affections de la CMD 05 avec décès : séjours de moins de 2 jours | L194: 05M22
K195: Symptômes et autres recours aux soins de la CMD 05 | L195: 05M23
K196: Résections rectales | L196: 06C03
K197: Interventions majeures sur l'intestin grêle et le côlon | L197: 06C04
K198: Interventions sur l'oesophage, l'estomac et le duodénum, âge inférieur à 18 ans | L198: 06C05
K199: Interventions mineures sur l'intestin grêle et le côlon | L199: 06C07
K200: Appendicectomies compliquées | L200: 06C08
... 457 more rows

Sheet synthèse GHM (hidden)
A1: Fiche de synthèse GHM | J1: =B4 -> 11C131 | K1: 01C031 | L1: Craniotomies pour traumatisme, âge supérieur à 17 ans, niveau 1
K2: 01C032 | L2: Craniotomies pour traumatisme, âge supérieur à 17 ans, niveau 2
A3: Identification du GHM | K3: 01C033 | L3: Craniotomies pour traumatisme, âge supérieur à 17 ans, niveau 3
A4: GHM | B4: 11C131 | K4: 01C034 | L4: Craniotomies pour traumatisme, âge supérieur à 17 ans, niveau 4
A5: Libellé | B5: =IF(B4<>"",VLOOKUP(B4,$K:$L,2,FALSE),"") -> Interventions par voie transurétrale ou transcutanée pour des affections non lithiasiques, niveau 1 | K5: 01C041 | L5: Craniotomies en dehors de tout traumatisme, âge supérieur à 17 ans, niveau 1
C6: 2012 | D6: 2011 | E6: Evolution | K6: 01C042 | L6: Craniotomies en dehors de tout traumatisme, âge supérieur à 17 ans, niveau 2
A7: Coût moyen du séjour | C7: =IF($B$4<>"",VLOOKUP($B$4,'Coûts décomposés'!$A:$FK,5,FALSE),"") -> 2143.341164 | D7: =IF($B$4<>"",IF(ISNA(VLOOKUP($B$4,'Coûts 11 décomposés gds postes'!$E:$W,9,FALSE)),"NC",VLOOKUP($B$4,'Coûts 11 décomposés gds postes'!$E:$W,9,FALSE)),"") -> 2213.307714 | E7: =IF($B$4<>"",IF(ISNA(VLOOKUP($J$1,Evolutions!$E:$N,2,FALSE)),"NC",VLOOKUP($J$1,Evolutions!$E:$N,2,FALSE)),"") -> -0.03161175876 | K7: 01C043 | L7: Craniotomies en dehors de tout traumatisme, âge supérieur à 17 ans, niveau 3
K8: 01C044 | L8: Craniotomies en dehors de tout traumatisme, âge supérieur à 17 ans, niveau 4
A9: Nombre de séjours ENC | C9: =IF($B$4<>"",VLOOKUP($B$4,'Coûts décomposés'!$A:$FK,4,FALSE),"") -> 5139 | D9: =IF($B$4<>"",IF(ISNA(VLOOKUP($B$4,'Coûts 11 décomposés gds postes'!$E:$W,4,FALSE)),"NC",VLOOKUP($B$4,'Coûts 11 décomposés gds postes'!$E:$W,4,FALSE)),"") -> 6044 | E9: =IF($B$4<>"",IF(D9<>"",IF(D9<>"NC",IF(C9<>"",C9/D9-1,""),""),""),"") -> -0.1497352747 | G9: Coût moyen 2012 | H9: Part des postes détaillés dans le sous poste | K9: 01C051 | L9: Interventions sur le rachis et la moelle pour des affections neurologiques, niveau 1
K10: 01C052 | L10: Interventions sur le rachis et la moelle pour des affections neurologiques, niveau 2
A11: Intervalle de confiance | B11: Borne Basse | C11: =IF($B$4<>"",VLOOKUP($B$4,'Intervalle de confiance'!A:M,12,FALSE),"") -> 2017.996875 | D11: =IF($B$4<>"",IF(ISNA(VLOOKUP($B$4,'Coûts 11 décomposés gds postes'!$E:$W,7,FALSE)),"NC",VLOOKUP($B$4,'Coûts 11 décomposés gds postes'!$E:$W,7,FALSE)),"") -> 1984.904979 | K11: 01C053 | L11: Interventions sur le rachis et la moelle pour des affections neurologiques, niveau 3
B12: Borne Haute | C12: =IF($B$4<>"",VLOOKUP($B$4,'Intervalle de confiance'!A:M,13,FALSE),"") -> 2268.685453 | D12: =IF($B$4<>"",IF(ISNA(VLOOKUP($B$4,'Coûts 11 décomposés gds postes'!$E:$W,8,FALSE)),"NC",VLOOKUP($B$4,'Coûts 11 décomposés gds postes'!$E:$W,8,FALSE)),"") -> 2441.710448 | K12: 01C054 | L12: Interventions sur le rachis et la moelle pour des affections neurologiques, niveau 4
K13: 01C061 | L13: Interventions sur le système vasculaire précérébral, niveau 1
F14: Cliniques: Personnel médical | G14: =IF(B4<>"",VLOOKUP(B4,'Coûts décomposés'!A:FK,9,FALSE),"") -> 141.1226273 | H14: =IF($C$7<>"",IF(B23<>0,(G14+G15+G16)/B23,""),"") -> 0.9865784697 | K14: 01C062 | L14: Interventions sur le système vasculaire précérébral, niveau 2
F15: Cliniques: Personnel soignant | G15: =IF(B4<>"",VLOOKUP(B4,'Coûts décomposés'!A:FK,10,FALSE),"") -> 442.4208931 | K15: 01C063 | L15: Interventions sur le système vasculaire précérébral, niveau 3
F16: Cliniques: Personnel autre | G16: =IF(B4<>"",VLOOKUP(B4,'Coûts décomposés'!A:FK,8,FALSE),"") -> 115.2997704 | K16: 01C064 | L16: Interventions sur le système vasculaire précérébral, niveau 4
K17: 01C081 | L17: Interventions sur les nerfs crâniens ou périphériques et autres interventions sur le système nerveux, niveau 1
F18: Réanimation: Personnel médical | G18: =IF(B4<>"",VLOOKUP(B4,'Coûts décomposés'!A:FK,27,FALSE),"") -> 0.7924487775 | H18: =IF(C7<>"",IF(B24<>0,(G18+G19+G20)/B24,""),"") -> 0.9541170836 | K18: 01C082 | L18: Interventions sur les nerfs crâniens ou périphériques et autres interventions sur le système nerveux, niveau 2
F19: Réanimation: Personnel soignant | G19: =IF(B4<>"",VLOOKUP(B4,'Coûts décomposés'!A:FK,28,FALSE),"") -> 2.399199257 | K19: 01C083 | L19: Interventions sur les nerfs crâniens ou périphériques et autres interventions sur le système nerveux, niveau 3
F20: Réanimation: Personnel autre | G20: =IF(B4<>"",VLOOKUP(B4,'Coûts décomposés'!A:FK,26,FALSE),"") -> 0.3303086833 | K20: 01C084 | L20: Interventions sur les nerfs crâniens ou périphériques et autres interventions sur le système nerveux, niveau 4
K21: 01C08J | L21: Interventions sur les nerfs crâniens ou périphériques et autres interventions sur le système nerveux, en ambulatoire
B22: Coût moyen 2012 | C22: Poids dans le coût du GHM | D22: Evolution 2012/2011 | F22: Soins intensifs: Personnel médical | G22: =IF(B4<>"",VLOOKUP(B4,'Coûts décomposés'!A:FK,21,FALSE),"") -> 0.1655609013 | H22: =IF(C7<>"",IF(B25<>0,(G22+G23+G24)/B25,""),"") -> 0.964801697 | K22: 01C091 | L22: Pose d'un stimulateur cérébral, niveau 1
A23: Activités cliniques MCO (avec hébergement, hors Réa, SI, SC) | B23: =IF(B4<>"",VLOOKUP(B4,'Coûts décomposés'!A:FK,11,FALSE),"") -> 708.3504377 | C23: =IF($C$7<>"",B23/$C$7,"") -> 0.3304888879 | D23: =IF($B$4<>"",VLOOKUP($J$1,Evolutions!$E:$N,3,FALSE),"") -> 0.008826610759 | F23: Soins intensifs: Personnel soignant | G23: =IF(B4<>"",VLOOKUP(B4,'Coûts décomposés'!A:FK,22,FALSE),"") -> 0.4638777658 | K23: 01C092 | L23: Pose d'un stimulateur cérébral, niveau 2
A24: Activité de réanimation | B24: =IF(B4<>"",VLOOKUP(B4,'Coûts décomposés'!A:FK,29,FALSE),"") -> 3.691325497 | C24: =IF($C$7<>"",B24/$C$7,"") -> 0.001722229554 | D24: =IF($B$4<>"",VLOOKUP($J$1,Evolutions!$E:$N,6,FALSE),"") -> 0.4557895237 | F24: Soins intensifs: Personnel autre | G24: =IF(B4<>"",VLOOKUP(B4,'Coûts décomposés'!A:FK,20,FALSE),"") -> 0.05882943687 | K24: 01C093 | L24: Pose d'un stimulateur cérébral, niveau 3
A25: Activité de soins intensifs | B25: =IF(B4<>"",VLOOKUP(B4,'Coûts décomposés'!A:FK,23,FALSE),"") -> 0.7133777916 | C25: 0.0003328344566 | D25: =IF($B$4<>"",VLOOKUP($J$1,Evolutions!$E:$N,5,FALSE),"") -> -0.3923528985 | K25: 01C094 | L25: Pose d'un stimulateur cérébral, niveau 4
A26: Activité de surveillance continue | B26: =IF(B4<>"",VLOOKUP(B4,'Coûts décomposés'!A:FK,17,FALSE),"") -> 2.205028377 | C26: 0.001028780865 | D26: =IF($B$4<>"",VLOOKUP($J$1,Evolutions!$E:$N,4,FALSE),"") -> -0.864874478 | F26: Surveillance continue: Personnel médical | G26: =IF(B4<>"",VLOOKUP(B4,'Coûts décomposés'!A:FK,15,FALSE),"") -> 0.3976524766 | H26: =IF(C7<>"",IF(B26<>0,(G26+G27+G28)/B26,""),"") -> 0.9710243879 | K26: 01C101 | L26: Pose d'un stimulateur médullaire, niveau 1
A27: Activités Médico-techniques | B27: =IF(B4<>"",VLOOKUP(B4,'Coûts décomposés'!A:FK,141,FALSE),"") -> 610.2273231 | C27: 0.2847084418 | D27: =IF($B$4<>"",VLOOKUP($J$1,Evolutions!$E:$N,7,FALSE),"") -> -0.02092686767 | F27: Surveillance continue: Personnel soignant | G27: =IF(B4<>"",VLOOKUP(B4,'Coûts décomposés'!A:FK,16,FALSE),"") -> 1.623940106 | K27: 01C102 | L27: Pose d'un stimulateur médullaire, niveau 2
A28: Logistique Médicale | B28: =IF(B4<>"",VLOOKUP(B4,'Coûts décomposés'!A:FK,159,FALSE),"") -> 78.346184 | C28: 0.036553296 | D28: =IF($B$4<>"",VLOOKUP($J$1,Evolutions!$E:$N,9,FALSE),"") -> -0.05163627119 | F28: Surveillance continue: Personnel autre | G28: =IF(B4<>"",VLOOKUP(B4,'Coûts décomposés'!A:FK,14,FALSE),"") -> 0.1195437476 | K28: 01C103 | L28: Pose d'un stimulateur médullaire, niveau 3
A29: Logistique générale | B29: =IF(B4<>"",VLOOKUP(B4,'Coûts décomposés'!A:FK,153,FALSE),"") -> 360.7176871 | C29: 0.1682969063 | D29: =IF($B$4<>"",VLOOKUP($J$1,Evolutions!$E:$N,8,FALSE),"") -> -0.04800945472 | K29: 01C104 | L29: Pose d'un stimulateur médullaire, niveau 4
A30: Charges directes | B30: =IF(B4<>"",VLOOKUP(B4,'Coûts décomposés'!A:FW,176,FALSE),"") -> 379.0898005 | C30: 0.1768686231 | D30: =IF($B$4<>"",VLOOKUP($J$1,Evolutions!$E:$N,10,FALSE),"") -> -0.0670525515 | F30: Médico technique: anesthésie | G30: =IF(B4<>"",VLOOKUP(B4,'Coûts décomposés'!A:FK,36,FALSE),"") -> 242.1398283 | H30: =IF(C7<>"",IF(B27<>0,(G30+G31+G32+G33)/B27,""),"") -> 0.947098382 | K30: 01C10J | L30: Pose d'un stimulateur médullaire, en ambulatoire
F31: Médico technique: bloc | G31: =IF(B4<>"",VLOOKUP(B4,'Coûts décomposés'!A:FK,42,FALSE),"") -> 278.4452078 | K31: 01C111 | L31: Craniotomies pour tumeurs, âge inférieur à 18 ans, niveau 1
F32: Médico technique: laboratoire | G32: =IF(B4<>"",VLOOKUP(B4,'Coûts décomposés'!A:FK,79,FALSE)+VLOOKUP(B4,'Coûts décomposés'!A:FK,85,FALSE)+VLOOKUP(B4,'Coûts décomposés'!A:FK,91,FALSE),"") -> 33.9930421 | K32: 01C112 | L32: Craniotomies pour tumeurs, âge inférieur à 18 ans, niveau 2
F33: Médico technique: imagerie | G33: =IF(B4<>"",VLOOKUP(B4,'Coûts décomposés'!A:FK,67,FALSE),"") -> 23.36723214 | K33: 01C113 | L33: Craniotomies pour tumeurs, âge inférieur à 18 ans, niveau 3
K34: 01C114 | L34: Craniotomies pour tumeurs, âge inférieur à 18 ans, niveau 4
F35: Logistique générale: Blanchisserie | G35: =IF(B4<>"",VLOOKUP(B4,'Coûts décomposés'!A:FK,142,FALSE),"") -> 20.39965981 | H35: =IF(C7<>"",IF(B29<>0,(G35+G36)/B29,""),"") -> 0.1975020867 | K35: 01C121 | L35: Craniotomies pour affections non tumorales, âge inférieur à 18 ans, niveau 1
F36: Logistique générale: Restauration | G36: =IF(B4<>"",VLOOKUP(B4,'Coûts décomposés'!A:FK,143,FALSE),"") -> 50.84283612 | K36: 01C122 | L36: Craniotomies pour affections non tumorales, âge inférieur à 18 ans, niveau 2
K37: 01C123 | L37: Craniotomies pour affections non tumorales, âge inférieur à 18 ans, niveau 3
A38: Données de coûts: ENCC ex DG 2012 | F38: Charges directes: Spécialités pharmaceutiques facturables en sus | G38: =IF(B4<>"",VLOOKUP(B4,'Coûts décomposés'!A:FK,166,FALSE),"") -> 27.30157933 | H38: =IF(C7<>"",IF(B30<>0,(G38+G39)/B30,""),"") -> 0.1222476447 | K38: 01C124 | L38: Craniotomies pour affections non tumorales, âge inférieur à 18 ans, niveau 4
F39: Charges directes: DMI facturables en sus | G39: =IF(B4<>"",VLOOKUP(B4,'Coûts décomposés'!A:FK,162,FALSE),"") -> 19.04125591 | K39: 01C141 | L39: Libérations de nerfs superficiels à l'exception du médian au canal carpien, niveau 1
K40: 01C142 | L40: Libérations de nerfs superficiels à l'exception du médian au canal carpien, niveau 2
K41: 01C143 | L41: Libérations de nerfs superficiels à l'exception du médian au canal carpien, niveau 3
K42: 01C14J | L42: Libérations de nerfs superficiels à l'exception du médian au canal carpien, en ambulatoire
K43: 01C151 | L43: Libérations du médian au canal carpien, niveau 1
K44: 01C152 | L44: Libérations du médian au canal carpien, niveau 2
K45: 01C153 | L45: Libérations du médian au canal carpien, niveau 3
K46: 01C154 | L46: Libérations du médian au canal carpien, niveau 4
K47: 01C15J | L47: Libérations du médian au canal carpien, en ambulatoire
K48: 01K021 | L48: Autres embolisations intracrâniennes et médullaires, niveau 1
K49: 01K022 | L49: Autres embolisations intracrâniennes et médullaires, niveau 2
K50: 01K023 | L50: Autres embolisations intracrâniennes et médullaires, niveau 3
K51: 01K024 | L51: Autres embolisations intracrâniennes et médullaires, niveau 4
K52: 01K031 | L52: Autres actes thérapeutiques par voie vasculaire du système nerveux, niveau 1
K53: 01K032 | L53: Autres actes thérapeutiques par voie vasculaire du système nerveux, niveau 2
K54: 01K033 | L54: Autres actes thérapeutiques par voie vasculaire du système nerveux, niveau 3
K55: 01K034 | L55: Autres actes thérapeutiques par voie vasculaire du système nerveux, niveau 4
K56: 01K04J | L56: Injections de toxine botulique, en ambulatoire
K57: 01K05J | L57: Séjours pour douleurs chroniques rebelles comprenant un bloc ou une infiltration, en ambulatoire
K58: 01K06J | L58: Affections du système nerveux sans acte opératoire avec anesthésie, en ambulatoire
K59: 01K071 | L59: Embolisations intracrâniennes et médullaires pour hémorragie, niveau 1
K60: 01K072 | L60: Embolisations intracrâniennes et médullaires pour hémorragie, niveau 2
K61: 01K073 | L61: Embolisations intracrâniennes et médullaires pour hémorragie, niveau 3
K62: 01K074 | L62: Embolisations intracrâniennes et médullaires pour hémorragie, niveau 4
K63: 01M041 | L63: Méningites virales, niveau 1
K64: 01M042 | L64: Méningites virales, niveau 2
K65: 01M043 | L65: Méningites virales, niveau 3
K66: 01M044 | L66: Méningites virales, niveau 4
K67: 01M04T | L67: Méningites virales, très courte durée
K68: 01M051 | L68: Infections du système nerveux à l'exception des méningites virales, niveau 1
K69: 01M052 | L69: Infections du système nerveux à l'exception des méningites virales, niveau 2
K70: 01M053 | L70: Infections du système nerveux à l'exception des méningites virales, niveau 3
K71: 01M054 | L71: Infections du système nerveux à l'exception des méningites virales, niveau 4
K72: 01M05T | L72: Infections du système nerveux à l'exception des méningites virales, très courte durée
K73: 01M071 | L73: Maladies dégénératives du système nerveux, âge supérieur à 79 ans, niveau 1
K74: 01M072 | L74: Maladies dégénératives du système nerveux, âge supérieur à 79 ans, niveau 2
K75: 01M073 | L75: Maladies dégénératives du système nerveux, âge supérieur à 79 ans, niveau 3
K76: 01M074 | L76: Maladies dégénératives du système nerveux, âge supérieur à 79 ans, niveau 4
K77: 01M07T | L77: Maladies dégénératives du système nerveux, âge supérieur à 79 ans, très courte durée
K78: 01M081 | L78: Maladies dégénératives du système nerveux, âge inférieur à 80 ans, niveau 1
K79: 01M082 | L79: Maladies dégénératives du système nerveux, âge inférieur à 80 ans, niveau 2
K80: 01M083 | L80: Maladies dégénératives du système nerveux, âge inférieur à 80 ans, niveau 3
K81: 01M084 | L81: Maladies dégénératives du système nerveux, âge inférieur à 80 ans, niveau 4
K82: 01M08T | L82: Maladies dégénératives du système nerveux, âge inférieur à 80 ans, très courte durée
K83: 01M091 | L83: Affections et lésions du rachis et de la moelle, niveau 1
K84: 01M092 | L84: Affections et lésions du rachis et de la moelle, niveau 2
K85: 01M093 | L85: Affections et lésions du rachis et de la moelle, niveau 3
K86: 01M094 | L86: Affections et lésions du rachis et de la moelle, niveau 4
K87: 01M09T | L87: Affections et lésions du rachis et de la moelle, très courte durée
K88: 01M101 | L88: Autres affections cérébrovasculaires, niveau 1
K89: 01M102 | L89: Autres affections cérébrovasculaires, niveau 2
K90: 01M103 | L90: Autres affections cérébrovasculaires, niveau 3
K91: 01M104 | L91: Autres affections cérébrovasculaires, niveau 4
K92: 01M10T | L92: Autres affections cérébrovasculaires, très courte durée
K93: 01M111 | L93: Affections des nerfs crâniens et rachidiens, niveau 1
K94: 01M112 | L94: Affections des nerfs crâniens et rachidiens, niveau 2
K95: 01M113 | L95: Affections des nerfs crâniens et rachidiens, niveau 3
K96: 01M114 | L96: Affections des nerfs crâniens et rachidiens, niveau 4
K97: 01M11T | L97: Affections des nerfs crâniens et rachidiens, très courte durée
K98: 01M121 | L98: Autres affections du système nerveux, niveau 1
K99: 01M122 | L99: Autres affections du système nerveux, niveau 2
K100: 01M123 | L100: Autres affections du système nerveux, niveau 3
K101: 01M124 | L101: Autres affections du système nerveux, niveau 4
K102: 01M12T | L102: Autres affections du système nerveux, très courte durée
K103: 01M131 | L103: Troubles de la conscience et comas d'origine non traumatique, niveau 1
K104: 01M132 | L104: Troubles de la conscience et comas d'origine non traumatique, niveau 2
K105: 01M133 | L105: Troubles de la conscience et comas d'origine non traumatique, niveau 3
K106: 01M134 | L106: Troubles de la conscience et comas d'origine non traumatique, niveau 4
K107: 01M151 | L107: Accidents ischémiques transitoires et occlusions des artères précérébrales, âge supérieur à 79 ans, niveau 1
K108: 01M152 | L108: Accidents ischémiques transitoires et occlusions des artères précérébrales, âge supérieur à 79 ans, niveau 2
K109: 01M153 | L109: Accidents ischémiques transitoires et occlusions des artères précérébrales, âge supérieur à 79 ans, niveau 3
K110: 01M154 | L110: Accidents ischémiques transitoires et occlusions des artères précérébrales, âge supérieur à 79 ans, niveau 4
K111: 01M15T | L111: Accidents ischémiques transitoires et occlusions des artères précérébrales, âge supérieur à 79 ans, très courte durée
K112: 01M161 | L112: Accidents ischémiques transitoires et occlusions des artères précérébrales, âge inférieur à 80 ans, niveau 1
K113: 01M162 | L113: Accidents ischémiques transitoires et occlusions des artères précérébrales, âge inférieur à 80 ans, niveau 2
K114: 01M163 | L114: Accidents ischémiques transitoires et occlusions des artères précérébrales, âge inférieur à 80 ans, niveau 3
K115: 01M164 | L115: Accidents ischémiques transitoires et occlusions des artères précérébrales, âge inférieur à 80 ans, niveau 4
K116: 01M16T | L116: Accidents ischémiques transitoires et occlusions des artères précérébrales, âge inférieur à 80 ans, très courte durée
K117: 01M171 | L117: Sclérose en plaques et ataxie cérébelleuse, niveau 1
K118: 01M172 | L118: Sclérose en plaques et ataxie cérébelleuse, niveau 2
K119: 01M173 | L119: Sclérose en plaques et ataxie cérébelleuse, niveau 3
K120: 01M174 | L120: Sclérose en plaques et ataxie cérébelleuse, niveau 4
K121: 01M17T | L121: Sclérose en plaques et ataxie cérébelleuse, très courte durée
K122: 01M181 | L122: Lésions traumatiques intracrâniennes sévères, niveau 1
K123: 01M182 | L123: Lésions traumatiques intracrâniennes sévères, niveau 2
K124: 01M183 | L124: Lésions traumatiques intracrâniennes sévères, niveau 3
K125: 01M184 | L125: Lésions traumatiques intracrâniennes sévères, niveau 4
K126: 01M18T | L126: Lésions traumatiques intracrâniennes sévères, très courte durée
K127: 01M191 | L127: Autres lésions traumatiques intracrâniennes, sauf commotions, niveau 1
K128: 01M192 | L128: Autres lésions traumatiques intracrâniennes, sauf commotions, niveau 2
K129: 01M193 | L129: Autres lésions traumatiques intracrâniennes, sauf commotions, niveau 3
K130: 01M194 | L130: Autres lésions traumatiques intracrâniennes, sauf commotions, niveau 4
K131: 01M201 | L131: Commotions cérébrales, niveau 1
K132: 01M202 | L132: Commotions cérébrales, niveau 2
K133: 01M203 | L133: Commotions cérébrales, niveau 3
K134: 01M204 | L134: Commotions cérébrales, niveau 4
K135: 01M211 | L135: Douleurs chroniques rebelles, niveau 1
K136: 01M212 | L136: Douleurs chroniques rebelles, niveau 2
K137: 01M213 | L137: Douleurs chroniques rebelles, niveau 3
K138: 01M214 | L138: Douleurs chroniques rebelles, niveau 4
K139: 01M21T | L139: Douleurs chroniques rebelles, très courte durée
K140: 01M221 | L140: Migraines et céphalées, niveau 1
K141: 01M222 | L141: Migraines et céphalées, niveau 2
K142: 01M223 | L142: Migraines et céphalées, niveau 3
K143: 01M224 | L143: Migraines et céphalées, niveau 4
K144: 01M22T | L144: Migraines et céphalées, très courte durée
K145: 01M231 | L145: Convulsions hyperthermiques, niveau 1
K146: 01M232 | L146: Convulsions hyperthermiques, niveau 2
K147: 01M233 | L147: Convulsions hyperthermiques, niveau 3
K148: 01M241 | L148: Epilepsie, âge inférieur à 18 ans, niveau 1
K149: 01M242 | L149: Epilepsie, âge inférieur à 18 ans, niveau 2
K150: 01M243 | L150: Epilepsie, âge inférieur à 18 ans, niveau 3
K151: 01M244 | L151: Epilepsie, âge inférieur à 18 ans, niveau 4
K152: 01M24T | L152: Epilepsie, âge inférieur à 18 ans, très courte durée
K153: 01M251 | L153: Epilepsie, âge supérieur à 17 ans, niveau 1
K154: 01M252 | L154: Epilepsie, âge supérieur à 17 ans, niveau 2
K155: 01M253 | L155: Epilepsie, âge supérieur à 17 ans, niveau 3
K156: 01M254 | L156: Epilepsie, âge supérieur à 17 ans, niveau 4
K157: 01M25T | L157: Epilepsie, âge supérieur à 17 ans, très courte durée
K158: 01M261 | L158: Tumeurs malignes du système nerveux, niveau 1
K159: 01M262 | L159: Tumeurs malignes du système nerveux, niveau 2
K160: 01M263 | L160: Tumeurs malignes du système nerveux, niveau 3
K161: 01M264 | L161: Tumeurs malignes du système nerveux, niveau 4
K162: 01M26T | L162: Tumeurs malignes du système nerveux, très courte durée
K163: 01M271 | L163: Autres tumeurs du système nerveux, niveau 1
K164: 01M272 | L164: Autres tumeurs du système nerveux, niveau 2
K165: 01M273 | L165: Autres tumeurs du système nerveux, niveau 3
K166: 01M274 | L166: Autres tumeurs du système nerveux, niveau 4
K167: 01M27T | L167: Autres tumeurs du système nerveux, très courte durée
K168: 01M281 | L168: Hydrocéphalies, niveau 1
K169: 01M282 | L169: Hydrocéphalies, niveau 2
K170: 01M283 | L170: Hydrocéphalies, niveau 3
K171: 01M284 | L171: Hydrocéphalies, niveau 4
K172: 01M28T | L172: Hydrocéphalies, très courte durée
K173: 01M291 | L173: Anévrysmes cérébraux, niveau 1
K174: 01M292 | L174: Anévrysmes cérébraux, niveau 2
K175: 01M293 | L175: Anévrysmes cérébraux, niveau 3
K176: 01M294 | L176: Anévrysmes cérébraux, niveau 4
K177: 01M301 | L177: Accidents vasculaires intracérébraux non transitoires, niveau 1
K178: 01M302 | L178: Accidents vasculaires intracérébraux non transitoires, niveau 2
K179: 01M303 | L179: Accidents vasculaires intracérébraux non transitoires, niveau 3
K180: 01M304 | L180: Accidents vasculaires intracérébraux non transitoires, niveau 4
K181: 01M30T | L181: Transferts et autres séjours courts pour accidents vasculaires intracérébraux non transitoires
K182: 01M311 | L182: Autres accidents vasculaires cérébraux non transitoires, niveau 1
K183: 01M312 | L183: Autres accidents vasculaires cérébraux non transitoires, niveau 2
K184: 01M313 | L184: Autres accidents vasculaires cérébraux non transitoires, niveau 3
K185: 01M314 | L185: Autres accidents vasculaires cérébraux non transitoires, niveau 4
K186: 01M31T | L186: Transferts et autres séjours courts pour autres accidents vasculaires cérébraux non transitoires
K187: 01M32Z | L187: Explorations et surveillance pour affections du système nerveux
K188: 01M331 | L188: Troubles du sommeil, niveau 1
K189: 01M332 | L189: Troubles du sommeil, niveau 2
K190: 01M333 | L190: Troubles du sommeil, niveau 3
K191: 01M334 | L191: Troubles du sommeil, niveau 4
K192: 01M34T | L192: Anomalies de la démarche d'origine neurologique, très courte durée
K193: 01M34Z | L193: Anomalies de la démarche d'origine neurologique
K194: 01M35T | L194: Symptômes et autres recours aux soins de la CMD 01, très courte durée
K195: 01M35Z | L195: Symptômes et autres recours aux soins de la CMD 01
K196: 01M36E | L196: Accidents vasculaires cérébraux non transitoires avec décès : séjours de moins de 2 jours
K197: 01M37E | L197: Autres affections de la CMD 01 avec décès : séjours de moins de 2 jours
K198: 01M381 | L198: Autres affections neurologiques concernant majoritairement la petite enfance, niveau 1
K199: 01M382 | L199: Autres affections neurologiques concernant majoritairement la petite enfance, niveau 2
K200: 01M383 | L200: Autres affections neurologiques concernant majoritairement la petite enfance, niveau 3
... 2317 more rows

Sheet synthèse GHM (2) (hidden)
A1: Fiche de synthèse GHM | J1: =B4 -> 10M071 | K1: Craniotomies pour traumatisme, âge supérieur à 17 ans, niveau 1 | L1: 01C031
K2: Craniotomies pour traumatisme, âge supérieur à 17 ans, niveau 2 | L2: 01C032
A3: Identification du GHM | K3: Craniotomies pour traumatisme, âge supérieur à 17 ans, niveau 3 | L3: 01C033
A4: GHM | B4: =IF(B5<>"",VLOOKUP(B5,K:L,2,FALSE),"") -> 10M071 | K4: Craniotomies pour traumatisme, âge supérieur à 17 ans, niveau 4 | L4: 01C034
A5: Libellé | B5: Autres troubles endocriniens, niveau 1 | K5: Craniotomies en dehors de tout traumatisme, âge supérieur à 17 ans, niveau 1 | L5: 01C041
C6: 2012 | D6: 2011 | E6: Evolution | K6: Craniotomies en dehors de tout traumatisme, âge supérieur à 17 ans, niveau 2 | L6: 01C042
A7: Coût moyen du séjour | C7: =IF($B$4<>"",VLOOKUP($B$4,'Coûts décomposés'!$A:$FK,5,FALSE),"") -> 2075.777861 | D7: =IF($B$4<>"",IF(ISNA(VLOOKUP($B$4,'Coûts 11 décomposés gds postes'!$E:$W,9,FALSE)),"NC",VLOOKUP($B$4,'Coûts 11 décomposés gds postes'!$E:$W,9,FALSE)),"") -> 1957.573976 | E7: =IF($B$4<>"",IF(ISNA(VLOOKUP($J$1,Evolutions!$E:$N,2,FALSE)),"NC",VLOOKUP($J$1,Evolutions!$E:$N,2,FALSE)),"") -> 0.06038284441 | K7: Craniotomies en dehors de tout traumatisme, âge supérieur à 17 ans, niveau 3 | L7: 01C043
K8: Craniotomies en dehors de tout traumatisme, âge supérieur à 17 ans, niveau 4 | L8: 01C044
A9: Nombre de séjours ENC | C9: =IF($B$4<>"",VLOOKUP($B$4,'Coûts décomposés'!$A:$FK,4,FALSE),"") -> 1328 | D9: =IF($B$4<>"",IF(ISNA(VLOOKUP($B$4,'Coûts 11 décomposés gds postes'!$E:$W,4,FALSE)),"NC",VLOOKUP($B$4,'Coûts 11 décomposés gds postes'!$E:$W,4,FALSE)),"") -> 1587 | E9: =IF($B$4<>"",IF(D9<>"",IF(D9<>"NC",IF(C9<>"",C9/D9-1,""),""),""),"") -> -0.1632010082 | G9: Coût moyen 2012 | H9: Part des postes détaillés dans le sous poste | K9: Interventions sur le rachis et la moelle pour des affections neurologiques, niveau 1 | L9: 01C051
K10: Interventions sur le rachis et la moelle pour des affections neurologiques, niveau 2 | L10: 01C052
A11: Intervalle de confiance | B11: Borne Basse | C11: =IF($B$4<>"",VLOOKUP($B$4,'Intervalle de confiance'!A:M,12,FALSE),"") -> 1866.080849 | D11: =IF($B$4<>"",IF(ISNA(VLOOKUP($B$4,'Coûts 11 décomposés gds postes'!$E:$W,7,FALSE)),"NC",VLOOKUP($B$4,'Coûts 11 décomposés gds postes'!$E:$W,7,FALSE)),"") -> 1799.971071 | K11: Interventions sur le rachis et la moelle pour des affections neurologiques, niveau 3 | L11: 01C053
B12: Borne Haute | C12: =IF($B$4<>"",VLOOKUP($B$4,'Intervalle de confiance'!A:M,13,FALSE),"") -> 2285.474873 | D12: =IF($B$4<>"",IF(ISNA(VLOOKUP($B$4,'Coûts 11 décomposés gds postes'!$E:$W,8,FALSE)),"NC",VLOOKUP($B$4,'Coûts 11 décomposés gds postes'!$E:$W,8,FALSE)),"") -> 2115.176882 | K12: Interventions sur le rachis et la moelle pour des affections neurologiques, niveau 4 | L12: 01C054
K13: Interventions sur le système vasculaire précérébral, niveau 1 | L13: 01C061
F14: Cliniques: Personnel médical | G14: =IF(B4<>"",VLOOKUP(B4,'Coûts décomposés'!A:FK,9,FALSE),"") -> 188.8470993 | H14: =IF($C$7<>"",IF(B23<>0,(G14+G15+G16)/B23,""),"") -> 0.9927239622 | K14: Interventions sur le système vasculaire précérébral, niveau 2 | L14: 01C062
F15: Cliniques: Personnel soignant | G15: =IF(B4<>"",VLOOKUP(B4,'Coûts décomposés'!A:FK,10,FALSE),"") -> 546.9118183 | K15: Interventions sur le système vasculaire précérébral, niveau 3 | L15: 01C063
F16: Cliniques: Personnel autre | G16: =IF(B4<>"",VLOOKUP(B4,'Coûts décomposés'!A:FK,8,FALSE),"") -> 175.5837848 | K16: Interventions sur le système vasculaire précérébral, niveau 4 | L16: 01C064
K17: Interventions sur les nerfs crâniens ou périphériques et autres interventions sur le système nerveux, niveau 1 | L17: 01C081
F18: Réanimation: Personnel médical | G18: =IF(B4<>"",VLOOKUP(B4,'Coûts décomposés'!A:FK,27,FALSE),"") -> 0.2731692307 | H18: =IF(C7<>"",IF(B24<>0,(G18+G19+G20)/B24,""),"") -> 0.9187061134 | K18: Interventions sur les nerfs crâniens ou périphériques et autres interventions sur le système nerveux, niveau 2 | L18: 01C082
F19: Réanimation: Personnel soignant | G19: =IF(B4<>"",VLOOKUP(B4,'Coûts décomposés'!A:FK,28,FALSE),"") -> 1.184232881 | K19: Interventions sur les nerfs crâniens ou périphériques et autres interventions sur le système nerveux, niveau 3 | L19: 01C083
F20: Réanimation: Personnel autre | G20: =IF(B4<>"",VLOOKUP(B4,'Coûts décomposés'!A:FK,26,FALSE),"") -> 0.1506462958 | K20: Interventions sur les nerfs crâniens ou périphériques et autres interventions sur le système nerveux, niveau 4 | L20: 01C084
K21: Interventions sur les nerfs crâniens ou périphériques et autres interventions sur le système nerveux, en ambulatoire | L21: 01C08J
B22: Coût moyen 2012 | C22: Poids dans le coût du GHM | D22: Evolution 2012/2011 | F22: Soins intensifs: Personnel médical | G22: =IF(B4<>"",VLOOKUP(B4,'Coûts décomposés'!A:FK,21,FALSE),"") -> 0.1435816561 | H22: =IF(C7<>"",IF(B25<>0,(G22+G23+G24)/B25,""),"") -> 0.9410594425 | K22: Pose d'un stimulateur cérébral, niveau 1 | L22: 01C091
A23: activités cliniques MCO (avec hébergement, hors Réa, SI, SC) | B23: =IF(B4<>"",VLOOKUP(B4,'Coûts décomposés'!A:FK,11,FALSE),"") -> 918.0222671 | C23: =IF($C$7<>"",B23/$C$7,"") -> 0.4422545804 | D23: =IF($B$4<>"",VLOOKUP($J$1,Evolutions!$E:$N,3,FALSE),"") -> 0.05846300808 | F23: Soins intensifs: Personnel soignant | G23: =IF(B4<>"",VLOOKUP(B4,'Coûts décomposés'!A:FK,22,FALSE),"") -> 0.6111406281 | K23: Pose d'un stimulateur cérébral, niveau 2 | L23: 01C092
A24: Activité de réanimation | B24: =IF(B4<>"",VLOOKUP(B4,'Coûts décomposés'!A:FK,29,FALSE),"") -> 1.75034038 | C24: =IF($C$7<>"",B24/$C$7,"") -> 0.0008432214316 | D24: =IF($B$4<>"",VLOOKUP($J$1,Evolutions!$E:$N,6,FALSE),"") -> 2.409004774 | F24: Soins intensifs: Personnel autre | G24: =IF(B4<>"",VLOOKUP(B4,'Coûts décomposés'!A:FK,20,FALSE),"") -> 0.1127856959 | K24: Pose d'un stimulateur cérébral, niveau 3 | L24: 01C093
A25: Activité de soins intensifs | B25: =IF(B4<>"",VLOOKUP(B4,'Coûts décomposés'!A:FK,23,FALSE),"") -> 0.9218418528 | C25: 0.0004440946549 | D25: =IF($B$4<>"",VLOOKUP($J$1,Evolutions!$E:$N,5,FALSE),"") -> -0.6913166156 | K25: Pose d'un stimulateur cérébral, niveau 4 | L25: 01C094
A26: Activité de surveillance continue | B26: =IF(B4<>"",VLOOKUP(B4,'Coûts décomposés'!A:FK,17,FALSE),"") -> 61.1536677 | C26: 0.0294606031 | D26: =IF($B$4<>"",VLOOKUP($J$1,Evolutions!$E:$N,4,FALSE),"") -> 1.325078535 | F26: Surveillance continue: Personnel médical | G26: =IF(B4<>"",VLOOKUP(B4,'Coûts décomposés'!A:FK,15,FALSE),"") -> 12.2852415 | H26: =IF(C7<>"",IF(B26<>0,(G26+G27+G28)/B26,""),"") -> 0.9928456946 | K26: Pose d'un stimulateur médullaire, niveau 1 | L26: 01C101
A27: Activités Médico-techniques | B27: =IF(B4<>"",VLOOKUP(B4,'Coûts décomposés'!A:FK,141,FALSE),"") -> 335.6723888 | C27: 0.1617092055 | D27: =IF($B$4<>"",VLOOKUP($J$1,Evolutions!$E:$N,7,FALSE),"") -> 0.01717471179 | F27: Surveillance continue: Personnel soignant | G27: =IF(B4<>"",VLOOKUP(B4,'Coûts décomposés'!A:FK,16,FALSE),"") -> 36.80106528 | K27: Pose d'un stimulateur médullaire, niveau 2 | L27: 01C102
A28: Logistique Médicale | B28: =IF(B4<>"",VLOOKUP(B4,'Coûts décomposés'!A:FK,159,FALSE),"") -> 31.10869887 | C28: 0.01498652599 | D28: =IF($B$4<>"",VLOOKUP($J$1,Evolutions!$E:$N,9,FALSE),"") -> -0.1105154733 | F28: Surveillance continue: Personnel autre | G28: =IF(B4<>"",VLOOKUP(B4,'Coûts décomposés'!A:FK,14,FALSE),"") -> 11.62984891 | K28: Pose d'un stimulateur médullaire, niveau 3 | L28: 01C103
A29: Logistique générale | B29: =IF(B4<>"",VLOOKUP(B4,'Coûts décomposés'!A:FK,153,FALSE),"") -> 480.5183023 | C29: 0.2314883068 | D29: =IF($B$4<>"",VLOOKUP($J$1,Evolutions!$E:$N,8,FALSE),"") -> 0.01250227994 | K29: Pose d'un stimulateur médullaire, niveau 4 | L29: 01C104
A30: Charges directes | B30: =IF(B4<>"",VLOOKUP(B4,'Coûts décomposés'!A:FW,176,FALSE),"") -> 246.6303542 | C30: 0.1188134621 | D30: =IF($B$4<>"",VLOOKUP($J$1,Evolutions!$E:$N,10,FALSE),"") -> 0.1165168436 | F30: Médico technique: anesthésie | G30: =IF(B4<>"",VLOOKUP(B4,'Coûts décomposés'!A:FK,36,FALSE),"") -> 7.026470973 | H30: =IF(C7<>"",IF(B27<>0,(G30+G31+G32+G33)/B27,""),"") -> 0.7711470429 | K30: Pose d'un stimulateur médullaire, en ambulatoire | L30: 01C10J
F31: Médico technique: bloc | G31: =IF(B4<>"",VLOOKUP(B4,'Coûts décomposés'!A:FK,42,FALSE),"") -> 4.172649464 | K31: Craniotomies pour tumeurs, âge inférieur à 18 ans, niveau 1 | L31: 01C111
F32: Médico technique: laboratoire | G32: =IF(B4<>"",VLOOKUP(B4,'Coûts décomposés'!A:FK,79,FALSE)+VLOOKUP(B4,'Coûts décomposés'!A:FK,85,FALSE)+VLOOKUP(B4,'Coûts décomposés'!A:FK,91,FALSE),"") -> 152.2415724 | K32: Craniotomies pour tumeurs, âge inférieur à 18 ans, niveau 2 | L32: 01C112
F33: Médico technique: imagerie | G33: =IF(B4<>"",VLOOKUP(B4,'Coûts décomposés'!A:FK,67,FALSE),"") -> 95.41207717 | K33: Craniotomies pour tumeurs, âge inférieur à 18 ans, niveau 3 | L33: 01C113
K34: Craniotomies pour tumeurs, âge inférieur à 18 ans, niveau 4 | L34: 01C114
F35: Logistique générale: Blanchisserie | G35: =IF(B4<>"",VLOOKUP(B4,'Coûts décomposés'!A:FK,142,FALSE),"") -> 24.57224879 | H35: =IF(C7<>"",IF(B29<>0,(G35+G36)/B29,""),"") -> 0.1943405607 | K35: Craniotomies pour affections non tumorales, âge inférieur à 18 ans, niveau 1 | L35: 01C121
F36: Logistique générale: Restauration | G36: =IF(B4<>"",VLOOKUP(B4,'Coûts décomposés'!A:FK,143,FALSE),"") -> 68.81194749 | K36: Craniotomies pour affections non tumorales, âge inférieur à 18 ans, niveau 2 | L36: 01C122
K37: Craniotomies pour affections non tumorales, âge inférieur à 18 ans, niveau 3 | L37: 01C123
A38: Données de coûts: ENCC ex DG 2012 | F38: Charges directes: Spécialités pharmaceutiques facturables en sus | G38: =IF(B4<>"",VLOOKUP(B4,'Coûts décomposés'!A:FK,166,FALSE),"") -> 6.914338342 | H38: =IF(C7<>"",IF(B30<>0,(G38+G39)/B30,""),"") -> 0.03299110803 | K38: Craniotomies pour affections non tumorales, âge inférieur à 18 ans, niveau 4 | L38: 01C124
F39: Charges directes: DMI facturables en sus | G39: =IF(B4<>"",VLOOKUP(B4,'Coûts décomposés'!A:FK,162,FALSE),"") -> 1.222270316 | K39: Libérations de nerfs superficiels à l'exception du médian au canal carpien, niveau 1 | L39: 01C141
K40: Libérations de nerfs superficiels à l'exception du médian au canal carpien, niveau 2 | L40: 01C142
K41: Libérations de nerfs superficiels à l'exception du médian au canal carpien, niveau 3 | L41: 01C143
K42: Libérations de nerfs superficiels à l'exception du médian au canal carpien, en ambulatoire | L42: 01C14J
K43: Libérations du médian au canal carpien, niveau 1 | L43: 01C151
K44: Libérations du médian au canal carpien, niveau 2 | L44: 01C152
K45: Libérations du médian au canal carpien, niveau 3 | L45: 01C153
K46: Libérations du médian au canal carpien, niveau 4 | L46: 01C154
K47: Libérations du médian au canal carpien, en ambulatoire | L47: 01C15J
K48: Autres embolisations intracrâniennes et médullaires, niveau 1 | L48: 01K021
K49: Autres embolisations intracrâniennes et médullaires, niveau 2 | L49: 01K022
K50: Autres embolisations intracrâniennes et médullaires, niveau 3 | L50: 01K023
K51: Autres embolisations intracrâniennes et médullaires, niveau 4 | L51: 01K024
K52: Autres actes thérapeutiques par voie vasculaire du système nerveux, niveau 1 | L52: 01K031
K53: Autres actes thérapeutiques par voie vasculaire du système nerveux, niveau 2 | L53: 01K032
K54: Autres actes thérapeutiques par voie vasculaire du système nerveux, niveau 3 | L54: 01K033
K55: Autres actes thérapeutiques par voie vasculaire du système nerveux, niveau 4 | L55: 01K034
K56: Injections de toxine botulique, en ambulatoire | L56: 01K04J
K57: Séjours pour douleurs chroniques rebelles comprenant un bloc ou une infiltration, en ambulatoire | L57: 01K05J
K58: Affections du système nerveux sans acte opératoire avec anesthésie, en ambulatoire | L58: 01K06J
K59: Embolisations intracrâniennes et médullaires pour hémorragie, niveau 1 | L59: 01K071
K60: Embolisations intracrâniennes et médullaires pour hémorragie, niveau 2 | L60: 01K072
K61: Embolisations intracrâniennes et médullaires pour hémorragie, niveau 3 | L61: 01K073
K62: Embolisations intracrâniennes et médullaires pour hémorragie, niveau 4 | L62: 01K074
K63: Méningites virales, niveau 1 | L63: 01M041
K64: Méningites virales, niveau 2 | L64: 01M042
K65: Méningites virales, niveau 3 | L65: 01M043
K66: Méningites virales, niveau 4 | L66: 01M044
K67: Méningites virales, très courte durée | L67: 01M04T
K68: Infections du système nerveux à l'exception des méningites virales, niveau 1 | L68: 01M051
K69: Infections du système nerveux à l'exception des méningites virales, niveau 2 | L69: 01M052
K70: Infections du système nerveux à l'exception des méningites virales, niveau 3 | L70: 01M053
K71: Infections du système nerveux à l'exception des méningites virales, niveau 4 | L71: 01M054
K72: Infections du système nerveux à l'exception des méningites virales, très courte durée | L72: 01M05T
K73: Maladies dégénératives du système nerveux, âge supérieur à 79 ans, niveau 1 | L73: 01M071
K74: Maladies dégénératives du système nerveux, âge supérieur à 79 ans, niveau 2 | L74: 01M072
K75: Maladies dégénératives du système nerveux, âge supérieur à 79 ans, niveau 3 | L75: 01M073
K76: Maladies dégénératives du système nerveux, âge supérieur à 79 ans, niveau 4 | L76: 01M074
K77: Maladies dégénératives du système nerveux, âge supérieur à 79 ans, très courte durée | L77: 01M07T
K78: Maladies dégénératives du système nerveux, âge inférieur à 80 ans, niveau 1 | L78: 01M081
K79: Maladies dégénératives du système nerveux, âge inférieur à 80 ans, niveau 2 | L79: 01M082
K80: Maladies dégénératives du système nerveux, âge inférieur à 80 ans, niveau 3 | L80: 01M083
K81: Maladies dégénératives du système nerveux, âge inférieur à 80 ans, niveau 4 | L81: 01M084
K82: Maladies dégénératives du système nerveux, âge inférieur à 80 ans, très courte durée | L82: 01M08T
K83: Affections et lésions du rachis et de la moelle, niveau 1 | L83: 01M091
K84: Affections et lésions du rachis et de la moelle, niveau 2 | L84: 01M092
K85: Affections et lésions du rachis et de la moelle, niveau 3 | L85: 01M093
K86: Affections et lésions du rachis et de la moelle, niveau 4 | L86: 01M094
K87: Affections et lésions du rachis et de la moelle, très courte durée | L87: 01M09T
K88: Autres affections cérébrovasculaires, niveau 1 | L88: 01M101
K89: Autres affections cérébrovasculaires, niveau 2 | L89: 01M102
K90: Autres affections cérébrovasculaires, niveau 3 | L90: 01M103
K91: Autres affections cérébrovasculaires, niveau 4 | L91: 01M104
K92: Autres affections cérébrovasculaires, très courte durée | L92: 01M10T
K93: Affections des nerfs crâniens et rachidiens, niveau 1 | L93: 01M111
K94: Affections des nerfs crâniens et rachidiens, niveau 2 | L94: 01M112
K95: Affections des nerfs crâniens et rachidiens, niveau 3 | L95: 01M113
K96: Affections des nerfs crâniens et rachidiens, niveau 4 | L96: 01M114
K97: Affections des nerfs crâniens et rachidiens, très courte durée | L97: 01M11T
K98: Autres affections du système nerveux, niveau 1 | L98: 01M121
K99: Autres affections du système nerveux, niveau 2 | L99: 01M122
K100: Autres affections du système nerveux, niveau 3 | L100: 01M123
K101: Autres affections du système nerveux, niveau 4 | L101: 01M124
K102: Autres affections du système nerveux, très courte durée | L102: 01M12T
K103: Troubles de la conscience et comas d'origine non traumatique, niveau 1 | L103: 01M131
K104: Troubles de la conscience et comas d'origine non traumatique, niveau 2 | L104: 01M132
K105: Troubles de la conscience et comas d'origine non traumatique, niveau 3 | L105: 01M133
K106: Troubles de la conscience et comas d'origine non traumatique, niveau 4 | L106: 01M134
K107: Accidents ischémiques transitoires et occlusions des artères précérébrales, âge supérieur à 79 ans, niveau 1 | L107: 01M151
K108: Accidents ischémiques transitoires et occlusions des artères précérébrales, âge supérieur à 79 ans, niveau 2 | L108: 01M152
K109: Accidents ischémiques transitoires et occlusions des artères précérébrales, âge supérieur à 79 ans, niveau 3 | L109: 01M153
K110: Accidents ischémiques transitoires et occlusions des artères précérébrales, âge supérieur à 79 ans, niveau 4 | L110: 01M154
K111: Accidents ischémiques transitoires et occlusions des artères précérébrales, âge supérieur à 79 ans, très courte durée | L111: 01M15T
K112: Accidents ischémiques transitoires et occlusions des artères précérébrales, âge inférieur à 80 ans, niveau 1 | L112: 01M161
K113: Accidents ischémiques transitoires et occlusions des artères précérébrales, âge inférieur à 80 ans, niveau 2 | L113: 01M162
K114: Accidents ischémiques transitoires et occlusions des artères précérébrales, âge inférieur à 80 ans, niveau 3 | L114: 01M163
K115: Accidents ischémiques transitoires et occlusions des artères précérébrales, âge inférieur à 80 ans, niveau 4 | L115: 01M164
K116: Accidents ischémiques transitoires et occlusions des artères précérébrales, âge inférieur à 80 ans, très courte durée | L116: 01M16T
K117: Sclérose en plaques et ataxie cérébelleuse, niveau 1 | L117: 01M171
K118: Sclérose en plaques et ataxie cérébelleuse, niveau 2 | L118: 01M172
K119: Sclérose en plaques et ataxie cérébelleuse, niveau 3 | L119: 01M173
K120: Sclérose en plaques et ataxie cérébelleuse, niveau 4 | L120: 01M174
K121: Sclérose en plaques et ataxie cérébelleuse, très courte durée | L121: 01M17T
K122: Lésions traumatiques intracrâniennes sévères, niveau 1 | L122: 01M181
K123: Lésions traumatiques intracrâniennes sévères, niveau 2 | L123: 01M182
K124: Lésions traumatiques intracrâniennes sévères, niveau 3 | L124: 01M183
K125: Lésions traumatiques intracrâniennes sévères, niveau 4 | L125: 01M184
K126: Lésions traumatiques intracrâniennes sévères, très courte durée | L126: 01M18T
K127: Autres lésions traumatiques intracrâniennes, sauf commotions, niveau 1 | L127: 01M191
K128: Autres lésions traumatiques intracrâniennes, sauf commotions, niveau 2 | L128: 01M192
K129: Autres lésions traumatiques intracrâniennes, sauf commotions, niveau 3 | L129: 01M193
K130: Autres lésions traumatiques intracrâniennes, sauf commotions, niveau 4 | L130: 01M194
K131: Commotions cérébrales, niveau 1 | L131: 01M201
K132: Commotions cérébrales, niveau 2 | L132: 01M202
K133: Commotions cérébrales, niveau 3 | L133: 01M203
K134: Commotions cérébrales, niveau 4 | L134: 01M204
K135: Douleurs chroniques rebelles, niveau 1 | L135: 01M211
K136: Douleurs chroniques rebelles, niveau 2 | L136: 01M212
K137: Douleurs chroniques rebelles, niveau 3 | L137: 01M213
K138: Douleurs chroniques rebelles, niveau 4 | L138: 01M214
K139: Douleurs chroniques rebelles, très courte durée | L139: 01M21T
K140: Migraines et céphalées, niveau 1 | L140: 01M221
K141: Migraines et céphalées, niveau 2 | L141: 01M222
K142: Migraines et céphalées, niveau 3 | L142: 01M223
K143: Migraines et céphalées, niveau 4 | L143: 01M224
K144: Migraines et céphalées, très courte durée | L144: 01M22T
K145: Convulsions hyperthermiques, niveau 1 | L145: 01M231
K146: Convulsions hyperthermiques, niveau 2 | L146: 01M232
K147: Convulsions hyperthermiques, niveau 3 | L147: 01M233
K148: Epilepsie, âge inférieur à 18 ans, niveau 1 | L148: 01M241
K149: Epilepsie, âge inférieur à 18 ans, niveau 2 | L149: 01M242
K150: Epilepsie, âge inférieur à 18 ans, niveau 3 | L150: 01M243
K151: Epilepsie, âge inférieur à 18 ans, niveau 4 | L151: 01M244
K152: Epilepsie, âge inférieur à 18 ans, très courte durée | L152: 01M24T
K153: Epilepsie, âge supérieur à 17 ans, niveau 1 | L153: 01M251
K154: Epilepsie, âge supérieur à 17 ans, niveau 2 | L154: 01M252
K155: Epilepsie, âge supérieur à 17 ans, niveau 3 | L155: 01M253
K156: Epilepsie, âge supérieur à 17 ans, niveau 4 | L156: 01M254
K157: Epilepsie, âge supérieur à 17 ans, très courte durée | L157: 01M25T
K158: Tumeurs malignes du système nerveux, niveau 1 | L158: 01M261
K159: Tumeurs malignes du système nerveux, niveau 2 | L159: 01M262
K160: Tumeurs malignes du système nerveux, niveau 3 | L160: 01M263
K161: Tumeurs malignes du système nerveux, niveau 4 | L161: 01M264
K162: Tumeurs malignes du système nerveux, très courte durée | L162: 01M26T
K163: Autres tumeurs du système nerveux, niveau 1 | L163: 01M271
K164: Autres tumeurs du système nerveux, niveau 2 | L164: 01M272
K165: Autres tumeurs du système nerveux, niveau 3 | L165: 01M273
K166: Autres tumeurs du système nerveux, niveau 4 | L166: 01M274
K167: Autres tumeurs du système nerveux, très courte durée | L167: 01M27T
K168: Hydrocéphalies, niveau 1 | L168: 01M281
K169: Hydrocéphalies, niveau 2 | L169: 01M282
K170: Hydrocéphalies, niveau 3 | L170: 01M283
K171: Hydrocéphalies, niveau 4 | L171: 01M284
K172: Hydrocéphalies, très courte durée | L172: 01M28T
K173: Anévrysmes cérébraux, niveau 1 | L173: 01M291
K174: Anévrysmes cérébraux, niveau 2 | L174: 01M292
K175: Anévrysmes cérébraux, niveau 3 | L175: 01M293
K176: Anévrysmes cérébraux, niveau 4 | L176: 01M294
K177: Accidents vasculaires intracérébraux non transitoires, niveau 1 | L177: 01M301
K178: Accidents vasculaires intracérébraux non transitoires, niveau 2 | L178: 01M302
K179: Accidents vasculaires intracérébraux non transitoires, niveau 3 | L179: 01M303
K180: Accidents vasculaires intracérébraux non transitoires, niveau 4 | L180: 01M304
K181: Transferts et autres séjours courts pour accidents vasculaires intracérébraux non transitoires | L181: 01M30T
K182: Autres accidents vasculaires cérébraux non transitoires, niveau 1 | L182: 01M311
K183: Autres accidents vasculaires cérébraux non transitoires, niveau 2 | L183: 01M312
K184: Autres accidents vasculaires cérébraux non transitoires, niveau 3 | L184: 01M313
K185: Autres accidents vasculaires cérébraux non transitoires, niveau 4 | L185: 01M314
K186: Transferts et autres séjours courts pour autres accidents vasculaires cérébraux non transitoires | L186: 01M31T
K187: Explorations et surveillance pour affections du système nerveux | L187: 01M32Z
K188: Troubles du sommeil, niveau 1 | L188: 01M331
K189: Troubles du sommeil, niveau 2 | L189: 01M332
K190: Troubles du sommeil, niveau 3 | L190: 01M333
K191: Troubles du sommeil, niveau 4 | L191: 01M334
K192: Anomalies de la démarche d'origine neurologique, très courte durée | L192: 01M34T
K193: Anomalies de la démarche d'origine neurologique | L193: 01M34Z
K194: Symptômes et autres recours aux soins de la CMD 01, très courte durée | L194: 01M35T
K195: Symptômes et autres recours aux soins de la CMD 01 | L195: 01M35Z
K196: Accidents vasculaires cérébraux non transitoires avec décès : séjours de moins de 2 jours | L196: 01M36E
K197: Autres affections de la CMD 01 avec décès : séjours de moins de 2 jours | L197: 01M37E
K198: Autres affections neurologiques concernant majoritairement la petite enfance, niveau 1 | L198: 01M381
K199: Autres affections neurologiques concernant majoritairement la petite enfance, niveau 2 | L199: 01M382
K200: Autres affections neurologiques concernant majoritairement la petite enfance, niveau 3 | L200: 01M383
... 2317 more rows

Sheet accueil données détaillées (hidden)
A1: DONNEES DE COUTS DETAILLEES
D3: Données de coûts par GHM | F3: 2012
F10: 2011
D16: Données de coûts 2012 par GHS
D22: Données 2012 sur les UO

Sheet Coûts décomposés (hidden)
A2: Informations sur le GHM | F2: Dépenses cliniques (clinique + SI + SC + REA) | AE2: Dépenses Médico-Techniques | EL2: Logistique et Gestion Générale | EX2: Logistique Médicale | FD2: Charges directes | FU2: Structure
A3: GHM V11 | B3: Libellé GHM | C3: Coût modifié (*) | D3: Nombre de séjours ENC 2012 | E3: Coût complet hors structure | F3: Amortissement location clinique (hors SI SC réa) | G3: Entretien maintenance clinique (hors SI SC réa) | H3: Personnel autre clinique (hors SI SC réa) | I3: Personnel médical clinique (hors SI SC réa) | J3: Personnel soignant clinique (hors SI SC réa) | K3: Dépenses cliniques | L3: Amortissement location surveillance continue | M3: Entretien maintenance surveillance continue | N3: Personnel autre surveillance continue | O3: Personnel médical surveillance continue | P3: Personnel soignant surveillance continue | Q3: Dépenses SC | R3: Amortissement location soins intensifs | S3: Entretien maintenance soins intensifs | T3: Personnel autre soins intensifs | U3: Personnel médical soins intensifs | V3: Personnel soignant soins intensifs | W3: Dépenses SI | X3: Amortissement location réanimation | Y3: Entretien maintenance réanimation | Z3: Personnel autre réanimation | AA3: Personnel médical réanimation | AB3: Personnel soignant réanimation | AC3: Dépenses REA | AD3: TOTAL Dépenses cliniques + SI + SC + REA | AE3: Amortissement Anesthésie | AF3: Entretien Anesthésie | AG3: Personnel autre Anesthésie | AH3: Personnel médical Anesthésie | AI3: Personnel soignant Anesthésie | AJ3: Dépenses totales Anesthésie | AK3: Amortissement Bloc | AL3: Entretien Bloc | AM3: Personnel autre Bloc | AN3: Personnel médical Bloc | AO3: Personnel soignant Bloc | AP3: Dépenses totales Bloc | AQ3: Amortissement Bloc Obstétrique | AR3: Entretien Bloc Obstétrique | AS3: Personnel autre Bloc Obstétrique | AT3: Personnel médical Bloc Obstétrique | AU3: Personnel soignant Bloc Obstétrique | AV3: Dépenses totales Bloc Obstétrique | AW3: Amortissement Dialyse | AX3: Entretien Dialyse | AY3: Personnel autre Dialyse | AZ3: Personnel médical Dialyse | BA3: Personnel soignant Dialyse | BB3: Dialyse en sus | BC3: Dépenses totales Dialyse | BD3: Amortissement Exploration fonctionnelle | BE3: Entretien Exploration fonctionnelle | BF3: Personnel autre Exploration fonctionnelle | BG3: Personnel médical Exploration fonctionnelle | BH3: Personnel soignant Exploration fonctionnelle | BI3: Dépenses totales Exploration fonctionnelle | BJ3: Amortissement Imagerie | BK3: Entretien Imagerie | BL3: Personnel autre Imagerie | BM3: Personnel médical Imagerie | BN3: Personnel soignant Imagerie | BO3: Dépenses totales Imagerie | BP3: Amortissement Imagerie interventionnelle | BQ3: Entretien Imagerie interventionnelle | BR3: Personnel autre Imagerie interventionnelle | BS3: Personnel médical Imagerie interventionnelle | BT3: Personnel soignant Imagerie interventionnelle | BU3: Dépenses totales Imagerie interventionnelle | BV3: Amortissement Laboratoire B | BW3: Entretien Laboratoire B | BX3: Personnel autre Laboratoire B | BY3: Personnel médical Laboratoire B | BZ3: Personnel soignant Laboratoire B | CA3: Dépenses totales Laboratoire B | CB3: Amortissement Laboratoire génétique B | CC3: Entretien Laboratoire génétique B | CD3: Personnel autre Laboratoire génétique B | CE3: Personnel médical Laboratoire génétique B | CF3: Personnel soignant Laboratoire génétique B | CG3: Dépenses totales Laboratoire génétique B | CH3: Amortissement Laboratoire P | CI3: Entretien Laboratoire P | CJ3: Personnel autre Laboratoire P | CK3: Personnel médical Laboratoire P | CL3: Personnel soignant Laboratoire P | CM3: Dépenses totales Laboratoire P | CN3: Amortissement Laboratoire Hors nomenclature (BHN) | CO3: Entretien Laboratoire Hors nomenclature (BHN) | CP3: Personnel autre Laboratoire Hors nomenclature (BHN) | CQ3: Personnel médical Laboratoire Hors nomenclature (BHN) | CR3: Personnel soignant Laboratoire Hors nomenclature (BHN) | CS3: Dépenses totales Laboratoire Hors nomenclature (BHN) | CT3: Amortissement Laboratoire génétique Hors nomenclature (BHN) | CU3: Entretien Laboratoire génétique Hors nomenclature (BHN) | CV3: Personnel autre Laboratoire génétique Hors nomenclature (BHN) | CW3: Personnel médical Laboratoire génétique Hors nomenclature (BHN) | CX3: Personnel soignant Laboratoire génétique Hors nomenclature (BHN) | CY3: Dépenses totales Laboratoire génétique Hors nomenclature (BHN) | CZ3: Amortissement Laboratoire Hors nomenclature (AHN) | DA3: Entretien Laboratoire Hors nomenclature (AHN) | DB3: Personnel autre Laboratoire Hors nomenclature (AHN) | DC3: Personnel médical Laboratoire Hors nomenclature (AHN) | DD3: Personnel soignant Laboratoire Hors nomenclature (AHN) | DE3: Dépenses totales Laboratoire Hors nomenclature (AHN) | DF3: Amortissement Radiothérapie | DG3: Entretien Radiothérapie | DH3: Personnel autre Radiothérapie | DI3: Personnel médical Radiothérapie | DJ3: Personnel soignant Radiothérapie | DK3: Radiothérapie en sus | DL3: Dépenses totales Radiothérapie | DM3: Amortissement SMUR terrestre | DN3: Entretien SMUR terrestre | DO3: Personnel autre SMUR terrestre | DP3: Personnel médical SMUR terrestre | DQ3: Personnel soignant SMUR terrestre | DR3: Dépenses totales SMUR terrestre | DS3: Amortissement SMUR aérien | DT3: Entretien SMUR aérien | DU3: Personnel autre SMUR aérien | DV3: Personnel médical SMUR aérien | DW3: Personnel soignant SMUR aérien | DX3: Dépenses totales SMUR aérien | DY3: Amortissement Urgences | DZ3: Entretien Urgences | EA3: Personnel autre Urgences | EB3: Personnel médical Urgences | EC3: Personnel soignant Urgences | ED3: Dépenses totales Urgences | EE3: Amortissement Autres MT | EF3: Entretien Autres MT | EG3: Personnel autre Autres MT | EH3: Personnel médical Autres MT | EI3: Personnel soignant Autres MT | EJ3: Dépenses totales Autres MT | EK3: TOTAL Dépenses MT | EL3: LGG Blanchisserie | EM3: LGG Restauration | EN3: LGG Accueil et gestion des malades | EO3: LGG Services administratifs à caractère général | EP3: LGG Services administratifs liés au personnel | EQ3: LGG Brancardage et transport pédestre des patients | ER3: LGG DIM | ES3: LGG DSIO | ET3: LGG Entretien maintenance | EU3: LGG Services hôteliers | EV3: LGG Transport motorisé des patients (hors SMUR) | EW3: TOTAL Dépenses LGG | EX3: LM Pharmacie | EY3: LM Stérilisation | EZ3: LM Génie Biomédical | FA3: LM Hygiène et Vigilance | FB3: Autre LM | FC3: TOTAL Dépenses LM | FD3: CD Autres consommables | FE3: CD DMI non facturables en sus | FF3: CD DMI facturables en sus | FG3: CD Médicaments ATU | FH3: CD Sang | FI3: CD Spécialités pharmaceutiques non facturables en sus | FJ3: CD Spécialités pharmaceutiques facturables en sus | FK3: CD Sous-traitance Autre | FL3: CD Sous-traitance Hospitalisation à l'extérieur | FM3: CD Sous-traitance Imagerie | FN3: CD Sous-traitance Laboratoire | FO3: CD Sous-traitance Laboratoire Hors nomenclature | FP3: CD Sous-traitance SMUR | FQ3: TOTAL Charges directes hors honoraires | FR3: CD Honoraires des PH | FS3: CD Rémunération à l'acte du personnel | FT3: TOTAL Charges directes y compris honoraires et rémunération à l'acte | FU3: Structure financier | FV3: Structure Immobilier | FW3: TOTAL Structure
A4: 01C031 | B4: Craniotomies pour traumatisme, âge supérieur à 17 ans, niveau 1 | D4: 415 | E4: 4958.062453 | F4: 3.706912893 | G4: 1.998460493 | H4: 169.7012475 | I4: 174.4645844 | J4: 730.4221897 | K4: 1080.293395 | L4: 1.342706346 | M4: 0.4939958909 | N4: 7.537321788 | O4: 19.52094423 | P4: 90.80540438 | Q4: 119.7003726 | R4: 1.233769132 | S4: 0.362639352 | T4: 2.26048706 | U4: 13.81087977 | V4: 38.07447363 | W4: 55.74224894 | X4: 14.36966091 | Y4: 4.828720958 | Z4: 38.58292112 | AA4: 96.07045205 | AB4: 399.5536412 | AC4: 553.4053963 | AD4: 1809.141413 | AE4: 8.50270672 | AF4: 5.045751382 | AG4: 11.20918082 | AH4: 177.7914462 | AI4: 160.5489776 | AJ4: 363.0980627 | AK4: 39.79138023 | AL4: 21.18942921 | AM4: 38.86484449 | AN4: 102.1014043 | AO4: 258.8630538 | AP4: 460.810112 | AQ4: 0 | AR4: 0 | AS4: 0 | AT4: 0 | AU4: 0 | AV4: 0 | AW4: 0 | AX4: 0 | AY4: 0 | AZ4: 0 | BA4: 0 | BB4: 0.25992122 | BC4: 0.25992122 | BD4: 0.7086302976 | BE4: 0.2888208992 | BF4: 3.169278166 | BG4: 5.210253098 | BH4: 8.25853685 | BI4: 17.63551931 | BJ4: 11.97928927 | BK4: 10.39684992 | BL4: 62.86551088 | BM4: 28.39913822 | BN4: 3.623807337 | BO4: 117.2645956 | BP4: 0.3186209638 | BQ4: 0.1246590494 | BR4: 0.8964171609 | BS4: 0.8636913923 | BT4: 0.3814918873 | BU4: 2.584880454 | BV4: 2.963739669 | BW4: 2.082564861 | BX4: 42.29595448 | BY4: 21.43013922 | BZ4: 0.5042606575 | CA4: 69.27665889 | CB4: 0 | CC4: 0 | CD4: 0 | CE4: 0 | CF4: 0 | CG4: 0 | CH4: 0.06108746077 | CI4: 0.02933163546 | CJ4: 0.5985248533 | CK4: 0.3898402788 | CL4: 0.002600626119 | CM4: 1.081384854 | CN4: 0.6731665384 | CO4: 0.4201108342 | CP4: 8.189048404 | CQ4: 4.337918784 | CR4: 0.06794792306 | CS4: 13.68819248 | CT4: 0 | CU4: 0 | CV4: 0 | CW4: 0 | CX4: 0 | CY4: 0 | CZ4: 0.189981332 | DA4: 0.09679660536 | DB4: 2.054309151 | DC4: 1.349569196 | DD4: 0.009657798057 | DE4: 3.700314082 | DF4: 0 | DG4: 0 | DH4: 0 | DI4: 0 | DJ4: 0 | DK4: 0 | DL4: 0 | DM4: 1.125157799 | DN4: 0.6046292229 | DO4: 10.73620045 | DP4: 21.36556957 | DQ4: 10.8225139 | DR4: 44.65407094 | DS4: 13.86702504 | DT4: 2.76815107 | DU4: 3.810008432 | DV4: 6.897058417 | DW4: 3.514795465 | DX4: 30.85703843 | DY4: 0.3556404088 | DZ4: 0.2425364931 | EA4: 4.938656101 | EB4: 15.47419885 | EC4: 24.1177663 | ED4: 45.12879816 | EE4: 0.1361133944 | EF4: 0.04873300472 | EG4: 16.28958965 | EH4: 0.1983523445 | EI4: 0.7208726475 | EJ4: 17.39366104 | EK4: 1187.43321 | EL4: 43.66515313 | EM4: 100.8740756 | EN4: 13.25224016 | EO4: 172.3292563 | EP4: 115.1831277 | EQ4: 26.81538825 | ER4: 8.548980816 | ES4: 79.13359221 | ET4: 88.9459021 | EU4: 158.0797686 | EV4: 19.94398489 | EW4: 826.7714698 | EX4: 80.6091819 | EY4: 53.96180299 | EZ4: 25.64118903 | FA4: 15.20890401 | FB4: 7.095135467 | FC4: 182.5162134 | FD4: 422.5996334 | FE4: 72.62050986 | FF4: 120.365453 | FG4: 0.213413506 | FH4: 83.26105173 | FI4: 101.7153894 | FJ4: 54.0465805 | FK4: 33.59060589 | FL4: 0.1117572 | FM4: 1.10617986 | FN4: 28.7733776 | FO4: 5.020220965 | FP4: 11.46475633 | FQ4: 934.8889292 | FR4: 17.3112172 | FS4: 0 | FT4: 952.2001464 | FU4: 57.97620684 | FV4: 152.1913701 | FW4: 210.167577
A5: 01C032 | B5: Craniotomies pour traumatisme, âge supérieur à 17 ans, niveau 2 | D5: 477 | E5: 7701.323577 | F5: 5.117874603 | G5: 2.640231691 | H5: 266.0123061 | I5: 288.5661122 | J5: 1168.328889 | K5: 1730.665413 | L5: 1.860903482 | M5: 1.122233467 | N5: 17.15606018 | O5: 43.42231212 | P5: 191.4737335 | Q5: 255.0352427 | R5: 1.917652667 | S5: 0.5895965618 | T5: 3.881037092 | U5: 21.14801081 | V5: 66.73662992 | W5: 94.27292705 | X5: 31.8312895 | Y5: 10.93095333 | Z5: 87.18751483 | AA5: 236.636063 | AB5: 848.3571508 | AC5: 1214.942971 | AD5: 3294.916555 | AE5: 8.832371425 | AF5: 5.699315863 | AG5: 12.68895352 | AH5: 190.8106778 | AI5: 184.554458 | AJ5: 402.5857766 | AK5: 39.3522018 | AL5: 22.69815772 | AM5: 39.49536445 | AN5: 93.5537319 | AO5: 255.6473391 | AP5: 450.746795 | AQ5: 0 | AR5: 0 | AS5: 0 | AT5: 0 | AU5: 0 | AV5: 0 | AW5: 0 | AX5: 0 | AY5: 0 | AZ5: 0 | BA5: 0 | BB5: 0 | BC5: 0 | BD5: 1.398267493 | BE5: 0.6866619769 | BF5: 5.12058767 | BG5: 8.166379093 | BH5: 13.51218163 | BI5: 28.88407786 | BJ5: 17.2358133 | BK5: 15.97111242 | BL5: 99.76688313 | BM5: 41.24792638 | BN5: 6.931119046 | BO5: 181.1528543 | BP5: 2.537321648 | BQ5: 0.7428410947 | BR5: 4.172559852 | BS5: 4.212723383 | BT5: 1.027091807 | BU5: 12.69253778 | BV5: 5.747390464 | BW5: 4.092130197 | BX5: 83.1093051 | BY5: 41.32977616 | BZ5: 1.011515335 | CA5: 135.2901173 | CB5: 0 | CC5: 0 | CD5: 0 | CE5: 0 | CF5: 0 | CG5: 0 | CH5: 0.07357855298 | CI5: 0.03484162832 | CJ5: 0.778830818 | CK5: 0.5345334111 | CL5: 0.005312230165 | CM5: 1.427096641 | CN5: 0.8841571551 | CO5: 0.5886933837 | CP5: 12.3575756 | CQ5: 6.741114402 | CR5: 0.1577265725 | CS5: 20.72926711 | CT5: 0 | CU5: 0 | CV5: 0 | CW5: 0 | CX5: 0 | CY5: 0 | CZ5: 0.267199971 | DA5: 0.1473061019 | DB5: 3.288544452 | DC5: 2.19791707 | DD5: 0.02073487798 | DE5: 5.921702473 | DF5: 0 | DG5: 0 | DH5: 0 | DI5: 0 | DJ5: 0 | DK5: 0 | DL5: 0 | DM5: 1.552115949 | DN5: 0.7929550075 | DO5: 17.28115668 | DP5: 34.90979294 | DQ5: 18.38186795 | DR5: 72.91788852 | DS5: 0.07427105104 | DT5: 0.08168277618 | DU5: 1.205302171 | DV5: 5.515322871 | DW5: 2.357956585 | DX5: 9.234535454 | DY5: 0.3144806503 | DZ5: 0.2306836623 | EA5: 5.944042655 | EB5: 15.14968649 | EC5: 22.95164209 | ED5: 44.59053554 | EE5: 0.1055061789 | EF5: 0.05975540132 | EG5: 24.34109393 | EH5: 1.054001328 | EI5: 2.903892558 | EJ5: 28.4642494 | EK5: 1394.637434 | EL5: 84.35864998 | EM5: 171.8226324 | EN5: 14.27005898 | EO5: 284.4090478 | EP5: 206.3777682 | EQ5: 42.64700482 | ER5: 8.741242846 | ES5: 132.5259963 | ET5: 148.9471068 | EU5: 276.7191978 | EV5: 31.33089166 | EW5: 1402.149598 | EX5: 128.5400722 | EY5: 59.80591747 | EZ5: 34.21543085 | FA5: 20.92492894 | FB5: 11.15780372 | FC5: 254.6441532 | FD5: 598.4195559 | FE5: 92.01498708 | FF5: 107.8798548 | FG5: 0.636274128 | FH5: 119.5341593 | FI5: 205.4689896 | FJ5: 102.3844465 | FK5: 23.19209939 | FL5: 0.4112026499 | FM5: 1.220041904 | FN5: 44.38315173 | FO5: 10.44190193 | FP5: 22.82582905 | FQ5: 1328.812494 | FR5: 26.16333789 | FS5: 6.077946417e-06 | FT5: 1354.975838 | FU5: 104.3438841 | FV5: 260.2819278 | FW5: 364.625812
A6: 01C033 | B6: Craniotomies pour traumatisme, âge supérieur à 17 ans, niveau 3 | D6: 405 | E6: 13060.85002 | F6: 7.572252382 | G6: 3.316860123 | H6: 360.5869675 | I6: 358.0844816 | J6: 1522.63515 | K6: 2252.195712 | L6: 2.534629685 | M6: 2.566109945 | N6: 34.79359396 | O6: 92.92019058 | P6: 407.0500949 | Q6: 539.8646191 | R6: 1.964977466 | S6: 0.6183504432 | T6: 4.385912743 | U6: 17.82128664 | V6: 79.23011627 | W6: 104.0206436 | X6: 98.81967131 | Y6: 30.50979576 | Z6: 219.4785528 | AA6: 776.6991959 | AB6: 2531.261511 | AC6: 3656.768726 | AD6: 6552.849701 | AE6: 10.85650333 | AF6: 6.398243136 | AG6: 15.22981995 | AH6: 234.0931482 | AI6: 232.6433281 | AJ6: 499.2210427 | AK6: 46.64209481 | AL6: 29.49282177 | AM6: 47.46241353 | AN6: 119.1096757 | AO6: 311.8094854 | AP6: 554.5164913 | AQ6: 0 | AR6: 0 | AS6: 0 | AT6: 0 | AU6: 0 | AV6: 0 | AW6: 0 | AX6: 0 | AY6: 0 | AZ6: 0 | BA6: 0 | BB6: 0 | BC6: 0 | BD6: 3.089694365 | BE6: 1.54200331 | BF6: 10.49503197 | BG6: 20.23632692 | BH6: 27.25081272 | BI6: 62.61386928 | BJ6: 34.28108568 | BK6: 26.80239884 | BL6: 169.6189104 | BM6: 69.91609448 | BN6: 11.02995679 | BO6: 311.6484462 | BP6: 1.046771635 | BQ6: 0.4288692239 | BR6: 3.370198207 | BS6: 3.685340566 | BT6: 1.275077797 | BU6: 9.80625743 | BV6: 12.8792169 | BW6: 7.886763874 | BX6: 165.4555523 | BY6: 85.87273321 | BZ6: 1.356907047 | CA6: 273.4511733 | CB6: 0.0001503692974 | CC6: 2.417304072e-05 | CD6: 0.009269248385 | CE6: 0.009094156638 | CF6: 0 | CG6: 0.01853794736 | CH6: 0.1906890972 | CI6: 0.08936311035 | CJ6: 1.903352896 | CK6: 1.248730361 | CL6: 0.00756581465 | CM6: 3.439701279 | CN6: 2.02630721 | CO6: 1.265931488 | CP6: 29.35137094 | CQ6: 15.83026473 | CR6: 0.1502794436 | CS6: 48.62415382 | CT6: 0 | CU6: 0.009957930981 | CV6: 0.02177840823 | CW6: 0.01391454142 | CX6: 0 | CY6: 0.04565088063 | CZ6: 0.8164051756 | DA6: 0.4331447664 | DB6: 9.560736427 | DC6: 6.813993228 | DD6: 0.03309650782 | DE6: 17.65737611 | DF6: 0 | DG6: 0 | DH6: 0 | DI6: 0 | DJ6: 0 | DK6: 0 | DL6: 0 | DM6: 2.087944642 | DN6: 1.106414115 | DO6: 23.80058356 | DP6: 44.32903546 | DQ6: 23.93603692 | DR6: 95.2600147 | DS6: 0.1167565166 | DT6: 0.1251378747 | DU6: 3.319531761 | DV6: 14.73871933 | DW6: 6.565953462 | DX6: 24.86609894 | DY6: 0.3192185026 | DZ6: 0.194757135 | EA6: 5.451607448 | EB6: 15.02285877 | EC6: 22.80800193 | ED6: 43.79644378 | EE6: 0.5302316303 | EF6: 0.2394410051 | EG6: 99.84880848 | EH6: 2.459334692 | EI6: 5.42635324 | EJ6: 108.504169 | EK6: 2053.469427 | EL6: 115.0617241 | EM6: 220.9182606 | EN6: 13.39431277 | EO6: 496.9574653 | EP6: 307.6992051 | EQ6: 68.19690753 | ER6: 8.070320472 | ES6: 191.8671238 | ET6: 225.8408981 | EU6: 419.1217229 | EV6: 58.69278471 | EW6: 2125.820726 | EX6: 178.4263875 | EY6: 67.31408135 | EZ6: 53.13246338 | FA6: 34.93303927 | FB6: 15.88443627 | FC6: 349.6904078 | FD6: 950.1936377 | FE6: 83.88382473 | FF6: 105.6575015 | FG6: 1.96695687 | FH6: 184.6739413 | FI6: 395.8022298 | FJ6: 76.80263743 | FK6: 24.04305451 | FL6: 1.455031877 | FM6: 3.914287019 | FN6: 53.84239874 | FO6: 16.18790555 | FP6: 57.63278976 | FQ6: 1956.056197 | FR6: 22.89323717 | FS6: 0.07032043122 | FT6: 1979.019754 | FU6: 164.0081152 | FV6: 393.827985 | FW6: 557.8361002
A7: 01C034 | B7: Craniotomies pour traumatisme, âge supérieur à 17 ans, niveau 4 | D7: 386 | E7: 38284.03184 | F7: 16.03188048 | G7: 5.540714752 | H7: 524.499152 | I7: 521.1627083 | J7: 2239.074858 | K7: 3306.309313 | L7: 37.91143505 | M7: 12.14468287 | N7: 172.657975 | O7: 211.9906265 | P7: 1399.95958 | Q7: 1834.664299 | R7: 12.04805018 | S7: 4.146701407 | T7: 44.77379513 | U7: 86.25162026 | V7: 428.7125025 | W7: 575.9326695 | X7: 435.221984 | Y7: 137.1485678 | Z7: 996.913734 | AA7: 2903.682432 | AB7: 10741.29508 | AC7: 15214.26179 | AD7: 20931.16808 | AE7: 18.40498825 | AF7: 8.763346306 | AG7: 18.00470652 | AH7: 299.6450362 | AI7: 274.1131411 | AJ7: 618.9312183 | AK7: 62.44318237 | AL7: 33.61143631 | AM7: 58.7329044 | AN7: 160.1257589 | AO7: 406.7311082 | AP7: 721.6443902 | AQ7: 0 | AR7: 0 | AS7: 0 | AT7: 0 | AU7: 0 | AV7: 0 | AW7: 2.095281641 | AX7: 0.4079958291 | AY7: 4.414882596 | AZ7: 5.51028813 | BA7: 32.34822032 | BB7: 5.47770658 | BC7: 50.2543751 | BD7: 11.91558661 | BE7: 6.361743953 | BF7: 31.57408405 | BG7: 59.65821942 | BH7: 84.11726125 | BI7: 193.6268953 | BJ7: 87.96581624 | BK7: 65.38572513 | BL7: 455.2220672 | BM7: 186.2466344 | BN7: 28.27104087 | BO7: 823.0912838 | BP7: 8.398727275 | BQ7: 2.617546447 | BR7: 21.84908014 | BS7: 20.86327279 | BT7: 6.573417598 | BU7: 60.30204424 | BV7: 44.19717385 | BW7: 28.41525041 | BX7: 588.5031514 | BY7: 294.3796311 | BZ7: 6.231285829 | CA7: 961.7264926 | CB7: 4.890507934e-05 | CC7: 7.861874032e-06 | CD7: 0.003014666794 | CE7: 0.002957721155 | CF7: 0 | CG7: 0.006029154902 | CH7: 0.2989230961 | CI7: 0.1345916026 | CJ7: 2.666474968 | CK7: 1.893568953 | CL7: 0.01431133682 | CM7: 5.007869957 | CN7: 6.684757846 | CO7: 4.408938603 | CP7: 98.82010303 | CQ7: 52.45153209 | CR7: 0.8084801862 | CS7: 163.1738118 | CT7: 0 | CU7: 0 | CV7: 0 | CW7: 0 | CX7: 0 | CY7: 0 | CZ7: 0.4638332733 | DA7: 0.214547216 | DB7: 4.704646792 | DC7: 3.205058991 | DD7: 0.04430760447 | DE7: 8.632393877 | DF7: 0.5832233515 | DG7: 0.4702627213 | DH7: 1.880924276 | DI7: 0.8455055591 | DJ7: 1.911098574 | DK7: 0 | DL7: 5.691014482 | DM7: 4.312102628 | DN7: 2.552826652 | DO7: 40.00044871 | DP7: 82.46512483 | DQ7: 44.90465402 | DR7: 174.2351568 | DS7: 40.62300065 | DT7: 5.953025254 | DU7: 7.096030612 | DV7: 27.51694648 | DW7: 11.06895467 | DX7: 92.25795767 | DY7: 0.3693811167 | DZ7: 0.1575873888 | EA7: 5.325195326 | EB7: 17.47032403 | EC7: 26.57662992 | ED7: 49.89911778 | EE7: 2.235848103 | EF7: 0.8354140359 | EG7: 312.0499446 | EH7: 10.96337049 | EI7: 34.5271765 | EJ7: 360.6117538 | EK7: 4289.091805 | EL7: 286.7417479 | EM7: 393.7746753 | EN7: 13.15865239 | EO7: 1158.782397 | EP7: 784.0384788 | EQ7: 184.8855457 | ER7: 8.63795479 | ES7: 544.6703887 | ET7: 574.4795277 | EU7: 1039.149102 | EV7: 132.5230231 | EW7: 5120.841493 | EX7: 563.0720103 | EY7: 203.2831066 | EZ7: 211.4817684 | FA7: 108.8000527 | FB7: 47.61975407 | FC7: 1134.256692 | FD7: 2935.099414 | FE7: 204.0866083 | FF7: 238.9712435 | FG7: 6.987550708 | FH7: 713.3505105 | FI7: 1527.337191 | FJ7: 811.4910545 | FK7: 68.02543463 | FL7: 5.484793022 | FM7: 3.827946054 | FN7: 92.72214021 | FO7: 17.31325291 | FP7: 102.8488356 | FQ7: 6727.545975 | FR7: 80.92415408 | FS7: 0.2036475313 | FT7: 6808.673777 | FU7: 409.4772352 | FV7: 949.3353338 | FW7: 1358.812569
A8: 01C041 | B8: Craniotomies en dehors de tout traumatisme, âge supérieur à 17 ans, niveau 1 | D8: 3195 | E8: 6443.167229 | F8: 6.607627648 | G8: 2.388542933 | H8: 228.7051523 | I8: 209.8729886 | J8: 906.1348924 | K8: 1353.709204 | L8: 4.2010572 | M8: 0.8412652937 | N8: 14.71022937 | O8: 29.63135326 | P8: 155.8440843 | Q8: 205.2279894 | R8: 1.015011948 | S8: 0.3948422219 | T8: 3.879442277 | U8: 23.29264424 | V8: 63.8529413 | W8: 92.43488199 | X8: 6.24604463 | Y8: 1.527690324 | Z8: 11.25367515 | AA8: 29.25907806 | AB8: 131.8830299 | AC8: 180.169518 | AD8: 1831.541593 | AE8: 21.5994305 | AF8: 9.263666429 | AG8: 18.47474942 | AH8: 312.8246107 | AI8: 296.4043579 | AJ8: 658.5668149 | AK8: 96.19829415 | AL8: 49.56351539 | AM8: 83.52830107 | AN8: 196.6418888 | AO8: 499.1511425 | AP8: 925.0831419 | AQ8: 0 | AR8: 0 | AS8: 0 | AT8: 0 | AU8: 0 | AV8: 0 | AW8: 0 | AX8: 0 | AY8: 0 | AZ8: 0 | BA8: 0 | BB8: 0.09105156037 | BC8: 0.09105156037 | BD8: 0.8737290154 | BE8: 0.367003841 | BF8: 6.634995951 | BG8: 7.706337743 | BH8: 9.724956829 | BI8: 25.30702338 | BJ8: 21.79406542 | BK8: 13.19081894 | BL8: 64.00206604 | BM8: 32.80004083 | BN8: 3.416836202 | BO8: 135.2038274 | BP8: 5.517137917 | BQ8: 1.627515568 | BR8: 9.281870477 | BS8: 7.903702348 | BT8: 1.482480265 | BU8: 25.81270657 | BV8: 2.010087249 | BW8: 1.395477297 | BX8: 29.03725098 | BY8: 14.71842222 | BZ8: 0.3670349199 | CA8: 47.52827266 | CB8: 0.0007650763991 | CC8: 0.0002954764107 | CD8: 0.007334633923 | CE8: 0.00446770938 | CF8: 1.273713639e-05 | CG8: 0.01287563325 | CH8: 1.636612929 | CI8: 0.7282965808 | CJ8: 13.26200483 | CK8: 10.12766061 | CL8: 0.06025264134 | CM8: 25.81482759 | CN8: 0.4647577595 | CO8: 0.3210033069 | CP8: 5.85388513 | CQ8: 3.419934927 | CR8: 0.07413298232 | CS8: 10.13371411 | CT8: 0.01268346442 | CU8: 0.002038966114 | CV8: 0.7818496472 | CW8: 0.7670808747 | CX8: 0 | CY8: 1.563652953 | CZ8: 4.569207708 | DA8: 2.140091095 | DB8: 47.94189495 | DC8: 35.52928735 | DD8: 0.2286770556 | DE8: 90.40915816 | DF8: 0 | DG8: 0 | DH8: 0 | DI8: 0 | DJ8: 0 | DK8: 0 | DL8: 0 | DM8: 0.4590724788 | DN8: 0.2523344469 | DO8: 4.7785654 | DP8: 9.352261453 | DQ8: 5.155699438 | DR8: 19.99793322 | DS8: 0.006809214219 | DT8: 0.006957167351 | DU8: 0.03086721367 | DV8: 0.6400698436 | DW8: 0.2082642901 | DX8: 0.8929677289 | DY8: 0.07400532189 | DZ8: 0.04053966995 | EA8: 1.056273136 | EB8: 4.019610187 | EC8: 5.751571182 | ED8: 10.9419995 | EE8: 0.06280326184 | EF8: 0.02263555631 | EG8: 7.117041662 | EH8: 0.4431688081 | EI8: 1.59059399 | EJ8: 9.236243278 | EK8: 1986.596211 | EL8: 51.87938042 | EM8: 129.8719751 | EN8: 12.67703019 | EO8: 202.5458427 | EP8: 138.067957 | EQ8: 32.97936064 | ER8: 9.066175642 | ES8: 101.1930026 | ET8: 101.2681894 | EU8: 190.3355679 | EV8: 22.6894974 | EW8: 992.573979 | EX8: 117.2691607 | EY8: 100.437295 | EZ8: 33.6565126 | FA8: 21.45727067 | FB8: 6.715255331 | FC8: 279.5354943 | FD8: 717.0835918 | FE8: 118.9338593 | FF8: 157.0094069 | FG8: 0.09053364011 | FH8: 29.2196333 | FI8: 198.8344151 | FJ8: 66.21032847 | FK8: 7.922577062 | FL8: 0.05305551985 | FM8: 2.881445961 | FN8: 25.30599571 | FO8: 4.170305137 | FP8: 4.441226354 | FQ8: 1332.156374 | FR8: 20.75465818 | FS8: 0.008919596059 | FT8: 1352.919952 | FU8: 77.35795346 | FV8: 176.2214409 | FW8: 253.5793944
A9: 01C042 | B9: Craniotomies en dehors de tout traumatisme, âge supérieur à 17 ans, niveau 2 | D9: 2206 | E9: 8830.437577 | F9: 8.745378657 | G9: 2.765152445 | H9: 329.2985209 | I9: 312.6850107 | J9: 1346.130602 | K9: 1999.624664 | L9: 2.543372399 | M9: 1.310781601 | N9: 17.8216204 | O9: 34.30937852 | P9: 181.5654631 | Q9: 237.550616 | R9: 1.364999904 | S9: 0.5036078409 | T9: 5.362054705 | U9: 23.34097371 | V9: 78.7878067 | W9: 109.3594429 | X9: 14.34435017 | Y9: 4.434375732 | Z9: 36.98066394 | AA9: 94.82122532 | AB9: 387.5394417 | AC9: 538.1200568 | AD9: 2884.65478 | AE9: 20.72625997 | AF9: 9.975718625 | AG9: 20.33732851 | AH9: 336.0800036 | AI9: 336.3664723 | AJ9: 723.485783 | AK9: 101.7393444 | AL9: 57.26223733 | AM9: 85.3656699 | AN9: 193.9060015 | AO9: 518.1002383 | AP9: 956.3734915 | AQ9: 0.001811133181 | AR9: 0.002505125804 | AS9: 0.02391364379 | AT9: 0.006529661274 | AU9: 0.06094736332 | AV9: 0.09570692736 | AW9: 0 | AX9: 0 | AY9: 0 | AZ9: 0 | BA9: 0 | BB9: 1.599700075 | BC9: 1.599700075 | BD9: 4.324353785 | BE9: 1.920207064 | BF9: 27.43917334 | BG9: 42.97623703 | BH9: 62.93946585 | BI9: 139.5994371 | BJ9: 31.73907711 | BK9: 20.70289611 | BL9: 106.0368573 | BM9: 49.07698282 | BN9: 6.22918607 | BO9: 213.7849994 | BP9: 7.25863705 | BQ9: 2.308551638 | BR9: 11.85342529 | BS9: 10.82211637 | BT9: 2.261943077 | BU9: 34.50467343 | BV9: 4.118857937 | BW9: 2.833167098 | BX9: 60.30421094 | BY9: 29.80554549 | BZ9: 0.6106674828 | CA9: 97.67244894 | CB9: 7.538354594e-06 | CC9: 1.211849465e-06 | CD9: 0.0004646884861 | CE9: 0.0004559107389 | CF9: 0 | CG9: 0.000929349429 | CH9: 1.276630911 | CI9: 0.5778910583 | CJ9: 12.54427758 | CK9: 8.76509925 | CL9: 0.1008473324 | CM9: 23.26474613 | CN9: 0.8891186279 | CO9: 0.5457099627 | CP9: 11.09301715 | CQ9: 6.358909322 | CR9: 0.09322667264 | CS9: 18.97998174 | CT9: 0.01095116071 | CU9: 0.001760484743 | CV9: 0.6750648606 | CW9: 0.6623132025 | CX9: 0 | CY9: 1.350089709 | CZ9: 5.419994704 | DA9: 2.755798128 | DB9: 62.14309896 | DC9: 44.11319296 | DD9: 0.5088367058 | DE9: 114.9409215 | DF9: 0 | DG9: 0.01440008629 | DH9: 0.08929590224 | DI9: 0.03392887377 | DJ9: 0.007850592348 | DK9: 0.06940100656 | DL9: 0.2148764612 | DM9: 0.4098049166 | DN9: 0.2467388733 | DO9: 3.958091021 | DP9: 7.342190258 | DQ9: 3.97619271 | DR9: 15.93301778 | DS9: 0.05216728539 | DT9: 0.05352503447 | DU9: 1.015664663 | DV9: 4.631925874 | DW9: 1.918609719 | DX9: 7.671892576 | DY9: 0.09561147618 | DZ9: 0.06234196461 | EA9: 1.830741446 | EB9: 5.088805234 | EC9: 7.482497477 | ED9: 14.5599976 | EE9: 0.1497332666 | EF9: 0.06276482844 | EG9: 22.39076009 | EH9: 0.8686283991 | EI9: 2.737534196 | EJ9: 26.20942078 | EK9: 2390.242114 | EL9: 88.15296659 | EM9: 198.7106112 | EN9: 13.93200583 | EO9: 304.8632774 | EP9: 210.3604559 | EQ9: 46.54025289 | ER9: 9.173117981 | ES9: 142.6862469 | ET9: 150.0915677 | EU9: 296.1685403 | EV9: 33.29586625 | EW9: 1493.974909 | EX9: 157.120916 | EY9: 102.2534644 | EZ9: 40.83951887 | FA9: 27.26818293 | FB9: 10.01300474 | FC9: 337.495087 | FD9: 843.2867904 | FE9: 162.2962259 | FF9: 174.7255362 | FG9: 0.356767421 | FH9: 44.93663481 | FI9: 277.6473771 | FJ9: 123.8259233 | FK9: 18.47177657 | FL9: 0.2723928095 | FM9: 5.190602962 | FN9: 38.98335773 | FO9: 4.522622057 | FP9: 13.76999584 | FQ9: 1708.286003 | FR9: 15.78433953 | FS9: 0.0003440083877 | FT9: 1724.070687 | FU9: 129.104391 | FV9: 272.1055387 | FW9: 401.2099298
A10: 01C043 | B10: Craniotomies en dehors de tout traumatisme, âge supérieur à 17 ans, niveau 3 | D10: 1526 | E10: 14191.19488 | F10: 15.10631017 | G10: 4.245184231 | H10: 483.5361932 | I10: 478.8652472 | J10: 2003.894839 | K10: 2985.647774 | L10: 4.974865259 | M10: 2.729291279 | N10: 34.05754381 | O10: 65.50456427 | P10: 352.9690174 | Q10: 460.235282 | R10: 3.247214901 | S10: 1.189929678 | T10: 11.1064181 | U10: 27.68154441 | V10: 155.9544421 | W10: 199.1795492 | X10: 64.31583184 | Y10: 18.85109608 | Z10: 137.8422827 | AA10: 445.2432574 | AB10: 1486.91467 | AC10: 2153.167138 | AD10: 5798.229743 | AE10: 21.11156549 | AF10: 9.879480975 | AG10: 21.69087732 | AH10: 341.1377852 | AI10: 345.5410566 | AJ10: 739.3607656 | AK10: 97.94922391 | AL10: 56.10627659 | AM10: 84.94368972 | AN10: 184.0172263 | AO10: 499.6044934 | AP10: 922.6209098 | AQ10: 0.05719239528 | AR10: 0.01254001583 | AS10: 0.04077355907 | AT10: 0.0704975628 | AU10: 0.3714937163 | AV10: 0.5524972493 | AW10: 0 | AX10: 0 | AY10: 0 | AZ10: 0 | BA10: 0 | BB10: 0.5245573156 | BC10: 0.5245573156 | BD10: 3.895759429 | BE10: 1.558069959 | BF10: 15.62086677 | BG10: 24.39481354 | BH10: 35.78723231 | BI10: 81.256742 | BJ10: 58.35039339 | BK10: 35.35865887 | BL10: 203.6785377 | BM10: 94.12376366 | BN10: 11.86870196 | BO10: 403.3800556 | BP10: 16.69659554 | BQ10: 5.428661076 | BR10: 24.98000686 | BS10: 24.3712635 | BT10: 4.815137443 | BU10: 76.29166442 | BV10: 10.98783022 | BW10: 6.935096327 | BX10: 145.5915846 | BY10: 74.67265891 | BZ10: 1.220436357 | CA10: 239.4076065 | CB10: 0.0004078259136 | CC10: 6.556120557e-05 | CD10: 0.02513970443 | CE10: 0.02466482722 | CF10: 0 | CG10: 0.05027791877 | CH10: 1.557689635 | CI10: 0.6705399471 | CJ10: 13.97319719 | CK10: 10.03893408 | CL10: 0.08451838212 | CM10: 26.32487924 | CN10: 2.538026292 | CO10: 1.475108677 | CP10: 32.69748509 | CQ10: 18.58383807 | CR10: 0.2455787788 | CS10: 55.54003691 | CT10: 0.121024456 | CU10: 0.03766922673 | CV10: 1.125479749 | CW10: 0.7828972199 | CX10: 0.0278866251 | CY10: 2.094957277 | CZ10: 6.013863369 | DA10: 2.925831837 | DB10: 67.89906455 | DC10: 50.24348726 | DD10: 0.4023562281 | DE10: 127.4846032 | DF10: 0 | DG10: 0.03051750982 | DH10: 0.189241128 | DI10: 0.07190406482 | DJ10: 0.01663743704 | DK10: 0 | DL10: 0.3083001397 | DM10: 0.9456272842 | DN10: 0.6346117018 | DO10: 8.237837502 | DP10: 15.54111629 | DQ10: 8.535088344 | DR10: 33.89428112 | DS10: 0.03160962718 | DT10: 0.03624141515 | DU10: 1.554426141 | DV10: 4.925236363 | DW10: 2.224352498 | DX10: 8.771866045 | DY10: 0.1758057449 | DZ10: 0.1084368074 | EA10: 3.049959107 | EB10: 7.324768207 | EC10: 11.59871773 | ED10: 22.2576876 | EE10: 0.7488164395 | EF10: 0.3951796888 | EG10: 74.19031966 | EH10: 2.392826444 | EI10: 7.310008409 | EJ10: 85.03715064 | EK10: 2825.158839 | EL10: 135.3364711 | EM10: 291.9292369 | EN10: 13.47549931 | EO10: 530.0852639 | EP10: 336.4072403 | EQ10: 69.68798498 | ER10: 8.495009404 | ES10: 224.4083437 | ET10: 251.3253862 | EU10: 478.0348951 | EV10: 59.80455347 | EW10: 2398.989884 | EX10: 232.6052857 | EY10: 108.2900939 | EZ10: 58.23943584 | FA10: 42.97746883 | FB10: 17.3341822 | FC10: 459.4464665 | FD10: 1185.303351 | FE10: 200.2427597 | FF10: 314.0374674 | FG10: 1.129580056 | FH10: 96.46019404 | FI10: 513.9010729 | FJ10: 240.8358237 | FK10: 25.16966014 | FL10: 0.5698984104 | FM10: 9.058888332 | FN10: 50.1645568 | FO10: 4.733287628 | FP10: 44.37786193 | FQ10: 2685.984402 | FR10: 23.36613152 | FS10: 0.01941256129 | FT10: 2709.369946 | FU10: 206.9310049 | FV10: 442.2540795 | FW10: 649.1850844
A11: 01C044 | B11: Craniotomies en dehors de tout traumatisme, âge supérieur à 17 ans, niveau 4 | D11: 1236 | E11: 36719.39691 | F11: 17.8923468 | G11: 5.259863991 | H11: 579.4237155 | I11: 608.5252074 | J11: 2449.137754 | K11: 3660.238888 | L11: 25.17266811 | M11: 9.898241632 | N11: 136.2791173 | O11: 187.3096576 | P11: 1145.593302 | Q11: 1504.252986 | R11: 9.343506065 | S11: 2.928314649 | T11: 27.31829512 | U11: 65.66089459 | V11: 418.3203416 | W11: 523.571352 | X11: 353.3844282 | Y11: 108.8848031 | Z11: 839.2220896 | AA11: 2496.54051 | AB11: 9400.103846 | AC11: 13198.13568 | AD11: 18886.1989 | AE11: 25.46358647 | AF11: 13.07239984 | AG11: 30.12221341 | AH11: 448.5244611 | AI11: 439.9230364 | AJ11: 957.1056972 | AK11: 90.38497598 | AL11: 46.89988404 | AM11: 82.79279538 | AN11: 182.5217472 | AO11: 512.345047 | AP11: 914.9444496 | AQ11: 0.03969904997 | AR11: 0.01715556121 | AS11: 0.2140702312 | AT11: 0.0746023491 | AU11: 0.6562125151 | AV11: 1.001739707 | AW11: 0.07884709803 | AX11: 0.0366064169 | AY11: 0.4992228308 | AZ11: 0.549090689 | BA11: 2.042356893 | BB11: 4.233082606 | BC11: 7.439206534 | BD11: 12.14174992 | BE11: 5.957792861 | BF11: 35.47691785 | BG11: 59.5775384 | BH11: 94.29443102 | BI11: 207.44843 | BJ11: 126.394137 | BK11: 88.10722673 | BL11: 586.133174 | BM11: 241.6316975 | BN11: 37.10632101 | BO11: 1079.372556 | BP11: 63.6041927 | BQ11: 22.58608962 | BR11: 98.68070931 | BS11: 95.28288612 | BT11: 23.42715081 | BU11: 303.5810286 | BV11: 39.83085546 | BW11: 25.53052855 | BX11: 537.2910798 | BY11: 274.9309642 | BZ11: 4.98305756 | CA11: 882.5664856 | CB11: 0.005410392393 | CC11: 0.002794410362 | CD11: 0.06225413888 | CE11: 0.04408853117 | CF11: 0 | CG11: 0.1145474728 | CH11: 0.9580092735 | CI11: 0.4381703249 | CJ11: 9.049565868 | CK11: 6.346619266 | CL11: 0.06735565133 | CM11: 16.85972038 | CN11: 8.809668043 | CO11: 5.380834699 | CP11: 117.7405659 | CQ11: 65.34030567 | CR11: 0.9000338983 | CS11: 198.1714082 | CT11: 0.008030933486 | CU11: 0.01329955235 | CV11: 0.1435614338 | CW11: 0.1105396013 | CX11: 0 | CY11: 0.2754315209 | CZ11: 2.973839333 | DA11: 1.522900885 | DB11: 34.76993284 | DC11: 24.67369234 | DD11: 0.3003754547 | DE11: 64.24074085 | DF11: 0.1593715654 | DG11: 0.1903207231 | DH11: 0.8873549635 | DI11: 0.4357696999 | DJ11: 0.9579814376 | DK11: 5.279826826 | DL11: 7.910625215 | DM11: 3.470443822 | DN11: 2.438109826 | DO11: 36.5843277 | DP11: 64.22660594 | DQ11: 36.11722217 | DR11: 142.8367095 | DS11: 32.93889992 | DT11: 0.4220971003 | DU11: 5.87254927 | DV11: 17.3171186 | DW11: 6.899741391 | DX11: 63.45040628 | DY11: 0.2725562329 | DZ11: 0.1273245629 | EA11: 4.0011149 | EB11: 11.93456402 | EC11: 18.20025844 | ED11: 34.53581815 | EE11: 2.120213053 | EF11: 0.9762631891 | EG11: 301.2175509 | EH11: 8.396103874 | EI11: 21.28134888 | EJ11: 333.9914799 | EK11: 5215.846481 | EL11: 282.7706323 | EM11: 411.1720502 | EN11: 13.33786737 | EO11: 1091.699743 | EP11: 740.8961895 | EQ11: 161.1760765 | ER11: 8.770925446 | ES11: 503.3837779 | ET11: 551.2176341 | EU11: 1005.147788 | EV11: 124.4064822 | EW11: 4893.979166 | EX11: 565.471215 | EY11: 199.8049873 | EZ11: 196.3407999 | FA11: 105.8676146 | FB11: 44.01954241 | FC11: 1111.504159 | FD11: 3150.038786 | FE11: 359.2566924 | FF11: 904.3813199 | FG11: 6.781479078 | FH11: 303.8826007 | FI11: 1319.954491 | FJ11: 259.4239296 | FK11: 80.26334636 | FL11: 4.782856815 | FM11: 6.74937888 | FN11: 91.72473055 | FO11: 17.57361035 | FP11: 46.94598292 | FQ11: 6551.759205 | FR11: 59.98676108 | FS11: 0.122230762 | FT11: 6611.868197 | FU11: 407.6203937 | FV11: 940.204595 | FW11: 1347.824989
A12: 01C051 | B12: Interventions sur le rachis et la moelle pour des affections neurologiques, niveau 1 | D12: 1436 | E12: 5938.924633 | F12: 7.447575988 | G12: 2.518846305 | H12: 241.7627953 | I12: 232.3218189 | J12: 837.2223088 | K12: 1321.273345 | L12: 1.302483695 | M12: 0.4939081474 | N12: 4.716028166 | O12: 12.67803348 | P12: 61.90286566 | Q12: 81.09331914 | R12: 0.1851283199 | S12: 0.06980248651 | T12: 1.738281772 | U12: 5.20371509 | V12: 17.4052587 | W12: 24.60218636 | X12: 0.6997926568 | Y12: 0.3005687538 | Z12: 2.256890721 | AA12: 5.241533637 | AB12: 16.3779931 | AC12: 24.87677887 | AD12: 1451.84563 | AE12: 20.91940965 | AF12: 8.857300748 | AG12: 14.70027728 | AH12: 262.1424286 | AI12: 245.1605379 | AJ12: 551.7799541 | AK12: 84.08358656 | AL12: 36.41398676 | AM12: 73.71631367 | AN12: 145.1742734 | AO12: 420.5090658 | AP12: 759.8972262 | AQ12: 0 | AR12: 0 | AS12: 0 | AT12: 0 | AU12: 0 | AV12: 0 | AW12: 0 | AX12: 0 | AY12: 0 | AZ12: 0 | BA12: 0 | BB12: 0 | BC12: 0 | BD12: 0.05084284336 | BE12: 0.02068271139 | BF12: 0.4033531192 | BG12: 0.5420902963 | BH12: 0.7021272048 | BI12: 1.719096175 | BJ12: 5.243486053 | BK12: 3.431695735 | BL12: 20.49505161 | BM12: 8.405917543 | BN12: 1.381895267 | BO12: 38.95804621 | BP12: 0.6352999526 | BQ12: 0.1608181335 | BR12: 1.13434164 | BS12: 1.405134336 | BT12: 0.2533718381 | BU12: 3.5889659 | BV12: 0.7267239576 | BW12: 0.4739576145 | BX12: 10.93003808 | BY12: 5.733220727 | BZ12: 0.2230196096 | CA12: 18.08695999 | CB12: 0 | CC12: 0 | CD12: 0 | CE12: 0 | CF12: 0 | CG12: 0 | CH12: 0.2356087093 | CI12: 0.1059406017 | CJ12: 2.120286414 | CK12: 1.591842605 | CL12: 0.0130529182 | CM12: 4.066731248 | CN12: 0.07356049811 | CO12: 0.03814265791 | CP12: 1.699863413 | CQ12: 0.8926142252 | CR12: 0.122185478 | CS12: 2.826366272 | CT12: 0.005796874851 | CU12: 0.003117812652 | CV12: 0.04925444723 | CW12: 0.0290280401 | CX12: 0 | CY12: 0.08719717483 | CZ12: 0.4725901891 | DA12: 0.2465071217 | DB12: 6.075518284 | DC12: 4.529429893 | DD12: 0.03343373483 | DE12: 11.35747922 | DF12: 0 | DG12: 0 | DH12: 0 | DI12: 0 | DJ12: 0 | DK12: 0 | DL12: 0 | DM12: 0.03621870499 | DN12: 0.03336770694 | DO12: 0.2957110214 | DP12: 0.9233704062 | DQ12: 0.5730918118 | DR12: 1.861759651 | DS12: 0.007508601537 | DT12: 0.007363360449 | DU12: 0.02633978531 | DV12: 0.4025353439 | DW12: 0.1420078342 | DX12: 0.5857549254 | DY12: 0.02420298655 | DZ12: 0.008518997679 | EA12: 0.3523263504 | EB12: 1.135236092 | EC12: 1.671452186 | ED12: 3.191736613 | EE12: 0.1021856961 | EF12: 0.02311499007 | EG12: 8.106342744 | EH12: 0.7235663537 | EI12: 2.533463297 | EJ12: 11.48867308 | EK12: 1409.495947 | EL12: 38.47230138 | EM12: 104.4537768 | EN12: 12.07882803 | EO12: 178.7252709 | EP12: 104.6177657 | EQ12: 26.08306795 | ER12: 8.494217242 | ES12: 82.26057271 | ET12: 76.46355978 | EU12: 153.5258131 | EV12: 19.67407864 | EW12: 804.8492521 | EX12: 85.47244209 | EY12: 89.86095054 | EZ12: 21.8970475 | FA12: 14.1732826 | FB12: 4.530202799 | FC12: 215.9339255 | FD12: 549.4900451 | FE12: 112.4880081 | FF12: 1163.684967 | FG12: 0.07131676388 | FH12: 13.57728094 | FI12: 118.6340573 | FJ12: 32.73411442 | FK12: 9.545114457 | FL12: 0.3254634307 | FM12: 0.8257339184 | FN12: 21.26929508 | FO12: 0.07948138534 | FP12: 2.638657317 | FQ12: 2025.363535 | FR12: 31.18317039 | FS12: 0.2531730637 | FT12: 2056.799878 | FU12: 52.26044689 | FV12: 145.1945833 | FW12: 197.4550302
A13: 01C052 | B13: Interventions sur le rachis et la moelle pour des affections neurologiques, niveau 2 | D13: 621 | E13: 8001.506816 | F13: 16.57625656 | G13: 2.899325952 | H13: 343.3668321 | I13: 376.4341752 | J13: 1363.484005 | K13: 2102.760595 | L13: 3.362135303 | M13: 1.274150291 | N13: 14.17095602 | O13: 33.10179008 | P13: 147.7774243 | Q13: 199.686456 | R13: 0.1490198325 | S13: 0.05599817514 | T13: 0.7587649055 | U13: 3.629254459 | V13: 10.01568026 | W13: 14.60871763 | X13: 4.157181476 | Y13: 2.282344842 | Z13: 15.05720395 | AA13: 33.4713246 | AB13: 92.8165038 | AC13: 147.7845587 | AD13: 2464.840327 | AE13: 21.40402909 | AF13: 9.303057588 | AG13: 20.01804321 | AH13: 311.225994 | AI13: 301.4138811 | AJ13: 663.365005 | AK13: 92.31605318 | AL13: 42.60702569 | AM13: 93.32346238 | AN13: 219.7195205 | AO13: 491.6066367 | AP13: 939.5726984 | AQ13: 0 | AR13: 0 | AS13: 0 | AT13: 0 | AU13: 0 | AV13: 0 | AW13: 0 | AX13: 0 | AY13: 0 | AZ13: 0 | BA13: 0 | BB13: 0 | BC13: 0 | BD13: 0.3471510493 | BE13: 0.2545376736 | BF13: 1.372498285 | BG13: 2.529252121 | BH13: 2.884612349 | BI13: 7.388051478 | BJ13: 14.7269597 | BK13: 10.49479862 | BL13: 51.2310619 | BM13: 23.99935065 | BN13: 3.172922357 | BO13: 103.6250932 | BP13: 1.022829352 | BQ13: 0.4664038431 | BR13: 1.532517488 | BS13: 1.476455566 | BT13: 0.4734487641 | BU13: 4.971655013 | BV13: 2.416883784 | BW13: 1.549826936 | BX13: 33.17999819 | BY13: 15.94033743 | BZ13: 0.4283613979 | CA13: 53.51540774 | CB13: 0.00367872361 | CC13: 0.001441093862 | CD13: 0.03056784384 | CE13: 0.01654962304 | CF13: 6.274698388e-05 | CG13: 0.05230003133 | CH13: 0.518303794 | CI13: 0.2358875998 | CJ13: 4.524630785 | CK13: 3.329431178 | CL13: 0.03579316154 | CM13: 8.644046518 | CN13: 0.2816269404 | CO13: 0.1906169231 | CP13: 4.677892521 | CQ13: 2.331612616 | CR13: 0.1203896513 | CS13: 7.602138651 | CT13: 0 | CU13: 0 | CV13: 0 | CW13: 0 | CX13: 0 | CY13: 0 | CZ13: 1.452895293 | DA13: 0.7965835778 | DB13: 17.27478334 | DC13: 13.11447395 | DD13: 0.1508048475 | DE13: 32.78954101 | DF13: 0 | DG13: 0 | DH13: 0 | DI13: 0 | DJ13: 0 | DK13: 0 | DL13: 0 | DM13: 0.3348380641 | DN13: 0.2263507661 | DO13: 3.401037302 | DP13: 7.214587391 | DQ13: 3.626135694 | DR13: 14.80294922 | DS13: 0.008895641792 | DT13: 0.008723570777 | DU13: 0.03120545069 | DV13: 0.476894427 | DW13: 0.1682404931 | DX13: 0.6939595834 | DY13: 0.04286181008 | DZ13: 0.02269457486 | EA13: 0.8106354019 | EB13: 2.393786206 | EC13: 3.410196984 | ED13: 6.680174977 | EE13: 0.4405049761 | EF13: 0.06763002743 | EG13: 27.44267364 | EH13: 1.332377823 | EI13: 5.400420943 | EJ13: 34.68360741 | EK13: 1878.386628 | EL13: 69.35619753 | EM13: 178.7140472 | EN13: 12.86390402 | EO13: 296.8074009 | EP13: 160.1907853 | EQ13: 37.6850225 | ER13: 8.981206683 | ES13: 118.0233892 | ET13: 135.3785309 | EU13: 244.7176189 | EV13: 28.74282679 | EW13: 1291.46093 | EX13: 132.8766896 | EY13: 108.8914573 | EZ13: 29.52929048 | FA13: 23.23179485 | FB13: 7.339450021 | FC13: 301.8686822 | FD13: 656.5331554 | FE13: 98.4068561 | FF13: 730.0288566 | FG13: 0.5844417049 | FH13: 57.5504385 | FI13: 212.9298955 | FJ13: 147.3321359 | FK13: 13.58513267 | FL13: 0.2503094373 | FM13: 9.360542882 | FN13: 61.31684006 | FO13: 3.586760711 | FP13: 2.441639288 | FQ13: 1993.907005 | FR13: 69.74406474 | FS13: 1.299178376 | FT13: 2064.950248 | FU13: 88.8768885 | FV13: 246.7819226 | FW13: 335.6588111
A14: 01C053 | B14: Interventions sur le rachis et la moelle pour des affections neurologiques, niveau 3 | D14: 358 | E14: 11698.56775 | F14: 29.16829567 | G14: 4.938478188 | H14: 544.1708444 | I14: 577.8617821 | J14: 2293.034309 | K14: 3449.17371 | L14: 4.867642802 | M14: 2.261413664 | N14: 21.75816306 | O14: 48.66535245 | P14: 213.2516023 | Q14: 290.8041743 | R14: 1.049378533 | S14: 0.2280452199 | T14: 6.840779942 | U14: 11.81825979 | V14: 62.34449881 | W14: 82.2809623 | X14: 18.79605609 | Y14: 6.588483738 | Z14: 50.15125808 | AA14: 133.8264302 | AB14: 406.9958219 | AC14: 616.35805 | AD14: 4438.616896 | AE14: 22.03161745 | AF14: 9.73104304 | AG14: 25.04874387 | AH14: 357.9666632 | AI14: 349.9082684 | AJ14: 764.6863359 | AK14: 90.66022885 | AL14: 44.43060283 | AM14: 84.7718495 | AN14: 220.8701808 | AO14: 499.2781924 | AP14: 940.0110543 | AQ14: 0 | AR14: 0 | AS14: 0 | AT14: 0 | AU14: 0 | AV14: 0 | AW14: 0 | AX14: 0 | AY14: 0 | AZ14: 0 | BA14: 0 | BB14: 1.307453214 | BC14: 1.307453214 | BD14: 2.022013444 | BE14: 1.140160942 | BF14: 3.493340492 | BG14: 6.911783659 | BH14: 9.033126052 | BI14: 22.60042459 | BJ14: 25.53938223 | BK14: 17.06225935 | BL14: 91.56193956 | BM14: 42.75251061 | BN14: 5.784723657 | BO14: 182.7008154 | BP14: 5.355635116 | BQ14: 0.848365425 | BR14: 8.902262721 | BS14: 11.80796953 | BT14: 1.840555096 | BU14: 28.75478789 | BV14: 5.383694183 | BW14: 3.353875031 | BX14: 73.63321324 | BY14: 35.32194231 | BZ14: 1.016525682 | CA14: 118.7092504 | CB14: 0 | CC14: 0 | CD14: 0 | CE14: 0 | CF14: 0 | CG14: 0 | CH14: 0.7520432621 | CI14: 0.3016111566 | CJ14: 6.610324314 | CK14: 5.025187536 | CL14: 0.03840260364 | CM14: 12.72756887 | CN14: 0.7367724507 | CO14: 0.4096161203 | CP14: 12.52012826 | CQ14: 6.594072497 | CR14: 0.496360475 | CS14: 20.75694981 | CT14: 0 | CU14: 0 | CV14: 0 | CW14: 0 | CX14: 0 | CY14: 0 | CZ14: 2.791306122 | DA14: 1.176789855 | DB14: 30.91809401 | DC14: 23.83601418 | DD14: 0.1794058444 | DE14: 58.90161001 | DF14: 0 | DG14: 0.0874827016 | DH14: 0.5424861081 | DI14: 0.2061230384 | DJ14: 0.04769353556 | DK14: 6.64644491 | DL14: 7.530230294 | DM14: 0.4045081652 | DN14: 0.3152567437 | DO14: 2.886956997 | DP14: 5.328281892 | DQ14: 2.994195739 | DR14: 11.92919954 | DS14: 9.802284121 | DT14: 0.1501173575 | DU14: 1.24215486 | DV14: 5.25535279 | DW14: 1.846190102 | DX14: 18.29609923 | DY14: 0.2058284244 | DZ14: 0.05870508062 | EA14: 2.572463656 | EB14: 7.386661303 | EC14: 11.36286831 | ED14: 21.58652678 | EE14: 0.327844057 | EF14: 0.1483861431 | EG14: 54.59305604 | EH14: 2.823592722 | EI14: 4.832770097 | EJ14: 62.72564906 | EK14: 2273.223955 | EL14: 112.69222 | EM14: 288.3017126 | EN14: 12.58875227 | EO14: 484.8063669 | EP14: 264.649589 | EQ14: 67.70437727 | ER14: 8.454596644 | ES14: 227.8494452 | ET14: 192.7345477 | EU14: 388.1722479 | EV14: 40.4238428 | EW14: 2088.377698 | EX14: 166.126929 | EY14: 115.9673173 | EZ14: 41.13199469 | FA14: 27.29552812 | FB14: 9.29684047 | FC14: 359.8186096 | FD14: 829.6412925 | FE14: 116.0921644 | FF14: 568.7090272 | FG14: 1.618175809 | FH14: 192.191116 | FI14: 587.3928553 | FJ14: 61.55498193 | FK14: 16.17533811 | FL14: 0.1773803574 | FM14: 7.527452138 | FN14: 93.32691958 | FO14: 1.607916969 | FP14: 14.64520328 | FQ14: 2490.659824 | FR14: 47.49473171 | FS14: 0.3760396487 | FT14: 2538.530595 | FU14: 128.2196976 | FV14: 372.0403691 | FW14: 500.2600667
A15: 01C054 | B15: Interventions sur le rachis et la moelle pour des affections neurologiques, niveau 4 | D15: 144 | E15: 28212.21066 | F15: 32.86377357 | G15: 7.743414469 | H15: 851.2952545 | I15: 970.0510831 | J15: 3536.969247 | K15: 5398.922773 | L15: 11.73720946 | M15: 6.889631684 | N15: 92.72701765 | O15: 202.4325327 | P15: 948.6825535 | Q15: 1262.468945 | R15: 0.8380433786 | S15: 0.2404692202 | T15: 1.845129261 | U15: 9.887567528 | V15: 26.02870069 | W15: 38.83991008 | X15: 167.2123673 | Y15: 70.02633855 | Z15: 534.1112575 | AA15: 1666.462613 | AB15: 4722.790304 | AC15: 7160.60288 | AD15: 13860.83451 | AE15: 18.3658096 | AF15: 11.50946816 | AG15: 25.65507915 | AH15: 401.097151 | AI15: 390.2753031 | AJ15: 846.902811 | AK15: 78.1308842 | AL15: 47.90518908 | AM15: 81.15581543 | AN15: 228.1440725 | AO15: 608.7448596 | AP15: 1044.080821 | AQ15: 0.2405319969 | AR15: 0.0516891486 | AS15: 0.7297462319 | AT15: 0.6183695875 | AU15: 0.8008224139 | AV15: 2.441159379 | AW15: 0 | AX15: 0.09390739782 | AY15: 0.171479167 | AZ15: 0.2837495675 | BA15: 2.463429516 | BB15: 0 | BC15: 3.012565649 | BD15: 4.474246329 | BE15: 2.828613596 | BF15: 12.96870895 | BG15: 26.52912403 | BH15: 25.59260398 | BI15: 72.39329689 | BJ15: 54.30010116 | BK15: 42.19245638 | BL15: 290.6682536 | BM15: 113.3955454 | BN15: 25.01319683 | BO15: 525.5695534 | BP15: 3.165996949 | BQ15: 1.903387401 | BR15: 7.893105593 | BS15: 4.331744306 | BT15: 1.759252955 | BU15: 19.0534872 | BV15: 23.48573904 | BW15: 14.62624544 | BX15: 333.5091699 | BY15: 167.022071 | BZ15: 4.354859167 | CA15: 542.9980845 | CB15: 0 | CC15: 0 | CD15: 0 | CE15: 0 | CF15: 0 | CG15: 0 | CH15: 0.8491036535 | CI15: 0.3928294229 | CJ15: 6.168373634 | CK15: 4.986372784 | CL15: 0.02100671512 | CM15: 12.41768621 | CN15: 3.92029038 | CO15: 2.417757179 | CP15: 60.62917366 | CQ15: 33.54164552 | CR15: 1.516578687 | CS15: 102.0254454 | CT15: 0 | CU15: 0 | CV15: 0 | CW15: 0 | CX15: 0 | CY15: 0 | CZ15: 1.228236943 | DA15: 0.7055736053 | DB15: 18.14353837 | DC15: 14.48085505 | DD15: 0.1001301886 | DE15: 34.65833416 | DF15: 0.05187719191 | DG15: 0.8163599267 | DH15: 3.683968187 | DI15: 1.275939017 | DJ15: 0.2554927299 | DK15: 57.80785966 | DL15: 63.89149671 | DM15: 1.781318858 | DN15: 1.261384652 | DO15: 18.343428 | DP15: 28.89687891 | DQ15: 15.07384576 | DR15: 65.35685618 | DS15: 0.07820866225 | DT15: 0.09876936058 | DU15: 1.68483033 | DV15: 10.48893828 | DW15: 4.091416635 | DX15: 16.44216327 | DY15: 0.330351421 | DZ15: 0.0766650226 | EA15: 5.249044424 | EB15: 13.22798629 | EC15: 19.93394611 | ED15: 38.81799327 | EE15: 4.061463987 | EF15: 1.577027579 | EG15: 329.5051215 | EH15: 11.68041012 | EI15: 32.60421806 | EJ15: 379.4282413 | EK15: 3769.489995 | EL15: 280.4914497 | EM15: 505.8317405 | EN15: 13.31182885 | EO15: 1006.446077 | EP15: 674.6259123 | EQ15: 139.8908684 | ER15: 8.894156276 | ES15: 412.7246762 | ET15: 484.3441489 | EU15: 905.7342452 | EV15: 110.7083853 | EW15: 4543.003489 | EX15: 410.9369533 | EY15: 166.1867217 | EZ15: 101.135911 | FA15: 68.81856071 | FB15: 28.63823424 | FC15: 775.716381 | FD15: 1999.378008 | FE15: 119.2977769 | FF15: 1108.970899 | FG15: 7.455922031 | FH15: 390.2923017 | FI15: 1068.70319 | FJ15: 326.8913667 | FK15: 94.03382306 | FL15: 4.458661098 | FM15: 8.313817481 | FN15: 76.75017061 | FO15: 5.175231827 | FP15: 39.89945145 | FQ15: 5249.62062 | FR15: 13.52946759 | FS15: 0.01619810043 | FT15: 5263.166285 | FU15: 397.1116445 | FV15: 864.6803319 | FW15: 1261.791976
A16: 01C061 | B16: Interventions sur le système vasculaire précérébral, niveau 1 | D16: 1486 | E16: 5287.264709 | F16: 11.66226358 | G16: 2.416501781 | H16: 171.7576363 | I16: 226.3715653 | J16: 711.5688194 | K16: 1123.776786 | L16: 3.785799005 | M16: 0.7201251447 | N16: 12.02429153 | O16: 23.34724108 | P16: 119.5378967 | Q16: 159.4153534 | R16: 0.6698745619 | S16: 0.1819824971 | T16: 7.133448206 | U16: 15.65756377 | V16: 45.93849058 | W16: 69.58135961 | X16: 0.6912292598 | Y16: 0.2773028885 | Z16: 1.921512302 | AA16: 4.561137026 | AB16: 15.22911382 | AC16: 22.6802953 | AD16: 1375.453795 | AE16: 18.15260431 | AF16: 7.432234185 | AG16: 16.38185516 | AH16: 270.9199801 | AI16: 260.5378134 | AJ16: 573.4244871 | AK16: 71.10313765 | AL16: 31.50656839 | AM16: 95.63541169 | AN16: 238.3212919 | AO16: 561.314159 | AP16: 997.8805686 | AQ16: 0 | AR16: 0 | AS16: 0 | AT16: 0 | AU16: 0 | AV16: 0 | AW16: 0.2064373258 | AX16: 0.1931275563 | AY16: 0.09945336741 | AZ16: 0.8416989769 | BA16: 2.804700167 | BB16: 0.7352875702 | BC16: 4.880704964 | BD16: 2.634678365 | BE16: 1.348627666 | BF16: 4.166169683 | BG16: 7.452521004 | BH16: 8.740098901 | BI16: 24.34209562 | BJ16: 8.792393764 | BK16: 6.202546571 | BL16: 31.08864555 | BM16: 20.6974482 | BN16: 4.765573084 | BO16: 71.54660717 | BP16: 0.4942850522 | BQ16: 0.4476071288 | BR16: 2.865656214 | BS16: 2.134285254 | BT16: 0.3231665256 | BU16: 6.265000174 | BV16: 2.395806635 | BW16: 1.75404048 | BX16: 39.85172701 | BY16: 16.53032263 | BZ16: 0.9167671632 | CA16: 61.44866392 | CB16: 0.09006830445 | CC16: 0.07416105079 | CD16: 0.802554543 | CE16: 0.424635741 | CF16: 1.544445265e-05 | CG16: 1.391435084 | CH16: 0.251157281 | CI16: 0.08485629822 | CJ16: 2.322837431 | CK16: 2.466362075 | CL16: 0.005358751018 | CM16: 5.130571836 | CN16: 0.1649852134 | CO16: 0.09932238569 | CP16: 2.045219757 | CQ16: 1.095910645 | CR16: 0.03557343422 | CS16: 3.441011436 | CT16: 0 | CU16: 0 | CV16: 0 | CW16: 0 | CX16: 0 | CY16: 0 | CZ16: 0.3702132952 | DA16: 0.1346095771 | DB16: 3.765595592 | DC16: 3.763674731 | DD16: 0.02064668235 | DE16: 8.054739878 | DF16: 0 | DG16: 0 | DH16: 0 | DI16: 0 | DJ16: 0 | DK16: 0 | DL16: 0 | DM16: 0.03286639329 | DN16: 0.02804821569 | DO16: 0.4938680482 | DP16: 0.9748946592 | DQ16: 0.5656011888 | DR16: 2.095278505 | DS16: 0 | DT16: 0 | DU16: 0 | DV16: 0 | DW16: 0 | DX16: 0 | DY16: 0.06438541147 | DZ16: 0.0382849455 | EA16: 0.7736278436 | EB16: 1.923328017 | EC16: 2.624515947 | ED16: 5.424142165 | EE16: 0.02208510818 | EF16: 0.006176152445 | EG16: 3.058357442 | EH16: 0.09661513138 | EI16: 0.2685953715 | EJ16: 3.451829206 | EK16: 1768.777136 | EL16: 39.19428914 | EM16: 99.54043584 | EN16: 14.77393385 | EO16: 151.0733103 | EP16: 88.15252797 | EQ16: 21.71149579 | ER16: 9.664062906 | ES16: 65.31139485 | ET16: 68.59824415 | EU16: 121.3609168 | EV16: 13.3855299 | EW16: 692.7661415 | EX16: 103.1412266 | EY16: 104.5811849 | EZ16: 34.28624988 | FA16: 18.6041869 | FB16: 6.302387883 | FC16: 266.9152362 | FD16: 718.6517356 | FE16: 40.18242427 | FF16: 85.65373864 | FG16: 0.06924459337 | FH16: 18.8426387 | FI16: 107.2922527 | FJ16: 1.256735961 | FK16: 9.092533643 | FL16: 0.2395510286 | FM16: 1.042503092 | FN16: 27.24089618 | FO16: 0.3131745969 | FP16: 1.733728342 | FQ16: 1011.611157 | FR16: 114.3276198 | FS16: 57.41362339 | FT16: 1183.352401 | FU16: 44.33456405 | FV16: 129.2696293 | FW16: 173.6041933
A17: 01C062 | B17: Interventions sur le système vasculaire précérébral, niveau 2 | D17: 741 | E17: 7078.719559 | F17: 12.54978232 | G17: 2.359497301 | H17: 241.0109121 | I17: 258.5981387 | J17: 956.2591141 | K17: 1470.777444 | L17: 4.912713357 | M17: 1.189962953 | N17: 30.8865063 | O17: 39.47230704 | P17: 211.4057715 | Q17: 287.8672611 | R17: 1.974480328 | S17: 0.6997417352 | T17: 20.11631547 | U17: 40.36055911 | V17: 132.0714258 | W17: 195.2225225 | X17: 2.78482298 | Y17: 1.299123865 | Z17: 8.871932087 | AA17: 22.72573142 | AB17: 85.95520044 | AC17: 121.6368108 | AD17: 2075.504039 | AE17: 21.46979616 | AF17: 9.018026694 | AG17: 22.89340304 | AH17: 311.3343631 | AI17: 326.2982436 | AJ17: 691.0138326 | AK17: 81.26111426 | AL17: 31.88156787 | AM17: 125.8984697 | AN17: 275.1348316 | AO17: 612.958095 | AP17: 1127.134078 | AQ17: 0 | AR17: 0 | AS17: 0 | AT17: 0 | AU17: 0 | AV17: 0 | AW17: 0 | AX17: 0 | AY17: 0 | AZ17: 0 | BA17: 0 | BB17: 1.956672772 | BC17: 1.956672772 | BD17: 3.077115374 | BE17: 1.511301907 | BF17: 6.234571115 | BG17: 12.15380749 | BH17: 14.72305113 | BI17: 37.69984701 | BJ17: 18.53066323 | BK17: 12.20997292 | BL17: 62.59161382 | BM17: 42.62201223 | BN17: 8.258192738 | BO17: 144.2124549 | BP17: 0.9038215692 | BQ17: 0.796197614 | BR17: 3.016040844 | BS17: 2.414675713 | BT17: 1.917587622 | BU17: 9.048323362 | BV17: 4.41039567 | BW17: 3.203040184 | BX17: 71.52196211 | BY17: 28.58119123 | BZ17: 1.392112802 | CA17: 109.108702 | CB17: 0.05083046041 | CC17: 0.04167781662 | CD17: 0.4526811809 | CE17: 0.2395574576 | CF17: 1.557401122e-05 | CG17: 0.7847624895 | CH17: 0.3245919678 | CI17: 0.09980434207 | CJ17: 3.306218085 | CK17: 3.573229758 | CL17: 0.01144128575 | CM17: 7.315285438 | CN17: 0.3327114999 | CO17: 0.2013360819 | CP17: 4.571287055 | CQ17: 2.230183696 | CR17: 0.07962886108 | CS17: 7.415147193 | CT17: 0 | CU17: 0 | CV17: 0 | CW17: 0 | CX17: 0 | CY17: 0 | CZ17: 0.5726273273 | DA17: 0.1910336959 | DB17: 6.28336265 | DC17: 6.251681645 | DD17: 0.04168260944 | DE17: 13.34038793 | DF17: 0 | DG17: 0 | DH17: 0 | DI17: 0 | DJ17: 0 | DK17: 0 | DL17: 0 | DM17: 0.04412703312 | DN17: 0.02855279545 | DO17: 1.133162748 | DP17: 1.169740944 | DQ17: 1.075425995 | DR17: 3.451009515 | DS17: 0 | DT17: 0 | DU17: 0 | DV17: 0 | DW17: 0 | DX17: 0 | DY17: 0.1354060609 | DZ17: 0.06372181675 | EA17: 2.259543633 | EB17: 5.077421348 | EC17: 7.1371426 | ED17: 14.67323546 | EE17: 0.09929855167 | EF17: 0.03370918532 | EG17: 10.84949333 | EH17: 0.2526496003 | EI17: 0.8345934725 | EJ17: 12.06974414 | EK17: 2179.223483 | EL17: 61.77363361 | EM17: 144.3809684 | EN17: 15.10144767 | EO17: 225.9396486 | EP17: 136.5688662 | EQ17: 28.78853422 | ER17: 10.51418756 | ES17: 92.70727377 | ET17: 108.9023185 | EU17: 188.1642546 | EV17: 20.79820633 | EW17: 1033.639339 | EX17: 128.7339188 | EY17: 107.5361039 | EZ17: 36.51082232 | FA17: 21.92778835 | FB17: 9.129377392 | FC17: 303.8380107 | FD17: 887.961972 | FE17: 43.85470443 | FF17: 148.7692943 | FG17: 0.4127596823 | FH17: 37.83275421 | FI17: 148.7194093 | FJ17: 7.797729422 | FK17: 7.970177366 | FL17: 0.4635696222 | FM17: 2.385434401 | FN17: 37.92766168 | FO17: 0.6805185862 | FP17: 1.38710351 | FQ17: 1326.163088 | FR17: 90.43386222 | FS17: 69.91773634 | FT17: 1486.514687 | FU17: 71.79080979 | FV17: 187.5192755 | FW17: 259.3100853
A18: 01C063 | B18: Interventions sur le système vasculaire précérébral, niveau 3 | D18: 201 | E18: 11236.22057 | F18: 25.20334438 | G18: 3.803036101 | H18: 435.364048 | I18: 463.1413009 | J18: 1638.006835 | K18: 2565.518565 | L18: 6.352931619 | M18: 1.910406337 | N18: 48.96982008 | O18: 41.84878346 | P18: 351.5758549 | Q18: 450.6577964 | R18: 9.06204186 | S18: 3.467439367 | T18: 72.48809326 | U18: 178.9056009 | V18: 527.4765152 | W18: 791.3996906 | X18: 15.12433032 | Y18: 3.965096223 | Z18: 37.47003174 | AA18: 117.7081491 | AB18: 301.4959203 | AC18: 475.7635277 | AD18: 4283.33958 | AE18: 20.07178408 | AF18: 9.901513484 | AG18: 20.3622436 | AH18: 324.4050443 | AI18: 312.4002653 | AJ18: 687.1408508 | AK18: 74.93283027 | AL18: 30.70540324 | AM18: 116.4293857 | AN18: 251.1189637 | AO18: 633.860516 | AP18: 1107.047099 | AQ18: 0 | AR18: 0 | AS18: 0 | AT18: 0 | AU18: 0 | AV18: 0 | AW18: 0 | AX18: 0 | AY18: 0 | AZ18: 0 | BA18: 0 | BB18: 13.26433712 | BC18: 13.26433712 | BD18: 9.917284315 | BE18: 5.591937392 | BF18: 22.47361359 | BG18: 36.19470056 | BH18: 49.79587358 | BI18: 123.9734094 | BJ18: 41.12227993 | BK18: 27.14433702 | BL18: 141.7148558 | BM18: 83.08792976 | BN18: 16.6307145 | BO18: 309.700117 | BP18: 3.586082641 | BQ18: 4.271302459 | BR18: 9.948931475 | BS18: 8.75036565 | BT18: 16.62999257 | BU18: 43.18667479 | BV18: 11.1600647 | BW18: 8.03185455 | BX18: 166.3226056 | BY18: 67.35814773 | BZ18: 4.345167441 | CA18: 257.21784 | CB18: 0.0001624869517 | CC18: 2.612104843e-05 | CD18: 0.01001621967 | CE18: 0.009827017989 | CF18: 0 | CG18: 0.02003184566 | CH18: 0.33027849 | CI18: 0.132513407 | CJ18: 2.748617472 | CK18: 2.690663767 | CL18: 0.008514261779 | CM18: 5.910587398 | CN18: 0.8048252991 | CO18: 0.5805477299 | CP18: 12.41496604 | CQ18: 5.659037445 | CR18: 0.3345447515 | CS18: 19.79392127 | CT18: 0 | CU18: 0 | CV18: 0 | CW18: 0 | CX18: 0 | CY18: 0 | CZ18: 0.7068551963 | DA18: 0.2882970011 | DB18: 6.256333476 | DC18: 5.460320154 | DD18: 0.03233443835 | DE18: 12.74414027 | DF18: 0 | DG18: 0 | DH18: 0 | DI18: 0 | DJ18: 0 | DK18: 0 | DL18: 0 | DM18: 0.3227746467 | DN18: 0.1294981805 | DO18: 2.156464139 | DP18: 4.762428491 | DQ18: 2.890626505 | DR18: 10.26179196 | DS18: 0 | DT18: 0 | DU18: 0 | DV18: 0 | DW18: 0 | DX18: 0 | DY18: 0.343298088 | DZ18: 0.1564674985 | EA18: 4.577308283 | EB18: 11.46298301 | EC18: 15.7455001 | ED18: 32.28555698 | EE18: 0.2391719381 | EF18: 0.06658609297 | EG18: 23.44587267 | EH18: 1.541923132 | EI18: 6.105696869 | EJ18: 31.3992507 | EK18: 2653.945608 | EL18: 111.7035756 | EM18: 259.9437653 | EN18: 14.09647887 | EO18: 390.4113605 | EP18: 243.4918057 | EQ18: 57.34347791 | ER18: 9.236878369 | ES18: 176.5364701 | ET18: 206.0076501 | EU18: 345.0505516 | EV18: 35.46179127 | EW18: 1849.283805 | EX18: 180.2281674 | EY18: 121.346413 | EZ18: 61.14571159 | FA18: 31.61468321 | FB18: 12.821615 | FC18: 407.1565902 | FD18: 1095.414064 | FE18: 66.22552599 | FF18: 207.736567 | FG18: 0.5299483912 | FH18: 92.23484058 | FI18: 311.512651 | FJ18: 73.10925131 | FK18: 16.84106316 | FL18: 0.5092440858 | FM18: 13.49910098 | FN18: 55.48048406 | FO18: 2.470227212 | FP18: 0.5972274166 | FQ18: 1936.160195 | FR18: 66.70087838 | FS18: 39.63391076 | FT18: 2042.494984 | FU18: 148.5173905 | FV18: 344.3535067 | FW18: 492.8708973
A19: 01C064 | B19: Interventions sur le système vasculaire précérébral, niveau 4 | D19: 44 | E19: 22766.45108 | F19: 36.1525811 | G19: 11.50991296 | H19: 700.5309677 | I19: 903.7662214 | J19: 2789.527935 | K19: 4441.487619 | L19: 8.641566598 | M19: 1.369016382 | N19: 34.92819587 | O19: 59.19881367 | P19: 310.4572523 | Q19: 414.5948448 | R19: 35.07811879 | S19: 15.350494 | T19: 191.6045318 | U19: 112.457293 | V19: 1091.127729 | W19: 1445.618167 | X19: 107.6836105 | Y19: 41.50513619 | Z19: 333.9562061 | AA19: 804.5067871 | AB19: 2389.073302 | AC19: 3676.725042 | AD19: 9978.425672 | AE19: 26.08618097 | AF19: 10.33225792 | AG19: 35.21597394 | AH19: 338.2231481 | AI19: 401.2567043 | AJ19: 811.1142652 | AK19: 91.79229036 | AL19: 49.08089107 | AM19: 126.2219695 | AN19: 257.0431631 | AO19: 726.1249471 | AP19: 1250.263261 | AQ19: 0 | AR19: 0 | AS19: 0 | AT19: 0 | AU19: 0 | AV19: 0 | AW19: 0 | AX19: 0 | AY19: 0 | AZ19: 0 | BA19: 0 | BB19: 126.2645907 | BC19: 126.2645907 | BD19: 18.88335656 | BE19: 9.331804976 | BF19: 34.66829936 | BG19: 69.4138066 | BH19: 77.92199178 | BI19: 210.2192593 | BJ19: 74.0087464 | BK19: 41.88115698 | BL19: 294.674859 | BM19: 94.93112936 | BN19: 20.31165959 | BO19: 525.8075514 | BP19: 5.489619555 | BQ19: 2.702002674 | BR19: 16.89927811 | BS19: 11.79229594 | BT19: 5.134765092 | BU19: 42.01796137 | BV19: 31.09465339 | BW19: 19.71602819 | BX19: 484.2511418 | BY19: 154.7148368 | BZ19: 10.14725287 | CA19: 699.9239131 | CB19: 0.1140184969 | CC19: 0.09438112611 | CD19: 1.016659042 | CE19: 0.5378011804 | CF19: 0 | CG19: 1.762859846 | CH19: 0.5795621383 | CI19: 0.2004428695 | CJ19: 6.673405421 | CK19: 6.75513202 | CL19: 0.01160127728 | CM19: 14.22014373 | CN19: 2.168533717 | CO19: 1.411995089 | CP19: 36.45098977 | CQ19: 18.49225284 | CR19: 0.6931357081 | CS19: 59.21690713 | CT19: 0 | CU19: 0 | CV19: 0 | CW19: 0 | CX19: 0 | CY19: 0 | CZ19: 0.9666050351 | DA19: 0.3541500188 | DB19: 10.00057675 | DC19: 8.954759784 | DD19: 0.04843052475 | DE19: 20.32452211 | DF19: 0 | DG19: 0 | DH19: 0 | DI19: 0 | DJ19: 0 | DK19: 0 | DL19: 0 | DM19: 0.5118293781 | DN19: 0.4178431172 | DO19: 2.845723025 | DP19: 5.219099915 | DQ19: 3.357490998 | DR19: 12.35198643 | DS19: 0 | DT19: 0 | DU19: 0 | DV19: 0 | DW19: 0 | DX19: 0 | DY19: 0.1563776419 | DZ19: 0.0335749443 | EA19: 3.047127993 | EB19: 5.341878636 | EC19: 9.475053231 | ED19: 18.05401245 | EE19: 0.4762960348 | EF19: 0.1321244214 | EG19: 100.97963 | EH19: 5.191787946 | EI19: 17.82594806 | EJ19: 124.6057865 | EK19: 3916.14702 | EL19: 191.5261748 | EM19: 431.4431106 | EN19: 15.4428255 | EO19: 705.0451258 | EP19: 453.2326845 | EQ19: 101.3077639 | ER19: 9.079054686 | ES19: 344.7690418 | ET19: 346.0753092 | EU19: 617.5267215 | EV19: 65.07116926 | EW19: 3280.518982 | EX19: 355.0264746 | EY19: 162.5754154 | EZ19: 156.9831736 | FA19: 55.95950472 | FB19: 60.02766063 | FC19: 790.5722289 | FD19: 2004.074439 | FE19: 41.11952563 | FF19: 311.5386582 | FG19: 0.8447619501 | FH19: 414.5586989 | FI19: 995.7508053 | FJ19: 87.10638305 | FK19: 24.47337384 | FL19: 0.7979366314 | FM19: 2.524780174 | FN19: 82.60016784 | FO19: 7.066986246 | FP19: 1.762740195 | FQ19: 3974.219257 | FR19: 104.8675972 | FS19: 721.7003254 | FT19: 4800.78718 | FU19: 226.3088363 | FV19: 674.889265 | FW19: 901.1981013
A20: 01C081 | B20: Interventions sur les nerfs crâniens ou périphériques et autres interventions sur le système nerveux, niveau 1 | D20: 1841 | E20: 3148.821227 | F20: 5.362806073 | G20: 0.9628118177 | H20: 102.4692513 | I20: 113.7427178 | J20: 409.2843638 | K20: 631.8219509 | L20: 0.2589126145 | M20: 0.08128662656 | N20: 1.751782427 | O20: 2.868763705 | P20: 12.27237905 | Q20: 17.23312443 | R20: 0.04806821544 | S20: 0.01482186102 | T20: 0.5745499759 | U20: 1.121807683 | V20: 2.985138271 | W20: 4.744386006 | X20: 0.2135983096 | Y20: 0.08515377659 | Z20: 0.5356845359 | AA20: 1.54226252 | AB20: 4.457109808 | AC20: 6.83380895 | AD20: 660.6332703 | AE20: 14.68288288 | AF20: 6.591632731 | AG20: 18.11926997 | AH20: 224.7904139 | AI20: 239.2670636 | AJ20: 503.451263 | AK20: 46.19097492 | AL20: 23.5427188 | AM20: 68.35943509 | AN20: 167.3491702 | AO20: 367.4362838 | AP20: 672.8785828 | AQ20: 0 | AR20: 0 | AS20: 0 | AT20: 0 | AU20: 0 | AV20: 0 | AW20: 0.04157455447 | AX20: 0.008095448596 | AY20: 0.08760005021 | AZ20: 0.1093350743 | BA20: 0.6418530194 | BB20: 0 | BC20: 0.888458147 | BD20: 0.4884017541 | BE20: 0.2592649858 | BF20: 1.750298253 | BG20: 3.01605836 | BH20: 4.36964746 | BI20: 9.883670812 | BJ20: 2.607711555 | BK20: 2.505397814 | BL20: 15.23402482 | BM20: 6.263075562 | BN20: 1.056579514 | BO20: 27.66678927 | BP20: 0 | BQ20: 0 | BR20: 0 | BS20: 0 | BT20: 0 | BU20: 0 | BV20: 1.798284765 | BW20: 1.189932458 | BX20: 37.83798075 | BY20: 12.53606698 | BZ20: 0.2223625261 | CA20: 53.58462748 | CB20: 0.008998034289 | CC20: 0.01572877548 | CD20: 0.1040201235 | CE20: 0.048125405 | CF20: 0.001099017746 | CG20: 0.177971356 | CH20: 0.3610601371 | CI20: 0.1414841833 | CJ20: 3.16160052 | CK20: 2.290030658 | CL20: 0.02170120735 | CM20: 5.975876706 | CN20: 0.5593448816 | CO20: 0.3500071389 | CP20: 13.14711047 | CQ20: 4.304363902 | CR20: 0.09712218873 | CS20: 18.45794858 | CT20: 0.04638047525 | CU20: 0.02986167749 | CV20: 2.191298281 | CW20: 1.708291853 | CX20: 0.00114717027 | CY20: 3.976979457 | CZ20: 1.778422147 | DA20: 0.8692582966 | DB20: 19.36695865 | DC20: 13.895243 | DD20: 0.1505122034 | DE20: 36.06039429 | DF20: 0 | DG20: 0 | DH20: 0 | DI20: 0 | DJ20: 0 | DK20: 0 | DL20: 0 | DM20: 0.2256905809 | DN20: 0.09914512023 | DO20: 1.818390601 | DP20: 27.94862723 | DQ20: 13.50511072 | DR20: 43.59696425 | DS20: 0.001909470448 | DT20: 0.001872535 | DU20: 0.006698323439 | DV20: 0.1023665112 | DW20: 0.03611321783 | DX20: 0.1489600579 | DY20: 0.3505768065 | DZ20: 0.1514767539 | EA20: 5.417785951 | EB20: 15.6630394 | EC20: 17.25579801 | ED20: 38.83867692 | EE20: 0.01513049414 | EF20: 0.004860606974 | EG20: 2.889122723 | EH20: 0.08415033277 | EI20: 0.2827326561 | EJ20: 3.275996813 | EK20: 1418.86316 | EL20: 19.68064345 | EM20: 48.54648254 | EN20: 14.81627051 | EO20: 78.01781849 | EP20: 46.12850502 | EQ20: 9.879731174 | ER20: 8.826875271 | ES20: 31.87005838 | ET20: 33.18375784 | EU20: 62.05386478 | EV20: 7.568383358 | EW20: 360.5723908 | EX20: 57.62134122 | EY20: 93.7087326 | EZ20: 17.68390544 | FA20: 10.2222532 | FB20: 3.003529889 | FC20: 182.2397623 | FD20: 334.2365557 | FE20: 39.84536955 | FF20: 14.01814677 | FG20: 0.02660678638 | FH20: 16.66749017 | FI20: 68.76167147 | FJ20: 18.41874999 | FK20: 2.368750748 | FL20: 0.08012939918 | FM20: 0.5733002361 | FN20: 14.38398487 | FO20: 0.1701560983 | FP20: 0.6723431606 | FQ20: 510.2232549 | FR20: 8.138055499 | FS20: 8.151333127 | FT20: 526.5126436 | FU20: 24.33878838 | FV20: 57.6793859 | FW20: 82.01817428
A21: 01C082 | B21: Interventions sur les nerfs crâniens ou périphériques et autres interventions sur le système nerveux, niveau 2 | D21: 222 | E21: 5794.308735 | F21: 11.61158764 | G21: 4.604490524 | H21: 280.2946974 | I21: 301.2589785 | J21: 1120.376895 | K21: 1718.146649 | L21: 1.51885661 | M21: 0.7711400455 | N21: 8.576774104 | O21: 19.95856279 | P21: 78.71385757 | Q21: 109.5391911 | R21: 0.1029968682 | S21: 0.04350329497 | T21: 0.4420388588 | U21: 3.05176692 | V21: 7.407248212 | W21: 11.04755415 | X21: 3.061975504 | Y21: 1.41845147 | Z21: 10.2224455 | AA21: 17.41902725 | AB21: 48.79916839 | AC21: 80.92106812 | AD21: 1919.654463 | AE21: 16.63476657 | AF21: 6.767613539 | AG21: 14.13516614 | AH21: 228.1994966 | AI21: 235.1151703 | AJ21: 500.8522131 | AK21: 50.98504331 | AL21: 31.35730026 | AM21: 58.66883892 | AN21: 162.7436099 | AO21: 406.6303239 | AP21: 710.3851163 | AQ21: 0 | AR21: 0 | AS21: 0 | AT21: 0 | AU21: 0 | AV21: 0 | AW21: 0 | AX21: 0 | AY21: 0 | AZ21: 0 | BA21: 0 | BB21: 0 | BC21: 0 | BD21: 0.9534281321 | BE21: 0.486711925 | BF21: 5.371390712 | BG21: 8.799552399 | BH21: 13.13137536 | BI21: 28.74245852 | BJ21: 8.700136012 | BK21: 8.786836753 | BL21: 48.53025294 | BM21: 19.0812755 | BN21: 3.280420048 | BO21: 88.37892125 | BP21: 0.1483875398 | BQ21: 0.04167963528 | BR21: 1.294834521 | BS21: 0.884246737 | BT21: 0.1321591244 | BU21: 2.501307557 | BV21: 4.378987069 | BW21: 2.782156262 | BX21: 76.71491982 | BY21: 31.62490154 | BZ21: 0.7020497153 | CA21: 116.2030144 | CB21: 0 | CC21: 0 | CD21: 0 | CE21: 0 | CF21: 0 | CG21: 0 | CH21: 0.6637821585 | CI21: 0.2886039948 | CJ21: 5.916969641 | CK21: 3.96522288 | CL21: 0.06962339599 | CM21: 10.90420207 | CN21: 1.180520776 | CO21: 0.7071967557 | CP21: 19.70061872 | CQ21: 8.42619857 | CR21: 0.2228482585 | CS21: 30.23738308 | CT21: 0.01274275078 | CU21: 0.00792843077 | CV21: 0.6183075431 | CW21: 0.486217242 | CX21: 0 | CY21: 1.125195967 | CZ21: 2.976251852 | DA21: 1.782883231 | DB21: 39.05281246 | DC21: 29.07055508 | DD21: 0.4898077173 | DE21: 73.37231034 | DF21: 0 | DG21: 0 | DH21: 0 | DI21: 0 | DJ21: 0 | DK21: 0 | DL21: 0 | DM21: 0.04286396353 | DN21: 0.03608668454 | DO21: 2.099278351 | DP21: 2.963216918 | DQ21: 2.933873637 | DR21: 8.075319555 | DS21: 0 | DT21: 0 | DU21: 0 | DV21: 0 | DW21: 0 | DX21: 0 | DY21: 0.06489840128 | DZ21: 0.01727273546 | EA21: 1.167388692 | EB21: 4.061436564 | EC21: 5.22929764 | ED21: 10.54029403 | EE21: 0.1299860279 | EF21: 0.04219056771 | EG21: 19.49125115 | EH21: 0.330133993 | EI21: 0.8512087891 | EJ21: 20.84477053 | EK21: 1602.162507 | EL21: 56.38248058 | EM21: 140.5448106 | EN21: 14.65402627 | EO21: 216.2226154 | EP21: 137.6965515 | EQ21: 30.83020101 | ER21: 8.982511274 | ES21: 88.63457489 | ET21: 99.04698595 | EU21: 195.0129788 | EV21: 24.62241603 | EW21: 1012.630152 | EX21: 87.79069073 | EY21: 81.78880754 | EZ21: 24.53480414 | FA21: 15.69164124 | FB21: 5.004126371 | FC21: 214.81007 | FD21: 521.579336 | FE21: 76.43442937 | FF21: 25.13607804 | FG21: 0.2313217474 | FH21: 34.20319364 | FI21: 125.3089243 | FJ21: 199.3765224 | FK21: 8.981527229 | FL21: 0.240526903 | FM21: 2.315971028 | FN21: 28.24707164 | FO21: 1.133966694 | FP21: 0.7164643631 | FQ21: 1023.905333 | FR21: 10.77549233 | FS21: 10.37071824 | FT21: 1045.051544 | FU21: 84.07573093 | FV21: 180.5158397 | FW21: 264.5915706
A22: 01C083 | B22: Interventions sur les nerfs crâniens ou périphériques et autres interventions sur le système nerveux, niveau 3 | D22: 85 | E22: 12976.76836 | F22: 17.22724027 | G22: 5.381812691 | H22: 690.0043201 | I22: 725.1979445 | J22: 2467.192061 | K22: 3905.003379 | L22: 3.177098833 | M22: 1.711421041 | N22: 10.34482138 | O22: 34.40861071 | P22: 139.9569412 | Q22: 189.5988931 | R22: 6.832807493 | S22: 1.891815888 | T22: 14.22241797 | U22: 52.76294344 | V22: 219.4057488 | W22: 295.1157336 | X22: 25.580189 | Y22: 17.5800181 | Z22: 95.36160237 | AA22: 224.7129743 | AB22: 811.5147941 | AC22: 1174.749578 | AD22: 5564.467583 | AE22: 13.00439442 | AF22: 7.357164672 | AG22: 17.09387794 | AH22: 273.0802752 | AI22: 247.1416729 | AJ22: 557.677385 | AK22: 50.2908166 | AL22: 27.44786206 | AM22: 64.51206567 | AN22: 181.5867745 | AO22: 390.4855037 | AP22: 714.3230226 | AQ22: 0 | AR22: 0.02977517511 | AS22: 0.0594657988 | AT22: 0.06489540256 | AU22: 1.076548881 | AV22: 1.230685258 | AW22: 0 | AX22: 0 | AY22: 0 | AZ22: 0 | BA22: 0 | BB22: 2.278455068 | BC22: 2.278455068 | BD22: 2.62548238 | BE22: 2.496910651 | BF22: 19.52005703 | BG22: 34.05803502 | BH22: 41.1247535 | BI22: 99.82523858 | BJ22: 28.92893193 | BK22: 23.35340583 | BL22: 128.0396103 | BM22: 69.92911367 | BN22: 12.29008396 | BO22: 262.5411457 | BP22: 5.461289348 | BQ22: 0.2661509552 | BR22: 7.179714054 | BS22: 16.12269705 | BT22: 1.068194542 | BU22: 30.09804595 | BV22: 10.90936762 | BW22: 7.196061542 | BX22: 160.9166161 | BY22: 77.36108266 | BZ22: 1.885829311 | CA22: 258.2689572 | CB22: 0.06780028708 | CC22: 0.02655991261 | CD22: 0.5633770861 | CE22: 0.3050159001 | CF22: 0.001156450979 | CG22: 0.9639096369 | CH22: 0.865019785 | CI22: 0.4228275579 | CJ22: 10.06833903 | CK22: 6.434485072 | CL22: 0.07612336941 | CM22: 17.86679482 | CN22: 4.288363893 | CO22: 2.744339959 | CP22: 57.39734963 | CQ22: 32.82473106 | CR22: 0.643828032 | CS22: 97.89861257 | CT22: 0.6836287924 | CU22: 0.07048543024 | CV22: 5.614911175 | CW22: 2.086740387 | CX22: 0.0002529125451 | CY22: 8.456018697 | CZ22: 6.107041902 | DA22: 3.775194282 | DB22: 86.96994628 | DC22: 64.27840651 | DD22: 0.4530446477 | DE22: 161.5836336 | DF22: 0 | DG22: 0 | DH22: 0 | DI22: 0 | DJ22: 0 | DK22: 0 | DL22: 0 | DM22: 0.8842965376 | DN22: 0.4886024168 | DO22: 5.956061735 | DP22: 13.13855182 | DQ22: 6.732404228 | DR22: 27.19991674 | DS22: 0.03454130755 | DT22: 0.06768826132 | DU22: 0.8269360545 | DV22: 2.082536769 | DW22: 1.309654585 | DX22: 4.321356977 | DY22: 0.1227674777 | DZ22: 0.03417230817 | EA22: 2.222830018 | EB22: 6.538882626 | EC22: 12.42556072 | ED22: 21.34421315 | EE22: 0.04525225601 | EF22: 0.05847170688 | EG22: 45.64741046 | EH22: 1.432327042 | EI22: 2.602712561 | EJ22: 49.78617403 | EK22: 2315.663566 | EL22: 147.7193442 | EM22: 329.1558941 | EN22: 12.99588045 | EO22: 532.6548468 | EP22: 360.529109 | EQ22: 78.1182859 | ER22: 8.639495608 | ES22: 203.0924052 | ET22: 258.3103537 | EU22: 487.3353466 | EV22: 60.07476705 | EW22: 2478.625729 | EX22: 169.2451343 | EY22: 85.56558429 | EZ22: 54.96031121 | FA22: 30.55064754 | FB22: 13.76805217 | FC22: 354.0897295 | FD22: 883.0623466 | FE22: 82.60543325 | FF22: 170.4615023 | FG22: 3.948599051 | FH22: 167.500491 | FI22: 412.0883969 | FJ22: 428.7300651 | FK22: 10.69356209 | FL22: 0.3024877598 | FM22: 2.488551981 | FN22: 50.09192389 | FO22: 4.771759788 | FP22: 32.39826713 | FQ22: 2249.143387 | FR22: 14.77728961 | FS22: 0.001080105414 | FT22: 2263.921756 | FU22: 208.2179893 | FV22: 451.763249 | FW22: 659.9812383
A23: 01C084 | B23: Interventions sur les nerfs crâniens ou périphériques et autres interventions sur le système nerveux, niveau 4 | D23: 48 | E23: 46345.02778 | F23: 20.28866482 | G23: 5.864008796 | H23: 804.4881269 | I23: 715.3380892 | J23: 3350.260164 | K23: 4896.239053 | L23: 15.43326816 | M23: 16.37123512 | N23: 100.7171255 | O23: 233.0966525 | P23: 1120.425953 | Q23: 1486.044234 | R23: 8.945092312 | S23: 3.065989398 | T23: 77.97660156 | U23: 206.0063817 | V23: 665.5173911 | W23: 961.511456 | X23: 373.8279506 | Y23: 226.756521 | Z23: 1395.91439 | AA23: 4358.881587 | AB23: 11591.90049 | AC23: 17947.28094 | AD23: 25291.07568 | AE23: 14.33749738 | AF23: 8.185066491 | AG23: 25.28127035 | AH23: 307.9431458 | AI23: 330.3363963 | AJ23: 686.0833763 | AK23: 45.3925929 | AL23: 38.46596986 | AM23: 56.40775429 | AN23: 223.3698878 | AO23: 544.7630404 | AP23: 908.3992452 | AQ23: 0 | AR23: 0 | AS23: 0 | AT23: 0 | AU23: 0 | AV23: 0 | AW23: 0 | AX23: 0 | AY23: 0 | AZ23: 0 | BA23: 0 | BB23: 0 | BC23: 0 | BD23: 17.5117728 | BE23: 10.39406657 | BF23: 63.84934068 | BG23: 112.44945 | BH23: 149.7072286 | BI23: 353.9118586 | BJ23: 72.48901343 | BK23: 78.32539165 | BL23: 496.9970657 | BM23: 179.9014894 | BN23: 44.68875688 | BO23: 872.4017171 | BP23: 3.355975963 | BQ23: 2.664074511 | BR23: 14.31341944 | BS23: 15.40604606 | BT23: 9.755505008 | BU23: 45.49502098 | BV23: 66.4294367 | BW23: 38.10671116 | BX23: 844.3834859 | BY23: 414.6386033 | BZ23: 10.59699054 | CA23: 1374.155228 | CB23: 0.5674853164 | CC23: 0.1601455034 | CD23: 5.124046354 | CE23: 1.600729331 | CF23: 0.06231073164 | CG23: 7.514717236 | CH23: 0.434921701 | CI23: 0.2080332491 | CJ23: 4.621963616 | CK23: 3.104666243 | CL23: 0.03959108802 | CM23: 8.409175897 | CN23: 20.31935121 | CO23: 11.30210018 | CP23: 276.8106659 | CQ23: 143.5216955 | CR23: 3.93902318 | CS23: 455.892836 | CT23: 0.4020343599 | CU23: 0.1574084211 | CV23: 3.830385043 | CW23: 1.077170551 | CX23: 0.0710003388 | CY23: 5.537998714 | CZ23: 3.441068135 | DA23: 1.970128961 | DB23: 40.91949889 | DC23: 28.33060459 | DD23: 0.2694570875 | DE23: 74.93075767 | DF23: 0 | DG23: 0 | DH23: 0 | DI23: 0 | DJ23: 0 | DK23: 0 | DL23: 0 | DM23: 4.85285629 | DN23: 4.376667617 | DO23: 48.10166206 | DP23: 89.44299958 | DQ23: 43.98008593 | DR23: 190.7542715 | DS23: 0 | DT23: 0 | DU23: 29.68733708 | DV23: 62.38888449 | DW23: 31.58752538 | DX23: 123.6637469 | DY23: 0.1575973886 | DZ23: 0.07289612944 | EA23: 4.665983435 | EB23: 10.93217782 | EC23: 16.24635259 | ED23: 32.07500736 | EE23: 3.623648018 | EF23: 1.118895566 | EG23: 529.4404407 | EH23: 10.21940287 | EI23: 25.22023183 | EJ23: 569.622619 | EK23: 5708.847576 | EL23: 345.17844 | EM23: 482.8923721 | EN23: 12.67754043 | EO23: 1375.755822 | EP23: 886.7867867 | EQ23: 194.4452455 | ER23: 8.561154825 | ES23: 493.2938151 | ET23: 702.643591 | EU23: 1205.803001 | EV23: 160.3642712 | EW23: 5868.402039 | EX23: 630.8285978 | EY23: 219.5430321 | EZ23: 198.1467124 | FA23: 111.070177 | FB23: 53.61710038 | FC23: 1213.20562 | FD23: 3593.674099 | FE23: 312.2155776 | FF23: 101.453245 | FG23: 17.39794241 | FH23: 758.6649085 | FI23: 1804.477512 | FJ23: 1214.21959 | FK23: 62.84664271 | FL23: 3.468668776 | FM23: 5.974402608 | FN23: 128.6994408 | FO23: 15.58317865 | FP23: 225.6614416 | FQ23: 8244.336649 | FR23: 19.15175713 | FS23: 0.008451953187 | FT23: 8263.496858 | FU23: 515.7578316 | FV23: 1098.146344 | FW23: 1613.904175
A24: 01C08J | B24: Interventions sur les nerfs crâniens ou périphériques et autres interventions sur le système nerveux, en ambulatoire | D24: 473 | E24: 1762.200483 | F24: 1.515675414 | G24: 0.2081640478 | H24: 34.97455283 | I24: 67.60058701 | J24: 123.6421637 | K24: 227.941143 | L24: 0 | M24: 0 | N24: 0 | O24: 0 | P24: 0 | Q24: 0 | R24: 0 | S24: 0 | T24: 0 | U24: 0 | V24: 0 | W24: 0 | X24: 0 | Y24: 0 | Z24: 0 | AA24: 0 | AB24: 0 | AC24: 0 | AD24: 227.941143 | AE24: 6.739582785 | AF24: 3.48400599 | AG24: 7.282124605 | AH24: 155.2835957 | AI24: 139.7114994 | AJ24: 312.5008085 | AK24: 27.61963252 | AL24: 15.56071496 | AM24: 38.29809615 | AN24: 98.60561293 | AO24: 208.370906 | AP24: 388.4549626 | AQ24: 0 | AR24: 0 | AS24: 0 | AT24: 0 | AU24: 0 | AV24: 0 | AW24: 0 | AX24: 0 | AY24: 0 | AZ24: 0 | BA24: 0 | BB24: 0 | BC24: 0 | BD24: 0.1669038351 | BE24: 0.1011658201 | BF24: 1.268688076 | BG24: 1.815632818 | BH24: 3.03187881 | BI24: 6.384269359 | BJ24: 0.2315142304 | BK24: 0.3199872231 | BL24: 1.956704698 | BM24: 0.7700140123 | BN24: 0.1144659726 | BO24: 3.392686137 | BP24: 0 | BQ24: 0 | BR24: 0 | BS24: 0 | BT24: 0 | BU24: 0 | BV24: 0.4319732249 | BW24: 0.2781486507 | BX24: 9.106085055 | BY24: 3.149410779 | BZ24: 0.0560633619 | CA24: 13.02168107 | CB24: 0.01822292514 | CC24: 0.01094221042 | CD24: 0.1567180739 | CE24: 0.08388229462 | CF24: 0.0001620339732 | CG24: 0.269927538 | CH24: 0.3722842965 | CI24: 0.171263415 | CJ24: 3.191848229 | CK24: 1.620993739 | CL24: 0.02758432644 | CM24: 5.383974006 | CN24: 0.2544784636 | CO24: 0.1608703263 | CP24: 4.270721453 | CQ24: 1.783526012 | CR24: 0.03252322376 | CS24: 6.502119479 | CT24: 0 | CU24: 0 | CV24: 0 | CW24: 0 | CX24: 0 | CY24: 0 | CZ24: 1.917567131 | DA24: 0.9719036645 | DB24: 20.18279583 | DC24: 12.97997127 | DD24: 0.1616254313 | DE24: 36.21386333 | DF24: 0 | DG24: 0 | DH24: 0 | DI24: 0 | DJ24: 0 | DK24: 0 | DL24: 0 | DM24: 0 | DN24: 0 | DO24: 0 | DP24: 0 | DQ24: 0 | DR24: 0 | DS24: 0 | DT24: 0 | DU24: 0 | DV24: 0 | DW24: 0 | DX24: 0 | DY24: 0.1433951259 | DZ24: 0.07747120634 | EA24: 1.715496053 | EB24: 5.272694139 | EC24: 5.900840646 | ED24: 13.10989717 | EE24: 0.0003191642077 | EF24: 5.686868169e-05 | EG24: 0.08468541091 | EH24: 0.005537660763 | EI24: 0.004958742858 | EJ24: 0.09555784742 | EK24: 785.329747 | EL24: 7.913874267 | EM24: 8.602195999 | EN24: 14.61481538 | EO24: 107.7345896 | EP24: 58.5314218 | EQ24: 11.83021269 | ER24: 9.849089032 | ES24: 38.79757095 | ET24: 43.15831844 | EU24: 74.41199706 | EV24: 9.276283871 | EW24: 384.7203691 | EX24: 26.45060072 | EY24: 46.95029809 | EZ24: 9.543118387 | FA24: 4.970929341 | FB24: 1.055703021 | FC24: 88.97064955 | FD24: 161.0504263 | FE24: 9.725936811 | FF24: 14.06144987 | FG24: 0.1140794281 | FH24: 1.145068148 | FI24: 31.32506413 | FJ24: 1.242008617 | FK24: 15.55791406 | FL24: 0.001186146922 | FM24: 0.1071443683 | FN24: 5.054718602 | FO24: 0.6698300815 | FP24: 0.02652872543 | FQ24: 240.0813553 | FR24: 32.31043336 | FS24: 2.846785669 | FT24: 275.2385744 | FU24: 29.19446429 | FV24: 72.65103578 | FW24: 101.8455001
A25: 01C091 | B25: Pose d'un stimulateur cérébral, niveau 1 | D25: 419 | E25: 17136.01956 | F25: 7.949063335 | G25: 1.954641407 | H25: 294.8039996 | I25: 274.9711082 | J25: 1091.13479 | K25: 1670.813603 | L25: 0.2101765849 | M25: 0.3409572085 | N25: 4.209188337 | O25: 11.22179642 | P25: 45.35880847 | Q25: 61.34092702 | R25: 0.3388410179 | S25: 0.1127710644 | T25: 4.505120723 | U25: 8.700571352 | V25: 36.925223 | W25: 50.58252716 | X25: 0.196270416 | Y25: 0.1114893557 | Z25: 1.019369949 | AA25: 1.194499421 | AB25: 4.353476431 | AC25: 6.875105572 | AD25: 1789.612162 | AE25: 15.74322317 | AF25: 5.705063575 | AG25: 13.05493315 | AH25: 224.742442 | AI25: 220.5442635 | AJ25: 479.7899255 | AK25: 147.5111272 | AL25: 98.75600812 | AM25: 114.4314214 | AN25: 311.7721547 | AO25: 840.8851 | AP25: 1513.355811 | AQ25: 0 | AR25: 0 | AS25: 0 | AT25: 0 | AU25: 0 | AV25: 0 | AW25: 0 | AX25: 0 | AY25: 0 | AZ25: 0 | BA25: 0 | BB25: 0 | BC25: 0 | BD25: 1.008274971 | BE25: 0.690826649 | BF25: 8.170419984 | BG25: 18.31261055 | BH25: 28.45390328 | BI25: 56.63603543 | BJ25: 21.19521306 | BK25: 8.55232384 | BL25: 72.78969283 | BM25: 28.10718914 | BN25: 2.507574678 | BO25: 133.1519936 | BP25: 2.111656379 | BQ25: 0.1987185521 | BR25: 4.119684114 | BS25: 4.540199157 | BT25: 0.8134317095 | BU25: 11.78368991 | BV25: 0.7919899879 | BW25: 0.4799330831 | BX25: 11.44570028 | BY25: 5.871500204 | BZ25: 0.09482826653 | CA25: 18.68395182 | CB25: 0 | CC25: 0 | CD25: 0 | CE25: 0 | CF25: 0 | CG25: 0 | CH25: 0.01490659931 | CI25: 0.007919876974 | CJ25: 0.1681522098 | CK25: 0.09946948244 | CL25: 5.158885193e-06 | CM25: 0.2904533274 | CN25: 0.1495921648 | CO25: 0.08550345815 | CP25: 2.527383015 | CQ25: 1.453925245 | CR25: 0.004349194203 | CS25: 4.220753077 | CT25: 0 | CU25: 0 | CV25: 0 | CW25: 0 | CX25: 0 | CY25: 0 | CZ25: 0.0725298695 | DA25: 0.03911869422 | DB25: 0.7804384597 | DC25: 0.4623449625 | DD25: 2.651215415e-05 | DE25: 1.354458498 | DF25: 0 | DG25: 0 | DH25: 0 | DI25: 0 | DJ25: 0 | DK25: 0 | DL25: 0 | DM25: 0 | DN25: 0 | DO25: 0 | DP25: 0 | DQ25: 0 | DR25: 0 | DS25: 0 | DT25: 0 | DU25: 0 | DV25: 0 | DW25: 0 | DX25: 0 | DY25: 0.006399595016 | DZ25: 0.00156758689 | EA25: 0.151864549 | EB25: 0.3002261024 | EC25: 0.416042625 | ED25: 0.8761004583 | EE25: 0.03508694065 | EF25: 0.01241885979 | EG25: 4.929297392 | EH25: 0.06317541671 | EI25: 0.1475982318 | EJ25: 5.18757684 | EK25: 2225.33075 | EL25: 49.03084058 | EM25: 133.7574272 | EN25: 12.97375547 | EO25: 233.986166 | EP25: 132.1818807 | EQ25: 33.02625057 | ER25: 7.890609701 | ES25: 97.29777025 | ET25: 91.71195928 | EU25: 186.2452135 | EV25: 25.82517231 | EW25: 1003.927046 | EX25: 124.463676 | EY25: 124.2263986 | EZ25: 36.65405301 | FA25: 25.66522676 | FB25: 5.894182399 | FC25: 316.9035367 | FD25: 805.5495942 | FE25: 181.3701397 | FF25: 10597.73051 | FG25: 0.02981049169 | FH25: 7.921335953 | FI25: 144.6331592 | FJ25: 24.84486447 | FK25: 7.753557351 | FL25: 0.05103014616 | FM25: 1.240014562 | FN25: 20.31882273 | FO25: 1.849225637 | FP25: 0.2383657916 | FQ25: 11793.53043 | FR25: 6.715636855 | FS25: 0 | FT25: 11800.24607 | FU25: 75.11452247 | FV25: 170.0593336 | FW25: 245.173856
A26: 01C092 | B26: Pose d'un stimulateur cérébral, niveau 2 | D26: 150 | E26: 21866.38706 | F26: 11.15674444 | G26: 2.947892057 | H26: 465.1872276 | I26: 336.5996292 | J26: 1481.057102 | K26: 2296.948596 | L26: 7.565537072 | M26: 1.009790761 | N26: 24.21299746 | O26: 32.52041912 | P26: 215.6411441 | Q26: 280.9498885 | R26: 1.011688806 | S26: 0.3303748704 | T26: 13.693872 | U26: 25.9978136 | V26: 110.7329665 | W26: 151.7667158 | X26: 1.256375005 | Y26: 0.6585223612 | Z26: 6.55483623 | AA26: 8.319405326 | AB26: 33.49908644 | AC26: 50.28822536 | AD26: 2779.953425 | AE26: 48.31093856 | AF26: 30.40851527 | AG26: 57.5117119 | AH26: 855.7151256 | AI26: 868.6232695 | AJ26: 1860.569561 | AK26: 174.8466706 | AL26: 107.426692 | AM26: 111.2658209 | AN26: 324.4774062 | AO26: 942.3559816 | AP26: 1660.372571 | AQ26: 0 | AR26: 0 | AS26: 0 | AT26: 0 | AU26: 0 | AV26: 0 | AW26: 0 | AX26: 0 | AY26: 0 | AZ26: 0 | BA26: 0 | BB26: 0 | BC26: 0 | BD26: 0.01489354013 | BE26: 0.6761664851 | BF26: 4.888089007 | BG26: 10.31008579 | BH26: 15.47901436 | BI26: 31.36824918 | BJ26: 37.40089197 | BK26: 23.06350918 | BL26: 169.8401908 | BM26: 58.09288997 | BN26: 7.484634696 | BO26: 295.8821167 | BP26: 0.5889319619 | BQ26: 0.05542175704 | BR26: 1.148962337 | BS26: 1.26624219 | BT26: 0.2268626361 | BU26: 3.286420882 | BV26: 1.283410298 | BW26: 1.132923217 | BX26: 25.25867994 | BY26: 11.53348242 | BZ26: 0.3120290064 | CA26: 39.52052487 | CB26: 0.0001456902334 | CC26: 2.342084459e-05 | CD26: 0.008980815794 | CE26: 0.008811172403 | CF26: 0 | CG26: 0.01796109928 | CH26: 0 | CI26: 0 | CJ26: 0 | CK26: 0 | CL26: 0 | CM26: 0 | CN26: 0.2039132421 | CO26: 0.1201070626 | CP26: 3.736743436 | CQ26: 2.155426057 | CR26: 0.03069746919 | CS26: 6.246887267 | CT26: 0 | CU26: 0 | CV26: 0 | CW26: 0 | CX26: 0 | CY26: 0 | CZ26: 0 | DA26: 0 | DB26: 0 | DC26: 0 | DD26: 0 | DE26: 0 | DF26: 0 | DG26: 0 | DH26: 0 | DI26: 0 | DJ26: 0 | DK26: 0 | DL26: 0 | DM26: 0 | DN26: 0 | DO26: 0 | DP26: 0 | DQ26: 0 | DR26: 0 | DS26: 0 | DT26: 0 | DU26: 0 | DV26: 0 | DW26: 0 | DX26: 0 | DY26: 0.008767274282 | DZ26: 0.001286933075 | EA26: 0.03234259986 | EB26: 0.04858282924 | EC26: 0.1644402985 | ED26: 0.255419935 | EE26: 0.09456735994 | EF26: 0.03375354784 | EG26: 8.194821636 | EH26: 0.3963011073 | EI26: 0.3466943599 | EJ26: 9.066138011 | EK26: 3906.58585 | EL26: 113.5123925 | EM26: 263.7278721 | EN26: 14.1983463 | EO26: 358.4524505 | EP26: 261.0233335 | EQ26: 60.46376769 | ER26: 10.40434844 | ES26: 210.8794251 | ET26: 169.6783425 | EU26: 370.073567 | EV26: 34.0218345 | EW26: 1866.43568 | EX26: 201.1838743 | EY26: 189.2882117 | EZ26: 80.72115347 | FA26: 32.81921197 | FB26: 11.76157357 | FC26: 515.774025 | FD26: 1300.967747 | FE26: 234.0417619 | FF26: 10930.25294 | FG26: 0.03178185354 | FH26: 5.294783631 | FI26: 263.03423 | FJ26: 1.545362191 | FK26: 17.93929005 | FL26: 0.08367995299 | FM26: 1.115208066 | FN26: 24.23590912 | FO26: 0.2980910385 | FP26: 0.4693048154 | FQ26: 12779.31009 | FR26: 18.3279812 | FS26: 2.259122022e-06 | FT26: 12797.63808 | FU26: 152.5183996 | FV26: 336.2082085 | FW26: 488.7266081
A27: 01C093 | B27: Pose d'un stimulateur cérébral, niveau 3 | D27: 52 | E27: 25884.66171 | F27: 17.21590491 | G27: 3.516264014 | H27: 718.484969 | I27: 610.845394 | J27: 2345.497072 | K27: 3695.559604 | L27: 0.928039727 | M27: 0.7891278921 | N27: 7.972441176 | O27: 10.10523134 | P27: 78.7021999 | Q27: 98.49704003 | R27: 5.018851281 | S27: 1.290906898 | T27: 89.96675346 | U27: 99.7726546 | V27: 611.8719291 | W27: 807.9210954 | X27: 0.07668258485 | Y27: 0.001262770796 | Z27: 2.100799882 | AA27: 1.014409382 | AB27: 10.42433201 | AC27: 13.61748663 | AD27: 4615.595226 | AE27: 44.88855585 | AF27: 14.84981701 | AG27: 13.16805562 | AH27: 367.4827446 | AI27: 414.9836381 | AJ27: 855.3728112 | AK27: 342.8294792 | AL27: 155.2399189 | AM27: 180.3500267 | AN27: 409.7548275 | AO27: 1092.836088 | AP27: 2181.01034 | AQ27: 0 | AR27: 0 | AS27: 0 | AT27: 0 | AU27: 0 | AV27: 0 | AW27: 0 | AX27: 0 | AY27: 0 | AZ27: 0 | BA27: 0 | BB27: 0 | BC27: 0 | BD27: 0.8494969623 | BE27: 0.3646289645 | BF27: 5.047750042 | BG27: 8.918911905 | BH27: 13.33925581 | BI27: 28.52004369 | BJ27: 65.8470601 | BK27: 21.33954982 | BL27: 199.7726538 | BM27: 77.07522465 | BN27: 6.299659437 | BO27: 370.3341478 | BP27: 0 | BQ27: 0 | BR27: 0 | BS27: 0 | BT27: 0 | BU27: 0 | BV27: 3.177282907 | BW27: 2.144869418 | BX27: 49.27528709 | BY27: 23.64297591 | BZ27: 0.2603642924 | CA27: 78.50077962 | CB27: 0 | CC27: 0 | CD27: 0 | CE27: 0 | CF27: 0 | CG27: 0 | CH27: 0 | CI27: 0 | CJ27: 0 | CK27: 0 | CL27: 0 | CM27: 0 | CN27: 0.2783805473 | CO27: 0.1642296064 | CP27: 4.711515494 | CQ27: 2.621857168 | CR27: 0.006211825342 | CS27: 7.78219464 | CT27: 0 | CU27: 0 | CV27: 0 | CW27: 0 | CX27: 0 | CY27: 0 | CZ27: 0 | DA27: 0 | DB27: 0 | DC27: 0 | DD27: 0 | DE27: 0 | DF27: 0 | DG27: 0 | DH27: 0 | DI27: 0 | DJ27: 0 | DK27: 0 | DL27: 0 | DM27: 0 | DN27: 0 | DO27: 0 | DP27: 0 | DQ27: 0 | DR27: 0 | DS27: 0 | DT27: 0 | DU27: 0 | DV27: 0 | DW27: 0 | DX27: 0 | DY27: 0.04609624634 | DZ27: 0.01434522181 | EA27: 0.4105399989 | EB27: 2.340140345 | EC27: 2.490867542 | ED27: 5.301989354 | EE27: 0.2107042886 | EF27: 0.0479455255 | EG27: 16.65203706 | EH27: 0.1103874313 | EI27: 0.3995548778 | EJ27: 17.42062918 | EK27: 3544.242936 | EL27: 135.1758045 | EM27: 337.9194142 | EN27: 12.25604811 | EO27: 538.5987279 | EP27: 325.2036391 | EQ27: 73.38968078 | ER27: 9.722163756 | ES27: 262.6342903 | ET27: 213.9383304 | EU27: 477.7345955 | EV27: 53.26688486 | EW27: 2439.839579 | EX27: 276.5998645 | EY27: 219.8203608 | EZ27: 54.66608567 | FA27: 52.77126123 | FB27: 11.25104208 | FC27: 615.1086143 | FD27: 1159.270668 | FE27: 111.7311881 | FF27: 13009.78427 | FG27: 0.02966038192 | FH27: 1.52704349 | FI27: 323.1695689 | FJ27: 2.842099031 | FK27: 17.04214863 | FL27: 0.1294897595 | FM27: 1.59409912 | FN27: 32.66530049 | FO27: 0.7935687127 | FP27: 0.2772083855 | FQ27: 14660.85632 | FR27: 9.019037754 | FS27: 0 | FT27: 14669.87536 | FU27: 221.6665072 | FV27: 422.9828252 | FW27: 644.6493323
A28: 01C094 | B28: Pose d'un stimulateur cérébral, niveau 4 | C28: * | D28: 6 | E28: 67970.51795 | F28: 45.20723457 | G28: 9.233355605 | H28: 1886.669257 | I28: 1604.018561 | J28: 6159.03938 | K28: 9704.167788 | L28: 2.436938973 | M28: 2.072170467 | N28: 20.93482859 | O28: 26.53532102 | P28: 206.6640604 | Q28: 258.6433194 | R28: 13.17899862 | S28: 3.389791665 | T28: 236.2436449 | U28: 261.992955 | V28: 1606.714139 | W28: 2121.519529 | X28: 0.2013607544 | Y28: 0.00331590909 | Z28: 5.516489173 | AA28: 2.663737 | AB28: 27.3732473 | AC28: 35.75815013 | AD28: 12120.08879 | AE28: 117.8728324 | AF28: 38.99412575 | AG28: 34.57798951 | AH28: 964.9727227 | AI28: 1089.705291 | AJ28: 2246.122961 | AK28: 900.2357277 | AL28: 407.6444116 | AM28: 473.5810289 | AN28: 1075.97496 | AO28: 2869.67764 | AP28: 5727.113768 | AQ28: 0 | AR28: 0 | AS28: 0 | AT28: 0 | AU28: 0 | AV28: 0 | AW28: 0 | AX28: 0 | AY28: 0 | AZ28: 0 | BA28: 0 | BB28: 0 | BC28: 0 | BD28: 2.230693573 | BE28: 0.9574789832 | BF28: 13.25488386 | BG28: 23.42016552 | BH28: 35.02754399 | BI28: 74.89076593 | BJ28: 172.9077564 | BK28: 56.03551131 | BL28: 524.5828941 | BM28: 202.391787 | BN28: 16.54227201 | BO28: 972.4602208 | BP28: 0 | BQ28: 0 | BR28: 0 | BS28: 0 | BT28: 0 | BU28: 0 | BV28: 8.343225315 | BW28: 5.632211343 | BX28: 129.3919474 | BY28: 62.08407653 | BZ28: 0.6836904421 | CA28: 206.135151 | CB28: 0 | CC28: 0 | CD28: 0 | CE28: 0 | CF28: 0 | CG28: 0 | CH28: 0 | CI28: 0 | CJ28: 0 | CK28: 0 | CL28: 0 | CM28: 0 | CN28: 0.7309993153 | CO28: 0.4312504268 | CP28: 12.37196576 | CQ28: 6.884733193 | CR28: 0.01631162851 | CS28: 20.43526033 | CT28: 0 | CU28: 0 | CV28: 0 | CW28: 0 | CX28: 0 | CY28: 0 | CZ28: 0 | DA28: 0 | DB28: 0 | DC28: 0 | DD28: 0 | DE28: 0 | DF28: 0 | DG28: 0 | DH28: 0 | DI28: 0 | DJ28: 0 | DK28: 0 | DL28: 0 | DM28: 0 | DN28: 0 | DO28: 0 | DP28: 0 | DQ28: 0 | DR28: 0 | DS28: 0 | DT28: 0 | DU28: 0 | DV28: 0 | DW28: 0 | DX28: 0 | DY28: 0.1210441061 | DZ28: 0.03766910951 | EA28: 1.078036742 | EB28: 6.144973155 | EC28: 6.540767611 | ED28: 13.92249072 | EE28: 0.5532882674 | EF28: 0.1259001272 | EG28: 43.72657431 | EH28: 0.2898662909 | EI28: 1.049190918 | EJ28: 45.74481992 | EK28: 9306.825438 | EL28: 354.9580654 | EM28: 887.3423908 | EN28: 32.18314953 | EO28: 1414.306083 | EP28: 853.9520444 | EQ28: 192.7139196 | ER28: 25.52942408 | ES28: 689.6512284 | ET28: 561.780536 | EU28: 1254.482993 | EV28: 139.8734816 | EW28: 6406.773316 | EX28: 726.3234213 | EY28: 577.226156 | EZ28: 143.5476422 | FA28: 138.5720238 | FB28: 29.54410478 | FC28: 1615.213348 | FD28: 3044.128165 | FE28: 293.3948612 | FF28: 34162.38487 | FG28: 0.07788517943 | FH28: 4.009862601 | FI28: 848.6107806 | FJ28: 7.463066173 | FK28: 44.75096805 | FL28: 0.3400270832 | FM28: 4.18594394 | FN28: 85.77579332 | FO28: 2.083831616 | FP28: 0.7279213362 | FQ28: 38497.93397 | FR28: 23.68308593 | FS28: 0 | FT28: 38521.61706 | FU28: 582.0739507 | FV28: 1110.710352 | FW28: 1692.784302
A29: 01C101 | B29: Pose d'un stimulateur médullaire, niveau 1 | D29: 1027 | E29: 8468.627478 | F29: 4.851677351 | G29: 0.8174363738 | H29: 114.2737605 | I29: 143.4724042 | J29: 508.1584236 | K29: 771.5737021 | L29: 0.00704340902 | M29: 0 | N29: 0.03062079197 | O29: 0.02152720798 | P29: 0.4918321581 | Q29: 0.5510235671 | R29: 0 | S29: 0 | T29: 0 | U29: 0 | V29: 0 | W29: 0 | X29: 0 | Y29: 0 | Z29: 0 | AA29: 0 | AB29: 0 | AC29: 0 | AD29: 772.1247256 | AE29: 6.931828905 | AF29: 3.42644738 | AG29: 7.589213448 | AH29: 135.2816112 | AI29: 121.4501919 | AJ29: 274.6792928 | AK29: 26.52898027 | AL29: 14.25249479 | AM29: 22.09698027 | AN29: 82.86757488 | AO29: 174.5877207 | AP29: 320.3337509 | AQ29: 0 | AR29: 0 | AS29: 0 | AT29: 0 | AU29: 0 | AV29: 0 | AW29: 0 | AX29: 0 | AY29: 0 | AZ29: 0 | BA29: 0 | BB29: 0 | BC29: 0 | BD29: 0.1059527831 | BE29: 0.0487550642 | BF29: 0.1436636525 | BG29: 0.3140929458 | BH29: 0.6446916874 | BI29: 1.257156133 | BJ29: 1.908953038 | BK29: 1.238702035 | BL29: 11.57732473 | BM29: 2.596911229 | BN29: 0.4384165904 | BO29: 17.76030762 | BP29: 0 | BQ29: 0 | BR29: 0 | BS29: 0 | BT29: 0 | BU29: 0 | BV29: 0.2439467103 | BW29: 0.1558640476 | BX29: 3.661175435 | BY29: 1.670448075 | BZ29: 0.05322746882 | CA29: 5.784661736 | CB29: 0 | CC29: 0 | CD29: 0 | CE29: 0 | CF29: 0 | CG29: 0 | CH29: 0.0005249718345 | CI29: 0.0002877755422 | CJ29: 0.01331732699 | CK29: 0.008804753689 | CL29: 0 | CM29: 0.02293482805 | CN29: 0.009025800329 | CO29: 0.004777764301 | CP29: 0.144686253 | CQ29: 0.0745484808 | CR29: 0.001353619603 | CS29: 0.2343919181 | CT29: 0 | CU29: 0 | CV29: 0 | CW29: 0 | CX29: 0 | CY29: 0 | CZ29: 0.002151470302 | DA29: 0.001033208764 | DB29: 0.02848373234 | DC29: 0.01937708021 | DD29: 0.0001033984744 | DE29: 0.0511488901 | DF29: 0 | DG29: 0 | DH29: 0 | DI29: 0 | DJ29: 0 | DK29: 0 | DL29: 0 | DM29: 0 | DN29: 0 | DO29: 0 | DP29: 0 | DQ29: 0 | DR29: 0 | DS29: 0 | DT29: 0 | DU29: 0 | DV29: 0 | DW29: 0 | DX29: 0 | DY29: 0 | DZ29: 0 | EA29: 0.01209818735 | EB29: 0.06566574878 | EC29: 0.08742394152 | ED29: 0.1651878776 | EE29: 0.0001665282493 | EF29: 0.0004669941994 | EG29: 0.05767849634 | EH29: 3.528749368e-06 | EI29: 0.0002432409646 | EJ29: 0.0585587885 | EK29: 620.3473915 | EL29: 22.77749519 | EM29: 60.42951479 | EN29: 14.05370511 | EO29: 94.00221744 | EP29: 51.55988388 | EQ29: 12.68983763 | ER29: 7.823924717 | ES29: 40.67340253 | ET29: 42.11933407 | EU29: 70.26629765 | EV29: 7.974411137 | EW29: 424.3700241 | EX29: 41.34492649 | EY29: 32.93548642 | EZ29: 15.86711166 | FA29: 7.654244367 | FB29: 3.095698949 | FC29: 100.8974679 | FD29: 231.3319294 | FE29: 451.715096 | FF29: 5792.245358 | FG29: 0.03086111853 | FH29: 1.852392536 | FI29: 47.09240116 | FJ29: 3.566743476 | FK29: 3.483896475 | FL29: 0.005972620133 | FM29: 2.316600106 | FN29: 9.585839716 | FO29: 0.1637268018 | FP29: 0.1385874045 | FQ29: 6543.529405 | FR29: 7.051638036 | FS29: 0.3068261934 | FT29: 6550.887869 | FU29: 24.83882691 | FV29: 81.41999168 | FW29: 106.2588186
A30: 01C102 | B30: Pose d'un stimulateur médullaire, niveau 2 | D30: 83 | E30: 10966.92452 | F30: 7.963191914 | G30: 2.198508289 | H30: 258.7217679 | I30: 222.4093316 | J30: 1004.152444 | K30: 1495.445244 | L30: 0.0484360815 | M30: 0.03385568952 | N30: 0.2183873554 | O30: 0.3038792572 | P30: 3.505905265 | Q30: 4.110463648 | R30: 0 | S30: 0.004515414458 | T30: 0.2317539721 | U30: 0.2979729937 | V30: 1.347917305 | W30: 1.882159685 | X30: 0 | Y30: 0 | Z30: 0 | AA30: 0 | AB30: 0 | AC30: 0 | AD30: 1501.437867 | AE30: 12.06210332 | AF30: 4.708029094 | AG30: 10.94726841 | AH30: 190.5887879 | AI30: 193.9345307 | AJ30: 412.2407195 | AK30: 43.56882576 | AL30: 25.35015341 | AM30: 33.79464661 | AN30: 107.5742561 | AO30: 251.7741151 | AP30: 462.0619971 | AQ30: 0 | AR30: 0 | AS30: 0 | AT30: 0 | AU30: 0 | AV30: 0 | AW30: 0 | AX30: 0 | AY30: 0 | AZ30: 0 | BA30: 0 | BB30: 0 | BC30: 0 | BD30: 0.1156661976 | BE30: 0.03591151597 | BF30: 0.4616346479 | BG30: 0.650379865 | BH30: 1.461080863 | BI30: 2.724673089 | BJ30: 5.176531657 | BK30: 3.952039934 | BL30: 35.38488542 | BM30: 8.447706564 | BN30: 1.474351205 | BO30: 54.43551478 | BP30: 0 | BQ30: 0 | BR30: 0 | BS30: 0 | BT30: 0 | BU30: 0 | BV30: 0.6911846642 | BW30: 0.462268254 | BX30: 11.39393416 | BY30: 5.832581151 | BZ30: 0.1790418318 | CA30: 18.55901006 | CB30: 0 | CC30: 0 | CD30: 0 | CE30: 0 | CF30: 0 | CG30: 0 | CH30: 0 | CI30: 0 | CJ30: 0 | CK30: 0 | CL30: 0 | CM30: 0 | CN30: 0.04713852078 | CO30: 0.0269251493 | CP30: 0.9016750121 | CQ30: 0.5365751245 | CR30: 0.0138844037 | CS30: 1.52619821 | CT30: 0 | CU30: 0 | CV30: 0 | CW30: 0 | CX30: 0 | CY30: 0 | CZ30: 0 | DA30: 0 | DB30: 0 | DC30: 0 | DD30: 0 | DE30: 0 | DF30: 0 | DG30: 0 | DH30: 0 | DI30: 0 | DJ30: 0 | DK30: 0 | DL30: 0 | DM30: 0 | DN30: 0 | DO30: 0 | DP30: 0 | DQ30: 0 | DR30: 0 | DS30: 0 | DT30: 0 | DU30: 0 | DV30: 0 | DW30: 0 | DX30: 0 | DY30: 0 | DZ30: 0 | EA30: 0 | EB30: 0 | EC30: 0 | ED30: 0 | EE30: 0.03980876126 | EF30: 0.01577683488 | EG30: 5.359454816 | EH30: 0.06893566175 | EI30: 0.183076972 | EJ30: 5.667053046 | EK30: 957.2151657 | EL30: 47.5706558 | EM30: 122.9068455 | EN30: 13.72894612 | EO30: 193.0707069 | EP30: 104.4512662 | EQ30: 24.7986546 | ER30: 7.738444832 | ES30: 76.13608671 | ET30: 85.14945657 | EU30: 162.2915552 | EV30: 20.53446423 | EW30: 858.3770827 | EX30: 66.73368719 | EY30: 50.58155966 | EZ30: 17.79220108 | FA30: 12.73310728 | FB30: 4.80749262 | FC30: 152.6480478 | FD30: 302.2497724 | FE30: 427.7673282 | FF30: 6601.792743 | FG30: 0.1172421131 | FH30: 2.397008273 | FI30: 120.4647209 | FJ30: 0.8661927522 | FK30: 5.118166078 | FL30: 0.02643166765 | FM30: 0.6270600288 | FN30: 29.24870128 | FO30: 0.1086743547 | FP30: 0.2105683133 | FQ30: 7490.994609 | FR30: 6.251749979 | FS30: 0 | FT30: 7497.246359 | FU30: 73.37200562 | FV30: 158.0818399 | FW30: 231.4538455
A31: 01C103 | B31: Pose d'un stimulateur médullaire, niveau 3 | C31: * | D31: 4 | E31: 17530.79464 | F31: 12.72928266 | G31: 3.514348735 | H31: 413.5706571 | I31: 355.5246788 | J31: 1605.152862 | K31: 2390.49183 | L31: 0.07742580849 | M31: 0.0541188315 | N31: 0.3490954891 | O31: 0.4857555865 | P31: 5.604242565 | Q31: 6.570638281 | R31: 0 | S31: 0.007217958272 | T31: 0.370462228 | U31: 0.476314335 | V31: 2.154666189 | W31: 3.00866071 | X31: 0 | Y31: 0 | Z31: 0 | AA31: 0 | AB31: 0 | AC31: 0 | AD31: 2400.071129 | AE31: 19.2814545 | AF31: 7.525855679 | AG31: 17.49937405 | AH31: 304.6590586 | AI31: 310.0072792 | AJ31: 658.973022 | AK31: 69.64542662 | AL31: 40.52260345 | AM31: 54.02125349 | AN31: 171.9590747 | AO31: 402.4647292 | AP31: 738.6130874 | AQ31: 0 | AR31: 0 | AS31: 0 | AT31: 0 | AU31: 0 | AV31: 0 | AW31: 0 | AX31: 0 | AY31: 0 | AZ31: 0 | BA31: 0 | BB31: 0 | BC31: 0 | BD31: 0.1848941654 | BE31: 0.05740510117 | BF31: 0.7379299633 | BG31: 1.039642046 | BH31: 2.335559847 | BI31: 4.355431123 | BJ31: 8.274764109 | BK31: 6.317395579 | BL31: 56.56327426 | BM31: 13.50378665 | BN31: 2.35677269 | BO31: 87.01599329 | BP31: 0 | BQ31: 0 | BR31: 0 | BS31: 0 | BT31: 0 | BU31: 0 | BV31: 1.104869135 | BW31: 0.7389427922 | BX31: 18.213376 | BY31: 9.323469142 | BZ31: 0.2862010747 | CA31: 29.66685815 | CB31: 0 | CC31: 0 | CD31: 0 | CE31: 0 | CF31: 0 | CG31: 0 | CH31: 0 | CI31: 0 | CJ31: 0 | CK31: 0 | CL31: 0 | CM31: 0 | CN31: 0.07535163808 | CO31: 0.04304025819 | CP31: 1.441341138 | CQ31: 0.8577234481 | CR31: 0.0221944292 | CS31: 2.439650911 | CT31: 0 | CU31: 0 | CV31: 0 | CW31: 0 | CX31: 0 | CY31: 0 | CZ31: 0 | DA31: 0 | DB31: 0 | DC31: 0 | DD31: 0 | DE31: 0 | DF31: 0 | DG31: 0 | DH31: 0 | DI31: 0 | DJ31: 0 | DK31: 0 | DL31: 0 | DM31: 0 | DN31: 0 | DO31: 0 | DP31: 0 | DQ31: 0 | DR31: 0 | DS31: 0 | DT31: 0 | DU31: 0 | DV31: 0 | DW31: 0 | DX31: 0 | DY31: 0 | DZ31: 0 | EA31: 0 | EB31: 0 | EC31: 0 | ED31: 0 | EE31: 0.06363490667 | EF31: 0.02521950905 | EG31: 8.567169543 | EH31: 0.1101946974 | EI31: 0.2926513073 | EJ31: 9.058869964 | EK31: 1530.122913 | EL31: 76.04241244 | EM31: 196.4684505 | EN31: 21.94592791 | EO31: 308.6264437 | EP31: 166.9669281 | EQ31: 39.64102427 | ER31: 12.37002105 | ES31: 121.7046856 | ET31: 136.1126936 | EU31: 259.4255044 | EV31: 32.82465149 | EW31: 1372.128743 | EX31: 106.6748078 | EY31: 80.85538777 | EZ31: 28.44110239 | FA31: 20.35406448 | FB31: 7.684849629 | FC31: 244.0102121 | FD31: 483.1508303 | FE31: 683.7925409 | FF31: 10553.0655 | FG31: 0.1874132903 | FH31: 3.831653961 | FI31: 192.5646774 | FJ31: 1.384622209 | FK31: 8.181465848 | FL31: 0.04225142032 | FM31: 1.002364936 | FN31: 46.75449115 | FO31: 0.1737175989 | FP31: 0.336596632 | FQ31: 11974.46813 | FR31: 9.993516851 | FS31: 0 | FT31: 11984.46164 | FU31: 117.2862602 | FV31: 252.6962109 | FW31: 369.982471
A32: 01C104 | B32: Pose d'un stimulateur médullaire, niveau 4 | C32: * | D32: 6 | E32: 46034.10332 | F32: 33.42581584 | G32: 9.228326274 | H32: 1085.994945 | I32: 933.5720447 | J32: 4214.969956 | K32: 6277.191088 | L32: 0.2033123849 | M32: 0.1421106078 | N32: 0.9166896394 | O32: 1.275545309 | P32: 14.71617725 | Q32: 17.25383519 | R32: 0 | S32: 0.01895363238 | T32: 0.9727965464 | U32: 1.250753532 | V32: 5.657936677 | W32: 7.900440388 | X32: 0 | Y32: 0 | Z32: 0 | AA32: 0 | AB32: 0 | AC32: 0 | AD32: 6302.345364 | AE32: 50.63116001 | AF32: 19.76214 | AG32: 45.951596 | AH32: 800.0040428 | AI32: 814.0479319 | AJ32: 1730.396871 | AK32: 182.8818848 | AL32: 106.4082805 | AM32: 141.8543777 | AN32: 451.5472329 | AO32: 1056.831896 | AP32: 1939.523671 | AQ32: 0 | AR32: 0 | AS32: 0 | AT32: 0 | AU32: 0 | AV32: 0 | AW32: 0 | AX32: 0 | AY32: 0 | AZ32: 0 | BA32: 0 | BB32: 0 | BC32: 0 | BD32: 0.48551348 | BE32: 0.1507400214 | BF32: 1.937729856 | BG32: 2.729995437 | BH32: 6.132945227 | BI32: 11.43692402 | BJ32: 21.7286982 | BK32: 16.58884533 | BL32: 148.5294686 | BM32: 35.45958541 | BN32: 6.188648019 | BO32: 228.4952456 | BP32: 0 | BQ32: 0 | BR32: 0 | BS32: 0 | BT32: 0 | BU32: 0 | BV32: 2.90127521 | BW32: 1.940389443 | BX32: 47.82649333 | BY32: 24.48249213 | BZ32: 0.7515352336 | CA32: 77.90218535 | CB32: 0 | CC32: 0 | CD32: 0 | CE32: 0 | CF32: 0 | CG32: 0 | CH32: 0 | CI32: 0 | CJ32: 0 | CK32: 0 | CL32: 0 | CM32: 0 | CN32: 0.1978658221 | CO32: 0.1130193886 | CP32: 3.784816845 | CQ32: 2.252295497 | CR32: 0.05828033858 | CS32: 6.406277892 | CT32: 0 | CU32: 0 | CV32: 0 | CW32: 0 | CX32: 0 | CY32: 0 | CZ32: 0 | DA32: 0 | DB32: 0 | DC32: 0 | DD32: 0 | DE32: 0 | DF32: 0 | DG32: 0 | DH32: 0 | DI32: 0 | DJ32: 0 | DK32: 0 | DL32: 0 | DM32: 0 | DN32: 0 | DO32: 0 | DP32: 0 | DQ32: 0 | DR32: 0 | DS32: 0 | DT32: 0 | DU32: 0 | DV32: 0 | DW32: 0 | DX32: 0 | DY32: 0 | DZ32: 0 | EA32: 0 | EB32: 0 | EC32: 0 | ED32: 0 | EE32: 0.167098864 | EF32: 0.06622389398 | EG32: 22.49652546 | EH32: 0.2893601911 | EI32: 0.7684728957 | EJ32: 23.78768131 | EK32: 4017.948856 | EL32: 199.6797261 | EM32: 515.9063885 | EN32: 57.62779919 | EO32: 810.4219968 | EP32: 438.4383582 | EQ32: 104.0933423 | ER32: 32.48243099 | ES32: 319.5842622 | ET32: 357.4182419 | EU32: 681.2252794 | EV32: 86.19423304 | EW32: 3603.072059 | EX32: 280.117315 | EY32: 212.3181152 | EZ32: 74.68347403 | FA32: 53.44772595 | FB32: 20.17964212 | FC32: 640.7462723 | FD32: 1268.705481 | FE32: 1795.570431 | FF32: 27711.28849 | FG32: 0.4921284486 | FH32: 10.06153788 | FI32: 505.655473 | FJ32: 3.635878643 | FK32: 21.48370636 | FL32: 0.1109479797 | FM32: 2.632109494 | FN32: 122.7725908 | FO32: 0.4561649406 | FP32: 0.8838688979 | FQ32: 31443.7488 | FR32: 26.24197002 | FS32: 0 | FT32: 31469.99077 | FU32: 307.9819215 | FV32: 663.5548314 | FW32: 971.5367529
A33: 01C10J | B33: Pose d'un stimulateur médullaire, en ambulatoire | D33: 171 | E33: 5120.499466 | F33: 2.890774259 | G33: 0.664003128 | H33: 33.35517058 | I33: 39.11811262 | J33: 105.3677723 | K33: 181.3958329 | L33: 0 | M33: 0 | N33: 0 | O33: 0 | P33: 0 | Q33: 0 | R33: 0 | S33: 0 | T33: 0 | U33: 0 | V33: 0 | W33: 0 | X33: 0 | Y33: 0 | Z33: 0 | AA33: 0 | AB33: 0 | AC33: 0 | AD33: 181.3958329 | AE33: 1.907482198 | AF33: 0.7381173098 | AG33: 1.011256643 | AH33: 26.29697577 | AI33: 22.42366056 | AJ33: 52.37749249 | AK33: 29.47503056 | AL33: 15.09528088 | AM33: 21.80763392 | AN33: 85.25504713 | AO33: 162.6492418 | AP33: 314.2822343 | AQ33: 0 | AR33: 0 | AS33: 0 | AT33: 0 | AU33: 0 | AV33: 0 | AW33: 0 | AX33: 0 | AY33: 0 | AZ33: 0 | BA33: 0 | BB33: 0 | BC33: 0 | BD33: 0.6980981535 | BE33: 0.4268932324 | BF33: 0.5248320452 | BG33: 1.005345767 | BH33: 2.371127563 | BI33: 5.026296761 | BJ33: 0.08400736223 | BK33: 0.3541619794 | BL33: 2.373473068 | BM33: 0.3621887505 | BN33: 0.1341244659 | BO33: 3.307955626 | BP33: 0 | BQ33: 0 | BR33: 0 | BS33: 0 | BT33: 0 | BU33: 0 | BV33: 0.1464408262 | BW33: 0.06298008211 | BX33: 3.161754629 | BY33: 0.9435149503 | BZ33: 0.002315063274 | CA33: 4.317005551 | CB33: 0 | CC33: 0 | CD33: 0 | CE33: 0 | CF33: 0 | CG33: 0 | CH33: 0 | CI33: 0 | CJ33: 0 | CK33: 0 | CL33: 0 | CM33: 0 | CN33: 0 | CO33: 0 | CP33: 0 | CQ33: 0 | CR33: 0 | CS33: 0 | CT33: 0 | CU33: 0 | CV33: 0 | CW33: 0 | CX33: 0 | CY33: 0 | CZ33: 0 | DA33: 0 | DB33: 0 | DC33: 0 | DD33: 0 | DE33: 0 | DF33: 0 | DG33: 0 | DH33: 0 | DI33: 0 | DJ33: 0 | DK33: 0 | DL33: 0 | DM33: 0 | DN33: 0 | DO33: 0 | DP33: 0 | DQ33: 0 | DR33: 0 | DS33: 0 | DT33: 0 | DU33: 0 | DV33: 0 | DW33: 0 | DX33: 0 | DY33: 0 | DZ33: 0 | EA33: 0 | EB33: 0 | EC33: 0 | ED33: 0 | EE33: 0 | EF33: 0 | EG33: 0 | EH33: 0 | EI33: 0 | EJ33: 0 | EK33: 379.3109848 | EL33: 7.628757879 | EM33: 9.148096861 | EN33: 15.92131819 | EO33: 68.78592944 | EP33: 43.40806837 | EQ33: 8.034811815 | ER33: 7.965648343 | ES33: 28.80529982 | ET33: 31.32065678 | EU33: 58.16327536 | EV33: 6.28458882 | EW33: 285.4664517 | EX33: 27.64965847 | EY33: 22.75867494 | EZ33: 6.188858786 | FA33: 5.111412012 | FB33: 1.425445434 | FC33: 63.13404964 | FD33: 214.3687684 | FE33: 248.2435561 | FF33: 3727.476713 | FG33: 0.001055704913 | FH33: 0.2314513111 | FI33: 18.77329692 | FJ33: 0.07698659792 | FK33: 0.8583412701 | FL33: 2.242512747e-05 | FM33: 0.144267143 | FN33: 0.8723959922 | FO33: 0.05456757801 | FP33: 0.02239494855 | FQ33: 4211.123817 | FR33: 0.06832960448 | FS33: 0 | FT33: 4211.192147 | FU33: 28.53247646 | FV33: 62.28163436 | FW33: 90.81411082
A34: 01C111 | B34: Craniotomies pour tumeurs, âge inférieur à 18 ans, niveau 1 | D34: 205 | E34: 7028.820056 | F34: 13.89785431 | G34: 8.088493259 | H34: 295.5127376 | I34: 281.2851274 | J34: 826.6405543 | K34: 1425.424767 | L34: 6.262213191 | M34: 3.715580814 | N34: 14.14001546 | O34: 35.39708365 | P34: 196.6602476 | Q34: 256.1751407 | R34: 1.144364641 | S34: 0.3759811091 | T34: 15.51393973 | U34: 29.01015112 | V34: 125.542372 | W34: 171.5868086 | X34: 11.6503526 | Y34: 5.711191286 | Z34: 36.1441678 | AA34: 99.63533784 | AB34: 274.9527858 | AC34: 428.0938353 | AD34: 2281.280552 | AE34: 28.02570533 | AF34: 12.39718511 | AG34: 29.37518866 | AH34: 467.1301115 | AI34: 386.6686012 | AJ34: 923.5967918 | AK34: 97.77804971 | AL34: 53.45429779 | AM34: 73.68805106 | AN34: 200.2422633 | AO34: 454.8705683 | AP34: 880.0332302 | AQ34: 0 | AR34: 0 | AS34: 0 | AT34: 0 | AU34: 0 | AV34: 0 | AW34: 0 | AX34: 0 | AY34: 0 | AZ34: 0 | BA34: 0 | BB34: 0 | BC34: 0 | BD34: 0.9035019221 | BE34: 0.6615737437 | BF34: 7.914703551 | BG34: 10.00930809 | BH34: 7.162526583 | BI34: 26.65161389 | BJ34: 51.25649766 | BK34: 36.82803525 | BL34: 83.87137676 | BM34: 84.13173026 | BN34: 13.77913503 | BO34: 269.866775 | BP34: 0 | BQ34: 0 | BR34: 0 | BS34: 0 | BT34: 0 | BU34: 0 | BV34: 2.507146933 | BW34: 1.530176135 | BX34: 40.36417875 | BY34: 21.62544088 | BZ34: 1.615512704 | CA34: 67.6424554 | CB34: 0.04575919551 | CC34: 0.0452210558 | CD34: 0.5447813278 | CE34: 0.1105567848 | CF34: 0.02272230172 | CG34: 0.7690406657 | CH34: 1.541671111 | CI34: 0.7257230634 | CJ34: 14.70533563 | CK34: 10.3103882 | CL34: 0.09601950536 | CM34: 27.37913751 | CN34: 1.017232212 | CO34: 0.599924384 | CP34: 25.13238901 | CQ34: 13.39131572 | CR34: 2.011585807 | CS34: 42.15244713 | CT34: 0.05308251865 | CU34: 0.05884961843 | CV34: 0.9752175008 | CW34: 0.4131439491 | CX34: 0.03243544552 | CY34: 1.532729033 | CZ34: 8.215849586 | DA34: 4.248535097 | DB34: 89.02847642 | DC34: 63.41167108 | DD34: 1.21163981 | DE34: 166.116172 | DF34: 0 | DG34: 0 | DH34: 0 | DI34: 0 | DJ34: 0 | DK34: 0 | DL34: 0 | DM34: 0.9544679291 | DN34: 0.9929820508 | DO34: 10.05640176 | DP34: 18.42152892 | DQ34: 10.37849765 | DR34: 40.8038783 | DS34: 0 | DT34: 0 | DU34: 0 | DV34: 0 | DW34: 0 | DX34: 0 | DY34: 0.06796311245 | DZ34: 0.02829653644 | EA34: 1.198305709 | EB34: 3.751185424 | EC34: 5.134952028 | ED34: 10.18070281 | EE34: 0.03707507016 | EF34: 0.006554023081 | EG34: 10.37498287 | EH34: 0.6429911048 | EI34: 0.6310082121 | EJ34: 11.69261128 | EK34: 2468.417585 | EL34: 50.26250701 | EM34: 116.311113 | EN34: 9.773109538 | EO34: 177.957347 | EP34: 119.8865402 | EQ34: 26.50309622 | ER34: 9.874748935 | ES34: 67.11752122 | ET34: 67.28327238 | EU34: 176.9964437 | EV34: 20.74487027 | EW34: 842.7105694 | EX34: 97.37990289 | EY34: 107.8616789 | EZ34: 35.14562326 | FA34: 12.89546139 | FB34: 2.643450764 | FC34: 255.9261172 | FD34: 760.2299411 | FE34: 117.149032 | FF34: 21.43390141 | FG34: 1.36745196 | FH34: 57.75492891 | FI34: 131.6316754 | FJ34: 7.427426876 | FK34: 16.5794325 | FL34: 0.002196052957 | FM34: 7.137281153 | FN34: 42.95876699 | FO34: 1.11571923 | FP34: 10.04905913 | FQ34: 1174.836813 | FR34: 5.648343587 | FS34: 7.659833222e-05 | FT34: 1180.485233 | FU34: 59.40428934 | FV34: 127.456153 | FW34: 186.8604424
A35: 01C112 | B35: Craniotomies pour tumeurs, âge inférieur à 18 ans, niveau 2 | D35: 141 | E35: 8739.96667 | F35: 19.09596024 | G35: 12.91795211 | H35: 412.7409758 | I35: 372.1274672 | J35: 1234.851697 | K35: 2051.734052 | L35: 6.744636298 | M35: 3.727459554 | N35: 19.37243874 | O35: 35.75378702 | P35: 201.0938705 | Q35: 266.6921921 | R35: 1.169788407 | S35: 0.3831835291 | T35: 15.92906832 | U35: 29.56641971 | V35: 128.5284061 | W35: 175.5768661 | X35: 20.14038965 | Y35: 10.89169533 | Z35: 72.23675007 | AA35: 151.5556239 | AB35: 392.0509687 | AC35: 646.8754277 | AD35: 3140.878538 | AE35: 27.05976519 | AF35: 13.41289346 | AG35: 33.94364917 | AH35: 507.4997609 | AI35: 419.3052248 | AJ35: 1001.221293 | AK35: 90.60054728 | AL35: 51.31229371 | AM35: 85.28573555 | AN35: 241.9287657 | AO35: 524.1558443 | AP35: 993.2831865 | AQ35: 0 | AR35: 0 | AS35: 0 | AT35: 0 | AU35: 0 | AV35: 0 | AW35: 0 | AX35: 0 | AY35: 0 | AZ35: 0 | BA35: 0 | BB35: 0 | BC35: 0 | BD35: 0.8388118626 | BE35: 0.5012750954 | BF35: 7.622334001 | BG35: 9.933393913 | BH35: 11.68843928 | BI35: 30.58425415 | BJ35: 46.77765699 | BK35: 45.13233477 | BL35: 96.13453229 | BM35: 91.26079623 | BN35: 16.40084984 | BO35: 295.7061701 | BP35: 0 | BQ35: 0 | BR35: 0 | BS35: 0 | BT35: 0 | BU35: 0 | BV35: 3.337584451 | BW35: 2.255690898 | BX35: 57.1133178 | BY35: 29.03556258 | BZ35: 1.906554864 | CA35: 93.64871059 | CB35: 0 | CC35: 0 | CD35: 0 | CE35: 0 | CF35: 0 | CG35: 0 | CH35: 1.22272936 | CI35: 0.620975338 | CJ35: 13.10177065 | CK35: 8.70247731 | CL35: 0.1355206355 | CM35: 23.7834733 | CN35: 0.8560938468 | CO35: 0.5227490852 | CP35: 23.64896992 | CQ35: 12.61576126 | CR35: 1.875909938 | CS35: 39.51948405 | CT35: 0 | CU35: 0 | CV35: 0 | CW35: 0 | CX35: 0 | CY35: 0 | CZ35: 6.451030185 | DA35: 3.950664554 | DB35: 82.8227034 | DC35: 62.14599941 | DD35: 1.534276983 | DE35: 156.9046745 | DF35: 0 | DG35: 0.445526299 | DH35: 2.762738502 | DI35: 1.049730207 | DJ35: 0.2428905829 | DK35: 1.145723516 | DL35: 5.646609107 | DM35: 0.2794616035 | DN35: 0.1845565821 | DO35: 3.018591878 | DP35: 5.961354212 | DQ35: 3.047043405 | DR35: 12.49100768 | DS35: 0 | DT35: 0 | DU35: 0 | DV35: 0 | DW35: 0 | DX35: 0 | DY35: 0.07327389381 | DZ35: 0.03332316515 | EA35: 1.127465669 | EB35: 4.938887204 | EC35: 5.811734778 | ED35: 11.98468471 | EE35: 0.09630349359 | EF35: 0.02671134194 | EG35: 21.89007653 | EH35: 1.071049273 | EI35: 1.084456831 | EJ35: 24.16859747 | EK35: 2688.942146 | EL35: 76.87841195 | EM35: 165.0101386 | EN35: 10.90901009 | EO35: 252.9438899 | EP35: 176.2342651 | EQ35: 37.87935949 | ER35: 10.01323699 | ES35: 99.90365667 | ET35: 106.9421331 | EU35: 259.521048 | EV35: 29.19635451 | EW35: 1225.431504 | EX35: 117.8971929 | EY35: 115.526001 | EZ35: 42.09235886 | FA35: 14.46070259 | FB35: 4.266331376 | FC35: 294.2425867 | FD35: 892.2805358 | FE35: 133.5791718 | FF35: 25.91133326 | FG35: 3.197698751 | FH35: 47.0261654 | FI35: 179.4289594 | FJ35: 1.122159273 | FK35: 25.27239562 | FL35: 0.04831701801 | FM35: 9.4757218 | FN35: 57.08890045 | FO35: 2.295143133 | FP35: 8.372192263 | FQ35: 1385.098694 | FR35: 5.373200767 | FS35: 0 | FT35: 1390.471895 | FU35: 98.2941548 | FV35: 204.1588147 | FW35: 302.4529695
A36: 01C113 | B36: Craniotomies pour tumeurs, âge inférieur à 18 ans, niveau 3 | D36: 94 | E36: 14073.16473 | F36: 29.30835204 | G36: 13.3306039 | H36: 792.7794949 | I36: 594.0942532 | J36: 2179.678542 | K36: 3609.191246 | L36: 11.13713305 | M36: 5.699996694 | N36: 18.76381426 | O36: 41.56688479 | P36: 274.3057865 | Q36: 351.4736152 | R36: 7.920778347 | S36: 2.073443451 | T36: 78.69771474 | U36: 94.7938382 | V36: 578.840299 | W36: 762.3260738 | X36: 42.30837671 | Y36: 16.04556517 | Z36: 110.964313 | AA36: 365.2058651 | AB36: 779.1493795 | AC36: 1313.6735 | AD36: 6036.664435 | AE36: 35.11358419 | AF36: 15.62426437 | AG36: 35.38570788 | AH36: 552.0073107 | AI36: 480.2024015 | AJ36: 1118.333269 | AK36: 127.3642864 | AL36: 62.95002946 | AM36: 100.251462 | AN36: 278.9711571 | AO36: 647.2486506 | AP36: 1216.785586 | AQ36: 0 | AR36: 0 | AS36: 0 | AT36: 0 | AU36: 0 | AV36: 0 | AW36: 0 | AX36: 0 | AY36: 0 | AZ36: 0 | BA36: 0 | BB36: 0 | BC36: 0 | BD36: 2.937408663 | BE36: 1.564576468 | BF36: 18.61437412 | BG36: 27.91435596 | BH36: 39.11320448 | BI36: 90.14391969 | BJ36: 55.45402448 | BK36: 51.83668182 | BL36: 160.3532036 | BM36: 117.8068167 | BN36: 18.6344467 | BO36: 404.0851733 | BP36: 0 | BQ36: 0 | BR36: 0 | BS36: 0 | BT36: 0 | BU36: 0 | BV36: 6.927994921 | BW36: 4.720058246 | BX36: 131.0014481 | BY36: 70.29488362 | BZ36: 5.144493266 | CA36: 218.0888782 | CB36: 0.0004730884259 | CC36: 7.60526649e-05 | CD36: 0.02916269614 | CE36: 0.02861182651 | CF36: 0 | CG36: 0.05832366374 | CH36: 1.749421487 | CI36: 0.7305716881 | CJ36: 14.34570922 | CK36: 11.69618671 | CL36: 0.1291149719 | CM36: 28.65100408 | CN36: 2.272279782 | CO36: 1.298581602 | CP36: 47.75421617 | CQ36: 26.97870813 | CR36: 3.160497417 | CS36: 81.4642831 | CT36: 0.01930411736 | CU36: 0.003103287859 | CV36: 1.189968044 | CW36: 1.167490106 | CX36: 0 | CY36: 2.379865555 | CZ36: 6.247700364 | DA36: 3.279220025 | DB36: 65.78242626 | DC36: 56.12254731 | DD36: 1.221579664 | DE36: 132.6534736 | DF36: 0 | DG36: 0.8169950512 | DH36: 5.066241183 | DI36: 1.924969156 | DJ36: 0.4454067126 | DK36: 0 | DL36: 8.253612103 | DM36: 0.553974765 | DN36: 0.2955488832 | DO36: 3.880294072 | DP36: 5.858078907 | DQ36: 4.709879403 | DR36: 15.29777603 | DS36: 0 | DT36: 0 | DU36: 0 | DV36: 0 | DW36: 0 | DX36: 0 | DY36: 0.1142900963 | DZ36: 0.04970841168 | EA36: 1.297472986 | EB36: 4.981028027 | EC36: 7.259470728 | ED36: 13.70197025 | EE36: 0.5448693418 | EF36: 0.1543757048 | EG36: 105.8148132 | EH36: 5.44168044 | EI36: 6.933410319 | EJ36: 118.889149 | EK36: 3448.786283 | EL36: 116.4788137 | EM36: 264.7002694 | EN36: 11.11721983 | EO36: 449.442409 | EP36: 295.0791434 | EQ36: 62.74163189 | ER36: 10.18159641 | ES36: 174.9920545 | ET36: 169.3964464 | EU36: 434.931 | EV36: 54.7618235 | EW36: 2043.822408 | EX36: 164.0849715 | EY36: 145.4874137 | EZ36: 58.04538455 | FA36: 21.86153656 | FB36: 6.302991547 | FC36: 395.7822979 | FD36: 1164.73529 | FE36: 296.4021355 | FF36: 23.88009139 | FG36: 7.736451801 | FH36: 150.6112287 | FI36: 324.8414952 | FJ36: 45.56517575 | FK36: 31.40888772 | FL36: 0.2885114605 | FM36: 14.20635994 | FN36: 65.9323765 | FO36: 0.1750941711 | FP36: 15.58644917 | FQ36: 2141.369547 | FR36: 6.739485323 | FS36: 0.0002728983367 | FT36: 2148.109305 | FU36: 138.7460588 | FV36: 318.449758 | FW36: 457.1958169
A37: 01C114 | B37: Craniotomies pour tumeurs, âge inférieur à 18 ans, niveau 4 | D37: 95 | E37: 20363.42522 | F37: 34.69914731 | G37: 17.22290493 | H37: 830.1706145 | I37: 832.210631 | J37: 2671.742712 | K37: 4386.046009 | L37: 33.04985828 | M37: 17.21718543 | N37: 54.62490625 | O37: 135.9400718 | P37: 835.4699992 | Q37: 1076.302021 | R37: 2.445704188 | S37: 0.6064753836 | T37: 43.48063095 | U37: 44.19434264 | V37: 292.962641 | W37: 383.6897941 | X37: 108.4046041 | Y37: 40.17941496 | Z37: 350.8146057 | AA37: 682.2916064 | AB37: 2019.751258 | AC37: 3201.441489 | AD37: 9047.479313 | AE37: 43.30233471 | AF37: 20.80122612 | AG37: 50.6186853 | AH37: 757.3909939 | AI37: 616.1398235 | AJ37: 1488.253064 | AK37: 144.9275287 | AL37: 77.72612198 | AM37: 144.7783163 | AN37: 281.3765011 | AO37: 728.8807051 | AP37: 1377.689173 | AQ37: 0 | AR37: 0 | AS37: 0 | AT37: 0 | AU37: 0 | AV37: 0 | AW37: 0 | AX37: 0 | AY37: 0 | AZ37: 0 | BA37: 0 | BB37: 0 | BC37: 0 | BD37: 5.328458998 | BE37: 2.01707178 | BF37: 23.70662343 | BG37: 33.90847159 | BH37: 48.29836893 | BI37: 113.2589947 | BJ37: 91.25573885 | BK37: 80.57979737 | BL37: 229.6425977 | BM37: 183.2019758 | BN37: 33.50597217 | BO37: 618.1860819 | BP37: 1.397407108 | BQ37: 2.038482111 | BR37: 2.913294474 | BS37: 3.53171687 | BT37: 2.395004068 | BU37: 12.27590463 | BV37: 14.25021744 | BW37: 9.122334881 | BX37: 213.8942199 | BY37: 126.0826548 | BZ37: 7.337731006 | CA37: 370.687158 | CB37: 0.0003134564143 | CC37: 5.039057041e-05 | CD37: 0.01932246418 | CE37: 0.01895747191 | CF37: 0 | CG37: 0.03864378307 | CH37: 1.42161148 | CI37: 0.5986665839 | CJ37: 11.73967224 | CK37: 9.304886211 | CL37: 0.11739095 | CM37: 23.18222746 | CN37: 4.155935791 | CO37: 2.147457434 | CP37: 75.43609085 | CQ37: 41.93258996 | CR37: 4.534420225 | CS37: 128.2064943 | CT37: 0.0002979817131 | CU37: 4.790289116e-05 | CV37: 0.0183685537 | CW37: 0.01802158035 | CX37: 0 | CY37: 0.03673601865 | CZ37: 5.586885167 | DA37: 3.277525397 | DB37: 70.00038113 | DC37: 61.20123705 | DD37: 1.168946694 | DE37: 141.2349754 | DF37: 0 | DG37: 0 | DH37: 0 | DI37: 0 | DJ37: 0 | DK37: 54.79664802 | DL37: 54.79664802 | DM37: 0.3358764377 | DN37: 0.4104067446 | DO37: 4.258083829 | DP37: 8.646291212 | DQ37: 5.117986212 | DR37: 18.76864444 | DS37: 0.1084492846 | DT37: 0.212520719 | DU37: 2.596329724 | DV37: 6.538537151 | DW37: 4.111920273 | DX37: 13.56775715 | DY37: 0.2366379866 | DZ37: 0.08129288927 | EA37: 3.176293254 | EB37: 9.566726702 | EC37: 14.12208389 | ED37: 27.18303472 | EE37: 1.076471195 | EF37: 0.2771574617 | EG37: 173.6930004 | EH37: 9.479203703 | EI37: 16.82047211 | EJ37: 201.3463048 | EK37: 4588.711842 | EL37: 165.9617166 | EM37: 343.580022 | EN37: 9.82679258 | EO37: 689.88598 | EP37: 444.8780127 | EQ37: 90.84873651 | ER37: 9.815495062 | ES37: 247.6700988 | ET37: 266.4821095 | EU37: 633.8979318 | EV37: 85.60363792 | EW37: 2988.450533 | EX37: 237.1354161 | EY37: 191.4671818 | EZ37: 98.16029177 | FA37: 28.09299909 | FB37: 8.945146592 | FC37: 563.8010354 | FD37: 1858.820263 | FE37: 335.1601579 | FF37: 9.071920843 | FG37: 10.65761963 | FH37: 216.0450394 | FI37: 429.6576136 | FJ37: 20.57377992 | FK37: 51.44034585 | FL37: 1.479605717 | FM37: 14.2157744 | FN37: 105.8829959 | FO37: 3.008355288 | FP37: 116.3780832 | FQ37: 3172.391555 | FR37: 2.323571205 | FS37: 0.2673671357 | FT37: 3174.982493 | FU37: 179.1619365 | FV37: 501.8972244 | FW37: 681.0591609
A38: 01C121 | B38: Craniotomies pour affections non tumorales, âge inférieur à 18 ans, niveau 1 | D38: 527 | E38: 5768.762824 | F38: 13.65468167 | G38: 7.373812979 | H38: 301.9218652 | I38: 310.1220311 | J38: 932.0463967 | K38: 1565.118788 | L38: 1.465045144 | M38: 0.7022927464 | N38: 6.038685655 | O38: 10.91544133 | P38: 49.90820597 | Q38: 69.02967085 | R38: 0.8720203372 | S38: 0.3231865122 | T38: 12.37735905 | U38: 19.95099682 | V38: 92.75127858 | W38: 126.2748413 | X38: 4.629982688 | Y38: 2.331983137 | Z38: 15.50341372 | AA38: 40.1768765 | AB38: 104.1344515 | AC38: 166.7767075 | AD38: 1927.200007 | AE38: 21.13642832 | AF38: 10.22298473 | AG38: 22.26026241 | AH38: 348.8181181 | AI38: 314.0723632 | AJ38: 716.5101567 | AK38: 67.3740288 | AL38: 34.18000402 | AM38: 72.43021585 | AN38: 197.0987586 | AO38: 417.7529185 | AP38: 788.8359258 | AQ38: 0 | AR38: 0 | AS38: 0 | AT38: 0 | AU38: 0 | AV38: 0 | AW38: 0 | AX38: 0 | AY38: 0 | AZ38: 0 | BA38: 0 | BB38: 0 | BC38: 0 | BD38: 0.7667665685 | BE38: 0.3005019386 | BF38: 4.406613458 | BG38: 6.788146926 | BH38: 8.448348149 | BI38: 20.71037704 | BJ38: 21.57206479 | BK38: 20.14406206 | BL38: 64.04888132 | BM38: 46.63507694 | BN38: 7.407143923 | BO38: 159.807229 | BP38: 0 | BQ38: 0 | BR38: 0 | BS38: 0 | BT38: 0 | BU38: 0 | BV38: 1.327664278 | BW38: 0.8761645436 | BX38: 23.2419703 | BY38: 11.87531754 | BZ38: 0.751970163 | CA38: 38.07308682 | CB38: 0 | CC38: 0 | CD38: 0 | CE38: 0 | CF38: 0 | CG38: 0 | CH38: 0.2616750243 | CI38: 0.1343133277 | CJ38: 2.823092019 | CK38: 2.101265626 | CL38: 0.03841575774 | CM38: 5.358761755 | CN38: 0.512273062 | CO38: 0.2718261708 | CP38: 12.3602269 | CQ38: 6.48017996 | CR38: 0.9405806164 | CS38: 20.56508671 | CT38: 0 | CU38: 0 | CV38: 0 | CW38: 0 | CX38: 0 | CY38: 0 | CZ38: 1.012371443 | DA38: 0.5710292824 | DB38: 12.13092162 | DC38: 9.39460219 | DD38: 0.2390583401 | DE38: 23.34798288 | DF38: 0 | DG38: 0 | DH38: 0 | DI38: 0 | DJ38: 0 | DK38: 0 | DL38: 0 | DM38: 0.2530956039 | DN38: 0.2378605703 | DO38: 2.820480839 | DP38: 4.792077134 | DQ38: 2.158720209 | DR38: 10.26223436 | DS38: 0 | DT38: 0 | DU38: 1.644553901 | DV38: 3.456082408 | DW38: 1.74981636 | DX38: 6.850452669 | DY38: 0.1074167264 | DZ38: 0.04921632691 | EA38: 1.730338259 | EB38: 5.135975799 | EC38: 7.182477284 | ED38: 14.2054244 | EE38: 0.01411732906 | EF38: 0.003514868042 | EG38: 3.5786639 | EH38: 0.1867939899 | EI38: 0.2222803768 | EJ38: 4.005370464 | EK38: 1808.532089 | EL38: 45.50458322 | EM38: 116.283501 | EN38: 10.88591537 | EO38: 172.182388 | EP38: 110.6380963 | EQ38: 25.48578596 | ER38: 10.32483041 | ES38: 67.31350954 | ET38: 66.09722495 | EU38: 167.6924048 | EV38: 20.5590084 | EW38: 812.967248 | EX38: 75.82555542 | EY38: 72.87467016 | EZ38: 25.7474631 | FA38: 10.09544426 | FB38: 3.168206256 | FC38: 187.7113392 | FD38: 557.6030245 | FE38: 226.9406407 | FF38: 81.16690728 | FG38: 0.2282849294 | FH38: 12.34675036 | FI38: 86.30502309 | FJ38: 1.663274023 | FK38: 14.52798406 | FL38: 0.02734099365 | FM38: 4.674969363 | FN38: 28.15948195 | FO38: 0.6695663762 | FP38: 13.44901128 | FQ38: 1027.762259 | FR38: 4.589880915 | FS38: 7.433119798e-07 | FT38: 1032.352141 | FU38: 59.98334091 | FV38: 126.0476097 | FW38: 186.0309506
A39: 01C122 | B39: Craniotomies pour affections non tumorales, âge inférieur à 18 ans, niveau 2 | D39: 258 | E39: 8589.026609 | F39: 18.11372205 | G39: 12.33369732 | H39: 497.3963709 | I39: 454.1927037 | J39: 1390.082568 | K39: 2372.119062 | L39: 8.476561268 | M39: 4.487930172 | N39: 18.52002371 | O39: 36.11382452 | P39: 222.6363209 | Q39: 290.2346606 | R39: 1.299618891 | S39: 0.3452391248 | T39: 21.29574714 | U39: 25.57476968 | V39: 148.3565676 | W39: 196.8719425 | X39: 15.42637257 | Y39: 8.56630382 | Z39: 58.99749125 | AA39: 129.3695976 | AB39: 291.0476207 | AC39: 503.407386 | AD39: 3362.633052 | AE39: 22.08311222 | AF39: 10.84882513 | AG39: 23.84758352 | AH39: 375.0272069 | AI39: 330.2950665 | AJ39: 762.1017943 | AK39: 78.83334404 | AL39: 43.31234834 | AM39: 91.46246788 | AN39: 215.1327901 | AO39: 473.0070807 | AP39: 901.748031 | AQ39: 0 | AR39: 0 | AS39: 0 | AT39: 0 | AU39: 0 | AV39: 0 | AW39: 0 | AX39: 0 | AY39: 0 | AZ39: 0 | BA39: 0 | BB39: 0 | BC39: 0 | BD39: 1.798566338 | BE39: 1.060753036 | BF39: 25.90742769 | BG39: 38.54044054 | BH39: 44.80209236 | BI39: 112.10928 | BJ39: 35.51149832 | BK39: 30.47441661 | BL39: 108.6578121 | BM39: 70.33332196 | BN39: 11.25914165 | BO39: 256.2361907 | BP39: 1.309538264 | BQ39: 0.3120677857 | BR39: 2.384295532 | BS39: 2.581670798 | BT39: 0.3964398207 | BU39: 6.984012201 | BV39: 2.822792462 | BW39: 1.868772155 | BX39: 47.02348912 | BY39: 24.18984166 | BZ39: 1.381084686 | CA39: 77.28598008 | CB39: 0.0110704241 | CC39: 0.004318853913 | CD39: 0.09610883841 | CE39: 0.05412810137 | CF39: 0.0001875073624 | CG39: 0.1658137252 | CH39: 0.3160041676 | CI39: 0.1517200312 | CJ39: 3.093572909 | CK39: 2.22564785 | CL39: 0.0475835136 | CM39: 5.834528471 | CN39: 1.330325844 | CO39: 0.7506925661 | CP39: 25.57547416 | CQ39: 13.62167912 | CR39: 1.352534391 | CS39: 42.63070608 | CT39: 0 | CU39: 0 | CV39: 0 | CW39: 0 | CX39: 0 | CY39: 0 | CZ39: 1.545232164 | DA39: 0.8378127062 | DB39: 17.18377144 | DC39: 12.53642859 | DD39: 0.3314745688 | DE39: 32.43471947 | DF39: 0 | DG39: 0 | DH39: 0 | DI39: 0 | DJ39: 0 | DK39: 0 | DL39: 0 | DM39: 0.5511873613 | DN39: 0.4257606433 | DO39: 8.743952147 | DP39: 12.05653628 | DQ39: 8.122046823 | DR39: 29.89948325 | DS39: 0.02996747249 | DT39: 0.04156987433 | DU39: 0.3593806994 | DV39: 1.68969313 | DW39: 0.8032319167 | DX39: 2.923843093 | DY39: 0.07871236188 | DZ39: 0.0401847822 | EA39: 1.480925446 | EB39: 5.283162364 | EC39: 6.796363435 | ED39: 13.67934839 | EE39: 0.05211165091 | EF39: 0.01467674901 | EG39: 13.90913624 | EH39: 0.7294770732 | EI39: 0.7093370115 | EJ39: 15.41473872 | EK39: 2259.448469 | EL39: 82.88914113 | EM39: 189.4014054 | EN39: 11.75357592 | EO39: 269.7391809 | EP39: 193.4327798 | EQ39: 41.64903434 | ER39: 10.3230587 | ES39: 117.1810843 | ET39: 114.1685048 | EU39: 279.0444467 | EV39: 30.26510365 | EW39: 1339.847316 | EX39: 109.0660398 | EY39: 89.08882769 | EZ39: 39.3820471 | FA39: 13.33831574 | FB39: 4.771579488 | FC39: 255.6468099 | FD39: 740.5293345 | FE39: 232.4738753 | FF39: 123.5671567 | FG39: 0.7318413271 | FH39: 37.44301783 | FI39: 138.6108497 | FJ39: 1.442938913 | FK39: 24.73223706 | FL39: 0.05742963375 | FM39: 6.333557638 | FN39: 43.59001852 | FO39: 0.5503363417 | FP39: 17.26180903 | FQ39: 1367.324403 | FR39: 4.126558442 | FS39: 1.198051615e-06 | FT39: 1371.450962 | FU39: 102.1659395 | FV39: 220.2349062 | FW39: 322.4008456
A40: 01C123 | B40: Craniotomies pour affections non tumorales, âge inférieur à 18 ans, niveau 3 | D40: 129 | E40: 14571.874 | F40: 17.0701589 | G40: 10.6841842 | H40: 506.0821004 | I40: 432.1622731 | J40: 1584.726781 | K40: 2550.725498 | L40: 15.84592019 | M40: 8.263277753 | N40: 39.63153291 | O40: 64.76953789 | P40: 400.3265197 | Q40: 528.8367885 | R40: 6.553171514 | S40: 0.8012853406 | T40: 35.52272238 | U40: 52.4437531 | V40: 170.5139136 | W40: 265.8348459 | X40: 96.51202008 | Y40: 44.47743823 | Z40: 311.5460578 | AA40: 857.1347124 | AB40: 2225.856572 | AC40: 3535.5268 | AD40: 6880.923932 | AE40: 20.3993294 | AF40: 9.85417176 | AG40: 22.65634767 | AH40: 356.2104325 | AI40: 301.3427834 | AJ40: 710.4630648 | AK40: 65.9721187 | AL40: 38.62899661 | AM40: 81.46764859 | AN40: 194.0912274 | AO40: 437.6583135 | AP40: 817.8183048 | AQ40: 0 | AR40: 0 | AS40: 0 | AT40: 0 | AU40: 0 | AV40: 0 | AW40: 0 | AX40: 0 | AY40: 0 | AZ40: 0 | BA40: 0 | BB40: 0 | BC40: 0 | BD40: 6.457678189 | BE40: 2.90146595 | BF40: 42.69450782 | BG40: 58.21439353 | BH40: 70.06801838 | BI40: 180.3360639 | BJ40: 66.37337642 | BK40: 43.80552405 | BL40: 202.4535268 | BM40: 107.1840271 | BN40: 16.91770838 | BO40: 436.7341627 | BP40: 5.972243998 | BQ40: 4.157326217 | BR40: 12.00406972 | BS40: 13.83466721 | BT40: 5.801098845 | BU40: 41.769406 | BV40: 13.01582372 | BW40: 8.014386071 | BX40: 177.9855565 | BY40: 91.09697349 | BZ40: 3.709272987 | CA40: 293.8220128 | CB40: 0 | CC40: 0 | CD40: 0 | CE40: 0 | CF40: 0 | CG40: 0 | CH40: 0.3396828557 | CI40: 0.1728201802 | CJ40: 3.657453384 | CK40: 2.624603149 | CL40: 0.06002042514 | CM40: 6.854579994 | CN40: 3.773534433 | CO40: 2.477312215 | CP40: 60.24674333 | CQ40: 33.88112877 | CR40: 2.273057095 | CS40: 102.6517758 | CT40: 0 | CU40: 0 | CV40: 0 | CW40: 0 | CX40: 0 | CY40: 0 | CZ40: 2.284470487 | DA40: 1.258538117 | DB40: 26.37073331 | DC40: 17.28914236 | DD40: 0.3602392363 | DE40: 47.5631235 | DF40: 0 | DG40: 0 | DH40: 0 | DI40: 0 | DJ40: 0 | DK40: 0 | DL40: 0 | DM40: 2.774815506 | DN40: 1.841317836 | DO40: 25.64158151 | DP40: 46.47835412 | DQ40: 25.96261714 | DR40: 102.6986861 | DS40: 46.52590932 | DT40: 0.4824227656 | DU40: 12.72076477 | DV40: 36.77526676 | DW40: 16.37292813 | DX40: 112.8772917 | DY40: 0.2046361237 | DZ40: 0.08709153671 | EA40: 4.22165695 | EB40: 12.52573833 | EC40: 16.66343057 | ED40: 33.7025535 | EE40: 0.5838867201 | EF40: 0.1422000895 | EG40: 87.08372867 | EH40: 3.280190402 | EI40: 4.737455131 | EJ40: 95.82746101 | EK40: 2983.118487 | EL40: 128.2899065 | EM40: 237.3034658 | EN40: 12.02430504 | EO40: 437.3942973 | EP40: 303.942762 | EQ40: 65.31829078 | ER40: 9.931555455 | ES40: 184.3995923 | ET40: 195.3200974 | EU40: 436.582691 | EV40: 49.44746354 | EW40: 2059.954427 | EX40: 177.2081938 | EY40: 108.2627087 | EZ40: 61.25917878 | FA40: 25.0874531 | FB40: 8.181865567 | FC40: 379.9993999 | FD40: 1266.430225 | FE40: 236.0573107 | FF40: 45.59041108 | FG40: 4.475225853 | FH40: 162.0113731 | FI40: 282.7242899 | FJ40: 47.26508683 | FK40: 25.17918759 | FL40: 0.3098902556 | FM40: 9.934795115 | FN40: 68.45587447 | FO40: 2.474890008 | FP40: 109.9896822 | FQ40: 2260.898242 | FR40: 6.97951255 | FS40: 0 | FT40: 2267.877754 | FU40: 179.1608143 | FV40: 363.651547 | FW40: 542.8123614
A41: 01C124 | B41: Craniotomies pour affections non tumorales, âge inférieur à 18 ans, niveau 4 | D41: 149 | E41: 25787.13587 | F41: 25.21307583 | G41: 15.73362885 | H41: 763.5709629 | I41: 690.5116906 | J41: 2218.058428 | K41: 3713.087787 | L41: 29.41128376 | M41: 15.95483432 | N41: 67.45038875 | O41: 133.7265487 | P41: 809.6400442 | Q41: 1056.1831 | R41: 5.109835476 | S41: 1.589172828 | T41: 79.45671939 | U41: 53.35338347 | V41: 281.2364976 | W41: 420.7456088 | X41: 203.5740841 | Y41: 87.25714972 | Z41: 701.5590892 | AA41: 1812.493057 | AB41: 5068.875066 | AC41: 7873.758446 | AD41: 13063.77494 | AE41: 28.72412347 | AF41: 13.23790517 | AG41: 28.28389579 | AH41: 447.8176784 | AI41: 392.2867286 | AJ41: 910.3503314 | AK41: 85.8050118 | AL41: 42.21231101 | AM41: 92.51024602 | AN41: 216.2231904 | AO41: 486.2178276 | AP41: 922.9685869 | AQ41: 0 | AR41: 0 | AS41: 0 | AT41: 0 | AU41: 0 | AV41: 0 | AW41: 17.94854429 | AX41: 3.415656086 | AY41: 10.71679447 | AZ41: 12.2708292 | BA41: 103.2541613 | BB41: 0 | BC41: 147.6059853 | BD41: 9.294363775 | BE41: 4.723211885 | BF41: 49.23708373 | BG41: 79.27181935 | BH41: 115.4140833 | BI41: 257.9405621 | BJ41: 84.89411004 | BK41: 62.83848436 | BL41: 312.6291714 | BM41: 167.25118 | BN41: 25.50931414 | BO41: 653.1222599 | BP41: 14.42822644 | BQ41: 4.840295986 | BR41: 20.93215651 | BS41: 23.24259878 | BT41: 4.547975083 | BU41: 67.9912528 | BV41: 22.32891362 | BW41: 14.84068114 | BX41: 349.7934787 | BY41: 186.0969626 | BZ41: 8.197646285 | CA41: 581.2576823 | CB41: 0.2618708261 | CC41: 0.1126937451 | CD41: 1.13024282 | CE41: 0.6038240361 | CF41: 0.01329749736 | CG41: 2.121928924 | CH41: 0.4877445616 | CI41: 0.2233834173 | CJ41: 4.446129575 | CK41: 3.3820979 | CL41: 0.03653655135 | CM41: 8.575892004 | CN41: 8.604815885 | CO41: 5.313873808 | CP41: 141.967716 | CQ41: 76.16132148 | CR41: 4.352818818 | CS41: 236.400546 | CT41: 0.0697667565 | CU41: 0.01652098345 | CV41: 0.3418272639 | CW41: 0.1751341728 | CX41: 0.01508882557 | CY41: 0.6183380022 | CZ41: 2.167742804 | DA41: 1.098007898 | DB41: 22.41079061 | DC41: 17.6177955 | DD41: 0.2339396477 | DE41: 43.52827645 | DF41: 0 | DG41: 0 | DH41: 0 | DI41: 0 | DJ41: 0 | DK41: 0 | DL41: 0 | DM41: 4.49817999 | DN41: 2.975931483 | DO41: 49.61208864 | DP41: 100.9115236 | DQ41: 57.5303622 | DR41: 215.5280859 | DS41: 0.1545764059 | DT41: 0.2370313703 | DU41: 7.290826687 | DV41: 19.30455366 | DW41: 9.865065606 | DX41: 36.85205373 | DY41: 0.222988073 | DZ41: 0.07920929611 | EA41: 2.711073131 | EB41: 10.42332115 | EC41: 14.90417078 | ED41: 28.34076242 | EE41: 1.883485661 | EF41: 0.4621692674 | EG41: 252.8785893 | EH41: 11.05741607 | EI41: 16.90231334 | EJ41: 283.1839736 | EK41: 4396.386518 | EL41: 209.6648323 | EM41: 336.9047543 | EN41: 11.42363464 | EO41: 705.3507331 | EP41: 486.2766623 | EQ41: 106.1089867 | ER41: 10.04064895 | ES41: 311.0875596 | ET41: 298.2896238 | EU41: 710.9442835 | EV41: 77.40464144 | EW41: 3263.496361 | EX41: 324.4912588 | EY41: 152.6935382 | EZ41: 127.0689451 | FA41: 42.24566946 | FB41: 16.87227666 | FC41: 663.3716882 | FD41: 2241.070462 | FE41: 323.1429558 | FF41: 195.4008568 | FG41: 3.985740022 | FH41: 239.6198924 | FI41: 526.2071278 | FJ41: 516.2619066 | FK41: 42.05353167 | FL41: 0.5398258888 | FM41: 13.91315554 | FN41: 95.40076728 | FO41: 3.743700155 | FP41: 172.3168098 | FQ41: 4373.656732 | FR41: 26.4394232 | FS41: 0.01021007915 | FT41: 4400.106365 | FU41: 261.225611 | FV41: 578.1468807 | FW41: 839.3724918
A42: 01C141 | B42: Libérations de nerfs superficiels à l'exception du médian au canal carpien, niveau 1 | D42: 501 | E42: 1692.975677 | F42: 3.174485233 | G42: 0.3791323693 | H42: 73.99534522 | I42: 75.94603118 | J42: 272.4221367 | K42: 425.9171307 | L42: 0.0003801032002 | M42: 0.002591819277 | N42: 0.0596790456 | O42: 0.2269100565 | P42: 0.7146309796 | Q42: 1.004192004 | R42: 0 | S42: 0 | T42: 0 | U42: 0 | V42: 0 | W42: 0 | X42: 0 | Y42: 0 | Z42: 0 | AA42: 0 | AB42: 0 | AC42: 0 | AD42: 426.9213227 | AE42: 9.626819311 | AF42: 4.496346849 | AG42: 10.79325164 | AH42: 143.4343788 | AI42: 147.2294515 | AJ42: 315.580248 | AK42: 26.91907126 | AL42: 12.16129519 | AM42: 39.21827139 | AN42: 91.11751907 | AO42: 192.3208206 | AP42: 361.7369775 | AQ42: 0.02096527093 | AR42: 0.01370827969 | AS42: 0.03066337452 | AT42: 0.2415529801 | AU42: 0.500499669 | AV42: 0.8073895742 | AW42: 0 | AX42: 0 | AY42: 0 | AZ42: 0 | BA42: 0 | BB42: 1.195041806 | BC42: 1.195041806 | BD42: 0.01551527909 | BE42: 0.001836161184 | BF42: 0.03253105836 | BG42: 0.01075780582 | BH42: 0.04204566395 | BI42: 0.1026859684 | BJ42: 0.4513867924 | BK42: 0.3248061098 | BL42: 2.278457674 | BM42: 0.808491573 | BN42: 0.09308853559 | BO42: 3.956230685 | BP42: 0 | BQ42: 0 | BR42: 0 | BS42: 0 | BT42: 0 | BU42: 0 | BV42: 0.09642982251 | BW42: 0.0703591579 | BX42: 1.244493486 | BY42: 0.5756498994 | BZ42: 0.01262303098 | CA42: 1.999555397 | CB42: 0.009226733187 | CC42: 0.007637615756 | CD42: 0.08227122775 | CE42: 0.04352055266 | CF42: 0 | CG42: 0.1426561294 | CH42: 0.09791346179 | CI42: 0.04277896344 | CJ42: 0.8102193419 | CK42: 0.536548434 | CL42: 0.004021472306 | CM42: 1.491481673 | CN42: 0.002575068136 | CO42: 0.001917311682 | CP42: 0.04115501294 | CQ42: 0.01539354748 | CR42: 0.0004906745968 | CS42: 0.06153161483 | CT42: 0 | CU42: 0 | CV42: 0 | CW42: 0 | CX42: 0 | CY42: 0 | CZ42: 0.1307737641 | DA42: 0.0688535168 | DB42: 1.509639697 | DC42: 1.131439245 | DD42: 0.01152046306 | DE42: 2.852226685 | DF42: 0 | DG42: 0 | DH42: 0 | DI42: 0 | DJ42: 0 | DK42: 0 | DL42: 0 | DM42: 0.03979794978 | DN42: 0.03800251272 | DO42: 0.3099005473 | DP42: 0.6473627601 | DQ42: 0.4122578565 | DR42: 1.447321626 | DS42: 0 | DT42: 0 | DU42: 0 | DV42: 0 | DW42: 0 | DX42: 0 | DY42: 0.007616889941 | DZ42: 0.001846877174 | EA42: 0.09193751949 | EB42: 0.3828726344 | EC42: 0.5035790935 | ED42: 0.9878530145 | EE42: 0.001389353716 | EF42: 0.0009862981006 | EG42: 0.414783466 | EH42: 0.006469855015 | EI42: 0.008925825285 | EJ42: 0.4325547981 | EK42: 692.7937545 | EL42: 12.95333412 | EM42: 31.17285988 | EN42: 12.30451985 | EO42: 49.19828728 | EP42: 25.09097222 | EQ42: 5.819859786 | ER42: 9.461306176 | ES42: 19.61814039 | ET42: 23.56217044 | EU42: 39.04336095 | EV42: 4.053423002 | EW42: 232.2782341 | EX42: 34.80148586 | EY42: 54.58329264 | EZ42: 10.57127795 | FA42: 6.005055895 | FB42: 1.533609092 | FC42: 107.4947214 | FD42: 154.8054259 | FE42: 21.23565982 | FF42: 2.665668809 | FG42: 0.01836416051 | FH42: 2.410424835 | FI42: 28.70155586 | FJ42: 1.059983192 | FK42: 0.5668750009 | FL42: 0.05273072677 | FM42: 0.4415666392 | FN42: 3.793838339 | FO42: 0.03166529814 | FP42: 0.2408388504 | FQ42: 216.0245975 | FR42: 15.03315084 | FS42: 2.429896257 | FT42: 233.4876446 | FU42: 19.81138921 | FV42: 39.55241667 | FW42: 59.36380588
A43: 01C142 | B43: Libérations de nerfs superficiels à l'exception du médian au canal carpien, niveau 2 | C43: * | D43: 24 | E43: 2696.94546 | F43: 5.05702099 | G43: 0.6039657484 | H43: 117.8761237 | I43: 120.983607 | J43: 433.9741289 | K43: 678.4948463 | L43: 0.0006055123022 | M43: 0.004128822006 | N43: 0.09506996068 | O43: 0.3614724386 | P43: 1.138422012 | Q43: 1.599698745 | R43: 0 | S43: 0 | T43: 0 | U43: 0 | V43: 0 | W43: 0 | X43: 0 | Y43: 0 | Z43: 0 | AA43: 0 | AB43: 0 | AC43: 0 | AD43: 680.0945451 | AE43: 15.33572335 | AF43: 7.162774033 | AG43: 17.19387431 | AH43: 228.4939482 | AI43: 234.5395779 | AJ43: 502.7258977 | AK43: 42.8826403 | AL43: 19.37319614 | AM43: 62.47552187 | AN43: 145.1521027 | AO43: 306.3710666 | AP43: 576.2545276 | AQ43: 0.03339811258 | AR43: 0.02183757461 | AS43: 0.04884739326 | AT43: 0.3847989205 | AU43: 0.7973063808 | AV43: 1.286188382 | AW43: 0 | AX43: 0 | AY43: 0 | AZ43: 0 | BA43: 0 | BB43: 1.903726448 | BC43: 1.903726448 | BD43: 0.02471616223 | BE43: 0.00292504295 | BF43: 0.05182265247 | BG43: 0.01713740839 | BH43: 0.06697961702 | BI43: 0.1635808831 | BJ43: 0.719068547 | BK43: 0.5174228874 | BL43: 3.629630456 | BM43: 1.287943889 | BN43: 0.148291973 | BO43: 6.302357752 | BP43: 0 | BQ43: 0 | BR43: 0 | BS43: 0 | BT43: 0 | BU43: 0 | BV43: 0.1536147125 | BW43: 0.1120836017 | BX43: 1.982504003 | BY43: 0.9170222606 | BZ43: 0.02010875086 | CA43: 3.185333328 | CB43: 0.01469837784 | CC43: 0.01216688073 | CD43: 0.1310597767 | CE43: 0.06932914542 | CF43: 0 | CG43: 0.2272541806 | CH43: 0.1559781808 | CI43: 0.06814777836 | CJ43: 1.29069626 | CK43: 0.8547328131 | CL43: 0.006406289012 | CM43: 2.375961322 | CN43: 0.00410213709 | CO43: 0.003054317381 | CP43: 0.06556079144 | CQ43: 0.02452224125 | CR43: 0.0007816548364 | CS43: 0.098021142 | CT43: 0 | CU43: 0 | CV43: 0 | CW43: 0 | CX43: 0 | CY43: 0 | CZ43: 0.2083253257 | DA43: 0.1096850841 | DB43: 2.404887431 | DC43: 1.802406245 | DD43: 0.01835233723 | DE43: 4.543656423 | DF43: 0 | DG43: 0 | DH43: 0 | DI43: 0 | DJ43: 0 | DK43: 0 | DL43: 0 | DM43: 0.06339896161 | DN43: 0.06053879304 | DO43: 0.4936780163 | DP43: 1.031262339 | DQ43: 0.6567353384 | DR43: 2.305613448 | DS43: 0 | DT43: 0 | DU43: 0 | DV43: 0 | DW43: 0 | DX43: 0 | DY43: 0.01213386407 | DZ43: 0.002942113744 | EA43: 0.1464583804 | EB43: 0.6099240686 | EC43: 0.802211968 | ED43: 1.573670395 | EE43: 0.002213269361 | EF43: 0.001571193385 | EG43: 0.6607586869 | EH43: 0.01030661358 | EI43: 0.0142190253 | EJ43: 0.6890687886 | EK43: 1103.634858 | EL43: 20.63493062 | EM43: 49.65901404 | EN43: 19.60135601 | EO43: 78.37389472 | EP43: 39.97044052 | EQ43: 9.271157664 | ER43: 15.07205749 | ES43: 31.25210561 | ET43: 37.53502749 | EU43: 62.19688591 | EV43: 6.457187134 | EW43: 370.0240572 | EX43: 55.43949068 | EY43: 86.95232026 | EZ43: 16.84026561 | FA43: 9.566178918 | FB43: 2.443071176 | FC43: 171.2413266 | FD43: 246.6082627 | FE43: 33.8288477 | FF43: 4.246465846 | FG43: 0.02925448958 | FH43: 3.839856887 | FI43: 45.72217534 | FJ43: 1.688575268 | FK43: 0.9030436648 | FL43: 0.0840011443 | FM43: 0.7034248387 | FN43: 6.043663368 | FO43: 0.05044347842 | FP43: 0.383661297 | FQ43: 344.1316761 | FR43: 23.94812191 | FS43: 3.870875268 | FT43: 371.9506732 | FU43: 31.559955 | FV43: 63.00782226 | FW43: 94.56777726
A44: 01C143 | B44: Libérations de nerfs superficiels à l'exception du médian au canal carpien, niveau 3 | C44: * | D44: 9 | E44: 4311.108088 | F44: 8.083724501 | G44: 0.9654483792 | H44: 188.4267657 | I44: 193.3941247 | J44: 693.7142056 | K44: 1084.584269 | L44: 0.0009679205689 | M44: 0.006599984394 | N44: 0.1519707694 | O44: 0.5778191576 | P44: 1.819784795 | Q44: 2.557142627 | R44: 0 | S44: 0 | T44: 0 | U44: 0 | V44: 0 | W44: 0 | X44: 0 | Y44: 0 | Z44: 0 | AA44: 0 | AB44: 0 | AC44: 0 | AD44: 1087.141411 | AE44: 24.51438562 | AF44: 11.44980257 | AG44: 27.484668 | AH44: 365.2510303 | AI44: 374.9150609 | AJ44: 803.6149474 | AK44: 68.54854879 | AL44: 30.96834691 | AM44: 99.86806618 | AN44: 232.0278305 | AO44: 489.7387814 | AP44: 921.1515738 | AQ44: 0.05338738784 | AR44: 0.03490769314 | AS44: 0.07808329657 | AT44: 0.6151068915 | AU44: 1.274506303 | AV44: 2.055991572 | AW44: 0 | AX44: 0 | AY44: 0 | AZ44: 0 | BA44: 0 | BB44: 3.043135506 | BC44: 3.043135506 | BD44: 0.03950915897 | BE44: 0.004675725374 | BF44: 0.08283929339 | BG44: 0.02739440638 | BH44: 0.1070679304 | BI44: 0.2614865145 | BJ44: 1.149441943 | BK44: 0.8271083075 | BL44: 5.802019155 | BM44: 2.058797776 | BN44: 0.2370469606 | BO44: 10.07441414 | BP44: 0 | BQ44: 0 | BR44: 0 | BS44: 0 | BT44: 0 | BU44: 0 | BV44: 0.2455554402 | BW44: 0.1791673317 | BX44: 3.169062618 | BY44: 1.465873947 | BZ44: 0.03214414223 | CA44: 5.091803479 | CB44: 0.02349557918 | CC44: 0.01944894277 | CD44: 0.2095010343 | CE44: 0.110823687 | CF44: 0 | CG44: 0.3632692432 | CH44: 0.2493334799 | CI44: 0.1089352539 | CJ44: 2.063197484 | CK44: 1.366303323 | CL44: 0.01024054983 | CM44: 3.798010091 | CN44: 0.006557328151 | CO44: 0.004882372506 | CP44: 0.1047999162 | CQ44: 0.03919917335 | CR44: 0.001249487073 | CS44: 0.1566882773 | CT44: 0 | CU44: 0 | CV44: 0 | CW44: 0 | CX44: 0 | CY44: 0 | CZ44: 0.3330111824 | DA44: 0.1753332651 | DB44: 3.844248913 | DC44: 2.881173631 | DD44: 0.02933648851 | DE44: 7.26310348 | DF44: 0 | DG44: 0 | DH44: 0 | DI44: 0 | DJ44: 0 | DK44: 0 | DL44: 0 | DM44: 0.1013441986 | DN44: 0.09677217586 | DO44: 0.7891517721 | DP44: 1.648488439 | DQ44: 1.049801366 | DR44: 3.685557952 | DS44: 0 | DT44: 0 | DU44: 0 | DV44: 0 | DW44: 0 | DX44: 0 | DY44: 0.01939616515 | DZ44: 0.004703013297 | EA44: 0.2341159351 | EB44: 0.9749728441 | EC44: 1.282347958 | ED44: 2.515535916 | EE44: 0.003537944533 | EF44: 0.002511576378 | EG44: 1.05623275 | EH44: 0.01647527762 | EI44: 0.02272932689 | EJ44: 1.101486875 | EK44: 1764.177004 | EL44: 32.98524855 | EM44: 79.38068466 | EN44: 31.33306389 | EO44: 125.2818555 | EP44: 63.89335341 | EQ44: 14.82008568 | ER44: 24.09291175 | ES44: 49.95696327 | ET44: 60.00030887 | EU44: 99.42266238 | EV44: 10.32191125 | EW44: 591.4890492 | EX44: 88.62086394 | EY44: 138.9945984 | EZ44: 26.91941916 | FA44: 15.29168162 | FB44: 3.905286208 | FC44: 273.7318493 | FD44: 394.207036 | FE44: 54.07592445 | FF44: 6.78803985 | FG44: 0.04676374385 | FH44: 6.138069282 | FI44: 73.08758848 | FJ44: 2.699213092 | FK44: 1.44352895 | FL44: 0.134277099 | FM44: 1.124435239 | FN44: 9.660887257 | FO44: 0.08063466282 | FP44: 0.6132883832 | FQ44: 550.0996865 | FR44: 38.2814349 | FS44: 6.187652634 | FT44: 594.568774 | FU44: 50.44906517 | FV44: 100.7189564 | FW44: 151.1680216
A45: 01C14J | B45: Libérations de nerfs superficiels à l'exception du médian au canal carpien, en ambulatoire | D45: 751 | E45: 1508.396311 | F45: 1.712234842 | G45: 0.1955616596 | H45: 33.33176293 | I45: 77.30648877 | J45: 115.0473368 | K45: 227.5933851 | L45: 0 | M45: 0 | N45: 0 | O45: 0 | P45: 0 | Q45: 0 | R45: 0 | S45: 0 | T45: 0 | U45: 0 | V45: 0 | W45: 0 | X45: 0 | Y45: 0 | Z45: 0 | AA45: 0 | AB45: 0 | AC45: 0 | AD45: 227.5933851 | AE45: 7.723295657 | AF45: 3.335100921 | AG45: 8.272089283 | AH45: 127.1989982 | AI45: 124.8899687 | AJ45: 271.4194527 | AK45: 24.16774395 | AL45: 12.68805474 | AM45: 41.06111345 | AN45: 91.35389245 | AO45: 166.4546359 | AP45: 335.7254405 | AQ45: 0 | AR45: 0 | AS45: 0 | AT45: 0 | AU45: 0 | AV45: 0 | AW45: 0 | AX45: 0 | AY45: 0 | AZ45: 0 | BA45: 0 | BB45: 0 | BC45: 0 | BD45: 0 | BE45: 0 | BF45: 0 | BG45: 0 | BH45: 0 | BI45: 0 | BJ45: 0.04019706405 | BK45: 0.01601176373 | BL45: 0.2069115993 | BM45: 0.05322988952 | BN45: 0.003328582775 | BO45: 0.3196788994 | BP45: 0 | BQ45: 0 | BR45: 0 | BS45: 0 | BT45: 0 | BU45: 0 | BV45: 0.00818856015 | BW45: 0.006107105155 | BX45: 0.107366739 | BY45: 0.03974395765 | BZ45: 0.002148260408 | CA45: 0.1635546223 | CB45: 0.0129262886 | CC45: 0.01064212822 | CD45: 0.1151781453 | CE45: 0.06094163549 | CF45: 2.263744317e-06 | CG45: 0.1996904613 | CH45: 0.1100994064 | CI45: 0.05496851458 | CJ45: 1.063916883 | CK45: 0.7272765508 | CL45: 0.0004335216599 | CM45: 1.956694876 | CN45: 0 | CO45: 0 | CP45: 0 | CQ45: 0 | CR45: 0 | CS45: 0 | CT45: 0.01426447653 | CU45: 0.005587929878 | CV45: 0.1185286901 | CW45: 0.06417217882 | CX45: 0.0002433052802 | CY45: 0.2027965806 | CZ45: 0.09680394446 | DA45: 0.06221645738 | DB45: 1.067674688 | DC45: 0.8238742925 | DD45: 0.0008591666597 | DE45: 2.051428549 | DF45: 0 | DG45: 0 | DH45: 0 | DI45: 0 | DJ45: 0 | DK45: 0 | DL45: 0 | DM45: 0 | DN45: 0 | DO45: 0 | DP45: 0 | DQ45: 0 | DR45: 0 | DS45: 0 | DT45: 0 | DU45: 0 | DV45: 0 | DW45: 0 | DX45: 0 | DY45: 0.002857302422 | DZ45: 0.0003750029844 | EA45: 0.06318372546 | EB45: 0.1583755511 | EC45: 0.1510945364 | ED45: 0.3758861184 | EE45: 0 | EF45: 0 | EG45: 0 | EH45: 0 | EI45: 0 | EJ45: 0 | EK45: 612.4146234 | EL45: 7.576280491 | EM45: 8.563091172 | EN45: 13.17610918 | EO45: 94.59832565 | EP45: 47.93630296 | EQ45: 9.653556053 | ER45: 9.35386064 | ES45: 32.70262234 | ET45: 40.90440261 | EU45: 63.92759845 | EV45: 7.164495054 | EW45: 335.5566446 | EX45: 23.1403059 | EY45: 48.65495482 | EZ45: 9.342458461 | FA45: 3.653742571 | FB45: 0.5710564135 | FC45: 85.36251817 | FD45: 133.1821175 | FE45: 12.43479147 | FF45: 0.7562917029 | FG45: 0.04040102403 | FH45: 0.544132813 | FI45: 23.97032315 | FJ45: 18.25973227 | FK45: 4.029787866 | FL45: 0 | FM45: 0.08581846579 | FN45: 3.379885744 | FO45: 1.342738346 | FP45: 0.007790108703 | FQ45: 198.0338105 | FR45: 46.77831711 | FS45: 2.657012614 | FT45: 247.4691402 | FU45: 24.20263134 | FV45: 63.90794158 | FW45: 88.11057292
A46: 01C151 | B46: Libérations du médian au canal carpien, niveau 1 | D46: 479 | E46: 1281.999478 | F46: 2.990877533 | G46: 0.3733217498 | H46: 58.28822985 | I46: 66.41444492 | J46: 216.7979022 | K46: 344.8647763 | L46: 0.0007167957426 | M46: 0.001214529543 | N46: 0.03480407035 | O46: 0.1634480983 | P46: 0.4204879787 | Q46: 0.6206714726 | R46: 0 | S46: 0 | T46: 0 | U46: 0 | V46: 0 | W46: 0 | X46: 0 | Y46: 0 | Z46: 0 | AA46: 0 | AB46: 0 | AC46: 0 | AD46: 345.4854478 | AE46: 5.984030202 | AF46: 3.080923044 | AG46: 6.407609829 | AH46: 100.697034 | AI46: 103.3967254 | AJ46: 219.5663225 | AK46: 19.02608353 | AL46: 8.742126171 | AM46: 24.9219615 | AN46: 64.79655941 | AO46: 130.6714949 | AP46: 248.1582255 | AQ46: 0 | AR46: 0 | AS46: 0 | AT46: 0 | AU46: 0 | AV46: 0 | AW46: 0 | AX46: 0 | AY46: 0 | AZ46: 0 | BA46: 0 | BB46: 5.622487403 | BC46: 5.622487403 | BD46: 0.008784636373 | BE46: 0 | BF46: 0.01382303805 | BG46: 0.0485676433 | BH46: 0.0179700299 | BI46: 0.08914534763 | BJ46: 0.2117946183 | BK46: 0.1915783102 | BL46: 1.331414427 | BM46: 0.5181449972 | BN46: 0.04309826335 | BO46: 2.296030616 | BP46: 0 | BQ46: 0 | BR46: 0 | BS46: 0 | BT46: 0 | BU46: 0 | BV46: 0.1646568424 | BW46: 0.1650021835 | BX46: 2.271478758 | BY46: 1.004729633 | BZ46: 0.0403642968 | CA46: 3.646231714 | CB46: 0.03362288208 | CC46: 0.0278320234 | CD46: 0.2998022954 | CE46: 0.1585920369 | CF46: 0 | CG46: 0.5198492378 | CH46: 0.06958952847 | CI46: 0.0267087861 | CJ46: 0.6670184927 | CK46: 0.5583657613 | CL46: 0.001373319006 | CM46: 1.323055888 | CN46: 0.0009058292287 | CO46: 0.0005773174906 | CP46: 0.01485090963 | CQ46: 0.0063867734 | CR46: 0.0002791604957 | CS46: 0.02299999024 | CT46: 0 | CU46: 0 | CV46: 0 | CW46: 0 | CX46: 0 | CY46: 0 | CZ46: 0.08058821193 | DA46: 0.03285686222 | DB46: 0.7823536285 | DC46: 0.5925475875 | DD46: 0.003701438146 | DE46: 1.492047728 | DF46: 0 | DG46: 0 | DH46: 0 | DI46: 0 | DJ46: 0 | DK46: 0 | DL46: 0 | DM46: 0.01575116496 | DN46: 0.01727979579 | DO46: 0.2487635445 | DP46: 0.4873712453 | DQ46: 0.360955808 | DR46: 1.130121559 | DS46: 0 | DT46: 0 | DU46: 0 | DV46: 0 | DW46: 0 | DX46: 0 | DY46: 0.008518427293 | DZ46: 0.003837018549 | EA46: 0.1628450494 | EB46: 0.7414003557 | EC46: 0.8909883759 | ED46: 1.807589227 | EE46: 0.0006341992029 | EF46: 0.0009607015673 | EG46: 0.1861313416 | EH46: 0.01635543223 | EI46: 0.06456328886 | EJ46: 0.2686449634 | EK46: 485.9427517 | EL46: 10.78464503 | EM46: 24.58464834 | EN46: 11.88012832 | EO46: 39.02796064 | EP46: 18.73127892 | EQ46: 3.894581681 | ER46: 9.20560169 | ES46: 14.18149789 | ET46: 18.04798672 | EU46: 28.61799408 | EV46: 3.075398055 | EW46: 182.0317214 | EX46: 26.16040901 | EY46: 37.96325952 | EZ46: 7.869516537 | FA46: 4.682051109 | FB46: 1.57313684 | FC46: 78.24837302 | FD46: 108.4988763 | FE46: 13.76212189 | FF46: 7.957660472 | FG46: 0.0144778256 | FH46: 0.637801924 | FI46: 22.76399443 | FJ46: 14.84903507 | FK46: 0.5885224028 | FL46: 0.01337380665 | FM46: 0.3687951897 | FN46: 2.229180716 | FO46: 0.06446475625 | FP46: 0.6718991946 | FQ46: 172.420204 | FR46: 17.34268619 | FS46: 0.5282939999 | FT46: 190.2911842 | FU46: 14.70047838 | FV46: 27.59590067 | FW46: 42.29637905
A47: 01C152 | B47: Libérations du médian au canal carpien, niveau 2 | C47: * | D47: 14 | E47: 2042.251828 | F47: 4.764530106 | G47: 0.5947093108 | H47: 92.85436227 | I47: 105.7995919 | J47: 345.3635666 | K47: 549.3767602 | L47: 0.001141870524 | M47: 0.001934770818 | N47: 0.05544360783 | O47: 0.2603762195 | P47: 0.6698460943 | Q47: 0.9887425629 | R47: 0 | S47: 0 | T47: 0 | U47: 0 | V47: 0 | W47: 0 | X47: 0 | Y47: 0 | Z47: 0 | AA47: 0 | AB47: 0 | AC47: 0 | AD47: 550.3655028 | AE47: 9.532684552 | AF47: 4.907974478 | AG47: 10.20745571 | AH47: 160.4124692 | AI47: 164.7131337 | AJ47: 349.7737176 | AK47: 30.30894671 | AL47: 13.92638879 | AM47: 39.70120293 | AN47: 103.2222666 | AO47: 208.1624088 | AP47: 395.3212138 | AQ47: 0 | AR47: 0 | AS47: 0 | AT47: 0 | AU47: 0 | AV47: 0 | AW47: 0 | AX47: 0 | AY47: 0 | AZ47: 0 | BA47: 0 | BB47: 8.956739355 | BC47: 8.956739355 | BD47: 0.01399410842 | BE47: 0 | BF47: 0.02202038707 | BG47: 0.07736926576 | BH47: 0.02862663132 | BI47: 0.1420103926 | BJ47: 0.3373932313 | BK47: 0.3051882321 | BL47: 2.120970869 | BM47: 0.8254157555 | BN47: 0.06865642976 | BO47: 3.657624518 | BP47: 0 | BQ47: 0 | BR47: 0 | BS47: 0 | BT47: 0 | BU47: 0 | BV47: 0.2623017741 | BW47: 0.2628519097 | BX47: 3.618512898 | BY47: 1.600555199 | BZ47: 0.0643011642 | CA47: 5.808522945 | CB47: 0.05356195035 | CC47: 0.04433699205 | CD47: 0.4775912911 | CE47: 0.2526404128 | CF47: 0 | CG47: 0.8281306463 | CH47: 0.110857566 | CI47: 0.04254765168 | CJ47: 1.06257433 | CK47: 0.8894882691 | CL47: 0.002187725734 | CM47: 2.107655542 | CN47: 0.001443004798 | CO47: 0.000919678768 | CP47: 0.02365780786 | CQ47: 0.01017426284 | CR47: 0.0004447084748 | CS47: 0.03663946274 | CT47: 0 | CU47: 0 | CV47: 0 | CW47: 0 | CX47: 0 | CY47: 0 | CZ47: 0.1283786975 | DA47: 0.05234166478 | DB47: 1.246305599 | DC47: 0.9439406291 | DD47: 0.005896467939 | DE47: 2.376863059 | DF47: 0 | DG47: 0 | DH47: 0 | DI47: 0 | DJ47: 0 | DK47: 0 | DL47: 0 | DM47: 0.02509193332 | DN47: 0.02752707403 | DO47: 0.3962854996 | DP47: 0.7763925289 | DQ47: 0.5750101083 | DR47: 1.800307144 | DS47: 0 | DT47: 0 | DU47: 0 | DV47: 0 | DW47: 0 | DX47: 0 | DY47: 0.01357003182 | DZ47: 0.00611245034 | EA47: 0.2594155501 | EB47: 1.181066184 | EC47: 1.419363011 | ED47: 2.879527228 | EE47: 0.001010292519 | EF47: 0.001530417575 | EG47: 0.2965110978 | EH47: 0.02605454367 | EI47: 0.1028506618 | EJ47: 0.4279570133 | EK47: 774.1169087 | EL47: 17.1801638 | EM47: 39.16385605 | EN47: 18.92529146 | EO47: 62.17235289 | EP47: 29.83931685 | EQ47: 6.204149607 | ER47: 14.66471493 | ES47: 22.59142105 | ET47: 28.75081816 | EU47: 45.58905969 | EV47: 4.899173056 | EW47: 289.9803175 | EX47: 41.67407556 | EY47: 60.47626188 | EZ47: 12.53630349 | FA47: 7.458604782 | FB47: 2.506039701 | FC47: 124.6512854 | FD47: 172.8409662 | FE47: 21.92334635 | FF47: 12.67671861 | FG47: 0.02306347725 | FH47: 1.016031728 | FI47: 36.26351651 | FJ47: 23.65482166 | FK47: 0.9375284262 | FL47: 0.02130475211 | FM47: 0.5874984064 | FN47: 3.551131237 | FO47: 0.1026936973 | FP47: 1.070349389 | FQ47: 274.6689705 | FR47: 27.62725975 | FS47: 0.8415833279 | FT47: 303.1378136 | FU47: 23.41816776 | FV47: 43.96084363 | FW47: 67.3790114
A48: 01C153 | B48: Libérations du médian au canal carpien, niveau 3 | C48: * | D48: 2 | E48: 3264.57042 | F48: 7.616173401 | G48: 0.9506518236 | H48: 148.4291018 | I48: 169.122247 | J48: 552.0688822 | K48: 878.1870563 | L48: 0.001825297295 | M48: 0.003092760402 | N48: 0.08862744527 | O48: 0.416215323 | P48: 1.070759108 | Q48: 1.580519934 | R48: 0 | S48: 0 | T48: 0 | U48: 0 | V48: 0 | W48: 0 | X48: 0 | Y48: 0 | Z48: 0 | AA48: 0 | AB48: 0 | AC48: 0 | AD48: 879.7675762 | AE48: 15.23814037 | AF48: 7.845471399 | AG48: 16.31677226 | AH48: 256.421757 | AI48: 263.2964342 | AJ48: 559.1185753 | AK48: 48.44930951 | AL48: 22.261543 | AM48: 63.46297306 | AN48: 165.0023536 | AO48: 332.7507573 | AP48: 631.9269365 | AQ48: 0 | AR48: 0 | AS48: 0 | AT48: 0 | AU48: 0 | AV48: 0 | AW48: 0 | AX48: 0 | AY48: 0 | AZ48: 0 | BA48: 0 | BB48: 14.31748326 | BC48: 14.31748326 | BD48: 0.02236979387 | BE48: 0 | BF48: 0.03519992162 | BG48: 0.1236759409 | BH48: 0.04576010293 | BI48: 0.2270057593 | BJ48: 0.5393281807 | BK48: 0.4878480026 | BL48: 3.390403997 | BM48: 1.319439563 | BN48: 0.1097483409 | BO48: 5.846768085 | BP48: 0 | BQ48: 0 | BR48: 0 | BS48: 0 | BT48: 0 | BU48: 0 | BV48: 0.4192933511 | BW48: 0.4201727512 | BX48: 5.78424757 | BY48: 2.558511682 | BZ48: 0.102786383 | CA48: 9.285011737 | CB48: 0.08561958735 | CC48: 0.07087335204 | CD48: 0.7634368988 | CE48: 0.4038495191 | CF48: 0 | CG48: 1.323779357 | CH48: 0.1772074951 | CI48: 0.06801306442 | CJ48: 1.698541129 | CK48: 1.421860445 | CL48: 0.003497112659 | CM48: 3.369119246 | CN48: 0.002306664985 | CO48: 0.001470120414 | CP48: 0.03781736351 | CQ48: 0.01626371296 | CR48: 0.0007108732198 | CS48: 0.05856873509 | CT48: 0 | CU48: 0 | CV48: 0 | CW48: 0 | CX48: 0 | CY48: 0 | CZ48: 0.2052152886 | DA48: 0.08366894242 | DB48: 1.992238341 | DC48: 1.508903365 | DD48: 0.009425593139 | DE48: 3.799451531 | DF48: 0 | DG48: 0 | DH48: 0 | DI48: 0 | DJ48: 0 | DK48: 0 | DL48: 0 | DM48: 0.04010983474 | DN48: 0.04400244397 | DO48: 0.6334683618 | DP48: 1.241075194 | DQ48: 0.9191623508 | DR48: 2.877818186 | DS48: 0 | DT48: 0 | DU48: 0 | DV48: 0 | DW48: 0 | DX48: 0 | DY48: 0.02169190101 | DZ48: 0.009770844272 | EA48: 0.4146796786 | EB48: 1.88795215 | EC48: 2.26887323 | ED48: 4.602967804 | EE48: 0.001614967864 | EF48: 0.002446395629 | EG48: 0.4739774723 | EH48: 0.04164858192 | EI48: 0.1644083377 | EJ48: 0.6840957553 | EK48: 1237.437581 | EL48: 27.46275155 | EM48: 62.60401595 | EN48: 30.2523645 | EO48: 99.38344598 | EP48: 47.69859907 | EQ48: 9.917426937 | ER48: 23.4417685 | ES48: 36.11272807 | ET48: 45.95861747 | EU48: 72.8748011 | EV48: 7.831402192 | EW48: 463.5379213 | EX48: 66.61663978 | EY48: 96.67221885 | EZ48: 20.03947065 | FA48: 11.9226925 | FB48: 4.005942346 | FC48: 199.2569641 | FD48: 276.2888974 | FE48: 35.04480056 | FF48: 20.26392634 | FG48: 0.03686731704 | FH48: 1.624142077 | FI48: 57.96777934 | FJ48: 37.81259002 | FK48: 1.498653362 | FL48: 0.03405596832 | FM48: 0.939125084 | FN48: 5.676536966 | FO48: 0.1641574276 | FP48: 1.71096968 | FQ48: 439.0625016 | FR48: 44.16259236 | FS48: 1.345283672 | FT48: 484.5703776 | FU48: 37.43429519 | FV48: 70.27207312 | FW48: 107.7063683
A49: 01C154 | B49: Libérations du médian au canal carpien, niveau 4 | C49: * | D49: 2 | E49: 8572.433545 | F49: 19.99930525 | G49: 2.496316064 | H49: 389.759891 | I49: 444.0980089 | J49: 1449.677353 | K49: 2306.030874 | L49: 0.004793047092 | M49: 0.008121277718 | N49: 0.2327267564 | O49: 1.092939572 | P49: 2.811705711 | Q49: 4.150286364 | R49: 0 | S49: 0 | T49: 0 | U49: 0 | V49: 0 | W49: 0 | X49: 0 | Y49: 0 | Z49: 0 | AA49: 0 | AB49: 0 | AC49: 0 | AD49: 2310.18116 | AE49: 40.01382381 | AF49: 20.60141873 | AG49: 42.84620266 | AH49: 673.3377407 | AI49: 691.3899517 | AJ49: 1468.189138 | AK49: 127.2230133 | AL49: 58.45657267 | AM49: 166.6473836 | AN49: 433.2795832 | AO49: 873.7700177 | AP49: 1659.376571 | AQ49: 0 | AR49: 0 | AS49: 0 | AT49: 0 | AU49: 0 | AV49: 0 | AW49: 0 | AX49: 0 | AY49: 0 | AZ49: 0 | BA49: 0 | BB49: 37.59627087 | BC49: 37.59627087 | BD49: 0.05874082854 | BE49: 0 | BF49: 0.09243145347 | BG49: 0.3247605805 | BH49: 0.1201614273 | BI49: 0.5960942898 | BJ49: 1.416221552 | BK49: 1.281039783 | BL49: 8.902859861 | BM49: 3.464715572 | BN49: 0.2881881037 | BO49: 15.35302487 | BP49: 0 | BQ49: 0 | BR49: 0 | BS49: 0 | BT49: 0 | BU49: 0 | BV49: 1.101022164 | BW49: 1.10333138 | BX49: 15.18885229 | BY49: 6.718394319 | BZ49: 0.2699067027 | CA49: 24.38150685 | CB49: 0.224828424 | CC49: 0.1861062934 | CD49: 2.004708503 | CE49: 1.060468214 | CF49: 0 | CG49: 3.476111435 | CH49: 0.4653290571 | CI49: 0.1785954658 | CJ49: 4.460198152 | CK49: 3.733662505 | CL49: 0.009183066073 | CM49: 8.846968246 | CN49: 0.006057070225 | CO49: 0.003860388329 | CP49: 0.09930459258 | CQ49: 0.04270687428 | CR49: 0.001866681569 | CS49: 0.153795607 | CT49: 0 | CU49: 0 | CV49: 0 | CW49: 0 | CX49: 0 | CY49: 0 | CZ49: 0.5388747056 | DA49: 0.2197062266 | DB49: 5.231417488 | DC49: 3.962228459 | DD49: 0.02475065947 | DE49: 9.976977539 | DF49: 0 | DG49: 0 | DH49: 0 | DI49: 0 | DJ49: 0 | DK49: 0 | DL49: 0 | DM49: 0.1053243914 | DN49: 0.1155459917 | DO49: 1.663424198 | DP49: 3.258938622 | DQ49: 2.413627876 | DR49: 7.55686108 | DS49: 0 | DT49: 0 | DU49: 0 | DV49: 0 | DW49: 0 | DX49: 0 | DY49: 0.05696075009 | DZ49: 0.02565725422 | EA49: 1.088907124 | EB49: 4.95757244 | EC49: 5.95783288 | ED49: 12.08693045 | EE49: 0.004240743163 | EF49: 0.006423988843 | EG49: 1.244617165 | EH49: 0.1093649868 | EI49: 0.4317197571 | EJ49: 1.796366641 | EK49: 3249.386616 | EL49: 72.11442312 | EM49: 164.3918486 | EN49: 79.43966614 | EO49: 260.9709323 | EP49: 125.2517232 | EQ49: 26.04216556 | ER49: 61.5557261 | ES49: 94.82839138 | ET49: 120.6827065 | EU49: 191.3618973 | EV49: 20.56447441 | EW49: 1217.203955 | EX49: 174.9285952 | EY49: 253.8515226 | EZ49: 52.62163418 | FA49: 31.30779121 | FB49: 10.51920165 | FC49: 523.2287448 | FD49: 725.5068531 | FE49: 92.02412117 | FF49: 53.21103226 | FG49: 0.09680986611 | FH49: 4.264833725 | FI49: 152.2175577 | FJ49: 99.29205787 | FK49: 3.935312982 | FL49: 0.08942754717 | FM49: 2.466048005 | FN49: 14.90601508 | FO49: 0.4310608924 | FP49: 4.492834275 | FQ49: 1152.933964 | FR49: 115.9665253 | FS49: 3.532579603 | FT49: 1272.433069 | FU49: 98.29869371 | FV49: 184.5273954 | FW49: 282.8260891
A50: 01C15J | B50: Libérations du médian au canal carpien, en ambulatoire | D50: 4781 | E50: 1016.028638 | F50: 2.03726075 | G50: 0.1569925132 | H50: 35.95270211 | I50: 54.37170977 | J50: 116.7749952 | K50: 209.2936603 | L50: 0 | M50: 0 | N50: 0 | O50: 0 | P50: 0 | Q50: 0 | R50: 0 | S50: 0 | T50: 0 | U50: 0 | V50: 0 | W50: 0 | X50: 0 | Y50: 0 | Z50: 0 | AA50: 0 | AB50: 0 | AC50: 0 | AD50: 209.2936603 | AE50: 4.668311594 | AF50: 2.231525005 | AG50: 4.294839688 | AH50: 74.40704707 | AI50: 72.67534613 | AJ50: 158.2770695 | AK50: 15.71294149 | AL50: 7.223566809 | AM50: 21.30246863 | AN50: 57.30858119 | AO50: 105.7806906 | AP50: 207.3282487 | AQ50: 0.002976329077 | AR50: 0.0009425906696 | AS50: 0.0009552322782 | AT50: 0.004606772151 | AU50: 0.008115795685 | AV50: 0.01759671986 | AW50: 0 | AX50: 0 | AY50: 0 | AZ50: 0 | BA50: 0 | BB50: 0 | BC50: 0 | BD50: 0.0003169748044 | BE50: 0.0001136261053 | BF50: 0.0003246545956 | BG50: 0.0006657191033 | BH50: 0.001855629821 | BI50: 0.00327660443 | BJ50: 0.006494709169 | BK50: 0.004236935551 | BL50: 0.03608969496 | BM50: 0.01482172441 | BN50: 0.000934564764 | BO50: 0.06257762885 | BP50: 0 | BQ50: 0 | BR50: 0 | BS50: 0 | BT50: 0 | BU50: 0 | BV50: 0.01653539916 | BW50: 0.01938687912 | BX50: 0.2630650808 | BY50: 0.08891075907 | BZ50: 0.003296164358 | CA50: 0.3911942825 | CB50: 0.01133506536 | CC50: 0.009382830522 | CD50: 0.101070414 | CE50: 0.05346511043 | CF50: 0 | CG50: 0.1752534204 | CH50: 0.01920401116 | CI50: 0.00695840427 | CJ50: 0.1592316295 | CK50: 0.1224784404 | CL50: 0.0002739690496 | CM50: 0.3081464544 | CN50: 0.0006718703851 | CO50: 0.0001586740164 | CP50: 0.00362454113 | CQ50: 0.00245122515 | CR50: 1.403909917e-05 | CS50: 0.006920349781 | CT50: 0 | CU50: 0 | CV50: 0 | CW50: 0 | CX50: 0 | CY50: 0 | CZ50: 0.01818220574 | DA50: 0.007423508906 | DB50: 0.1827159032 | DC50: 0.1326124247 | DD50: 0.0006879582383 | DE50: 0.3416220008 | DF50: 0 | DG50: 0 | DH50: 0 | DI50: 0 | DJ50: 0 | DK50: 0 | DL50: 0 | DM50: 0 | DN50: 0 | DO50: 0 | DP50: 0 | DQ50: 0 | DR50: 0 | DS50: 0 | DT50: 0 | DU50: 0 | DV50: 0 | DW50: 0 | DX50: 0 | DY50: 0.0004680196564 | DZ50: 0.000113062609 | EA50: 0.01030926039 | EB50: 0.03763653107 | EC50: 0.03980425343 | ED50: 0.08833112716 | EE50: 0 | EF50: 0 | EG50: 0 | EH50: 0 | EI50: 0 | EJ50: 0 | EK50: 367.0002368 | EL50: 7.577028681 | EM50: 8.440485306 | EN50: 13.11123279 | EO50: 65.05074027 | EP50: 30.91494102 | EQ50: 7.578591213 | ER50: 9.700964708 | ES50: 21.88279132 | ET50: 31.56491699 | EU50: 42.64929008 | EV50: 4.689140876 | EW50: 243.1601233 | EX50: 16.50397821 | EY50: 30.95856178 | EZ50: 6.18976813 | FA50: 2.679622782 | FB50: 0.4363453843 | FC50: 56.76827628 | FD50: 82.76061622 | FE50: 9.230379198 | FF50: 0.5023062104 | FG50: 0.0401963634 | FH50: 0.2151109668 | FI50: 15.14674926 | FJ50: 0.3414395166 | FK50: 2.482523722 | FL50: 0.0002134379936 | FM50: 0.07092779255 | FN50: 2.814774231 | FO50: 0.1973202305 | FP50: 0.014910229 | FQ50: 113.8174674 | FR50: 24.81462337 | FS50: 1.174250371 | FT50: 139.8063411 | FU50: 23.65984697 | FV50: 45.07262177 | FW50: 68.73246875
A51: 01K021 | B51: Autres embolisations intracrâniennes et médullaires, niveau 1 | D51: 847 | E51: 9313.238139 | F51: 3.17114906 | G51: 1.095740426 | H51: 107.7865102 | I51: 105.6403162 | J51: 511.1643013 | K51: 728.8580171 | L51: 8.166586265 | M51: 1.431638887 | N51: 22.96253979 | O51: 45.63241463 | P51: 265.7276947 | Q51: 343.9208743 | R51: 1.12277135 | S51: 0.3911793883 | T51: 6.515348435 | U51: 17.47198248 | V51: 63.77774148 | W51: 89.27902313 | X51: 3.402355447 | Y51: 0.5769391189 | Z51: 5.768597993 | AA51: 9.35213259 | AB51: 53.96888976 | AC51: 73.0689149 | AD51: 1235.126829 | AE51: 14.21277757 | AF51: 5.483950839 | AG51: 14.22956195 | AH51: 195.1673198 | AI51: 195.7943845 | AJ51: 424.8879946 | AK51: 0.1988837446 | AL51: 0.09781164388 | AM51: 0.08086205131 | AN51: 0.3562701305 | AO51: 0.9366843312 | AP51: 1.670511901 | AQ51: 0 | AR51: 0 | AS51: 0 | AT51: 0 | AU51: 0 | AV51: 0 | AW51: 0 | AX51: 0 | AY51: 0 | AZ51: 0 | BA51: 0 | BB51: 1.097274815 | BC51: 1.097274815 | BD51: 0.2189017593 | BE51: 0.06227505246 | BF51: 0.7384796073 | BG51: 0.9646415499 | BH51: 1.643828585 | BI51: 3.628126554 | BJ51: 86.30034864 | BK51: 43.11032166 | BL51: 279.3488488 | BM51: 108.7851224 | BN51: 10.87984464 | BO51: 528.4244862 | BP51: 229.4631717 | BQ51: 76.5779514 | BR51: 328.4839655 | BS51: 330.7908039 | BT51: 64.31179643 | BU51: 1029.627689 | BV51: 1.176832637 | BW51: 0.9324626982 | BX51: 15.15414451 | BY51: 8.322026482 | BZ51: 0.1811782453 | CA51: 25.76664458 | CB51: 0 | CC51: 0 | CD51: 0 | CE51: 0 | CF51: 0 | CG51: 0 | CH51: 0 | CI51: 0 | CJ51: 0 | CK51: 0 | CL51: 0 | CM51: 0 | CN51: 0.459203975 | CO51: 0.3555352752 | CP51: 4.151952574 | CQ51: 2.513211786 | CR51: 0.04490083738 | CS51: 7.524804447 | CT51: 0 | CU51: 0 | CV51: 0 | CW51: 0 | CX51: 0 | CY51: 0 | CZ51: 2.39139272e-05 | DA51: 0.0002816242167 | DB51: 0.006326472193 | DC51: 0.006792824534 | DD51: 0 | DE51: 0.01342483487 | DF51: 0 | DG51: 0 | DH51: 0 | DI51: 0 | DJ51: 0 | DK51: 0 | DL51: 0 | DM51: 0.1016895695 | DN51: 0.04216419207 | DO51: 1.128383994 | DP51: 1.506315439 | DQ51: 1.008518272 | DR51: 3.787071466 | DS51: 0 | DT51: 0 | DU51: 0 | DV51: 0 | DW51: 0 | DX51: 0 | DY51: 0.01543765399 | DZ51: 0.002972761884 | EA51: 0.1023138787 | EB51: 0.3526228802 | EC51: 0.5579896638 | ED51: 1.031336839 | EE51: 0.01059176323 | EF51: 0.003437013657 | EG51: 1.064677059 | EH51: 0.07237984077 | EI51: 0.2961074201 | EJ51: 1.447193097 | EK51: 2028.906558 | EL51: 27.27678972 | EM51: 73.30602371 | EN51: 12.0200584 | EO51: 130.8845898 | EP51: 77.83624537 | EQ51: 15.67205818 | ER51: 8.18576498 | ES51: 60.08007028 | ET51: 58.59877798 | EU51: 109.7838474 | EV51: 14.75125801 | EW51: 588.3954839 | EX51: 131.0866717 | EY51: 11.32412014 | EZ51: 49.35915437 | FA51: 25.79180222 | FB51: 4.776615753 | FC51: 222.3383642 | FD51: 1337.173451 | FE51: 646.1642355 | FF51: 3079.400576 | FG51: 0.04891009608 | FH51: 5.863326349 | FI51: 136.8802302 | FJ51: 1.345059643 | FK51: 4.88230755 | FL51: 0.01031927027 | FM51: 0.6827516751 | FN51: 14.13714861 | FO51: 0.2391020495 | FP51: 0.238539101 | FQ51: 5227.065957 | FR51: 11.4049444 | FS51: 2.409179634e-06 | FT51: 5238.470903 | FU51: 42.0133667 | FV51: 105.8519705 | FW51: 147.8653372
A52: 01K022 | B52: Autres embolisations intracrâniennes et médullaires, niveau 2 | D52: 176 | E52: 11319.65668 | F52: 6.590811454 | G52: 1.748054389 | H52: 178.5472747 | I52: 180.8040143 | J52: 750.0157506 | K52: 1117.705905 | L52: 4.378825471 | M52: 1.817598682 | N52: 23.86089334 | O52: 46.75996359 | P52: 273.6464897 | Q52: 350.4637707 | R52: 2.178646461 | S52: 0.7144822523 | T52: 18.88348508 | U52: 28.13328941 | V52: 137.2707575 | W52: 187.1806607 | X52: 8.825496276 | Y52: 1.530942585 | Z52: 15.37931156 | AA52: 30.09081865 | AB52: 128.0933525 | AC52: 183.9199216 | AD52: 1839.270258 | AE52: 15.44770587 | AF52: 6.005635196 | AG52: 17.31512391 | AH52: 231.7197131 | AI52: 224.905234 | AJ52: 495.393412 | AK52: 3.104685416 | AL52: 0.762038167 | AM52: 4.648359168 | AN52: 1.401123204 | AO52: 7.788604381 | AP52: 17.70481034 | AQ52: 0 | AR52: 0 | AS52: 0 | AT52: 0 | AU52: 0 | AV52: 0 | AW52: 0 | AX52: 0 | AY52: 0 | AZ52: 0 | BA52: 0 | BB52: 0 | BC52: 0 | BD52: 1.480934611 | BE52: 0.2919900379 | BF52: 5.488674804 | BG52: 6.485517555 | BH52: 11.16596702 | BI52: 24.91308403 | BJ52: 131.1970087 | BK52: 66.13408106 | BL52: 351.7561016 | BM52: 155.1450907 | BN52: 19.44458557 | BO52: 723.6768676 | BP52: 247.542081 | BQ52: 88.86174983 | BR52: 320.6968913 | BS52: 318.3320874 | BT52: 60.45847855 | BU52: 1035.891288 | BV52: 2.754397312 | BW52: 1.802578359 | BX52: 35.55555272 | BY52: 17.91886606 | BZ52: 0.4492179017 | CA52: 58.48061235 | CB52: 0 | CC52: 0 | CD52: 0 | CE52: 0 | CF52: 0 | CG52: 0 | CH52: 0 | CI52: 0 | CJ52: 0 | CK52: 0 | CL52: 0 | CM52: 0 | CN52: 0.7968214214 | CO52: 0.5129197381 | CP52: 8.282357253 | CQ52: 4.562453281 | CR52: 0.09164506475 | CS52: 14.24619676 | CT52: 0 | CU52: 0 | CV52: 0 | CW52: 0 | CX52: 0 | CY52: 0 | CZ52: 0 | DA52: 0 | DB52: 0 | DC52: 0 | DD52: 0 | DE52: 0 | DF52: 0 | DG52: 0 | DH52: 0 | DI52: 0 | DJ52: 0 | DK52: 0 | DL52: 0 | DM52: 0.2978257967 | DN52: 0.07047569523 | DO52: 1.008125949 | DP52: 5.619911636 | DQ52: 2.221183461 | DR52: 9.217522538 | DS52: 0 | DT52: 0 | DU52: 0 | DV52: 0 | DW52: 0 | DX52: 0 | DY52: 0.05416737956 | DZ52: 0.01551523568 | EA52: 0.7713135617 | EB52: 1.991741102 | EC52: 2.923500689 | ED52: 5.756237968 | EE52: 0.1258105374 | EF52: 0.02360478811 | EG52: 7.440262307 | EH52: 1.788077708 | EI52: 5.798135932 | EJ52: 15.17589127 | EK52: 2400.455923 | EL52: 45.26539887 | EM52: 111.2543569 | EN52: 13.34450765 | EO52: 187.9412095 | EP52: 116.6024095 | EQ52: 19.97258813 | ER52: 7.843612195 | ES52: 76.46082373 | ET52: 86.18146897 | EU52: 160.4182562 | EV52: 21.2168648 | EW52: 846.5014964 | EX52: 146.0965285 | EY52: 14.81325681 | EZ52: 51.596199 | FA52: 30.63207543 | FB52: 7.243578046 | FC52: 250.3816378 | FD52: 1566.287242 | FE52: 655.9058368 | FF52: 3510.784836 | FG52: 0.1880085101 | FH52: 9.688063326 | FI52: 168.6109001 | FJ52: 5.354135564 | FK52: 6.448584067 | FL52: 0.1060267438 | FM52: 5.19379381 | FN52: 20.18844722 | FO52: 16.15670521 | FP52: 2.669848495 | FQ52: 5967.582428 | FR52: 15.46493802 | FS52: 0 | FT52: 5983.047366 | FU52: 68.45707933 | FV52: 149.1228375 | FW52: 217.5799168
A53: 01K023 | B53: Autres embolisations intracrâniennes et médullaires, niveau 3 | D53: 86 | E53: 15522.52981 | F53: 12.65135717 | G53: 3.117376728 | H53: 308.0325632 | I53: 331.9034099 | J53: 1359.498071 | K53: 2015.202778 | L53: 9.574222197 | M53: 3.173231082 | N53: 42.28564267 | O53: 73.60462075 | P53: 446.7043926 | Q53: 575.3421093 | R53: 6.243813195 | S53: 1.853302715 | T53: 37.74436216 | U53: 63.98481995 | V53: 303.4061519 | W53: 413.2324499 | X53: 50.51464356 | Y53: 9.190909471 | Z53: 85.119477 | AA53: 216.9609636 | AB53: 976.9105431 | AC53: 1338.696537 | AD53: 4342.473874 | AE53: 18.45827994 | AF53: 6.825494743 | AG53: 14.53520753 | AH53: 214.6676263 | AI53: 230.6969663 | AJ53: 485.1835748 | AK53: 0.8384123121 | AL53: 0.4175006037 | AM53: 0.5747540199 | AN53: 1.719137666 | AO53: 3.774687969 | AP53: 7.32449257 | AQ53: 0 | AR53: 0 | AS53: 0 | AT53: 0 | AU53: 0 | AV53: 0 | AW53: 0 | AX53: 0 | AY53: 0 | AZ53: 0 | BA53: 0 | BB53: 0 | BC53: 0 | BD53: 2.157970903 | BE53: 0.8391192227 | BF53: 7.848542592 | BG53: 12.11321994 | BH53: 21.14609483 | BI53: 44.10494748 | BJ53: 168.690229 | BK53: 90.76970008 | BL53: 500.3493944 | BM53: 226.6604951 | BN53: 21.13309134 | BO53: 1007.60291 | BP53: 211.2620666 | BQ53: 78.86062243 | BR53: 293.3355869 | BS53: 279.6206263 | BT53: 53.70293724 | BU53: 916.7818394 | BV53: 6.794853562 | BW53: 4.626476392 | BX53: 95.01771472 | BY53: 49.37939004 | BZ53: 0.9328641467 | CA53: 156.7512989 | CB53: 0.03733049819 | CC53: 0.03805594687 | CD53: 1.577977612 | CE53: 0.4188036196 | CF53: 0.001026105756 | CG53: 2.073193783 | CH53: 0.02567669363 | CI53: 0.01400669178 | CJ53: 0.3278859066 | CK53: 0.2081525696 | CL53: 0.001439194933 | CM53: 0.5771610566 | CN53: 2.334200583 | CO53: 1.415661545 | CP53: 31.18571855 | CQ53: 17.2586388 | CR53: 0.5877194705 | CS53: 52.78193895 | CT53: 0 | CU53: 0 | CV53: 0 | CW53: 0 | CX53: 0 | CY53: 0 | CZ53: 0.07473225454 | DA53: 0.04121504555 | DB53: 0.9910755542 | DC53: 0.6271006467 | DD53: 0.001067569957 | DE53: 1.735191071 | DF53: 0 | DG53: 0 | DH53: 0 | DI53: 0 | DJ53: 0 | DK53: 0 | DL53: 0 | DM53: 0.2169706321 | DN53: 0.08418563323 | DO53: 1.144856579 | DP53: 1.193830811 | DQ53: 1.193562087 | DR53: 3.833405742 | DS53: 0 | DT53: 0 | DU53: 0.02608894368 | DV53: 6.229382583 | DW53: 1.689067078 | DX53: 7.944538605 | DY53: 0.05808837287 | DZ53: 0.06145608762 | EA53: 1.950159748 | EB53: 4.274141618 | EC53: 6.18960012 | ED53: 12.53344595 | EE53: 0.5519963933 | EF53: 0.1720523905 | EG53: 48.78910929 | EH53: 2.991705578 | EI53: 11.48028486 | EJ53: 63.98514851 | EK53: 2763.213087 | EL53: 91.02913452 | EM53: 212.1161824 | EN53: 11.92957945 | EO53: 404.4011592 | EP53: 235.2474754 | EQ53: 48.9565182 | ER53: 7.752129993 | ES53: 173.6535849 | ET53: 173.5353799 | EU53: 341.155396 | EV53: 44.86760662 | EW53: 1744.644147 | EX53: 216.8294533 | EY53: 16.84658605 | EZ53: 70.47895969 | FA53: 41.90243401 | FB53: 10.32308829 | FC53: 356.3805213 | FD53: 1823.412979 | FE53: 1029.945148 | FF53: 2911.118553 | FG53: 3.3111778 | FH53: 34.92606164 | FI53: 400.6650958 | FJ53: 6.10644406 | FK53: 9.150268598 | FL53: 0.4343890173 | FM53: 11.94747939 | FN53: 32.98074288 | FO53: 1.280747742 | FP53: 27.00108551 | FQ53: 6292.280172 | FR53: 23.53801147 | FS53: 0 | FT53: 6315.818184 | FU53: 138.358714 | FV53: 314.3903257 | FW53: 452.7490397
A54: 01K024 | B54: Autres embolisations intracrâniennes et médullaires, niveau 4 | C54: * | D54: 29 | E54: 25105.94027 | F54: 20.46214253 | G54: 5.042005065 | H54: 498.2079097 | I54: 536.8163105 | J54: 2198.834712 | K54: 3259.36308 | L54: 15.48522396 | M54: 5.132343178 | N54: 68.39225511 | O54: 119.0471678 | P54: 722.4939448 | Q54: 930.5509349 | R54: 10.09866323 | S54: 2.997507998 | T54: 61.04724637 | U54: 103.4882256 | V54: 490.7252115 | W54: 668.3568547 | X54: 81.70173542 | Y54: 14.86525888 | Z54: 137.6711484 | AA54: 350.9098747 | AB54: 1580.04256 | AC54: 2165.190577 | AD54: 7023.461446 | AE54: 29.8541848 | AF54: 11.03946749 | AG54: 23.50905789 | AH54: 347.2006605 | AI54: 373.126309 | AJ54: 784.7296797 | AK54: 1.356037301 | AL54: 0.6752601118 | AM54: 0.9295997665 | AN54: 2.780511171 | AO54: 6.105131819 | AP54: 11.84654017 | AQ54: 0 | AR54: 0 | AS54: 0 | AT54: 0 | AU54: 0 | AV54: 0 | AW54: 0 | AX54: 0 | AY54: 0 | AZ54: 0 | BA54: 0 | BB54: 0 | BC54: 0 | BD54: 3.49027441 | BE54: 1.357180649 | BF54: 12.69413194 | BG54: 19.59176629 | BH54: 34.20142206 | BI54: 71.33477534 | BJ54: 272.8374088 | BK54: 146.8097466 | BL54: 809.2586813 | BM54: 366.5977724 | BN54: 34.18039038 | BO54: 1629.683999 | BP54: 341.692552 | BQ54: 127.5481574 | BR54: 474.4372091 | BS54: 452.254808 | BT54: 86.85844065 | BU54: 1482.791167 | BV54: 10.98990884 | BW54: 7.48280347 | BX54: 153.6804309 | BY54: 79.86559096 | BZ54: 1.508802484 | CA54: 253.5275366 | CB54: 0.0603778681 | CC54: 0.06155119948 | CD54: 2.552200714 | CE54: 0.677367593 | CF54: 0.001659610266 | CG54: 3.353156985 | CH54: 0.04152915435 | CI54: 0.0226542433 | CJ54: 0.5303184523 | CK54: 0.3366632915 | CL54: 0.002327735392 | CM54: 0.9334928768 | CN54: 3.77530603 | CO54: 2.289672793 | CP54: 50.43938047 | CQ54: 27.91390063 | CR54: 0.9505699198 | CS54: 85.36882984 | CT54: 0 | CU54: 0 | CV54: 0 | CW54: 0 | CX54: 0 | CY54: 0 | CZ54: 0.1208709882 | DA54: 0.06666068509 | DB54: 1.602952867 | DC54: 1.014264528 | DD54: 0.001726673931 | DE54: 2.806475742 | DF54: 0 | DG54: 0 | DH54: 0 | DI54: 0 | DJ54: 0 | DK54: 0 | DL54: 0 | DM54: 0.3509255125 | DN54: 0.1361607615 | DO54: 1.85167632 | DP54: 1.930886613 | DQ54: 1.930451983 | DR54: 6.200101191 | DS54: 0 | DT54: 0 | DU54: 0.04219592228 | DV54: 10.07532335 | DW54: 2.731875389 | DX54: 12.84939466 | DY54: 0.09395138789 | DZ54: 0.09939828645 | EA54: 3.154163319 | EB54: 6.912941732 | EC54: 10.0109797 | ED54: 20.27143443 | EE54: 0.8927918738 | EF54: 0.2782753257 | EG54: 78.91087845 | EH54: 4.838746161 | EI54: 18.56806522 | EJ54: 103.488757 | EK54: 4469.185341 | EL54: 147.2293525 | EM54: 343.0739878 | EN54: 19.29474851 | EO54: 654.0732386 | EP54: 380.486244 | EQ54: 79.18164348 | ER54: 12.53819544 | ES54: 280.8650768 | ET54: 280.6738936 | EU54: 551.7803539 | EV54: 72.56829044 | EW54: 2821.765025 | EX54: 350.6971716 | EY54: 27.24745182 | EZ54: 113.9917638 | FA54: 67.77245836 | FB54: 16.69643036 | FC54: 576.4052759 | FD54: 2949.164723 | FE54: 1665.820049 | FF54: 4708.405741 | FG54: 5.355456427 | FH54: 56.48896332 | FI54: 648.0305777 | FJ54: 9.876484159 | FK54: 14.79952686 | FL54: 0.7025752149 | FM54: 19.32369964 | FN54: 53.34262975 | FO54: 2.071464941 | FP54: 43.67120876 | FQ54: 10177.0531 | FR54: 38.07007731 | FS54: 0 | FT54: 10215.12318 | FU54: 223.7796063 | FV54: 508.4908731 | FW54: 732.2704793
A55: 01K031 | B55: Autres actes thérapeutiques par voie vasculaire du système nerveux, niveau 1 | D55: 254 | E55: 6418.358172 | F55: 7.486978058 | G55: 2.42522801 | H55: 104.4624031 | I55: 156.3626975 | J55: 450.7569884 | K55: 721.4942951 | L55: 4.172471414 | M55: 0.9745843909 | N55: 12.16537455 | O55: 24.43633438 | P55: 154.0030081 | Q55: 195.7517728 | R55: 4.415796201 | S55: 1.209188337 | T55: 30.07468317 | U55: 59.0883934 | V55: 235.1829779 | W55: 329.971039 | X55: 6.506982779 | Y55: 1.568880778 | Z55: 14.63240553 | AA55: 36.1476548 | AB55: 111.021694 | AC55: 169.8776179 | AD55: 1417.094725 | AE55: 8.147310609 | AF55: 2.803982135 | AG55: 6.169152075 | AH55: 87.54576079 | AI55: 93.93267486 | AJ55: 198.5988805 | AK55: 27.48960318 | AL55: 18.46799389 | AM55: 43.71147343 | AN55: 98.28230412 | AO55: 278.6195069 | AP55: 466.5708815 | AQ55: 0 | AR55: 0 | AS55: 0 | AT55: 0 | AU55: 0 | AV55: 0 | AW55: 0 | AX55: 0 | AY55: 0 | AZ55: 0 | BA55: 0 | BB55: 0.4302413633 | BC55: 0.4302413633 | BD55: 3.828749663 | BE55: 1.447119607 | BF55: 5.526043185 | BG55: 13.20969646 | BH55: 12.74712733 | BI55: 36.75873624 | BJ55: 87.01102604 | BK55: 37.14280875 | BL55: 253.9582198 | BM55: 113.9616244 | BN55: 18.44693076 | BO55: 510.5206098 | BP55: 72.06431268 | BQ55: 25.85749869 | BR55: 104.2827362 | BS55: 91.73560667 | BT55: 21.75839345 | BU55: 315.6985476 | BV55: 2.942463228 | BW55: 1.785903431 | BX55: 40.00512503 | BY55: 18.77133153 | BZ55: 0.5342399569 | CA55: 64.03906318 | CB55: 0 | CC55: 0 | CD55: 0 | CE55: 0 | CF55: 0 | CG55: 0 | CH55: 0.1701545128 | CI55: 0.06139356584 | CJ55: 0.9622566894 | CK55: 0.4725764118 | CL55: 1.281813233e-06 | CM55: 1.666382462 | CN55: 0.7496651308 | CO55: 0.3930922666 | CP55: 8.19029195 | CQ55: 4.137723721 | CR55: 0.06122384209 | CS55: 13.53199691 | CT55: 0 | CU55: 0 | CV55: 0 | CW55: 0 | CX55: 0 | CY55: 0 | CZ55: 0.0457996892 | DA55: 0.01684254227 | DB55: 0.3017963682 | DC55: 0.2875203727 | DD55: 1.188448094e-07 | DE55: 0.6519590912 | DF55: 0 | DG55: 0 | DH55: 0 | DI55: 0 | DJ55: 0 | DK55: 0 | DL55: 0 | DM55: 0.6291556904 | DN55: 0.2569248635 | DO55: 5.828843654 | DP55: 10.96841478 | DQ55: 4.91177297 | DR55: 22.59511196 | DS55: 0 | DT55: 0 | DU55: 0 | DV55: 0 | DW55: 0 | DX55: 0 | DY55: 0.2885932474 | DZ55: 0.2133842758 | EA55: 2.204787234 | EB55: 4.693717795 | EC55: 9.948099574 | ED55: 17.34858213 | EE55: 0.03010852738 | EF55: 0.01133915925 | EG55: 4.364416135 | EH55: 0.206033348 | EI55: 0.6719163178 | EJ55: 5.283813487 | EK55: 1653.694806 | EL55: 30.7560588 | EM55: 81.08785591 | EN55: 13.89568686 | EO55: 138.1424294 | EP55: 83.74636523 | EQ55: 17.6370369 | ER55: 9.513601739 | ES55: 61.73210898 | ET55: 63.63405566 | EU55: 114.6687887 | EV55: 14.19290139 | EW55: 629.0068896 | EX55: 110.9955177 | EY55: 60.42343413 | EZ55: 44.12559966 | FA55: 20.38980238 | FB55: 4.503992605 | FC55: 240.4383465 | FD55: 1005.047903 | FE55: 465.3985023 | FF55: 728.7931185 | FG55: 0.1116156068 | FH55: 19.123436 | FI55: 171.1758645 | FJ55: 4.94423162 | FK55: 8.943215438 | FL55: 0.6329066501 | FM55: 0.9872621069 | FN55: 21.79747507 | FO55: 1.052310996 | FP55: 1.896904265 | FQ55: 2429.904746 | FR55: 14.61444344 | FS55: 33.6042153 | FT55: 2478.123405 | FU55: 39.1733488 | FV55: 115.4349607 | FW55: 154.6083095
A56: 01K032 | B56: Autres actes thérapeutiques par voie vasculaire du système nerveux, niveau 2 | D56: 87 | E56: 8565.301765 | F56: 13.83151716 | G56: 2.095899238 | H56: 196.6451204 | I56: 243.013128 | J56: 755.9838524 | K56: 1211.569517 | L56: 3.459361124 | M56: 1.14662038 | N56: 24.86822799 | O56: 44.2581312 | P56: 182.8309914 | Q56: 256.5633321 | R56: 7.593246081 | S56: 1.643414432 | T56: 34.90854852 | U56: 86.70493483 | V56: 314.4289646 | W56: 445.2791085 | X56: 9.59039603 | Y56: 4.706396424 | Z56: 48.77247381 | AA56: 100.6538499 | AB56: 355.4663704 | AC56: 519.1894865 | AD56: 2432.601444 | AE56: 7.205643071 | AF56: 2.624767266 | AG56: 6.022365135 | AH56: 92.130718 | AI56: 86.30894622 | AJ56: 194.2924397 | AK56: 11.89508596 | AL56: 7.106101989 | AM56: 23.88468445 | AN56: 35.2057908 | AO56: 99.61104948 | AP56: 177.7027127 | AQ56: 0 | AR56: 0 | AS56: 0 | AT56: 0 | AU56: 0 | AV56: 0 | AW56: 0 | AX56: 0 | AY56: 0 | AZ56: 0 | BA56: 0 | BB56: 0 | BC56: 0 | BD56: 5.256154281 | BE56: 2.101209759 | BF56: 9.983154853 | BG56: 15.50226433 | BH56: 20.35385599 | BI56: 53.19663921 | BJ56: 128.4911251 | BK56: 64.88210748 | BL56: 364.4785484 | BM56: 160.0563767 | BN56: 35.03766985 | BO56: 752.9458275 | BP56: 104.6639812 | BQ56: 42.34893671 | BR56: 182.6859535 | BS56: 150.4083743 | BT56: 36.88702239 | BU56: 516.9942682 | BV56: 6.16186612 | BW56: 4.392207205 | BX56: 89.78867018 | BY56: 38.93055227 | BZ56: 1.247002793 | CA56: 140.5202986 | CB56: 0 | CC56: 0 | CD56: 0 | CE56: 0 | CF56: 0 | CG56: 0 | CH56: 0.131158114 | CI56: 0.06559235043 | CJ56: 0.6677572981 | CK56: 0.6138852001 | CL56: 0.002671223776 | CM56: 1.481064186 | CN56: 1.609584593 | CO56: 0.8401881624 | CP56: 18.55407645 | CQ56: 9.970000989 | CR56: 0.09569179965 | CS56: 31.069542 | CT56: 0 | CU56: 0 | CV56: 0 | CW56: 0 | CX56: 0 | CY56: 0 | CZ56: 0.04401088373 | DA56: 0.02206260872 | DB56: 0.2653284969 | DC56: 0.2227529183 | DD56: 0.002513139696 | DE56: 0.5566680473 | DF56: 0 | DG56: 0 | DH56: 0 | DI56: 0 | DJ56: 0 | DK56: 0 | DL56: 0 | DM56: 1.82686521 | DN56: 0.7271698223 | DO56: 9.063381349 | DP56: 27.33898096 | DQ56: 10.81321292 | DR56: 49.76961026 | DS56: 0 | DT56: 0 | DU56: 0 | DV56: 0 | DW56: 0 | DX56: 0 | DY56: 0.4337901609 | DZ56: 0.2129203314 | EA56: 5.471872652 | EB56: 14.97765136 | EC56: 22.53019616 | ED56: 43.62643066 | EE56: 0.1376582867 | EF56: 0.03154391002 | EG56: 13.29154939 | EH56: 0.05648005744 | EI56: 0.3303876667 | EJ56: 13.84761931 | EK56: 1976.00312 | EL56: 61.21405451 | EM56: 146.904572 | EN56: 14.20543556 | EO56: 210.2635677 | EP56: 157.1917857 | EQ56: 38.26337213 | ER56: 9.915730264 | ES56: 116.3752798 | ET56: 120.4886181 | EU56: 201.1734795 | EV56: 20.32464325 | EW56: 1096.320538 | EX56: 139.3377468 | EY56: 30.07294234 | EZ56: 60.42232115 | FA56: 26.9532531 | FB56: 7.726944728 | FC56: 264.5132081 | FD56: 1196.188567 | FE56: 640.7750049 | FF56: 481.5187442 | FG56: 0.7381004038 | FH56: 20.34621252 | FI56: 295.4221159 | FJ56: 7.780504646 | FK56: 47.50269976 | FL56: 0.4420172432 | FM56: 4.418813723 | FN56: 43.80160557 | FO56: 25.63855161 | FP56: 7.413468658 | FQ56: 2771.986406 | FR56: 7.732584002 | FS56: 16.14446402 | FT56: 2795.863454 | FU56: 90.94586291 | FV56: 191.489884 | FW56: 282.4357469
A57: 01K033 | B57: Autres actes thérapeutiques par voie vasculaire du système nerveux, niveau 3 | D57: 158 | E57: 15242.37061 | F57: 18.01398198 | G57: 3.038520188 | H57: 330.3046551 | I57: 386.8557707 | J57: 1343.36016 | K57: 2081.573088 | L57: 7.700827522 | M57: 1.905922412 | N57: 31.52935229 | O57: 35.52185652 | P57: 307.2452101 | Q57: 383.9031689 | R57: 17.22935572 | S57: 7.106521302 | T57: 175.9747435 | U57: 374.683032 | V57: 1485.396589 | W57: 2060.390242 | X57: 54.3747107 | Y57: 16.95725762 | Z57: 91.30682803 | AA57: 422.9620774 | AB57: 1024.978829 | AC57: 1610.579703 | AD57: 6136.446201 | AE57: 12.83398068 | AF57: 4.720650487 | AG57: 8.649090061 | AH57: 134.5649882 | AI57: 144.7108705 | AJ57: 305.4795799 | AK57: 3.074324777 | AL57: 1.346517545 | AM57: 3.662477235 | AN57: 5.011236134 | AO57: 18.58871273 | AP57: 31.68326842 | AQ57: 0 | AR57: 0 | AS57: 0 | AT57: 0 | AU57: 0 | AV57: 0 | AW57: 0 | AX57: 0 | AY57: 0 | AZ57: 0 | BA57: 0 | BB57: 0 | BC57: 0 | BD57: 10.23103912 | BE57: 4.437750191 | BF57: 21.06075461 | BG57: 43.38999876 | BH57: 58.23938825 | BI57: 137.3589309 | BJ57: 173.3514981 | BK57: 82.85174942 | BL57: 558.616762 | BM57: 223.2386627 | BN57: 32.08333856 | BO57: 1070.142011 | BP57: 139.0294842 | BQ57: 48.99690536 | BR57: 187.3750719 | BS57: 190.0559734 | BT57: 37.91892901 | BU57: 603.376364 | BV57: 10.68827323 | BW57: 7.265526157 | BX57: 155.2151086 | BY57: 79.43442924 | BZ57: 1.208416793 | CA57: 253.811754 | CB57: 0.01392586677 | CC57: 0.00661065839 | CD57: 0.3554857655 | CE57: 0.267955451 | CF57: 0.0001380967978 | CG57: 0.6441158384 | CH57: 0.09276618816 | CI57: 0.03508041205 | CJ57: 0.7311677949 | CK57: 0.6107372305 | CL57: 0.003717729518 | CM57: 1.473469355 | CN57: 2.352999425 | CO57: 1.492943549 | CP57: 35.86820185 | CQ57: 19.22574222 | CR57: 0.2313415822 | CS57: 59.17122863 | CT57: 0.0124258979 | CU57: 0.05648622059 | CV57: 0.7095621748 | CW57: 0.5422541395 | CX57: 0 | CY57: 1.320728433 | CZ57: 0.2206646995 | DA57: 0.08744560647 | DB57: 1.578750648 | DC57: 1.360628511 | DD57: 0.01322455647 | DE57: 3.260714022 | DF57: 0 | DG57: 0 | DH57: 0 | DI57: 0 | DJ57: 0 | DK57: 0 | DL57: 0 | DM57: 2.233361712 | DN57: 1.40609513 | DO57: 18.60620355 | DP57: 36.04109889 | DQ57: 18.43833352 | DR57: 76.7250928 | DS57: 0 | DT57: 0 | DU57: 0.02394351473 | DV57: 5.717108193 | DW57: 1.550166345 | DX57: 7.291218053 | DY57: 0.6850266535 | DZ57: 0.2521224593 | EA57: 5.827865005 | EB57: 12.14632561 | EC57: 24.67096762 | ED57: 43.58230735 | EE57: 1.162867717 | EF57: 0.2843683145 | EG57: 98.29123089 | EH57: 3.564496069 | EI57: 13.46282937 | EJ57: 116.7657924 | EK57: 2712.086575 | EL57: 106.710623 | EM57: 254.6533359 | EN57: 12.53670727 | EO57: 499.805157 | EP57: 299.9383828 | EQ57: 57.77670441 | ER57: 8.876648851 | ES57: 244.6099004 | ET57: 203.6996147 | EU57: 420.0223278 | EV57: 53.78203513 | EW57: 2162.411437 | EX57: 210.4069117 | EY57: 28.26023447 | EZ57: 86.5187377 | FA57: 38.99686803 | FB57: 11.18472385 | FC57: 375.3674757 | FD57: 1767.782462 | FE57: 910.9084877 | FF57: 352.2957203 | FG57: 0.5101121758 | FH57: 22.36581698 | FI57: 578.5601209 | FJ57: 12.72003507 | FK57: 34.87688953 | FL57: 0.2297549796 | FM57: 3.415180444 | FN57: 47.51681075 | FO57: 9.110977523 | FP57: 108.5126267 | FQ57: 3848.804995 | FR57: 6.736358671 | FS57: 0.5175687476 | FT57: 3856.058922 | FU57: 156.27882 | FV57: 383.9222965 | FW57: 540.2011165
A58: 01K034 | B58: Autres actes thérapeutiques par voie vasculaire du système nerveux, niveau 4 | D58: 68 | E58: 23407.4073 | F58: 24.05365037 | G58: 3.958563634 | H58: 342.9034741 | I58: 461.4230504 | J58: 1571.823143 | K58: 2404.161881 | L58: 12.93172952 | M58: 3.352305921 | N58: 36.06802194 | O58: 68.72619579 | P58: 493.3115123 | Q58: 614.3897655 | R58: 25.23710273 | S58: 10.83924873 | T58: 205.4239585 | U58: 525.7122602 | V58: 1906.371751 | W58: 2673.584321 | X58: 203.2599462 | Y58: 54.7744832 | Z58: 362.876851 | AA58: 1340.319854 | AB58: 4038.569755 | AC58: 5999.800889 | AD58: 11691.93686 | AE58: 16.94222645 | AF58: 6.326513038 | AG58: 11.8524577 | AH58: 183.3579144 | AI58: 187.5172115 | AJ58: 405.996323 | AK58: 5.729761161 | AL58: 4.236293597 | AM58: 8.797397627 | AN58: 14.77836849 | AO58: 37.89175475 | AP58: 71.43357562 | AQ58: 0 | AR58: 0 | AS58: 0 | AT58: 0 | AU58: 0 | AV58: 0 | AW58: 0 | AX58: 0 | AY58: 0 | AZ58: 0 | BA58: 0 | BB58: 0 | BC58: 0 | BD58: 18.3786422 | BE58: 7.903578514 | BF58: 24.37229202 | BG58: 44.82255799 | BH58: 63.27775833 | BI58: 158.754829 | BJ58: 197.2633256 | BK58: 95.44905023 | BL58: 692.9986455 | BM58: 262.6118448 | BN58: 35.79418165 | BO58: 1284.117048 | BP58: 96.68130875 | BQ58: 39.88584406 | BR58: 163.1202389 | BS58: 151.5598851 | BT58: 44.86253883 | BU58: 496.1098156 | BV58: 27.46303106 | BW58: 17.11888062 | BX58: 346.7928751 | BY58: 180.8110861 | BZ58: 3.019173281 | CA58: 575.2050461 | CB58: 0.0004668250995 | CC58: 7.504578619e-05 | CD58: 0.0287766045 | CE58: 0.02823302796 | CF58: 0 | CG58: 0.05755150335 | CH58: 0.4394465838 | CI58: 0.1996622724 | CJ58: 1.901527336 | CK58: 1.98961015 | CL58: 0.000966253306 | CM58: 4.531212595 | CN58: 6.057690283 | CO58: 3.937235422 | CP58: 87.04806848 | CQ58: 47.10416697 | CR58: 0.382864216 | CS58: 144.5300254 | CT58: 0 | CU58: 0 | CV58: 0 | CW58: 0 | CX58: 0 | CY58: 0 | CZ58: 0.06367988 | DA58: 0.0285162862 | DB58: 0.2578585904 | DC58: 0.2840387758 | DD58: 0 | DE58: 0.6340935324 | DF58: 0 | DG58: 0 | DH58: 0 | DI58: 0 | DJ58: 0 | DK58: 0 | DL58: 0 | DM58: 2.619060111 | DN58: 1.532584466 | DO58: 30.6306407 | DP58: 43.98795886 | DQ58: 21.70499838 | DR58: 100.4752425 | DS58: 0 | DT58: 0 | DU58: 0 | DV58: 0 | DW58: 0 | DX58: 0 | DY58: 0.8136431849 | DZ58: 0.4001151435 | EA58: 6.717391692 | EB58: 17.40585787 | EC58: 31.92474189 | ED58: 57.26174979 | EE58: 1.927806955 | EF58: 0.5258512192 | EG58: 236.5429653 | EH58: 5.960986364 | EI58: 18.6182412 | EJ58: 263.575851 | EK58: 3562.682364 | EL58: 153.4719046 | EM58: 312.8039397 | EN58: 11.82264022 | EO58: 737.7213543 | EP58: 498.3238044 | EQ58: 104.1177308 | ER58: 9.122118138 | ES58: 376.4664834 | ET58: 346.9807805 | EU58: 649.6275511 | EV58: 87.81347274 | EW58: 3288.27178 | EX58: 330.2015429 | EY58: 51.62583625 | EZ58: 116.6246902 | FA58: 68.45002773 | FB58: 17.8744787 | FC58: 584.7765758 | FD58: 2261.682448 | FE58: 766.2850257 | FF58: 184.2924953 | FG58: 2.558060495 | FH58: 52.40011392 | FI58: 737.0853487 | FJ58: 60.66047272 | FK58: 41.91014323 | FL58: 1.13523466 | FM58: 8.807247194 | FN58: 55.08024831 | FO58: 15.6544992 | FP58: 65.22189208 | FQ58: 4252.77323 | FR58: 26.7771459 | FS58: 0.189351678 | FT58: 4279.739727 | FU58: 239.1736585 | FV58: 565.7779866 | FW58: 804.9516451
